Workbook

Sheet Index
D4: Economic Database
D5: Table of Contents
D6: 2017-10-30
H10: Data | K10: Data Comparison | N10: Graphs
B11: Category | E11: Description | F11: Series ID | H11: M/Q Values | I11: Annual | K11: Sequential | L11: Y/Y | N11: Mo./Qtr. | O11: Starting Year | Q11: Data Source | R11: Last Observation Date
B12: GDP | E12: Nominal Gross Domestic Product | F12: GDP001 | H12: GDP001Q | I12: GDP001A | K12: GDP001Q | L12: GDP001A | N12: Quarterly | O12: 1959 | Q12: Bureau of Economic Analysis | R12: 2017-07-01
B13: GDP | E13: Real Gross Domestic Product | F13: GDP004 | H13: GDP004Q | I13: GDP004A | K13: GDP004Q | L13: GDP004A | N13: Quarterly | O13: 1959 | Q13: Bureau of Economic Analysis | R13: 2017-07-01
B14: GDP | E14: Real Final Sales of Domestic Product | F14: GDP007 | H14: GDP007Q | I14: GDP007A | K14: GDP007Q | L14: GDP007A | N14: Quarterly | O14: 1959 | Q14: Bureau of Economic Analysis | R14: 2017-07-01
B15: GDP | E15: Real PCE - Billions of Chained 2005 Dollars | F15: GDP010 | H15: GDP010M | I15: GDP010A | K15: GDP010M | L15: GDP010A | N15: Quarterly | O15: 1959 | Q15: Bureau of Economic Analysis | R15: 2017-09-01
B16: GDP | E16: Real PCE: Durable Goods - Billions of Chained 2009 Dollars | F16: GDP014 | H16: GDP014M | I16: GDP014A | K16: GDP014M | L16: GDP014A | N16: Quarterly | O16: 1959 | Q16: Bureau of Economic Analysis | R16: 2017-09-01
B17: GDP | E17: Real PCE: Nondurable Goods - Billions of Chained 2009 Dollars | F17: GDP018 | H17: GDP018M | I17: GDP018A | K17: GDP018M | L17: GDP018A | N17: Quarterly | O17: 1988 | Q17: Bureau of Economic Analysis | R17: 2017-09-01
B18: GDP | E18: Real PCE: Services - Billions of Chained 2009 Dollars | F18: GDP022 | H18: GDP022M | I18: GDP022A | K18: GDP022M | L18: GDP022A | N18: Quarterly | O18: 1959 | Q18: Bureau of Economic Analysis | R18: 2017-09-01
B19: GDP | E19: Real Private Nonres. Fixed Investment - Billions of Chained 2009 Dollars | F19: GDP026 | H19: GDP026Q | I19: GDP026A | K19: GDP026Q | L19: GDP026A | N19: Quarterly | O19: 1959 | Q19: Bureau of Economic Analysis | R19: 2017-07-01
B20: GDP | E20: Real Nonres. Invest.: Equip. & Software - Billions of Chained 2009 Dollars | F20: GDP029 | H20: GDP029Q | I20: GDP029A | K20: GDP029Q | L20: GDP029A | N20: Quarterly | O20: 1959 | Q20: Bureau of Economic Analysis | R20: 2017-07-01
B21: GDP | E21: Real Private Residential Fixed Investment - Billions of Chained 2009 Dollars | F21: GDP032 | H21: GDP032Q | I21: GDP032A | K21: GDP032Q | L21: GDP032A | N21: Quarterly | O21: 1959 | Q21: Bureau of Economic Analysis | R21: 2017-07-01
B22: GDP | E22: Real Change in Private Inventories - Billions of Chained 2009 Dollars | F22: GDP035 | H22: GDP035Q | I22: GDP035A | K22: GDP035Q | L22: GDP035A | N22: Quarterly | O22: 1959 | Q22: Bureau of Economic Analysis | R22: 2017-07-01
B23: GDP | E23: Real Imports of Goods & Services - Billions of Chained 2009 Dollars | F23: GDP036 | H23: GDP036Q | I23: GDP036A | K23: GDP036Q | L23: GDP036A | N23: Quarterly | O23: 1959 | Q23: Bureau of Economic Analysis | R23: 2017-07-01
B24: GDP | E24: Real Exports of Goods & Services - Billions of Chained 2009 Dollars | F24: GDP039 | H24: GDP039Q | I24: GDP039A | K24: GDP039Q | L24: GDP039A | N24: Quarterly | O24: 1959 | Q24: Bureau of Economic Analysis | R24: 2017-07-01
B25: GDP | E25: Net Exports of Goods & Services - Billions of Chained 2009 Dollars | F25: GDP042 | H25: GDP042Q | I25: GDP042A | K25: GDP042Q | L25: GDP042A | N25: Quarterly | O25: 1959 | Q25: Bureau of Economic Analysis | R25: 2017-07-01
B26: GDP | E26: Real Gov't Cons. & Invest. - Billions of Chained 2009 Dollars | F26: GDP043 | H26: GDP043Q | I26: GDP043A | K26: GDP043Q | L26: GDP043A | N26: Quarterly | O26: 1959 | Q26: Bureau of Economic Analysis | R26: 2017-07-01
B27: GDP | E27: Federal Government Surplus or Deficit [-], NIPA - Billions of Chained 2005 Dollars | F27: GDP046 | H27: GDP046Q | I27: GDP046A | K27: GDP046Q | L27: GDP046A | N27: Quarterly | O27: 1959 | Q27: Bureau of Economic Analysis | R27: 2017-04-01
B33: Business | E33: Capacity Utilization: Mfg (NAICS) - Percent of Capacity, SA | F33: BUS001 | H33: BUS001Q | I33: BUS001A | K33: BUS001Q | L33: BUS001A | N33: Quarterly | O33: 1972 | Q33: Bureau of Economic Analysis | R33: 2017-07-01
B34: Business | E34: Capacity Utilization: Total Industry - Percent of Capacity, SA | F34: BUS002 | H34: BUS002M | I34: BUS002A | K34: BUS002M | L34: BUS002A | N34: Monthly | O34: 1976 | Q34: Bureau of Economic Analysis | R34: 2017-09-01
B35: Business | E35: Commercial and Industrial Loans, Commercial Banks - Billions of Dolllars, SA | F35: BUS003 | H35: BUS003M | I35: BUS003A | K35: BUS003M | L35: BUS003A | N35: Monthly | O35: 1959 | Q35: Federal Reserve Bank | R35: 2017-09-01
B36: Business | E36: Commercial Net Loan Charge-offs - Ratio | F36: BUS004 | H36: BUS004Q | I36: BUS004A | K36: BUS004Q | L36: BUS004A | N36: Quarterly | O36: 1988 | Q36: Federal Reserve Bank | R36: 2017-04-01
B37: Business | E37: Corporate Profits After Tax - Billions of Dollars, SAAR | F37: BUS005 | H37: BUS005Q | I37: BUS005A | K37: BUS005Q | L37: BUS005A | N37: Quarterly | O37: 1959 | Q37: Federal Reserve Bank | R37: 2017-04-01
B38: Business | E38: Corporate Profits Less Financial After Tax - Billions of Dollars, SAAR | F38: BUS006 | H38: BUS006Q | I38: BUS006A | K38: BUS006Q | L38: BUS006A | N38: Quarterly | O38: 1959 | Q38: Federal Reserve Bank | R38: 2017-04-01
B39: Business | E39: Bank Willingness to Make Consumer Loans - Net Percent | F39: BUS007 | H39: BUS007Q | I39: BUS007A | K39: BUS007Q | L39: BUS007A | N39: Quarterly | O39: 1990 | Q39: Federal Reserve Bank | R39: 2017-07-01
B40: Business | E40: Demand for Commercial & Industrial Loans by Small Firms - Net Percent | F40: BUS008 | H40: BUS008Q | I40: BUS008A | K40: BUS008Q | L40: BUS008A | N40: Quarterly | O40: 1991 | Q40: Federal Reserve Bank | R40: 2017-07-01
B41: Business | E41: Nonperforming Loans - Total | F41: BUS009 | H41: BUS009Q | I41: BUS009A | K41: BUS009Q | L41: BUS009A | N41: Quarterly | O41: 1988 | Q41: Federal Reserve Bank | R41: 2017-04-01
B42: Business | E42: Commercial Net Loan Charge-offs - Ratio | F42: BUS010 | H42: BUS010Q | I42: BUS010A | K42: BUS010Q | L42: BUS010A | N42: Quarterly | O42: 1988 | Q42: Federal Reserve Bank | R42: 2017-04-01
B43: Business | E43: Total Loan Charge-offs - Ratio | F43: BUS011 | H43: BUS011Q | I43: BUS011A | K43: BUS011Q | L43: BUS011A | N43: Quarterly | O43: 1988 | Q43: Federal Reserve Bank | R43: 2017-04-01
B44: Business | E44: E-Commerce Sales - Millions of Dollars | F44: BUS012 | H44: BUS012Q | I44: BUS012A | K44: BUS012Q | L44: BUS012A | N44: Quarterly | O44: 1999 | Q44: U.S. Census Bureau | R44: 2017-04-01
E45: E-Commerce Sales as a % of Total Retail Sales | H45: BUS013Q | I45: BUS013A | N45: Quarterly | O45: 1999 | Q45: ACT Research, LLC | R45: =+$D$6 -> 2017-10-30
B46: Business | E46: ECI: Benefits: Private Industry Workers - Index 2005=100 | F46: BUS014 | H46: BUS014Q | I46: BUS014A | K46: BUS014Q | L46: BUS014A | O46: 2001 | Q46: Bureau of Labor Statistics | R46: 2017-04-01
B47: Business | E47: ECI: Compensation: Private Industry Workers - Index 2005=100 | F47: BUS015 | H47: BUS015Q | I47: BUS015A | K47: BUS015Q | L47: BUS015A | O47: 2001 | Q47: Bureau of Labor Statistics | R47: 2017-04-01
B48: Business | E48: ECI: Wages & Salaries: Private Industry Workers - Index 2005=100 | F48: BUS016 | H48: BUS016Q | I48: BUS016A | K48: BUS016Q | L48: BUS016A | O48: 2001 | Q48: Bureau of Labor Statistics | R48: 2017-04-01
B49: Business | E49: Industrial Production Index | F49: BUS019 | H49: BUS019M | I49: BUS019A | K49: BUS019M | L49: BUS019A | N49: Monthly | O49: 1959 | Q49: Federal Reserve Bank | R49: 2017-09-01
B50: Business | E50: Industrial Production Index - Mfg. | F50: BUS020 | H50: BUS020M | I50: BUS020A | K50: BUS020M | L50: BUS020A | N50: Monthly | O50: 1972 | Q50: Federal Reserve Bank | R50: 2017-09-01
B51: Business | E51: Inventories: Total Business - Millions of Dollars, SA | F51: BUS021 | H51: BUS021M | I51: BUS021A | K51: BUS021M | L51: BUS021A | N51: Monthly | O51: 1992 | Q51: U.S. Census Bureau | R51: 2017-08-01
B52: Business | E52: Inventory to Sales Ratio: Total Business | F52: BUS022 | H52: BUS022M | I52: BUS022A | K52: BUS022M | L52: BUS022A | N52: Monthly | O52: 1992 | Q52: U.S. Census Bureau | R52: 2017-08-01
B53: Business | E53: ISM INDEX: PMI Manufacturing Composite Index | F53: BUS023 | H53: BUS023M | I53: BUS023A | K53: BUS023M | L53: BUS023A | N53: Monthly | O53: 1959 | Q53: Bureau of Economic Analysis | R53: =+$D$6 -> 2017-10-30
B54: Business | E54: ISM INDEX Backlogs | F54: BUS024 | H54: BUS024M | I54: BUS024A | K54: BUS024M | L54: BUS024A | O54: 1993 | Q54: Institute for Supply Management | R54: =+$D$6 -> 2017-10-30
B55: Business | E55: ISM INDEX Customer Inventories | F55: BUS025 | H55: BUS025M | I55: BUS025A | K55: BUS025M | L55: BUS025A | O55: 1997 | Q55: Institute for Supply Management | R55: 2017-10-30
B56: Business | E56: ISM INDEX Employment | F56: BUS026 | H56: BUS026M | I56: BUS026A | K56: BUS026M | L56: BUS026A | O56: 1959 | Q56: Institute for Supply Management | R56: 2017-10-30
B57: Business | E57: ISM INDEX Exports | F57: BUS027 | H57: BUS027M | I57: BUS027A | K57: BUS027M | L57: BUS027A | O57: 1988 | Q57: Institute for Supply Management | R57: 2017-10-30
B58: Business | E58: ISM INDEX Imports | F58: BUS028 | H58: BUS028M | I58: BUS028A | K58: BUS028M | L58: BUS028A | O58: 1990 | Q58: Institute for Supply Management | R58: 2017-10-30
B59: Business | E59: ISM INDEX Inventories | F59: BUS029 | H59: BUS029M | I59: BUS029A | K59: BUS029M | L59: BUS029A | O59: 1959 | Q59: Institute for Supply Management | R59: 2017-10-30
B60: Business | E60: ISM INDEX New Orders | F60: BUS030 | H60: BUS030M | I60: BUS030A | K60: BUS030M | L60: BUS030A | O60: 1959 | Q60: Institute for Supply Management | R60: 2017-10-30
B61: Business | E61: ISM INDEX Prices | F61: BUS031 | H61: BUS031M | I61: BUS031A | K61: BUS031M | L61: BUS031A | O61: 1959 | Q61: Institute for Supply Management | R61: 2017-10-30
B62: Business | E62: ISM INDEX Production | F62: BUS032 | H62: BUS032M | I62: BUS032A | K62: BUS032M | L62: BUS032A | O62: 1959 | Q62: Institute for Supply Management | R62: 2017-10-30
B63: Business | E63: ISM INDEX Supplier deliveries | F63: BUS033 | H63: BUS033M | I63: BUS033A | K63: BUS033M | L63: BUS033A | O63: 1959 | Q63: Institute for Supply Management | R63: 2017-10-30
B64: Business | E64: ISM Nonmanufacturing: Business Activity Index | F64: BUS034 | H64: BUS034M | I64: BUS034A | K64: BUS034M | L64: BUS034A | N64: Monthly | O64: 1997 | Q64: Institute for Supply Management | R64: =+$D$6 -> 2017-10-30
B65: Business | E65: Mfgs' New Orders: Nondefense Excluding Aircraft - Millions of Dollars, SA | F65: BUS035 | H65: BUS035M | I65: BUS035A | K65: BUS035M | L65: BUS035A | N65: Monthly | O65: 1992 | Q65: U.S. Census Bureau | R65: 2017-09-01
B66: Business | E66: Manufacturing: Output Per Hour of All Persons - Index, 2009=100 | F66: BUS036 | H66: BUS036Q | I66: BUS036A | K66: BUS036Q | L66: BUS036A | N66: Quarterly | O66: 1987 | Q66: Federal Reserve Bank | R66: 2017-04-01
B67: Business | E67: Manufacturing: Unit Labor Cost - Index, 2009=100 | F67: BUS037 | H67: BUS037Q | I67: BUS037A | K67: BUS037Q | L67: BUS037A | N67: Quarterly | O67: 1987 | Q67: Federal Reserve Bank | R67: 2017-04-01
B68: Business | E68: Nonfarm: Compensation Per Hour - Index, 2009=100 | F68: BUS038 | H68: BUS038Q | I68: BUS038A | K68: BUS038Q | L68: BUS038A | N68: Quarterly | O68: 1959 | Q68: Bureau of Labor Statistics | R68: 2017-04-01
B69: Business | E69: Nonfarm: Output Per Hour of All Persons - Index, 2009=100 | F69: BUS039 | H69: BUS039Q | I69: BUS039A | K69: BUS039Q | L69: BUS039A | N69: Quarterly | O69: 1959 | Q69: Bureau of Labor Statistics | R69: 2017-04-01
B70: Business | E70: Nonfarm: Real Compensation Per Hour - Index, 2009=100 | F70: BUS040 | H70: BUS040Q | I70: BUS040A | K70: BUS040Q | L70: BUS040A | N70: Quarterly | O70: 1959 | Q70: Bureau of Labor Statistics | R70: 2017-04-01
B71: Business | E71: Nonfarm: Unit Labor Cost - Index, 2009=100 | F71: BUS041 | H71: BUS041Q | I71: BUS041A | K71: BUS041Q | L71: BUS041A | N71: Quarterly | O71: 1959 | Q71: Bureau of Labor Statistics | R71: 2017-04-01
B72: Business | E72: Nonfinancial Corporate Business: Profits After Tax - Billions of Dollars | F72: BUS042 | H72: BUS042Q | I72: BUS042A | K72: BUS042Q | L72: BUS042A | N72: Quarterly | O72: 1972 | Q72: Federal Reserve Bank | R72: 2017-04-01
B73: Business | E73: Nonperforming Total Loans - Ratio | F73: BUS043 | H73: BUS043Q | I73: BUS043A | K73: BUS043Q | L73: BUS043A | N73: Quarterly | O73: 1988 | Q73: Federal Reserve Bank | R73: 2014-12-04
B74: Business | E74: Retail and Food Services Sales - Millions of Dollars | F74: BUS045 | H74: BUS045M | I74: BUS045A | K74: BUS045M | L74: BUS045A | N74: Monthly | O74: 1992 | Q74: U.S. Census Bureau | R74: 2017-09-01
B75: Business | E75: Retail Sales: Total (Excluding Food Services) - Millions of Dollars | F75: BUS046 | H75: BUS046M | I75: BUS046A | K75: BUS046M | L75: BUS046A | N75: Monthly | O75: 1992 | Q75: Bureau of Economic Analysis | R75: 2017-09-01
B81: Consumer | E81: Consumer Loans at All Commercial Banks - Billions of Dollars | F81: CON001 | H81: CON001M | I81: CON001A | K81: CON001M | L81: CON001A | N81: Monthly | O81: 1959 | Q81: Federal Reserve Bank | R81: 2017-09-01
B82: Consumer | E82: Debt Service Payments as a % DPI | F82: CON002 | H82: CON002Q | I82: CON002A | K82: CON002Q | L82: CON002A | N82: Quarterly | O82: 1980 | Q82: Federal Reserve Bank | R82: 2017-04-01
B83: Consumer | E83: Household Financial Obligations as a percent of DPI | F83: CON003 | H83: CON003Q | I83: CON003A | K83: CON003Q | L83: CON003A | N83: Quarterly | O83: 1980 | Q83: Federal Reserve Bank | R83: 2017-04-01
B84: Consumer | E84: Household Credit Market Debt Outstanding - Billions of Dollars, SA | F84: CON004 | H84: CON004Q | I84: CON004A | K84: CON004Q | L84: CON004A | N84: Quarterly | O84: 1959 | Q84: Federal Reserve Bank | R84: 2017-04-01
B85: Consumer | E85: Housing Starts Total: New Privately Owned - Thousands | F85: CON005 | H85: CON005M | I85: CON005A | K85: CON005M | L85: CON005A | N85: Monthly | O85: 1959 | Q85: U.S. Census Bureau | R85: 2017-09-01
B86: Consumer | E86: New Private Housing Units Authorized by Building Permits - Thousands | F86: CON006 | H86: CON006M | I86: CON006A | K86: CON006M | L86: CON006A | N86: Monthly | O86: 1960 | Q86: U.S. Census Bureau | R86: 2017-04-01
B87: Consumer | E87: S&P Case-Shiller 20-City Home Price Index | F87: CON007 | H87: CON007M | I87: CON007A | K87: CON007M | L87: CON007A | N87: Monthly | O87: 2000 | Q87: Standard & Poor's | R87: 2017-07-01
B88: Consumer | E88: Autos & Light Trucks - Millions, SAAR | F88: CON008 | H88: CON008M | I88: CON008A | K88: CON008M | L88: CON008A | N88: Monthly | O88: 1976 | Q88: Bureau of Economic Analysis | R88: 2017-08-01
B89: Consumer | E89: Misery Index | F89: CON009 | H89: CON009M | I89: CON009A | K89: CON009M | L89: CON009A | N89: Monthly | O89: 1960 | Q89: Calculated | R89: 2017-09-01
B90: Consumer | E90: Misery Index - Adjusted | F90: CON010 | H90: CON010M | I90: CON010A | K90: CON010M | L90: CON010A | N90: Monthly | O90: 1960 | Q90: Calculated | R90: 2017-09-01
B91: Consumer | E91: New Home Inventories - Thousands | F91: CON011 | H91: CON011M | I91: CON011A | K91: CON011M | L91: CON011A | N91: Monthly | O91: 2005 | Q91: U.S. Census Bureau | R91: =+$D$6 -> 2017-10-30
B92: Consumer | E92: New Homes Sold - Thousands | F92: CON012 | H92: CON012M | I92: CON012A | K92: CON012M | L92: CON012A | N92: Monthly | O92: 2005 | Q92: U.S. Census Bureau | R92: =+$D$6 -> 2017-10-30
E93: New Homes Inventory/Retail Sales | H93: CON035M | I93: CON035A | N93: Monthly | O93: 2005 | Q93: U.S. Census Bureau | R93: 2017-10-30
B94: Consumer | E94: Used Home Inventories - Thousands | F94: CON033 | H94: CON033M | I94: CON033A | K94: CON033M | L94: CON033A | N94: Monthly | O94: 2006 | Q94: U.S. Census Bureau | R94: 2017-10-30
B95: Consumer | E95: Used Homes Sold - Thousands | F95: CON034 | H95: CON034M | I95: CON034A | K95: CON034M | L95: CON034A | N95: Monthly | O95: 2006 | Q95: U.S. Census Bureau | R95: 2017-10-30
E96: Used Homes Inventory/Retail Sales | H96: CON036M | I96: CON036A | N96: Monthly | O96: 2006 | Q96: U.S. Census Bureau | R96: 2017-10-30
B97: Consumer | E97: New Homes Sales - Single Family - Thousands | F97: CON013 | H97: CON013M | I97: CON013A | K97: CON013M | L97: CON013A | N97: Monthly | O97: 1963 | Q97: Bureau of Economic Analysis | R97: 2017-10-30
B98: Consumer | E98: Personal Income - Billions of Dollars, SA | F98: CON014 | H98: CON014M | I98: CON014A | K98: CON014M | L98: CON014A | N98: Monthly | O98: 1959 | Q98: Bureau of Economic Analysis | R98: 2017-09-01
B99: Consumer | E99: Personal Saving - Billions of Dollars, SA | F99: CON018 | H99: CON018M | I99: CON018A | K99: CON018M | L99: CON018A | N99: Monthly | O99: 1959 | Q99: Bureau of Economic Analysis | R99: 2017-09-01
B100: Consumer | E100: Privately Owned Housing Starts: 1-Unit Structures - Thousands | F100: CON022 | H100: CON022M | I100: CON022A | K100: CON022M | L100: CON022A | N100: Monthly | O100: 1959 | Q100: U.S. Census Bureau | R100: 2017-09-01
B101: Consumer | E101: Real Disposable Personal Income - Billions of Dollars, SA | F101: CON023 | H101: CON023M | I101: CON023A | K101: CON023M | L101: CON023A | N101: Monthly | O101: 1959 | Q101: Bureau of Economic Analysis | R101: 2017-09-01
B102: Consumer | E102: Total Savings Deposits - Billions of Dollars, SA | F102: CON027 | H102: CON027M | I102: CON027A | K102: CON027M | L102: CON027A | N102: Monthly | O102: 1959 | Q102: Federal Reserve Bank | R102: 2017-09-01
B103: Consumer | E103: Total Consumer Credit Outstanding - Billions of Dollars, SA | F103: CON028 | H103: CON028M | I103: CON028A | K103: CON028M | L103: CON028A | N103: Monthly | O103: 1959 | Q103: Federal Reserve Bank | R103: 2017-08-01
B104: Consumer | E104: Total Population: Incl'd Armed Forces Overseas - Thousands | F104: CON029 | H104: CON029M | I104: CON029A | K104: CON029M | L104: CON029A | O104: 1959 | Q104: U.S. Census Bureau | R104: 2017-12-01
B105: Consumer | E105: Total Revolving Credit Outstanding - Billions of Dollars, SA | F105: CON030 | H105: CON030M | I105: CON030A | K105: CON030M | L105: CON030A | N105: Monthly | O105: 1978 | Q105: Federal Reserve Bank | R105: 2017-08-01
B106: Consumer | E106: University of Michigan: Consumer Sentiment | F106: CON031 | H106: CON031M | I106: CON031A | K106: CON031M | L106: CON031A | N106: Monthly | O106: 1978 | Q106: Reuters / University of Michigan | R106: 2017-09-01
B107: Consumer | E107: Conference Board Consumer Confidence | F107: CON032 | H107: CON032M | I107: CON032A | K107: CON032M | L107: CON032A | N107: Monthly | O107: 1997 | Q107: Conference Board | R107: =+$D$6 -> 2017-10-30
B113: Inflation | E113: CPI Index - All Urban: All Items | F113: CPI001 | H113: CPI001M | I113: CPI001A | K113: CPI001M | L113: CPI001A | N113: Monthly | O113: 1959 | Q113: Bureau of Labor Statistics | R113: 2017-09-01
B114: Inflation | E114: CPI Index All Urban: Less Food & Energy | F114: CPI005 | H114: CPI005M | I114: CPI005A | K114: CPI005M | L114: CPI005A | N114: Monthly | O114: 1959 | Q114: Bureau of Labor Statistics | R114: 2017-09-01
B120: Employment | E120: Aggregate Weekly Hours Index: Total Private Industries | F120: EMP001 | H120: EMP001M | I120: EMP001A | K120: EMP001M | L120: EMP001A | N120: Monthly | O120: 1967 | Q120: Bureau of Labor Statistics | R120: 2017-09-01
B121: Employment | E121: Average Weekly Hours: Production & Nonsuper. | F121: EMP002 | H121: EMP002M | I121: EMP002A | K121: EMP002M | L121: EMP002A | N121: Monthly | O121: 1967 | Q121: Bureau of Labor Statistics | R121: 2017-09-01
B122: Employment | E122: Civilian Participation Rate | F122: EMP003 | H122: EMP003M | I122: EMP003A | K122: EMP003M | L122: EMP003A | N122: Monthly | O122: 1959 | Q122: Bureau of Labor Statistics | R122: 2017-09-01
B123: Employment | E123: Total Unemployment Rate Plus (U6 Rate) | F123: EMP004 | H123: EMP004M | I123: EMP004A | K123: EMP004M | L123: EMP004A | N123: Monthly | O123: 1994 | Q123: Bureau of Labor Statistics | R123: 2017-09-01
B124: Employment | E124: Civilian Unemployment Rate | F124: EMP005 | H124: EMP005M | I124: EMP005A | K124: EMP005M | L124: EMP005A | N124: Monthly | O124: 1959 | Q124: Bureau of Labor Statistics | R124: 2017-09-01
B125: Employment | E125: Nonfarm Payrolls: Manufacturing - Thousands | F125: EMP006 | H125: EMP006M | I125: EMP006A | K125: EMP006M | L125: EMP006A | N125: Monthly | O125: 1959 | Q125: Bureau of Labor Statistics | R125: 2017-09-01
B126: Employment | E126: Nonfarm Payrolls: Manufacturing - Monthly Change | F126: EMP007 | H126: EMP007M | I126: EMP007A | K126: EMP007M | L126: EMP007A | N126: Monthly | O126: 1959 | Q126: Bureau of Labor Statistics | R126: 2017-09-01
B127: Employment | E127: Nonfarm Payrolls: Manufacturing - Quarterly Change | F127: EMP009 | H127: EMP009Q | I127: EMP009A | K127: EMP009Q | L127: EMP009A | N127: Quarterly | O127: 1959 | Q127: Bureau of Labor Statistics | R127: 2017-09-01
B128: Employment | E128: Nonfarm Payrolls: Manufacturing - Annual Change | F128: EMP011 | O128: 1960 | Q128: Bureau of Labor Statistics | R128: 2017-09-01
B129: Employment | E129: Total Nonfarm Payrolls: All Employees - Thousands | F129: EMP013 | H129: EMP013M | I129: EMP013A | K129: EMP013M | L129: EMP013A | N129: Monthly | O129: 1959 | Q129: Bureau of Labor Statistics | R129: 2017-09-01
B130: Employment | E130: Total Nonfarm Payrolls: All Employees - Monthly Change | F130: EMP014 | H130: EMP014M | I130: EMP014A | K130: EMP014M | L130: EMP014A | N130: Monthly | O130: 1959 | Q130: Bureau of Labor Statistics | R130: 2017-09-01
B131: Employment | E131: Total Nonfarm Payrolls: All Employees - Quarterly Change | F131: EMP016 | H131: EMP016Q | I131: EMP016A | K131: EMP016Q | L131: EMP016A | N131: Quarterly | O131: 1959 | Q131: Bureau of Labor Statistics | R131: 2017-09-01
B132: Employment | E132: Total Nonfarm Payrolls: All Employees - Annual Change | F132: EMP018 | O132: 1960 | Q132: Bureau of Labor Statistics | R132: 2017-09-01
B133: Employment | E133: Initial Unemployment Claims (Monthly Average) | F133: EMP020 | H133: EMP020M | I133: EMP020A | K133: EMP020M | L133: EMP020A | N133: Monthly | O133: 1967 | Q133: Bureau of Labor Statistics | R133: 2017-10-21
B134: Employment | E134: Median Duration of Unemployment - Weeks, Monthly Average SA | F134: EMP021 | H134: EMP021M | I134: EMP021A | K134: EMP021M | L134: EMP021A | N134: Monthly | O134: 1967 | Q134: Bureau of Labor Statistics | R134: 2017-09-01
B135: Employment | E135: Trucking Employment - Truck Transportation - SA in Thousands | F135: EMP022 | H135: EMP022M | I135: EMP022A | K135: EMP022M | L135: EMP022A | N135: Monthly | O135: 1990 | Q135: Bureau of Labor Statistics | R135: =+$D$6 -> 2017-10-30
B136: Employment | E136: Trucking Employment - Truck Transportation - NSA in Thousands | F136: EMP023 | H136: EMP023M | I136: EMP023A | K136: EMP023M | L136: EMP023A | O136: 1990 | Q136: Bureau of Labor Statistics | R136: 2017-10-30
B137: Employment | E137: Trucking Employment - General Freight - NSA in Thousands | F137: EMP024 | H137: EMP024M | I137: EMP024A | K137: EMP024M | L137: EMP024A | O137: 1990 | Q137: Bureau of Labor Statistics | R137: 2017-10-30
B138: Employment | E138: Trucking Employment - General Freight, local - NSA in Thousands | F138: EMP025 | H138: EMP025M | I138: EMP025A | K138: EMP025M | L138: EMP025A | O138: 1990 | Q138: Bureau of Labor Statistics | R138: 2017-10-30
B139: Employment | E139: Trucking Employment - General Freight, long - NSA in Thousands | F139: EMP026 | H139: EMP026M | I139: EMP026A | K139: EMP026M | L139: EMP026A | O139: 1990 | Q139: Bureau of Labor Statistics | R139: 2017-10-30
B140: Employment | E140: Trucking Employment - General Freight, long TL - NSA in Thousands | F140: EMP027 | H140: EMP027M | I140: EMP027A | K140: EMP027M | L140: EMP027A | O140: 1990 | Q140: Bureau of Labor Statistics | R140: 2017-10-30
B141: Employment | E141: Trucking Employment - General Freight, long LTL - NSA in Thousands | F141: EMP028 | H141: EMP028M | I141: EMP028A | K141: EMP028M | L141: EMP028A | O141: 1990 | Q141: Bureau of Labor Statistics | R141: 2017-10-30
B142: Employment | E142: Trucking Employment - Specialized Freight - NSA in Thousands | F142: EMP029 | H142: EMP029M | I142: EMP029A | K142: EMP029M | L142: EMP029A | O142: 1990 | Q142: Bureau of Labor Statistics | R142: 2017-10-30
B148: Freight | E148: Freight Composite Index Class 8 | F148: FRE001 | H148: FRE001Q | I148: FRE001A | K148: FRE001Q | L148: FRE001A | N148: Quarterly | O148: 1960 | Q148: ACT Research, LLC | R148: 2017-10-30
B149: Freight | E149: Freight Composite Index Dry Van | F149: FRE004 | H149: FRE004Q | I149: FRE004A | K149: FRE004Q | L149: FRE004A | N149: Quarterly | O149: 1960 | Q149: ACT Research, LLC | R149: 2017-10-30
B150: Freight | E150: Freight Composite Index Reefer Van | F150: FRE007 | H150: FRE007Q | I150: FRE007A | K150: FRE007Q | L150: FRE007A | N150: Quarterly | O150: 1960 | Q150: ACT Research, LLC | R150: 2017-10-30
B156: Inflation | E156: Producer Price Index: All Commodities | F156: PPI001 | H156: PPI001M | I156: PPI001A | K156: PPI001M | L156: PPI001A | N156: Monthly | O156: 1959 | Q156: Bureau of Labor Statistics | R156: 2017-09-01
B157: Inflation | E157: Producer Price Index: Finished Goods Less Food & Energy | F157: PPI004 | H157: PPI004M | I157: PPI004A | K157: PPI004M | L157: PPI004A | N157: Monthly | O157: 1974 | Q157: Bureau of Labor Statistics | R157: 2015-12-01
B158: Inflation | E158: Producer Price Index Finished Goods: Capital Equipment | F158: PPI007 | H158: PPI007M | I158: PPI007A | K158: PPI007M | L158: PPI007A | N158: Monthly | O158: 1959 | Q158: Bureau of Labor Statistics | R158: 2015-12-01
B164: Rates | E164: Bank Prime Loan Rate | F164: RAT001 | H164: RAT001M | I164: RAT001A | K164: RAT001M | L164: RAT001A | N164: Monthly | O164: 1959 | Q164: Federal Reserve Bank | R164: 2017-09-01
B165: Rates | E165: Effective Federal Funds Rate | F165: RAT002 | H165: RAT002M | I165: RAT002A | K165: RAT002M | L165: RAT002A | N165: Monthly | O165: 1959 | Q165: Federal Reserve Bank | R165: 2017-09-01
B166: Rates | E166: Moody's Seasoned Aaa Corporate Bond Yield | F166: RAT003 | H166: RAT003M | I166: RAT003A | K166: RAT003M | L166: RAT003A | N166: Monthly | O166: 1959 | Q166: Federal Reserve Bank | R166: 2017-09-01
B167: Rates | E167: Moody's Seasoned Baa Corporate Bond Yield | F167: RAT004 | H167: RAT004M | I167: RAT004A | K167: RAT004M | L167: RAT004A | N167: Monthly | O167: 1959 | Q167: Federal Reserve Bank | R167: 2017-09-01
B168: Rates | E168: Mortgage Rate, 30-Year Conventional | F168: RAT005 | H168: RAT005M | I168: RAT005A | K168: RAT005M | L168: RAT005A | N168: Monthly | O168: 1971 | Q168: Federal Reserve Bank | R168: 2016-09-01
B169: Rates | E169: Treasury Bill: Secondary Market Rate, 3-Month | F169: RAT006 | H169: RAT006M | I169: RAT006A | K169: RAT006M | L169: RAT006A | N169: Monthly | O169: 1959 | Q169: Federal Reserve Bank | R169: 2017-09-01
B170: Rates | E170: Treasury Constant Maturity Rate, 1-Year | F170: RAT007 | H170: RAT007M | I170: RAT007A | K170: RAT007M | L170: RAT007A | N170: Monthly | O170: 1959 | Q170: Federal Reserve Bank | R170: 2017-09-01
B171: Rates | E171: Treasury Constant Maturity Rate, 3-Year | F171: RAT008 | H171: RAT008M | I171: RAT008A | K171: RAT008M | L171: RAT008A | N171: Monthly | O171: 1959 | Q171: Federal Reserve Bank | R171: 2017-09-01
B172: Rates | E172: Treasury Constant Maturity Rate, 5-Year | F172: RAT009 | H172: RAT009M | I172: RAT009A | K172: RAT009M | L172: RAT009A | N172: Monthly | O172: 1959 | Q172: Federal Reserve Bank | R172: 2017-09-01
B173: Rates | E173: Treasury Constant Maturity Rate, 10-Year | F173: RAT010 | H173: RAT010M | I173: RAT010A | K173: RAT010M | L173: RAT010A | N173: Monthly | O173: 1959 | Q173: Federal Reserve Bank | R173: 2017-09-01
B174: Rates | E174: Treasury Yield, 10-Year Minus 1-Year | F174: RAT011 | H174: RAT011M | I174: RAT011A | K174: RAT011M | L174: RAT011A | N174: Monthly | O174: 1959 | Q174: Federal Reserve Bank | R174: 2017-09-01
B180: Trade | E180: Canada / U.S. Foreign Exchange Rate | F180: TRA001 | H180: TRA001M | I180: TRA001A | K180: TRA001M | L180: TRA001A | N180: Monthly | O180: 1971 | Q180: Federal Reserve Bank | R180: 2017-10-01
B181: Trade | E181: China/U.S. Foreign Exchange Rate | F181: TRA002 | H181: TRA002M | I181: TRA002A | K181: TRA002M | L181: TRA002A | N181: Monthly | O181: 1981 | Q181: Federal Reserve Bank | R181: 2017-10-01
B182: Trade | E182: Mexico/U.S. Foreign Exchange Rate | F182: TRA003 | H182: TRA003M | I182: TRA003A | K182: TRA003M | L182: TRA003A | N182: Monthly | O182: 1993 | Q182: Federal Reserve Bank | R182: 2017-10-01
B183: Trade | E183: U.S. / Euro Foreign Exchange Rate | F183: TRA004 | H183: TRA004M | I183: TRA004A | K183: TRA004M | L183: TRA004A | N183: Monthly | O183: 1999 | Q183: Federal Reserve Bank | R183: 2017-10-01
B184: Trade | E184: Trade Weighted Exchange Index: Broad | F184: TRA005 | H184: TRA005M | I184: TRA005A | K184: TRA005M | L184: TRA005A | N184: Monthly | O184: 1973 | Q184: Federal Reserve Bank | R184: 2017-10-01
B185: Trade | E185: Trade Weighted Exchange Index: Major Currencies | F185: TRA006 | H185: TRA006M | I185: TRA006A | K185: TRA006M | L185: TRA006A | N185: Monthly | O185: 1973 | Q185: Federal Reserve Bank | R185: 2017-10-01
B186: Trade | E186: U.S. Imports from Canada, Customs Basis | F186: TRA007 | H186: TRA007M | I186: TRA007A | K186: TRA007M | L186: TRA007A | N186: Monthly | O186: 1974 | Q186: Bureau of Economic Analysis | R186: 2017-08-01
B187: Trade | E187: U.S. Imports from China, Mainland, Customs Basis | F187: TRA008 | H187: TRA008M | I187: TRA008A | K187: TRA008M | L187: TRA008A | N187: Monthly | O187: 1974 | Q187: Bureau of Economic Analysis | R187: 2017-08-01
B188: Trade | E188: U.S. Imports from Mexico, Customs Basis | F188: TRA009 | H188: TRA009M | I188: TRA009A | K188: TRA009M | L188: TRA009A | N188: Monthly | O188: 1974 | Q188: Bureau of Economic Analysis | R188: 2017-08-01
B194: Energy | E194: Spot Oil Price: West Texas Intermediate - $/bbl | F194: ENE001 | H194: ENE001M | I194: ENE001A | K194: ENE001M | L194: ENE001A | N194: Monthly | O194: 1959 | Q194: Energy Information Administration | R194: =+$D$6 -> 2017-10-30
B195: Energy | E195: Europe Brent Spot Price FOB - $/bbl | F195: ENE002 | H195: ENE002M | I195: ENE002A | K195: ENE002M | L195: ENE002A | N195: Monthly | O195: 1988 | Q195: Energy Information Administration | R195: 2017-10-30
B196: Energy | E196: EIA Retail Gasoline Prices - $ per Gallon | F196: ENE003 | H196: ENE003M | I196: ENE003A | K196: ENE003M | L196: ENE003A | N196: Monthly | O196: 1990 | Q196: Energy Information Administration | R196: 2017-10-30
B197: Energy | E197: EIA Retail On-Highway Diesel Fuel Prices - $ per Gallon | F197: ENE004 | H197: ENE004M | I197: ENE004A | K197: ENE004M | L197: ENE004A | N197: Monthly | O197: 1990 | Q197: Energy Information Administration | R197: 2017-10-30
B198: Energy | E198: U.S. Exports of Distillate Fuel Oil - 000s Bbls/Day | F198: ENE005 | H198: ENE005M | I198: ENE005A | K198: ENE005M | L198: ENE005A | N198: Monthly | O198: 1973 | Q198: Energy Information Administration | R198: 2017-10-30
B199: Energy | E199: U.S. Exports of Distillate Fuel Oil, 0-15 ppm Sulfur - 000s Bbls/Day | F199: ENE006 | H199: ENE006M | I199: ENE006A | K199: ENE006M | L199: ENE006A | N199: Monthly | O199: 2009 | Q199: Energy Information Administration | R199: 2017-10-30
B200: Energy | E200: Natural Gas Futures Contract 1 - $ per MmBTU | F200: ENE007 | H200: ENE007M | I200: ENE007A | K200: ENE007M | L200: ENE007A | N200: Monthly | O200: 1994 | Q200: Energy Information Administration | R200: 2017-10-30
B201: Energy | E201: U.S. Product Supplied of Distillate Fuel Oil, Weekly - 000s Bbls/Day | F201: ENE008 | H201: ENE008W | I201: ENE008A | K201: ENE008W | L201: ENE008A | N201: Monthly | O201: 1991 | Q201: Energy Information Administration | R201: 2017-10-30
B202: Energy | E202: U.S. Refiner Net Production of Distillate Fuel Oil, 0-15 ppm Sulfur, Weekly - 000s Bbls/Day | F202: ENE009 | H202: ENE009W | I202: ENE009A | K202: ENE009W | L202: ENE009A | N202: Monthly | O202: 2010 | Q202: Energy Information Administration | R202: 2017-10-30

Sheet Monthly
A7: Title: | B7: Nominal Gross Domestic Product | C7: Real Gross Domestic Product | D7: Real Final Sales of Domestic Product | E7: Real Personal Consumption Expenditures | F7: Real PCE: Durable Goods | G7: Real PCE: Nondurable Goods | H7: Real PCE: Services | I7: Real Private Nonres. Fixed Investment | J7: Real Nonres. Invest.: Equip. & Software | K7: Real Private Residential Fixed Investment | L7: Real Change in Private Inventories | M7: Real Imports of Goods & Services | N7: Real Exports of Goods & Services | O7: Net Exports of Goods & Services | P7: Real Gov't Cons. & Invest. | Q7: Federal Government Surplus or Deficit [-], NIPA | W7: Capacity Utilization: Mfg (NAICS) - Percent of Capacity, SA | X7: Capacity Utilization: Total Industry | Y7: Commercial and Industrial Loans, Commercial Banks, SA | Z7: Commercial Net Loan Charge-offs - Ratio | AA7: Corporate Profits After Tax , SAAR | AB7: Corporate Profits Less Financial After Tax - Billions of Dollars, SAAR | AC7: Bank Willingness to Make Consumer Loans | AD7: Demand for Commercial & Industrial Loans by Small Firms | AE7: Nonperforming Loans - Total | AF7: Commercial Net Loan Charge-offs | AG7: Total Loan Charge-offs | AH7: E-Commerce Sales | AI7: E-Commerce Sales as % of Total Retail Sales | AJ7: ECI: Benefits: Private Industry Workers 2005=100 | AK7: ECI: Compensation: Private Industry Workers 2005=100 | AL7: ECI: Wages & Salaries: Private Industry Workers - Index 2005=100 | AM7: Industrial Production Index | AN7: Industrial Production Index - Mfg. | AO7: Inventories: Total Business | AP7: Inventory to Sales Ratio: Total Business | AQ7: ISM INDEX: PMI Manufacturing Composite Index | AR7: ISM INDEX Backlogs | AS7: ISM INDEX Customer Inventories | AT7: ISM INDEX Employment | AU7: ISM INDEX Exports | AV7: ISM INDEX Imports | AW7: ISM INDEX Inventories | AX7: ISM INDEX New Orders | AY7: ISM INDEX Prices | AZ7: ISM INDEX Production | BA7: ISM INDEX Supplier deliveries | BB7: ISM NonMfg.: Business Activity Index | BC7: Mfgs' New Orders: Nondefense Excluding Aircraft | BD7: Manufacturing: Output Per Hour of All Persons | BE7: Manufacturing: Unit Labor Cost | BF7: Nonfarm: Compensation Per Hour | BG7: Nonfarm: Output Per Hour of All Persons | BH7: Nonfarm: Real Compensation Per Hour | BI7: Nonfarm: Unit Labor Cost | BJ7: Nonfinancial Corporate Business: Profits After Tax | BK7: Nonperforming Total Loans | BL7: PMI Manufacturing Composit Index | BM7: Retail and Food Services Sales | BN7: Retail Sales: Total (Excluding Food Services) | BT7: Consumer Loans at All Commercial Banks | BU7: Debt Service Payments as a % DPI | BV7: Household Financial Obligations as a percent of DPI | BW7: Household Credit Market Debt Outstanding - SA | BX7: Housing Starts Total: New Privately Owned | BY7: New Private Housing Units Authorized by Building Permits | BZ7: S&P Case-Shiller 20-City Home Price Index | CA7: Autos & Light Trucks | CB7: Misery Index | CC7: Misery Index - Adjusted | CD7: New Home Inventories | CE7: New Homes Sold | CF7: New Home IN/RS | CG7: Used Home Inventories | CH7: Used Homes Sold | CI7: Used Home IN/RS | CJ7: New Homes Sales - Single Family | CK7: Personal Income | CL7: Personal Saving | CM7: Privately Owned Housing Starts: 1-Unit Structures | CN7: Real Disposable Personal Income | CO7: Savings Deposits - Total | CP7: Total Consumer Credit Outstanding | CQ7: Total Population: Incl'd Armed Forces Overseas - Thousands | CR7: Total Revolving Credit Outstanding | CS7: University of Michigan: Consumer Sentiment | CT7: Conference Board Consumer Confidence | CZ7: CPI Index - All Urban: All Items | DA7: CPI Index All Urban: Less Food & Energy | DG7: Aggregate Weekly Hours Index: Total Private Industries | DH7: Average Weekly Hours: Production & Nonsuper. | DI7: Civilian Participation Rate | DJ7: Total Unemployment Rate Plus (U6 Rate) | DK7: Civilian Unemployment Rate | DL7: Nonfarm Payrolls: Mfg. | DM7: Nonfarm Payrolls: Mfg. - Monthly Change | DN7: Nonfarm Payrolls: Mfg - Quarterly Change | DO7: Nonfarm Payrolls: Mfg - Annual Change | DP7: Nonfarm Payrolls: All Employees | DQ7: Nonfarm Payrolls: All Employees - Monthly Change | DR7: Nonfarm Payrolls: All Employees - Quarterly Change | DS7: Nonfarm Payrolls: All Employees - Annual Change | DT7: Initial Unemployment Claims (Monthly Average) | DU7: Median Duration of Unemployment | DV7: Trucking Employment - Truck Transportation - SA | DW7: Trucking Employment - Truck Transportation - NSA | DX7: Trucking Employment - General Freight - NSA | DY7: Trucking Employment - General Freight, local - NSA | DZ7: Trucking Employment - General Freight, long - NSA | EA7: Trucking Employment - General Freight, long TL - NSA | EB7: Trucking Employment - General Freight, long LTL - NSA | EC7: Trucking Employment - Specialized Freight - NSA | EI7: Freight Composite Index Class 8 | EJ7: Freight Composite Index Dry Van | EK7: Freight Composite Index Reefer Van | EQ7: Producer Price Index: All Commodities | ER7: PPI: Finished Goods Less Food & Energy | ES7: PPI Finished Goods: Capital Equipment | EY7: Bank Prime Loan Rate | EZ7: Effective Federal Funds Rate | FA7: Moody's Seasoned Aaa Corporate Bond Yield | FB7: Moody's Seasoned Baa Corporate Bond Yield | FC7: Yield Spread: Moody's Seasoned Corporate Bond Yield | FD7: Mortgage Rate, 30-Year Conventional | FE7: Treasury Bill: Secondary Market Rate, 3-Month | FF7: Treasury Constant Maturity Rate, 1-Year | FG7: Treasury Constant Maturity Rate, 2-Year | FH7: Treasury Constant Maturity Rate, 5-Year | FI7: Treasury Constant Maturity Rate, 10-Year | FJ7: Yield Spread: Treasury Yield, 10-Year Minus 2-Year | FP7: Canada / U.S. Foreign Exchange Rate | FQ7: China/U.S. Foreign Exchange Rate | FR7: Mexico/U.S. Foreign Exchange Rate | FS7: U.S. / Euro Foreign Exchange Rate | FT7: Trade Weighted Exchange Index: Broad | FU7: Trade Weighted Exchange Index: Major Currencies | FV7: U.S. Imports from Canada, Customs Basis | FW7: U.S. Imports from China, Mainland, Customs Basis | FX7: U.S. Imports from Mexico, Customs Basis | GD7: Spot Oil Price: West Texas Intermediate | GE7: Europe Brent Spot Price FOB | GF7: EIA Retail Gasoline Prices : All Grades | GG7: EIA Retail On-Highway Diesel Fuel Prices | GH7: U.S. Exports of Distillate Fuel Oil | GI7: U.S. Exports of Distillate Fuel Oil, 0 to 15 ppm Sulfur | GJ7: Natural Gas Futures Contract 1 | GK7: U.S. Product Supplied of Distillate Fuel Oil | GL7: U.S. Refiner Net Production of Distillate Fuel Oil, 0 to 15 ppm Sulfur
A8: ID | B8: GDP001Q | C8: GDP004Q | D8: GDP007Q | E8: GDP010Q | F8: GDP014Q | G8: GDP018Q | H8: GDP022Q | I8: GDP026Q | J8: GDP029Q | K8: GDP032Q | L8: GDP035Q | M8: GDP036Q | N8: GDP039Q | O8: GDP042Q | P8: GDP043Q | Q8: GDP046Q | W8: BUS001M | X8: BUS002M | Y8: BUS003M | Z8: BUS004M | AA8: BUS005M | AB8: BUS006M | AC8: BUS007M | AD8: BUS008M | AE8: BUS009M | AF8: BUS010M | AG8: BUS011M | AH8: BUS012M | AI8: BUS013Q | AJ8: BUS014M | AK8: BUS015M | AL8: BUS016M | AM8: BUS019M | AN8: BUS020M | AO8: BUS021M | AP8: BUS022M | AQ8: BUS023M | AR8: BUS024M | AS8: BUS025M | AT8: BUS026M | AU8: BUS027M | AV8: BUS028M | AW8: BUS029M | AX8: BUS030M | AY8: BUS031M | AZ8: BUS032M | BA8: BUS033M | BB8: BUS034M | BC8: BUS035M | BD8: BUS036M | BE8: BUS037M | BF8: BUS038M | BG8: BUS039M | BH8: BUS040M | BI8: BUS041M | BJ8: BUS042M | BK8: BUS043M | BL8: BUS044M | BM8: BUS045M | BN8: BUS046M | BT8: CON001M | BU8: CON002M | BV8: CON003M | BW8: CON004M | BX8: CON005M | BY8: CON006M | BZ8: CON007M | CA8: CON008M | CB8: CON009M | CC8: CON010M | CD8: CON011M | CE8: CON012M | CF8: CON035M | CG8: CON033M | CH8: CON034M | CI8: COM036M | CJ8: CON013M | CK8: CON014M | CL8: CON018M | CM8: CON022M | CN8: CON023M | CO8: CON027M | CP8: CON028M | CQ8: CON029M | CR8: CON030M | CS8: CON031M | CT8: CON032M | CZ8: CPI001M | DA8: CPI005M | DG8: EMP001M | DH8: EMP002M | DI8: EMP003M | DJ8: EMP004M | DK8: EMP005M | DL8: EMP006M | DM8: EMP007M | DN8: EMP009M | DO8: EMP011M | DP8: EMP013M | DQ8: EMP014M | DR8: EMP016M | DS8: EMP018M | DT8: EMP020M | DU8: EMP021M | DV8: EMP022M | DW8: EMP023M | DX8: EMP024M | DY8: EMP025M | DZ8: EMP026M | EA8: EMP027M | EB8: EMP028M | EC8: EMP029M | EI8: FRE001M | EJ8: FRE004M | EK8: FRE007M | EQ8: PPI001M | ER8: PPI004M | ES8: PPI007M | EY8: RAT001M | EZ8: RAT002M | FA8: RAT003M | FB8: RAT004M | FD8: RAT005M | FE8: RAT006M | FF8: RAT007M | FG8: RAT008M | FH8: RAT009M | FI8: RAT010M | FJ8: RAT011M | FP8: TRA001M | FQ8: TRA002M | FR8: TRA003M | FS8: TRA004M | FT8: TRA005M | FU8: TRA006M | FV8: TRA007M | FW8: TRA008M | FX8: TRA009M | GD8: ENE001M | GE8: ENE002M | GF8: ENE003M | GG8: ENE004M | GH8: ENE005M | GI8: ENE006M | GJ8: ENE007M | GK8: ENE008M | GL8: ENE009M
A9: Frequency: | B9: Quarterly | C9: Quarterly | D9: Quarterly | E9: Monthly | F9: Monthly | G9: Monthly | H9: Monthly | I9: Quarterly | J9: Quarterly | K9: Quarterly | L9: Quarterly | M9: Quarterly | N9: Quarterly | O9: Quarterly | P9: Quarterly | Q9: Quarterly | W9: Quarterly | X9: Monthly | Y9: Monthly | Z9: Quarterly, End of Period | AA9: Quarterly | AB9: Quarterly | AC9: Quarterly, End of Period | AD9: Quarterly, End of Period | AE9: Quarterly, End of Period | AF9: Quarterly, End of Period | AG9: Quarterly, End of Period | AH9: Quarterly | AI9: Quarterly | AJ9: Quarterly | AK9: Quarterly | AL9: Quarterly | AM9: Monthly | AN9: Monthly | AO9: Monthly, End of Period | AP9: Monthly | AQ9: Monthly | AR9: Monthly | AS9: Monthly | AT9: Monthly | AU9: Monthly | AV9: Monthly | AW9: Monthly | AX9: Monthly | AY9: Monthly | AZ9: Monthly | BA9: Monthly | BB9: Monthly | BC9: Monthly | BD9: Quarterly | BE9: Quarterly | BF9: Quarterly | BG9: Quarterly | BH9: Quarterly | BI9: Quarterly | BJ9: Quarterly | BK9: Quarterly | BL9: Monthly | BM9: Monthly | BN9: Monthly | BT9: Monthly | BU9: Quarterly | BV9: Quarterly | BW9: Quarterly, End of Period | BX9: Monthly | BY9: Monthly | BZ9: Monthly | CA9: Monthly | CB9: Monthly | CC9: Monthly | CD9: Monthly | CE9: Monthly | CF9: Monthly | CG9: Monthly | CH9: Monthly | CI9: Monthly | CJ9: Monthly | CK9: Monthly | CL9: Monthly | CM9: Monthly | CN9: Monthly | CO9: Monthly | CP9: Monthly, End of Period | CQ9: Monthly | CR9: Monthly, End of Period | CS9: Monthly | CT9: Monthly | CZ9: Monthly | DA9: Monthly | DG9: Monthly | DH9: Monthly | DI9: Monthly | DJ9: Monthly | DK9: Monthly | DL9: Monthly | DP9: Monthly | DT9: Weekly, End of Period | DU9: Monthly | DV9: Monthly | DW9: Monthly | DX9: Monthly | DY9: Monthly | DZ9: Monthly | EA9: Monthly | EB9: Monthly | EC9: Monthly | EI9: Quarterly | EJ9: Quarterly | EK9: Quarterly | EQ9: Monthly | ER9: Monthly | ES9: Monthly | EY9: Monthly | EZ9: Monthly | FA9: Monthly | FB9: Monthly | FD9: Monthly | FE9: Monthly | FF9: Monthly | FG9: Monthly | FH9: Monthly | FI9: Monthly | FP9: Monthly | FQ9: Monthly | FR9: Monthly | FS9: Monthly | FT9: Monthly | FU9: Monthly | FV9: Monthly | FW9: Monthly | FX9: Monthly | GD9: Monthly | GE9: Monthly | GF9: Monthly | GG9: Monthly | GH9: Monthly | GI9: Monthly | GJ9: Monthly | GK9: Monthly | GL9: Monthly
A10: Units: | B10: Billions of Dollars | C10: Billions of Chained 2009 Dollars | D10: Billions of Chained 2009 Dollars | E10: Billions of Chained 2009 Dollars | F10: Billions of Chained 2009 Dollars | G10: Billions of Chained 2009 Dollars | H10: Billions of Chained 2009 Dollars | I10: Billions of Chained 2009 Dollars | J10: Billions of Chained 2009 Dollars | K10: Billions of Chained 2009 Dollars | L10: Billions of Chained 2009 Dollars | M10: Billions of Chained 2009 Dollars | N10: Billions of Chained 2009 Dollars | O10: Billions of Chained 2009 Dollars | P10: Billions of Chained 2009 Dollars | Q10: Billions of Dollars | W10: Percent of Capacity | X10: Percent of Capacity | Y10: Billions of Dollars | Z10: Ratio | AA10: Billions of Dollars | AB10: Billions of Dollars | AC10: Percent | AD10: Percent | AE10: Ratio | AF10: Ratio | AG10: Ratio | AH10: Millions of Dollars | AI10: XXXXXXXX | AJ10: Index: December 2005=100 | AK10: Index: December 2005=100 | AL10: Index: December 2005=100 | AM10: Index 2012=100 | AN10: Index 2012=100 | AO10: Millions of Dollars | AP10: Ratio | AQ10: Index | AR10: Index | AS10: Index | AT10: Index | AU10: Index | AV10: Index | AW10: Index | AX10: Index | AY10: Index | AZ10: Index | BA10: Index | BB10: Index | BC10: Millions of Dollars | BD10: Index, 2009=100 | BE10: Index, 2009=100 | BF10: Index, 2009=100 | BG10: Index, 2009=100 | BH10: Index, 2009=100 | BI10: Index, 2009=100 | BJ10: Billions of Dollars | BK10: Ratio | BL10: XXXXXXXX | BM10: Millions of Dollars | BN10: Millions of Dollars | BT10: Billions of Dollars | BU10: Percent | BV10: Percent | BW10: Billions of Dollars | BX10: Thousands of Units | BY10: Thousands of Units | BZ10: Billions of Dollars | CA10: Millions of Units | CB10: Percent | CC10: Percent | CD10: Thousands, SAAR | CE10: Thousands, SAAR | CG10: Thousands | CH10: Thousands | CJ10: Thousands | CK10: Billions of Dollars | CL10: Billions of Dollars | CM10: Thousands of Units | CN10: Billions of Chained 2009 Dollars | CO10: Billions of Dollars | CP10: Billions of Dollars | CQ10: Thousands | CR10: Billions of Dollars | CS10: Index 1st Quarter 1966=100 | CT10: Index | CZ10: Index 1982-84=100 | DA10: Index 1982-84=100 | DG10: Index 2002=100 | DH10: Hours | DI10: Percent | DJ10: Percent | DK10: Percent | DL10: Thousands | DM10: Thousands | DN10: XXXXXXXX | DO10: XXXXXXXX | DP10: Thousands | DQ10: Thousands | DR10: XXXXXXXX | DS10: XXXXXXXX | DT10: Number | DU10: Weeks | DV10: Thousands | DW10: Thousands | DX10: Thousands | DY10: Thousands | DZ10: Thousands | EA10: Thousands | EB10: Thousands | EC10: Thousands | EI10: Index | EJ10: Index | EK10: Index | EQ10: Index 1982=100 | ER10: Index 1982=100 | ES10: Index 1982=100 | EY10: Percent | EZ10: Percent | FA10: Percent | FB10: Percent | FC10: Yield Spread (in BPS) | FD10: Percent | FE10: Percent | FF10: Percent | FG10: Percent | FH10: Percent | FI10: Percent | FJ10: Yield Spread (in BPS) | FP10: Canadian Dollars to One U.S. Dollar | FQ10: Chinese Yuan to One U.S. Dollar | FR10: Mexican New Pesos to One U.S. Dollar | FS10: U.S. Dollars to One Euro | FT10: Index January 1997=100 | FU10: Index March 1973=100 | FV10: Millions of Dollars | FW10: Millions of Dollars | FX10: Millions of Dollars | GD10: $ per Bbl. | GE10: $ per Bbl. | GF10: $ per Gallon | GG10: $ per Gallon | GH10: 000s Bbls/Day | GI10: 000s Bbls/Day | GJ10: $ per MmBTU | GK10: 000s Bbls/Day | GL10: 000s Bbls/Day
A11: 1959-01-01 | E11: 0 | F11: 0 | G11: 0 | H11: 0 | X11: -- | Y11: 35.213 | AM11: 22.7253 | AN11: -- | AO11: -- | AP11: -- | AQ11: 64.4 | AR11: -- | AS11: -- | AT11: 60.8 | AU11: -- | AV11: -- | AW11: 45.5 | AX11: 69 | AY11: 59.1 | AZ11: 70.7 | BA11: 61.8 | BB11: -- | BC11: -- | BM11: -- | BN11: -- | BT11: 20.7282 | BX11: 1657 | BY11: -- | BZ11: -- | CA11: -- | CB11: -- | CC11: -- | CD11: -- | CE11: -- | CF11: -- | CG11: -- | CH11: -- | CI11: -- | CJ11: -- | CK11: 392.1 | CL11: 39.5 | CM11: 1336 | CN11: 2056.5 | CO11: 136 | CP11: 48.9612 | CQ11: 176447 | CR11: -- | CS11: -- | CT11: -- | CZ11: 29.01 | DA11: 29.9 | DG11: -- | DH11: -- | DI11: 59.3 | DJ11: -- | DK11: 6 | DL11: 14998 | DM11: -- | DP11: 52480 | DQ11: -- | DT11: 0 | DU11: -- | DV11: -- | DW11: -- | DX11: -- | DY11: -- | DZ11: -- | EA11: -- | EB11: -- | EC11: -- | EQ11: 31.7 | ER11: -- | ES11: 32.4 | EY11: 4 | EZ11: 2.48 | FA11: 4.12 | FB11: 4.87 | FC11: =+(FB11-FA11)*100 -> 75 | FD11: -- | FE11: 2.82 | FF11: 3.36 | FG11: -- | FH11: 4.01 | FI11: 4.02 | FJ11: -- | FP11: -- | FQ11: -- | FR11: -- | FS11: -- | FT11: -- | FU11: -- | FV11: -- | FW11: -- | FX11: -- | GD11: 3 | GE11: -- | GF11: -- | GG11: -- | GH11: -- | GI11: -- | GJ11: -- | GK11: -- | GL11: --
A12: 1959-02-01 | E12: 0 | F12: 0 | G12: 0 | H12: 0 | X12: -- | Y12: 35.2201 | AM12: 23.1703 | AN12: -- | AO12: -- | AP12: -- | AQ12: 66.9 | AR12: -- | AS12: -- | AT12: 62.5 | AU12: -- | AV12: -- | AW12: 55.5 | AX12: 70.5 | AY12: 66.6 | AZ12: 70.3 | BA12: 67.3 | BB12: -- | BC12: -- | BM12: -- | BN12: -- | BT12: 20.9603 | BX12: 1667 | BY12: -- | BZ12: -- | CA12: -- | CB12: -- | CC12: -- | CD12: -- | CE12: -- | CF12: -- | CG12: -- | CH12: -- | CI12: -- | CJ12: -- | CK12: 394.1 | CL12: 37.5 | CM12: 1317 | CN12: 2063.5 | CO12: 136.6 | CP12: 49.5137 | CQ12: 176685 | CR12: -- | CS12: -- | CT12: -- | CZ12: 29 | DA12: 29.9 | DG12: -- | DH12: -- | DI12: 59 | DJ12: -- | DK12: 5.9 | DL12: 15115 | DM12: =+DL12-DL11 -> 117 | DP12: 52687 | DQ12: =+DP12-DP11 -> 207 | DT12: 0 | DU12: -- | DV12: -- | DW12: -- | DX12: -- | DY12: -- | DZ12: -- | EA12: -- | EB12: -- | EC12: -- | EQ12: 31.7 | ER12: -- | ES12: 32.5 | EY12: 4 | EZ12: 2.43 | FA12: 4.14 | FB12: 4.89 | FC12: =+(FB12-FA12)*100 -> 75 | FD12: -- | FE12: 2.7 | FF12: 3.54 | FG12: -- | FH12: 3.96 | FI12: 3.96 | FJ12: -- | FP12: -- | FQ12: -- | FR12: -- | FS12: -- | FT12: -- | FU12: -- | FV12: -- | FW12: -- | FX12: -- | GD12: 3 | GE12: -- | GF12: -- | GG12: -- | GH12: -- | GI12: -- | GJ12: -- | GK12: -- | GL12: --
A13: 1959-03-01 | E13: 0 | F13: 0 | G13: 0 | H13: 0 | X13: -- | Y13: 35.1304 | AM13: 23.5041 | AN13: -- | AO13: -- | AP13: -- | AQ13: 67.1 | AR13: -- | AS13: -- | AT13: 62.3 | AU13: -- | AV13: -- | AW13: 58.4 | AX13: 70.2 | AY13: 68.9 | AZ13: 71.2 | BA13: 66.3 | BB13: -- | BC13: -- | BM13: -- | BN13: -- | BT13: 21.209 | BX13: 1620 | BY13: -- | BZ13: -- | CA13: -- | CB13: -- | CC13: -- | CD13: -- | CE13: -- | CF13: -- | CG13: -- | CH13: -- | CI13: -- | CJ13: -- | CK13: 396.9 | CL13: 36.5 | CM13: 1254 | CN13: 2075.1 | CO13: 137.6 | CP13: 50.0077 | CQ13: 176905 | CR13: -- | CS13: -- | CT13: -- | CZ13: 28.97 | DA13: 30 | DG13: -- | DH13: -- | DI13: 59.3 | DJ13: -- | DK13: 5.6 | DL13: 15259 | DM13: 144 | DP13: 53016 | DQ13: =+DP13-DP12 -> 329 | DT13: 0 | DU13: -- | DV13: -- | DW13: -- | DX13: -- | DY13: -- | DZ13: -- | EA13: -- | EB13: -- | EC13: -- | EQ13: 31.7 | ER13: -- | ES13: 32.6 | EY13: 4 | EZ13: 2.8 | FA13: 4.13 | FB13: 4.85 | FC13: =+(FB13-FA13)*100 -> 72 | FD13: -- | FE13: 2.8 | FF13: 3.61 | FG13: -- | FH13: 3.99 | FI13: 3.99 | FJ13: -- | FP13: -- | FQ13: -- | FR13: -- | FS13: -- | FT13: -- | FU13: -- | FV13: -- | FW13: -- | FX13: -- | GD13: 2.97 | GE13: -- | GF13: -- | GG13: -- | GH13: -- | GI13: -- | GJ13: -- | GK13: -- | GL13: --
A14: 1959-04-01 | E14: 0 | F14: 0 | G14: 0 | H14: 0 | X14: -- | Y14: 35.5581 | AM14: 24.0048 | AN14: -- | AO14: -- | AP14: -- | AQ14: 66.9 | AR14: -- | AS14: -- | AT14: 63.6 | AU14: -- | AV14: -- | AW14: 63.4 | AX14: 66.9 | AY14: 63.6 | AZ14: 72.1 | BA14: 64.8 | BB14: -- | BC14: -- | BM14: -- | BN14: -- | BT14: 21.4893 | BX14: 1590 | BY14: -- | BZ14: -- | CA14: -- | CB14: -- | CC14: -- | CD14: -- | CE14: -- | CF14: -- | CG14: -- | CH14: -- | CI14: -- | CJ14: -- | CK14: 400.1 | CL14: 39.8 | CM14: 1282 | CN14: 2087.7 | CO14: 138.4 | CP14: 50.4634 | CQ14: 177146 | CR14: -- | CS14: -- | CT14: -- | CZ14: 28.98 | DA14: 30 | DG14: -- | DH14: -- | DI14: 59.4 | DJ14: -- | DK14: 5.2 | DL14: 15385 | DM14: 126 | DP14: 53320 | DQ14: 304 | DT14: 0 | DU14: -- | DV14: -- | DW14: -- | DX14: -- | DY14: -- | DZ14: -- | EA14: -- | EB14: -- | EC14: -- | EQ14: 31.8 | ER14: -- | ES14: 32.7 | EY14: 4 | EZ14: 2.96 | FA14: 4.23 | FB14: 4.86 | FC14: 63 | FD14: -- | FE14: 2.95 | FF14: 3.72 | FG14: -- | FH14: 4.12 | FI14: 4.12 | FJ14: -- | FP14: -- | FQ14: -- | FR14: -- | FS14: -- | FT14: -- | FU14: -- | FV14: -- | FW14: -- | FX14: -- | GD14: 2.97 | GE14: -- | GF14: -- | GG14: -- | GH14: -- | GI14: -- | GJ14: -- | GK14: -- | GL14: --
A15: 1959-05-01 | E15: 0 | F15: 0 | G15: 0 | H15: 0 | X15: -- | Y15: 36.3064 | AM15: 24.3664 | AN15: -- | AO15: -- | AP15: -- | AQ15: 68.2 | AR15: -- | AS15: -- | AT15: 64.8 | AU15: -- | AV15: -- | AW15: 63.8 | AX15: 69.9 | AY15: 65.1 | AZ15: 73.9 | BA15: 63 | BB15: -- | BC15: -- | BM15: -- | BN15: -- | BT15: 21.7188 | BX15: 1498 | BY15: -- | BZ15: -- | CA15: -- | CB15: -- | CC15: -- | CD15: -- | CE15: -- | CF15: -- | CG15: -- | CH15: -- | CI15: -- | CJ15: -- | CK15: 402.7 | CL15: 38.1 | CM15: 1213 | CN15: 2099.6 | CO15: 139.5 | CP15: 51.0072 | CQ15: 177365 | CR15: -- | CS15: -- | CT15: -- | CZ15: 29.04 | DA15: 30.1 | DG15: -- | DH15: -- | DI15: 59.2 | DJ15: -- | DK15: 5.1 | DL15: 15487 | DM15: 102 | DP15: 53549 | DQ15: 229 | DT15: 0 | DU15: -- | DV15: -- | DW15: -- | DX15: -- | DY15: -- | DZ15: -- | EA15: -- | EB15: -- | EC15: -- | EQ15: 31.8 | ER15: -- | ES15: 32.7 | EY15: 4.23 | EZ15: 2.9 | FA15: 4.37 | FB15: 4.96 | FC15: 59 | FD15: -- | FE15: 2.84 | FF15: 3.96 | FG15: -- | FH15: 4.35 | FI15: 4.31 | FJ15: -- | FP15: -- | FQ15: -- | FR15: -- | FS15: -- | FT15: -- | FU15: -- | FV15: -- | FW15: -- | FX15: -- | GD15: 2.97 | GE15: -- | GF15: -- | GG15: -- | GH15: -- | GI15: -- | GJ15: -- | GK15: -- | GL15: --
A16: 1959-06-01 | E16: 0 | F16: 0 | G16: 0 | H16: 0 | X16: -- | Y16: 37.1404 | AM16: 24.3942 | AN16: -- | AO16: -- | AP16: -- | AQ16: 64.4 | AR16: -- | AS16: -- | AT16: 62.2 | AU16: -- | AV16: -- | AW16: 65.6 | AX16: 64.2 | AY16: 69.5 | AZ16: 66.3 | BA16: 63.7 | BB16: -- | BC16: -- | BM16: -- | BN16: -- | BT16: 21.9859 | BX16: 1503 | BY16: -- | BZ16: -- | CA16: -- | CB16: -- | CC16: -- | CD16: -- | CE16: -- | CF16: -- | CG16: -- | CH16: -- | CI16: -- | CJ16: -- | CK16: 405.2 | CL16: 38.2 | CM16: 1203 | CN16: 2106.9 | CO16: 140.7 | CP16: 51.6754 | CQ16: 177591 | CR16: -- | CS16: -- | CT16: -- | CZ16: 29.11 | DA16: 30.2 | DG16: -- | DH16: -- | DI16: 59.2 | DJ16: -- | DK16: 5 | DL16: 15554 | DM16: 67 | DP16: 53679 | DQ16: 130 | DT16: 0 | DU16: -- | DV16: -- | DW16: -- | DX16: -- | DY16: -- | DZ16: -- | EA16: -- | EB16: -- | EC16: -- | EQ16: 31.7 | ER16: -- | ES16: 32.9 | EY16: 4.5 | EZ16: 3.39 | FA16: 4.46 | FB16: 5.04 | FC16: 58 | FD16: -- | FE16: 3.21 | FF16: 4.07 | FG16: -- | FH16: 4.5 | FI16: 4.34 | FJ16: -- | FP16: -- | FQ16: -- | FR16: -- | FS16: -- | FT16: -- | FU16: -- | FV16: -- | FW16: -- | FX16: -- | GD16: 2.97 | GE16: -- | GF16: -- | GG16: -- | GH16: -- | GI16: -- | GJ16: -- | GK16: -- | GL16: --
A17: 1959-07-01 | E17: 0 | F17: 0 | G17: 0 | H17: 0 | X17: -- | Y17: 37.6645 | AM17: 23.8101 | AN17: -- | AO17: -- | AP17: -- | AQ17: 61.5 | AR17: -- | AS17: -- | AT17: 59 | AU17: -- | AV17: -- | AW17: 62 | AX17: 61.3 | AY17: 63.9 | AZ17: 64.8 | BA17: 59.1 | BB17: -- | BC17: -- | BM17: -- | BN17: -- | BT17: 22.4256 | BX17: 1547 | BY17: -- | BZ17: -- | CA17: -- | CB17: -- | CC17: -- | CD17: -- | CE17: -- | CF17: -- | CG17: -- | CH17: -- | CI17: -- | CJ17: -- | CK17: 405.7 | CL17: 38.7 | CM17: 1256 | CN17: 2103.3 | CO17: 141.4 | CP17: 52.3569 | CQ17: 177830 | CR17: -- | CS17: -- | CT17: -- | CZ17: 29.15 | DA17: 30.2 | DG17: -- | DH17: -- | DI17: 59.4 | DJ17: -- | DK17: 5.1 | DL17: 15623 | DM17: 69 | DP17: 53803 | DQ17: 124 | DT17: 0 | DU17: -- | DV17: -- | DW17: -- | DX17: -- | DY17: -- | DZ17: -- | EA17: -- | EB17: -- | EC17: -- | EQ17: 31.7 | ER17: -- | ES17: 32.8 | EY17: 4.5 | EZ17: 3.47 | FA17: 4.47 | FB17: 5.08 | FC17: 61 | FD17: -- | FE17: 3.2 | FF17: 4.39 | FG17: -- | FH17: 4.58 | FI17: 4.4 | FJ17: -- | FP17: -- | FQ17: -- | FR17: -- | FS17: -- | FT17: -- | FU17: -- | FV17: -- | FW17: -- | FX17: -- | GD17: 2.97 | GE17: -- | GF17: -- | GG17: -- | GH17: -- | GI17: -- | GJ17: -- | GK17: -- | GL17: --
A18: 1959-08-01 | E18: 0 | F18: 0 | G18: 0 | H18: 0 | X18: -- | Y18: 38.089 | AM18: 23.0034 | AN18: -- | AO18: -- | AP18: -- | AQ18: 55.1 | AR18: -- | AS18: -- | AT18: 53.6 | AU18: -- | AV18: -- | AW18: 50.9 | AX18: 54.4 | AY18: 57.6 | AZ18: 57.4 | BA18: 57.4 | BB18: -- | BC18: -- | BM18: -- | BN18: -- | BT18: 22.8187 | BX18: 1430 | BY18: -- | BZ18: -- | CA18: -- | CB18: -- | CC18: -- | CD18: -- | CE18: -- | CF18: -- | CG18: -- | CH18: -- | CI18: -- | CJ18: -- | CK18: 404.1 | CL18: 34.6 | CM18: 1193 | CN18: 2091.1 | CO18: 142.3 | CP18: 53.0385 | CQ18: 178101 | CR18: -- | CS18: -- | CT18: -- | CZ18: 29.18 | DA18: 30.2 | DG18: -- | DH18: -- | DI18: 59.2 | DJ18: -- | DK18: 5.2 | DL18: 15202 | DM18: -421 | DP18: 53334 | DQ18: -469 | DT18: 0 | DU18: -- | DV18: -- | DW18: -- | DX18: -- | DY18: -- | DZ18: -- | EA18: -- | EB18: -- | EC18: -- | EQ18: 31.6 | ER18: -- | ES18: 32.8 | EY18: 4.5 | EZ18: 3.5 | FA18: 4.43 | FB18: 5.09 | FC18: 66 | FD18: -- | FE18: 3.38 | FF18: 4.42 | FG18: -- | FH18: 4.57 | FI18: 4.43 | FJ18: -- | FP18: -- | FQ18: -- | FR18: -- | FS18: -- | FT18: -- | FU18: -- | FV18: -- | FW18: -- | FX18: -- | GD18: 2.97 | GE18: -- | GF18: -- | GG18: -- | GH18: -- | GI18: -- | GJ18: -- | GK18: -- | GL18: --
A19: 1959-09-01 | E19: 0 | F19: 0 | G19: 0 | H19: 0 | X19: -- | Y19: 38.2605 | AM19: 22.9756 | AN19: -- | AO19: -- | AP19: -- | AQ19: 48.3 | AR19: -- | AS19: -- | AT19: 48 | AU19: -- | AV19: -- | AW19: 42.3 | AX19: 43.7 | AY19: 61.6 | AZ19: 50.9 | BA19: 57.5 | BB19: -- | BC19: -- | BM19: -- | BN19: -- | BT19: 23.2035 | BX19: 1540 | BY19: -- | BZ19: -- | CA19: -- | CB19: -- | CC19: -- | CD19: -- | CE19: -- | CF19: -- | CG19: -- | CH19: -- | CI19: -- | CJ19: -- | CK19: 405.3 | CL19: 31.4 | CM19: 1275 | CN19: 2091.2 | CO19: 143.3 | CP19: 53.6838 | CQ19: 178376 | CR19: -- | CS19: -- | CT19: -- | CZ19: 29.25 | DA19: 30.3 | DG19: -- | DH19: -- | DI19: 59.3 | DJ19: -- | DK19: 5.5 | DL19: 15254 | DM19: 52 | DP19: 53429 | DQ19: 95 | DT19: 0 | DU19: -- | DV19: -- | DW19: -- | DX19: -- | DY19: -- | DZ19: -- | EA19: -- | EB19: -- | EC19: -- | EQ19: 31.7 | ER19: -- | ES19: 32.9 | EY19: 5 | EZ19: 3.76 | FA19: 4.52 | FB19: 5.18 | FC19: 66 | FD19: -- | FE19: 4.04 | FF19: 5 | FG19: -- | FH19: 4.9 | FI19: 4.68 | FJ19: -- | FP19: -- | FQ19: -- | FR19: -- | FS19: -- | FT19: -- | FU19: -- | FV19: -- | FW19: -- | FX19: -- | GD19: 2.97 | GE19: -- | GF19: -- | GG19: -- | GH19: -- | GI19: -- | GJ19: -- | GK19: -- | GL19: --
A20: 1959-10-01 | E20: 0 | F20: 0 | G20: 0 | H20: 0 | X20: -- | Y20: 38.4113 | AM20: 22.8087 | AN20: -- | AO20: -- | AP20: -- | AQ20: 49.7 | AR20: -- | AS20: -- | AT20: 47.3 | AU20: -- | AV20: -- | AW20: 39.1 | AX20: 50 | AY20: 63.1 | AZ20: 50.4 | BA20: 58.5 | BB20: -- | BC20: -- | BM20: -- | BN20: -- | BT20: 23.5847 | BX20: 1355 | BY20: -- | BZ20: -- | CA20: -- | CB20: -- | CC20: -- | CD20: -- | CE20: -- | CF20: -- | CG20: -- | CH20: -- | CI20: -- | CJ20: -- | CK20: 407 | CL20: 34.1 | CM20: 1043 | CN20: 2093.9 | CO20: 143.8 | CP20: 54.366 | CQ20: 178657 | CR20: -- | CS20: -- | CT20: -- | CZ20: 29.35 | DA20: 30.4 | DG20: -- | DH20: -- | DI20: 59.4 | DJ20: -- | DK20: 5.7 | DL20: 15158 | DM20: -96 | DP20: 53359 | DQ20: -70 | DT20: 0 | DU20: -- | DV20: -- | DW20: -- | DX20: -- | DY20: -- | DZ20: -- | EA20: -- | EB20: -- | EC20: -- | EQ20: 31.6 | ER20: -- | ES20: 32.8 | EY20: 5 | EZ20: 3.98 | FA20: 4.57 | FB20: 5.28 | FC20: 71 | FD20: -- | FE20: 4.05 | FF20: 4.8 | FG20: -- | FH20: 4.72 | FI20: 4.53 | FJ20: -- | FP20: -- | FQ20: -- | FR20: -- | FS20: -- | FT20: -- | FU20: -- | FV20: -- | FW20: -- | FX20: -- | GD20: 2.97 | GE20: -- | GF20: -- | GG20: -- | GH20: -- | GI20: -- | GJ20: -- | GK20: -- | GL20: --
A21: 1959-11-01 | E21: 0 | F21: 0 | G21: 0 | H21: 0 | X21: -- | Y21: 38.6978 | AM21: 22.9478 | AN21: -- | AO21: -- | AP21: -- | AQ21: 50.6 | AR21: -- | AS21: -- | AT21: 48.8 | AU21: -- | AV21: -- | AW21: 43.4 | AX21: 51.1 | AY21: 65.1 | AZ21: 51.9 | BA21: 54.6 | BB21: -- | BC21: -- | BM21: -- | BN21: -- | BT21: 23.7252 | BX21: 1416 | BY21: -- | BZ21: -- | CA21: -- | CB21: -- | CC21: -- | CD21: -- | CE21: -- | CF21: -- | CG21: -- | CH21: -- | CI21: -- | CJ21: -- | CK21: 410.3 | CL21: 36.8 | CM21: 1163 | CN21: 2108.7 | CO21: 145 | CP21: 54.7948 | CQ21: 178921 | CR21: -- | CS21: -- | CT21: -- | CZ21: 29.35 | DA21: 30.4 | DG21: -- | DH21: -- | DI21: 59.1 | DJ21: -- | DK21: 5.8 | DL21: 15300 | DM21: 142 | DP21: 53635 | DQ21: 276 | DT21: 0 | DU21: -- | DV21: -- | DW21: -- | DX21: -- | DY21: -- | DZ21: -- | EA21: -- | EB21: -- | EC21: -- | EQ21: 31.5 | ER21: -- | ES21: 32.7 | EY21: 5 | EZ21: 4 | FA21: 4.56 | FB21: 5.26 | FC21: 70 | FD21: -- | FE21: 4.15 | FF21: 4.81 | FG21: -- | FH21: 4.75 | FI21: 4.53 | FJ21: -- | FP21: -- | FQ21: -- | FR21: -- | FS21: -- | FT21: -- | FU21: -- | FV21: -- | FW21: -- | FX21: -- | GD21: 2.97 | GE21: -- | GF21: -- | GG21: -- | GH21: -- | GI21: -- | GJ21: -- | GK21: -- | GL21: --
A22: 1959-12-01 | E22: 0 | F22: 0 | G22: 0 | H22: 0 | X22: -- | Y22: 39.2932 | AM22: 24.3664 | AN22: -- | AO22: -- | AP22: -- | AQ22: 58.2 | AR22: -- | AS22: -- | AT22: 54.8 | AU22: -- | AV22: -- | AW22: 49.1 | AX22: 62.8 | AY22: 63.6 | AZ22: 61.7 | BA22: 53.7 | BB22: -- | BC22: -- | BM22: -- | BN22: -- | BT22: 24.0666 | BX22: 1601 | BY22: -- | BZ22: -- | CA22: -- | CB22: -- | CC22: -- | CD22: -- | CE22: -- | CF22: -- | CG22: -- | CH22: -- | CI22: -- | CJ22: -- | CK22: 414.7 | CL22: 40.5 | CM22: 1410 | CN22: 2127.7 | CO22: 146.5 | CP22: 56.0107 | CQ22: 179153 | CR22: -- | CS22: -- | CT22: -- | CZ22: 29.41 | DA22: 30.5 | DG22: -- | DH22: -- | DI22: 59.5 | DJ22: -- | DK22: 5.3 | DL22: 15573 | DM22: 273 | DP22: 54175 | DQ22: 540 | DT22: 0 | DU22: -- | DV22: -- | DW22: -- | DX22: -- | DY22: -- | DZ22: -- | EA22: -- | EB22: -- | EC22: -- | EQ22: 31.5 | ER22: -- | ES22: 32.7 | EY22: 5 | EZ22: 3.99 | FA22: 4.58 | FB22: 5.28 | FC22: 70 | FD22: -- | FE22: 4.49 | FF22: 5.14 | FG22: -- | FH22: 5.01 | FI22: 4.69 | FJ22: -- | FP22: -- | FQ22: -- | FR22: -- | FS22: -- | FT22: -- | FU22: -- | FV22: -- | FW22: -- | FX22: -- | GD22: 2.97 | GE22: -- | GF22: -- | GG22: -- | GH22: -- | GI22: -- | GJ22: -- | GK22: -- | GL22: --
A23: 1960-01-01 | E23: 0 | F23: 0 | G23: 0 | H23: 0 | X23: -- | Y23: 39.6291 | AM23: 25.0061 | AN23: -- | AO23: -- | AP23: -- | AQ23: 61.5 | AR23: -- | AS23: -- | AT23: 60.8 | AU23: -- | AV23: -- | AW23: 48.3 | AX23: 65.4 | AY23: 63.8 | AZ23: 71.9 | BA23: 46.2 | BB23: -- | BC23: -- | BM23: -- | BN23: -- | BT23: 24.2748 | BX23: 1460 | BY23: 1092 | BZ23: -- | CA23: -- | CB23: -- | CC23: -- | CD23: -- | CE23: -- | CF23: -- | CG23: -- | CH23: -- | CI23: -- | CJ23: -- | CK23: 416.3 | CL23: 40.8 | CM23: 1211 | CN23: 2134.9 | CO23: 146.7 | CP23: 56.0156 | CQ23: 179386 | CR23: -- | CS23: -- | CT23: -- | CZ23: 29.37 | DA23: 30.5 | DG23: -- | DH23: -- | DI23: 59.1 | DJ23: -- | DK23: 5.2 | DL23: 15687 | DM23: 114 | DP23: 54274 | DQ23: 99 | DT23: 0 | DU23: -- | DV23: -- | DW23: -- | DX23: -- | DY23: -- | DZ23: -- | EA23: -- | EB23: -- | EC23: -- | EQ23: 31.6 | ER23: -- | ES23: 32.8 | EY23: 5 | EZ23: 3.99 | FA23: 4.61 | FB23: 5.34 | FC23: 73 | FD23: -- | FE23: 4.35 | FF23: 5.03 | FG23: -- | FH23: 4.92 | FI23: 4.72 | FJ23: -- | FP23: -- | FQ23: -- | FR23: -- | FS23: -- | FT23: -- | FU23: -- | FV23: -- | FW23: -- | FX23: -- | GD23: 2.97 | GE23: -- | GF23: -- | GG23: -- | GH23: -- | GI23: -- | GJ23: -- | GK23: -- | GL23: --
A24: 1960-02-01 | E24: 0 | F24: 0 | G24: 0 | H24: 0 | X24: -- | Y24: 39.7872 | AM24: 24.7836 | AN24: -- | AO24: -- | AP24: -- | AQ24: 52.3 | AR24: -- | AS24: -- | AT24: 57.2 | AU24: -- | AV24: -- | AW24: 56.6 | AX24: 52.5 | AY24: 60.9 | AZ24: 58.6 | BA24: 31.7 | BB24: -- | BC24: -- | BM24: -- | BN24: -- | BT24: 24.4392 | BX24: 1503 | BY24: 1088 | BZ24: -- | CA24: -- | CB24: 6.213793103 | CC24: 9.573793103 | CD24: -- | CE24: -- | CF24: -- | CG24: -- | CH24: -- | CI24: -- | CJ24: -- | CK24: 417 | CL24: 39.2 | CM24: 1208 | CN24: 2134.3 | CO24: 147.1 | CP24: 56.3646 | CQ24: 179597 | CR24: -- | CS24: -- | CT24: -- | CZ24: 29.41 | DA24: 30.6 | DG24: -- | DH24: -- | DI24: 59.1 | DJ24: -- | DK24: 4.8 | DL24: 15765 | DM24: 78 | DP24: 54513 | DQ24: 239 | DT24: 0 | DU24: -- | DV24: -- | DW24: -- | DX24: -- | DY24: -- | DZ24: -- | EA24: -- | EB24: -- | EC24: -- | EQ24: 31.6 | ER24: -- | ES24: 32.9 | EY24: 5 | EZ24: 3.97 | FA24: 4.56 | FB24: 5.34 | FC24: 78 | FD24: -- | FE24: 3.96 | FF24: 4.66 | FG24: -- | FH24: 4.69 | FI24: 4.49 | FJ24: -- | FP24: -- | FQ24: -- | FR24: -- | FS24: -- | FT24: -- | FU24: -- | FV24: -- | FW24: -- | FX24: -- | GD24: 2.97 | GE24: -- | GF24: -- | GG24: -- | GH24: -- | GI24: -- | GJ24: -- | GK24: -- | GL24: --
A25: 1960-03-01 | E25: 0 | F25: 0 | G25: 0 | H25: 0 | X25: -- | Y25: 40.018 | AM25: 24.5611 | AN25: -- | AO25: -- | AP25: -- | AQ25: 47.8 | AR25: -- | AS25: -- | AT25: 48 | AU25: -- | AV25: -- | AW25: 50.7 | AX25: 52.2 | AY25: 57.3 | AZ25: 52.4 | BA25: 28.8 | BB25: -- | BC25: -- | BM25: -- | BN25: -- | BT25: 24.6403 | BX25: 1109 | BY25: 955 | BZ25: -- | CA25: -- | CB25: 6.918812565 | CC25: 10.69881256 | CD25: -- | CE25: -- | CF25: -- | CG25: -- | CH25: -- | CI25: -- | CJ25: -- | CK25: 418 | CL25: 35 | CM25: 904 | CN25: 2136.7 | CO25: 148 | CP25: 56.8629 | CQ25: 179788 | CR25: -- | CS25: -- | CT25: -- | CZ25: 29.41 | DA25: 30.6 | DG25: -- | DH25: -- | DI25: 58.5 | DJ25: -- | DK25: 5.4 | DL25: 15707 | DM25: -58 | DP25: 54458 | DQ25: -55 | DT25: 0 | DU25: -- | DV25: -- | DW25: -- | DX25: -- | DY25: -- | DZ25: -- | EA25: -- | EB25: -- | EC25: -- | EQ25: 31.8 | ER25: -- | ES25: 32.9 | EY25: 5 | EZ25: 3.84 | FA25: 4.49 | FB25: 5.25 | FC25: 76 | FD25: -- | FE25: 3.31 | FF25: 4.02 | FG25: -- | FH25: 4.31 | FI25: 4.25 | FJ25: -- | FP25: -- | FQ25: -- | FR25: -- | FS25: -- | FT25: -- | FU25: -- | FV25: -- | FW25: -- | FX25: -- | GD25: 2.97 | GE25: -- | GF25: -- | GG25: -- | GH25: -- | GI25: -- | GJ25: -- | GK25: -- | GL25: --
A26: 1960-04-01 | E26: 0 | F26: 0 | G26: 0 | H26: 0 | X26: -- | Y26: 40.5152 | AM26: 24.3664 | AN26: -- | AO26: -- | AP26: -- | AQ26: 45.3 | AR26: -- | AS26: -- | AT26: 42 | AU26: -- | AV26: -- | AW26: 45.5 | AX26: 52 | AY26: 60.4 | AZ26: 49.8 | BA26: 28.9 | BB26: -- | BC26: -- | BM26: -- | BN26: -- | BT26: 24.8241 | BX26: 1289 | BY26: 1016 | BZ26: -- | CA26: -- | CB26: 7.13236715 | CC26: 10.77236715 | CD26: -- | CE26: -- | CF26: -- | CG26: -- | CH26: -- | CI26: -- | CJ26: -- | CK26: 421 | CL26: 31.3 | CM26: 1049 | CN26: 2144.8 | CO26: 148.7 | CP26: 57.7114 | CQ26: 180007 | CR26: -- | CS26: -- | CT26: -- | CZ26: 29.54 | DA26: 30.6 | DG26: -- | DH26: -- | DI26: 59.5 | DJ26: -- | DK26: 5.2 | DL26: 15654 | DM26: -53 | DP26: 54812 | DQ26: 354 | DT26: 0 | DU26: -- | DV26: -- | DW26: -- | DX26: -- | DY26: -- | DZ26: -- | EA26: -- | EB26: -- | EC26: -- | EQ26: 31.8 | ER26: -- | ES26: 32.8 | EY26: 5 | EZ26: 3.92 | FA26: 4.45 | FB26: 5.2 | FC26: 75 | FD26: -- | FE26: 3.23 | FF26: 4.04 | FG26: -- | FH26: 4.29 | FI26: 4.28 | FJ26: -- | FP26: -- | FQ26: -- | FR26: -- | FS26: -- | FT26: -- | FU26: -- | FV26: -- | FW26: -- | FX26: -- | GD26: 2.97 | GE26: -- | GF26: -- | GG26: -- | GH26: -- | GI26: -- | GJ26: -- | GK26: -- | GL26: --
A27: 1960-05-01 | E27: 0 | F27: 0 | G27: 0 | H27: 0 | X27: -- | Y27: 40.8926 | AM27: 24.3386 | AN27: -- | AO27: -- | AP27: -- | AQ27: 42.6 | AR27: -- | AS27: -- | AT27: 42.5 | AU27: -- | AV27: -- | AW27: 42.5 | AX27: 45.8 | AY27: 57 | AZ27: 45 | BA27: 32.3 | BB27: -- | BC27: -- | BM27: -- | BN27: -- | BT27: 24.9725 | BX27: 1271 | BY27: 1052 | BZ27: -- | CA27: -- | CB27: 6.925068871 | CC27: 10.49506887 | CD27: -- | CE27: -- | CF27: -- | CG27: -- | CH27: -- | CI27: -- | CJ27: -- | CK27: 422.5 | CL27: 39 | CM27: 1009 | CN27: 2149.8 | CO27: 149.5 | CP27: 57.951 | CQ27: 180222 | CR27: -- | CS27: -- | CT27: -- | CZ27: 29.57 | DA27: 30.6 | DG27: -- | DH27: -- | DI27: 59.5 | DJ27: -- | DK27: 5.1 | DL27: 15575 | DM27: -79 | DP27: 54473 | DQ27: -339 | DT27: 0 | DU27: -- | DV27: -- | DW27: -- | DX27: -- | DY27: -- | DZ27: -- | EA27: -- | EB27: -- | EC27: -- | EQ27: 31.7 | ER27: -- | ES27: 32.7 | EY27: 5 | EZ27: 3.85 | FA27: 4.46 | FB27: 5.28 | FC27: 82 | FD27: -- | FE27: 3.29 | FF27: 4.21 | FG27: -- | FH27: 4.49 | FI27: 4.35 | FJ27: -- | FP27: -- | FQ27: -- | FR27: -- | FS27: -- | FT27: -- | FU27: -- | FV27: -- | FW27: -- | FX27: -- | GD27: 2.97 | GE27: -- | GF27: -- | GG27: -- | GH27: -- | GI27: -- | GJ27: -- | GK27: -- | GL27: --
A28: 1960-06-01 | E28: 0 | F28: 0 | G28: 0 | H28: 0 | X28: -- | Y28: 41.3564 | AM28: 24.0326 | AN28: -- | AO28: -- | AP28: -- | AQ28: 44.4 | AR28: -- | AS28: -- | AT28: 39.7 | AU28: -- | AV28: -- | AW28: 43.9 | AX28: 49.2 | AY28: 52.6 | AZ28: 48.5 | BA28: 34.8 | BB28: -- | BC28: -- | BM28: -- | BN28: -- | BT28: 25.1264 | BX28: 1247 | BY28: 958 | BZ28: -- | CA28: -- | CB28: 7.11762281 | CC28: 10.89762281 | CD28: -- | CE28: -- | CF28: -- | CG28: -- | CH28: -- | CI28: -- | CJ28: -- | CK28: 422.9 | CL28: 39.3 | CM28: 1003 | CN28: 2151.3 | CO28: 150.7 | CP28: 58.3871 | CQ28: 180444 | CR28: -- | CS28: -- | CT28: -- | CZ28: 29.61 | DA28: 30.7 | DG28: -- | DH28: -- | DI28: 59.7 | DJ28: -- | DK28: 5.4 | DL28: 15466 | DM28: -109 | DP28: 54347 | DQ28: -126 | DT28: 0 | DU28: -- | DV28: -- | DW28: -- | DX28: -- | DY28: -- | DZ28: -- | EA28: -- | EB28: -- | EC28: -- | EQ28: 31.7 | ER28: -- | ES28: 32.8 | EY28: 5 | EZ28: 3.32 | FA28: 4.45 | FB28: 5.26 | FC28: 81 | FD28: -- | FE28: 2.46 | FF28: 3.36 | FG28: -- | FH28: 4.12 | FI28: 4.15 | FJ28: -- | FP28: -- | FQ28: -- | FR28: -- | FS28: -- | FT28: -- | FU28: -- | FV28: -- | FW28: -- | FX28: -- | GD28: 2.97 | GE28: -- | GF28: -- | GG28: -- | GH28: -- | GI28: -- | GJ28: -- | GK28: -- | GL28: --
A29: 1960-07-01 | E29: 0 | F29: 0 | G29: 0 | H29: 0 | X29: -- | Y29: 41.3958 | AM29: 23.9492 | AN29: -- | AO29: -- | AP29: -- | AQ29: 43.7 | AR29: -- | AS29: -- | AT29: 42.1 | AU29: -- | AV29: -- | AW29: 41.9 | AX29: 45.7 | AY29: 49.9 | AZ29: 48.2 | BA29: 35.8 | BB29: -- | BC29: -- | BM29: -- | BN29: -- | BT29: 25.3797 | BX29: 1197 | BY29: 999 | BZ29: -- | CA29: -- | CB29: 6.872212693 | CC29: 10.72221269 | CD29: -- | CE29: -- | CF29: -- | CG29: -- | CH29: -- | CI29: -- | CJ29: -- | CK29: 424.1 | CL29: 38.9 | CM29: 947 | CN29: 2153 | CO29: 151.5 | CP29: 58.7467 | CQ29: 180671 | CR29: -- | CS29: -- | CT29: -- | CZ29: 29.55 | DA29: 30.6 | DG29: -- | DH29: -- | DI29: 59.5 | DJ29: -- | DK29: 5.5 | DL29: 15413 | DM29: -53 | DP29: 54304 | DQ29: -43 | DT29: 0 | DU29: -- | DV29: -- | DW29: -- | DX29: -- | DY29: -- | DZ29: -- | EA29: -- | EB29: -- | EC29: -- | EQ29: 31.7 | ER29: -- | ES29: 32.8 | EY29: 5 | EZ29: 3.23 | FA29: 4.41 | FB29: 5.22 | FC29: 81 | FD29: -- | FE29: 2.3 | FF29: 3.2 | FG29: -- | FH29: 3.79 | FI29: 3.9 | FJ29: -- | FP29: -- | FQ29: -- | FR29: -- | FS29: -- | FT29: -- | FU29: -- | FV29: -- | FW29: -- | FX29: -- | GD29: 2.97 | GE29: -- | GF29: -- | GG29: -- | GH29: -- | GI29: -- | GJ29: -- | GK29: -- | GL29: --
A30: 1960-08-01 | E30: 0 | F30: 0 | G30: 0 | H30: 0 | X30: -- | Y30: 41.3249 | AM30: 23.9213 | AN30: -- | AO30: -- | AP30: -- | AQ30: 47.6 | AR30: -- | AS30: -- | AT30: 43.6 | AU30: -- | AV30: -- | AW30: 39.1 | AX30: 55.6 | AY30: 50.6 | AZ30: 50.3 | BA30: 38 | BB30: -- | BC30: -- | BM30: -- | BN30: -- | BT30: 25.6171 | BX30: 1344 | BY30: 994 | BZ30: -- | CA30: -- | CB30: 7.073612063 | CC30: 10.99361206 | CD30: -- | CE30: -- | CF30: -- | CG30: -- | CH30: -- | CI30: -- | CJ30: -- | CK30: 424.6 | CL30: 38.8 | CM30: 1091 | CN30: 2150.4 | CO30: 152.8 | CP30: 58.9472 | CQ30: 180945 | CR30: -- | CS30: -- | CT30: -- | CZ30: 29.61 | DA30: 30.6 | DG30: -- | DH30: -- | DI30: 59.5 | DJ30: -- | DK30: 5.6 | DL30: 15360 | DM30: -53 | DP30: 54271 | DQ30: -33 | DT30: 0 | DU30: -- | DV30: -- | DW30: -- | DX30: -- | DY30: -- | DZ30: -- | EA30: -- | EB30: -- | EC30: -- | EQ30: 31.6 | ER30: -- | ES30: 32.9 | EY30: 4.85 | EZ30: 2.98 | FA30: 4.28 | FB30: 5.08 | FC30: 80 | FD30: -- | FE30: 2.3 | FF30: 2.95 | FG30: -- | FH30: 3.62 | FI30: 3.8 | FJ30: -- | FP30: -- | FQ30: -- | FR30: -- | FS30: -- | FT30: -- | FU30: -- | FV30: -- | FW30: -- | FX30: -- | GD30: 2.97 | GE30: -- | GF30: -- | GG30: -- | GH30: -- | GI30: -- | GJ30: -- | GK30: -- | GL30: --
A31: 1960-09-01 | E31: 0 | F31: 0 | G31: 0 | H31: 0 | X31: -- | Y31: 41.4006 | AM31: 23.671 | AN31: -- | AO31: -- | AP31: -- | AQ31: 45.4 | AR31: -- | AS31: -- | AT31: 40.2 | AU31: -- | AV31: -- | AW31: 40.8 | AX31: 50.5 | AY31: 48.4 | AZ31: 50 | BA31: 37.3 | BB31: -- | BC31: -- | BM31: -- | BN31: -- | BT31: 25.8141 | BX31: 1097 | BY31: 984 | BZ31: -- | CA31: -- | CB31: 6.730769231 | CC31: 10.58076923 | CD31: -- | CE31: -- | CF31: -- | CG31: -- | CH31: -- | CI31: -- | CJ31: -- | CK31: 425.5 | CL31: 37.8 | CM31: 865 | CN31: 2154 | CO31: 154.3 | CP31: 59.3647 | CQ31: 181238 | CR31: -- | CS31: -- | CT31: -- | CZ31: 29.61 | DA31: 30.6 | DG31: -- | DH31: -- | DI31: 59.7 | DJ31: -- | DK31: 5.5 | DL31: 15330 | DM31: -30 | DP31: 54228 | DQ31: -43 | DT31: 0 | DU31: -- | DV31: -- | DW31: -- | DX31: -- | DY31: -- | DZ31: -- | EA31: -- | EB31: -- | EC31: -- | EQ31: 31.6 | ER31: -- | ES31: 32.6 | EY31: 4.5 | EZ31: 2.6 | FA31: 4.25 | FB31: 5.01 | FC31: 76 | FD31: -- | FE31: 2.48 | FF31: 3.07 | FG31: -- | FH31: 3.61 | FI31: 3.8 | FJ31: -- | FP31: -- | FQ31: -- | FR31: -- | FS31: -- | FT31: -- | FU31: -- | FV31: -- | FW31: -- | FX31: -- | GD31: 2.97 | GE31: -- | GF31: -- | GG31: -- | GH31: -- | GI31: -- | GJ31: -- | GK31: -- | GL31: --
A32: 1960-10-01 | E32: 0 | F32: 0 | G32: 0 | H32: 0 | X32: -- | Y32: 41.5247 | AM32: 23.6432 | AN32: -- | AO32: -- | AP32: -- | AQ32: 46 | AR32: -- | AS32: -- | AT32: 43.7 | AU32: -- | AV32: -- | AW32: 39.7 | AX32: 50.1 | AY32: 45 | AZ32: 51.2 | BA32: 36.2 | BB32: -- | BC32: -- | BM32: -- | BN32: -- | BT32: 25.9654 | BX32: 1246 | BY32: 972 | BZ32: -- | CA32: -- | CB32: 7.46286201 | CC32: 11.73286201 | CD32: -- | CE32: -- | CF32: -- | CG32: -- | CH32: -- | CI32: -- | CJ32: -- | CK32: 427.2 | CL32: 37.5 | CM32: 922 | CN32: 2161.8 | CO32: 155.5 | CP32: 59.629 | CQ32: 181528 | CR32: -- | CS32: -- | CT32: -- | CZ32: 29.75 | DA32: 30.8 | DG32: -- | DH32: -- | DI32: 59.4 | DJ32: -- | DK32: 6.1 | DL32: 15231 | DM32: -99 | DP32: 54144 | DQ32: -84 | DT32: 0 | DU32: -- | DV32: -- | DW32: -- | DX32: -- | DY32: -- | DZ32: -- | EA32: -- | EB32: -- | EC32: -- | EQ32: 31.7 | ER32: -- | ES32: 32.8 | EY32: 4.5 | EZ32: 2.47 | FA32: 4.3 | FB32: 5.11 | FC32: 81 | FD32: -- | FE32: 2.3 | FF32: 3.04 | FG32: -- | FH32: 3.76 | FI32: 3.89 | FJ32: -- | FP32: -- | FQ32: -- | FR32: -- | FS32: -- | FT32: -- | FU32: -- | FV32: -- | FW32: -- | FX32: -- | GD32: 2.97 | GE32: -- | GF32: -- | GG32: -- | GH32: -- | GI32: -- | GJ32: -- | GK32: -- | GL32: --
A33: 1960-11-01 | E33: 0 | F33: 0 | G33: 0 | H33: 0 | X33: -- | Y33: 41.6827 | AM33: 23.3094 | AN33: -- | AO33: -- | AP33: -- | AQ33: 44.3 | AR33: -- | AS33: -- | AT33: 43 | AU33: -- | AV33: -- | AW33: 41.7 | AX33: 48.2 | AY33: 46.9 | AZ33: 45.6 | BA33: 37.6 | BB33: -- | BC33: -- | BM33: -- | BN33: -- | BT33: 26.0828 | BX33: 1246 | BY33: 979 | BZ33: -- | CA33: -- | CB33: 7.565076661 | CC33: 11.83507666 | CD33: -- | CE33: -- | CF33: -- | CG33: -- | CH33: -- | CI33: -- | CJ33: -- | CK33: 426.7 | CL33: 37.1 | CM33: 949 | CN33: 2151.9 | CO33: 157.4 | CP33: 59.874 | CQ33: 181796 | CR33: -- | CS33: -- | CT33: -- | CZ33: 29.78 | DA33: 30.8 | DG33: -- | DH33: -- | DI33: 59.8 | DJ33: -- | DK33: 6.1 | DL33: 15112 | DM33: -119 | DP33: 53962 | DQ33: -182 | DT33: 0 | DU33: -- | DV33: -- | DW33: -- | DX33: -- | DY33: -- | DZ33: -- | EA33: -- | EB33: -- | EC33: -- | EQ33: 31.7 | ER33: -- | ES33: 32.8 | EY33: 4.5 | EZ33: 2.44 | FA33: 4.31 | FB33: 5.08 | FC33: 77 | FD33: -- | FE33: 2.37 | FF33: 3.08 | FG33: -- | FH33: 3.81 | FI33: 3.93 | FJ33: -- | FP33: -- | FQ33: -- | FR33: -- | FS33: -- | FT33: -- | FU33: -- | FV33: -- | FW33: -- | FX33: -- | GD33: 2.97 | GE33: -- | GF33: -- | GG33: -- | GH33: -- | GI33: -- | GJ33: -- | GK33: -- | GL33: --
A34: 1960-12-01 | E34: 0 | F34: 0 | G34: 0 | H34: 0 | X34: -- | Y34: 42.1051 | AM34: 22.8643 | AN34: -- | AO34: -- | AP34: -- | AQ34: 44.3 | AR34: -- | AS34: -- | AT34: 40.7 | AU34: -- | AV34: -- | AW34: 39.3 | AX34: 47.5 | AY34: 46.6 | AZ34: 47.5 | BA34: 40.4 | BB34: -- | BC34: -- | BM34: -- | BN34: -- | BT34: 26.2762 | BX34: 1063 | BY34: 951 | BZ34: -- | CA34: -- | CB34: 7.960081605 | CC34: 12.5800816 | CD34: -- | CE34: -- | CF34: -- | CG34: -- | CH34: -- | CI34: -- | CJ34: -- | CK34: 424.6 | CL34: 39.2 | CM34: 841 | CN34: 2141 | CO34: 159.1 | CP34: 60.0253 | CQ34: 182042 | CR34: -- | CS34: -- | CT34: -- | CZ34: 29.81 | DA34: 30.7 | DG34: -- | DH34: -- | DI34: 59.7 | DJ34: -- | DK34: 6.6 | DL34: 14947 | DM34: -165 | DP34: 53744 | DQ34: -218 | DT34: 0 | DU34: -- | DV34: -- | DW34: -- | DX34: -- | DY34: -- | DZ34: -- | EA34: -- | EB34: -- | EC34: -- | EQ34: 31.7 | ER34: -- | ES34: 32.8 | EY34: 4.5 | EZ34: 1.98 | FA34: 4.35 | FB34: 5.1 | FC34: 75 | FD34: -- | FE34: 2.25 | FF34: 2.86 | FG34: -- | FH34: 3.67 | FI34: 3.84 | FJ34: -- | FP34: -- | FQ34: -- | FR34: -- | FS34: -- | FT34: -- | FU34: -- | FV34: -- | FW34: -- | FX34: -- | GD34: 2.97 | GE34: -- | GF34: -- | GG34: -- | GH34: -- | GI34: -- | GJ34: -- | GK34: -- | GL34: --
A35: 1961-01-01 | E35: 0 | F35: 0 | G35: 0 | H35: 0 | X35: -- | Y35: 42.0358 | AM35: 22.8922 | AN35: -- | AO35: -- | AP35: -- | AQ35: 43.9 | AR35: -- | AS35: -- | AT35: 39.7 | AU35: -- | AV35: -- | AW35: 40.5 | AX35: 47.2 | AY35: 49.1 | AZ35: 47.3 | BA35: 39.2 | BB35: -- | BC35: -- | BM35: -- | BN35: -- | BT35: 26.2898 | BX35: 1183 | BY35: 969 | BZ35: -- | CA35: -- | CB35: 8.200272387 | CC35: 12.82027239 | CD35: -- | CE35: -- | CF35: -- | CG35: -- | CH35: -- | CI35: -- | CJ35: -- | CK35: 428.8 | CL35: 42.3 | CM35: 898 | CN35: 2163.4 | CO35: 160.3 | CP35: 60.6719 | CQ35: 182287 | CR35: -- | CS35: -- | CT35: -- | CZ35: 29.84 | DA35: 30.8 | DG35: -- | DH35: -- | DI35: 59.6 | DJ35: -- | DK35: 6.6 | DL35: 14863 | DM35: -84 | DP35: 53683 | DQ35: -61 | DT35: 0 | DU35: -- | DV35: -- | DW35: -- | DX35: -- | DY35: -- | DZ35: -- | EA35: -- | EB35: -- | EC35: -- | EQ35: 31.8 | ER35: -- | ES35: 32.9 | EY35: 4.5 | EZ35: 1.45 | FA35: 4.32 | FB35: 5.1 | FC35: 78 | FD35: -- | FE35: 2.24 | FF35: 2.81 | FG35: -- | FH35: 3.67 | FI35: 3.84 | FJ35: -- | FP35: -- | FQ35: -- | FR35: -- | FS35: -- | FT35: -- | FU35: -- | FV35: -- | FW35: -- | FX35: -- | GD35: 2.97 | GE35: -- | GF35: -- | GG35: -- | GH35: -- | GI35: -- | GJ35: -- | GK35: -- | GL35: --
A36: 1961-02-01 | E36: 0 | F36: 0 | G36: 0 | H36: 0 | X36: -- | Y36: 41.9503 | AM36: 22.8643 | AN36: -- | AO36: -- | AP36: -- | AQ36: 43.6 | AR36: -- | AS36: -- | AT36: 34.2 | AU36: -- | AV36: -- | AW36: 36.6 | AX36: 48.7 | AY36: 50.3 | AZ36: 49.2 | BA36: 41.1 | BB36: -- | BC36: -- | BM36: -- | BN36: -- | BT36: 26.912 | BX36: 1226 | BY36: 961 | BZ36: -- | CA36: -- | CB36: 8.362087725 | CC36: 13.19208773 | CD36: -- | CE36: -- | CF36: -- | CG36: -- | CH36: -- | CI36: -- | CJ36: -- | CK36: 430.9 | CL36: 42.8 | CM36: 948 | CN36: 2172.6 | CO36: 161.9 | CP36: 60.3101 | CQ36: 182520 | CR36: -- | CS36: -- | CT36: -- | CZ36: 29.84 | DA36: 30.8 | DG36: -- | DH36: -- | DI36: 59.6 | DJ36: -- | DK36: 6.9 | DL36: 14801 | DM36: -62 | DP36: 53556 | DQ36: -127 | DT36: 0 | DU36: -- | DV36: -- | DW36: -- | DX36: -- | DY36: -- | DZ36: -- | EA36: -- | EB36: -- | EC36: -- | EQ36: 31.8 | ER36: -- | ES36: 32.9 | EY36: 4.5 | EZ36: 2.54 | FA36: 4.27 | FB36: 5.07 | FC36: 80 | FD36: -- | FE36: 2.42 | FF36: 2.93 | FG36: -- | FH36: 3.66 | FI36: 3.78 | FJ36: -- | FP36: -- | FQ36: -- | FR36: -- | FS36: -- | FT36: -- | FU36: -- | FV36: -- | FW36: -- | FX36: -- | GD36: 2.97 | GE36: -- | GF36: -- | GG36: -- | GH36: -- | GI36: -- | GJ36: -- | GK36: -- | GL36: --
A37: 1961-03-01 | E37: 0 | F37: 0 | G37: 0 | H37: 0 | X37: -- | Y37: 42.0518 | AM37: 23.0034 | AN37: -- | AO37: -- | AP37: -- | AQ37: 49.1 | AR37: -- | AS37: -- | AT37: 42.2 | AU37: -- | AV37: -- | AW37: 38.9 | AX37: 55.2 | AY37: 50.2 | AZ37: 55.4 | BA37: 42.1 | BB37: -- | BC37: -- | BM37: -- | BN37: -- | BT37: 27.3732 | BX37: 1312 | BY37: 1000 | BZ37: -- | CA37: -- | CB37: 8.362087725 | CC37: 13.19208773 | CD37: -- | CE37: -- | CF37: -- | CG37: -- | CH37: -- | CI37: -- | CJ37: -- | CK37: 432.3 | CL37: 40.1 | CM37: 957 | CN37: 2181.4 | CO37: 163.3 | CP37: 60.4555 | CQ37: 182742 | CR37: -- | CS37: -- | CT37: -- | CZ37: 29.84 | DA37: 30.9 | DG37: -- | DH37: -- | DI37: 59.7 | DJ37: -- | DK37: 6.9 | DL37: 14802 | DM37: 1 | DP37: 53662 | DQ37: 106 | DT37: 0 | DU37: -- | DV37: -- | DW37: -- | DX37: -- | DY37: -- | DZ37: -- | EA37: -- | EB37: -- | EC37: -- | EQ37: 31.8 | ER37: -- | ES37: 32.9 | EY37: 4.5 | EZ37: 2.02 | FA37: 4.22 | FB37: 5.02 | FC37: 80 | FD37: -- | FE37: 2.39 | FF37: 2.88 | FG37: -- | FH37: 3.6 | FI37: 3.74 | FJ37: -- | FP37: -- | FQ37: -- | FR37: -- | FS37: -- | FT37: -- | FU37: -- | FV37: -- | FW37: -- | FX37: -- | GD37: 2.97 | GE37: -- | GF37: -- | GG37: -- | GH37: -- | GI37: -- | GJ37: -- | GK37: -- | GL37: --
A38: 1961-04-01 | E38: 0 | F38: 0 | G38: 0 | H38: 0 | X38: -- | Y38: 42.2127 | AM38: 23.4763 | AN38: -- | AO38: -- | AP38: -- | AQ38: 57.6 | AR38: -- | AS38: -- | AT38: 53.2 | AU38: -- | AV38: -- | AW38: 41.3 | AX38: 67.7 | AY38: 51.8 | AZ38: 61.7 | BA38: 47.5 | BB38: -- | BC38: -- | BM38: -- | BN38: -- | BT38: 27.1321 | BX38: 1166 | BY38: 1002 | BZ38: -- | CA38: -- | CB38: 7.914014895 | CC38: 12.8140149 | CD38: -- | CE38: -- | CF38: -- | CG38: -- | CH38: -- | CI38: -- | CJ38: -- | CK38: 433.1 | CL38: 40.9 | CM38: 879 | CN38: 2186.6 | CO38: 164.3 | CP38: 60.0759 | CQ38: 182992 | CR38: -- | CS38: -- | CT38: -- | CZ38: 29.81 | DA38: 30.9 | DG38: -- | DH38: -- | DI38: 59.3 | DJ38: -- | DK38: 7 | DL38: 14825 | DM38: 23 | DP38: 53626 | DQ38: -36 | DT38: 0 | DU38: -- | DV38: -- | DW38: -- | DX38: -- | DY38: -- | DZ38: -- | EA38: -- | EB38: -- | EC38: -- | EQ38: 31.6 | ER38: -- | ES38: 32.9 | EY38: 4.5 | EZ38: 1.49 | FA38: 4.25 | FB38: 5.01 | FC38: 76 | FD38: -- | FE38: 2.29 | FF38: 2.88 | FG38: -- | FH38: 3.57 | FI38: 3.78 | FJ38: -- | FP38: -- | FQ38: -- | FR38: -- | FS38: -- | FT38: -- | FU38: -- | FV38: -- | FW38: -- | FX38: -- | GD38: 2.97 | GE38: -- | GF38: -- | GG38: -- | GH38: -- | GI38: -- | GJ38: -- | GK38: -- | GL38: --
A39: 1961-05-01 | E39: 0 | F39: 0 | G39: 0 | H39: 0 | X39: -- | Y39: 42.1342 | AM39: 23.8379 | AN39: -- | AO39: -- | AP39: -- | AQ39: 58.9 | AR39: -- | AS39: -- | AT39: 56.3 | AU39: -- | AV39: -- | AW39: 44 | AX39: 64.8 | AY39: 55 | AZ39: 66.6 | BA39: 47.9 | BB39: -- | BC39: -- | BM39: -- | BN39: -- | BT39: 26.9576 | BX39: 1228 | BY39: 1027 | BZ39: -- | CA39: -- | CB39: 8.013087589 | CC39: 12.98308759 | CD39: -- | CE39: -- | CF39: -- | CG39: -- | CH39: -- | CI39: -- | CJ39: -- | CK39: 436.6 | CL39: 41.8 | CM39: 938 | CN39: 2203.3 | CO39: 165.5 | CP39: 60.1797 | CQ39: 183217 | CR39: -- | CS39: -- | CT39: -- | CZ39: 29.84 | DA39: 30.9 | DG39: -- | DH39: -- | DI39: 59.4 | DJ39: -- | DK39: 7.1 | DL39: 14932 | DM39: 107 | DP39: 53785 | DQ39: 159 | DT39: 0 | DU39: -- | DV39: -- | DW39: -- | DX39: -- | DY39: -- | DZ39: -- | EA39: -- | EB39: -- | EC39: -- | EQ39: 31.5 | ER39: -- | ES39: 32.9 | EY39: 4.5 | EZ39: 1.98 | FA39: 4.27 | FB39: 5.01 | FC39: 74 | FD39: -- | FE39: 2.29 | FF39: 2.87 | FG39: -- | FH39: 3.47 | FI39: 3.71 | FJ39: -- | FP39: -- | FQ39: -- | FR39: -- | FS39: -- | FT39: -- | FU39: -- | FV39: -- | FW39: -- | FX39: -- | GD39: 2.97 | GE39: -- | GF39: -- | GG39: -- | GH39: -- | GI39: -- | GJ39: -- | GK39: -- | GL39: --
A40: 1961-06-01 | E40: 0 | F40: 0 | G40: 0 | H40: 0 | X40: -- | Y40: 42.4519 | AM40: 24.1717 | AN40: -- | AO40: -- | AP40: -- | AQ40: 58.1 | AR40: -- | AS40: -- | AT40: 55.1 | AU40: -- | AV40: -- | AW40: 42 | AX40: 64 | AY40: 50 | AZ40: 65.3 | BA40: 49.3 | BB40: -- | BC40: -- | BM40: -- | BN40: -- | BT40: 27.0509 | BX40: 1382 | BY40: 1070 | BZ40: -- | CA40: -- | CB40: 7.676764607 | CC40: 12.50676461 | CD40: -- | CE40: -- | CF40: -- | CG40: -- | CH40: -- | CI40: -- | CJ40: -- | CK40: 441 | CL40: 45.1 | CM40: 1011 | CN40: 2226.7 | CO40: 167 | CP40: 60.3348 | CQ40: 183452 | CR40: -- | CS40: -- | CT40: -- | CZ40: 29.84 | DA40: 31 | DG40: -- | DH40: -- | DI40: 59.7 | DJ40: -- | DK40: 6.9 | DL40: 14981 | DM40: 49 | DP40: 53977 | DQ40: 192 | DT40: 0 | DU40: -- | DV40: -- | DW40: -- | DX40: -- | DY40: -- | DZ40: -- | EA40: -- | EB40: -- | EC40: -- | EQ40: 31.3 | ER40: -- | ES40: 32.9 | EY40: 4.5 | EZ40: 1.73 | FA40: 4.33 | FB40: 5.03 | FC40: 70 | FD40: -- | FE40: 2.33 | FF40: 3.06 | FG40: -- | FH40: 3.81 | FI40: 3.88 | FJ40: -- | FP40: -- | FQ40: -- | FR40: -- | FS40: -- | FT40: -- | FU40: -- | FV40: -- | FW40: -- | FX40: -- | GD40: 2.97 | GE40: -- | GF40: -- | GG40: -- | GH40: -- | GI40: -- | GJ40: -- | GK40: -- | GL40: --
A41: 1961-07-01 | E41: 0 | F41: 0 | G41: 0 | H41: 0 | X41: -- | Y41: 42.5813 | AM41: 24.4498 | AN41: -- | AO41: -- | AP41: -- | AQ41: 58.2 | AR41: -- | AS41: -- | AT41: 54.1 | AU41: -- | AV41: -- | AW41: 45.3 | AX41: 64.5 | AY41: 50.9 | AZ41: 64.3 | BA41: 49.4 | BB41: -- | BC41: -- | BM41: -- | BN41: -- | BT41: 27.1505 | BX41: 1335 | BY41: 1083 | BZ41: -- | CA41: -- | CB41: 8.252115059 | CC41: 13.15211506 | CD41: -- | CE41: -- | CF41: -- | CG41: -- | CH41: -- | CI41: -- | CJ41: -- | CK41: 443.3 | CL41: 47.6 | CM41: 1004 | CN41: 2234.4 | CO41: 167.9 | CP41: 60.396 | CQ41: 183691 | CR41: -- | CS41: -- | CT41: -- | CZ41: 29.92 | DA41: 31 | DG41: -- | DH41: -- | DI41: 59.3 | DJ41: -- | DK41: 7 | DL41: 15029 | DM41: 48 | DP41: 54123 | DQ41: 146 | DT41: 0 | DU41: -- | DV41: -- | DW41: -- | DX41: -- | DY41: -- | DZ41: -- | EA41: -- | EB41: -- | EC41: -- | EQ41: 31.5 | ER41: -- | ES41: 32.9 | EY41: 4.5 | EZ41: 1.17 | FA41: 4.41 | FB41: 5.09 | FC41: 68 | FD41: -- | FE41: 2.24 | FF41: 2.92 | FG41: -- | FH41: 3.84 | FI41: 3.92 | FJ41: -- | FP41: -- | FQ41: -- | FR41: -- | FS41: -- | FT41: -- | FU41: -- | FV41: -- | FW41: -- | FX41: -- | GD41: 2.97 | GE41: -- | GF41: -- | GG41: -- | GH41: -- | GI41: -- | GJ41: -- | GK41: -- | GL41: --
A42: 1961-08-01 | E42: 0 | F42: 0 | G42: 0 | H42: 0 | X42: -- | Y42: 42.6567 | AM42: 24.6723 | AN42: -- | AO42: -- | AP42: -- | AQ42: 60.7 | AR42: -- | AS42: -- | AT42: 58.3 | AU42: -- | AV42: -- | AW42: 54.5 | AX42: 62.9 | AY42: 52.2 | AZ42: 68.4 | BA42: 50.6 | BB42: -- | BC42: -- | BM42: -- | BN42: -- | BT42: 27.2368 | BX42: 1312 | BY42: 1159 | BZ42: -- | CA42: -- | CB42: 7.714488349 | CC42: 12.33448835 | CD42: -- | CE42: -- | CF42: -- | CG42: -- | CH42: -- | CI42: -- | CJ42: -- | CK42: 443.8 | CL42: 46.3 | CM42: 973 | CN42: 2233.9 | CO42: 169.1 | CP42: 60.6195 | CQ42: 183958 | CR42: -- | CS42: -- | CT42: -- | CZ42: 29.94 | DA42: 31.1 | DG42: -- | DH42: -- | DI42: 59.3 | DJ42: -- | DK42: 6.6 | DL42: 15093 | DM42: 64 | DP42: 54298 | DQ42: 175 | DT42: 0 | DU42: -- | DV42: -- | DW42: -- | DX42: -- | DY42: -- | DZ42: -- | EA42: -- | EB42: -- | EC42: -- | EQ42: 31.5 | ER42: -- | ES42: 32.9 | EY42: 4.5 | EZ42: 2 | FA42: 4.45 | FB42: 5.11 | FC42: 66 | FD42: -- | FE42: 2.39 | FF42: 3.06 | FG42: -- | FH42: 3.96 | FI42: 4.04 | FJ42: -- | FP42: -- | FQ42: -- | FR42: -- | FS42: -- | FT42: -- | FU42: -- | FV42: -- | FW42: -- | FX42: -- | GD42: 2.97 | GE42: -- | GF42: -- | GG42: -- | GH42: -- | GI42: -- | GJ42: -- | GK42: -- | GL42: --
A43: 1961-09-01 | E43: 0 | F43: 0 | G43: 0 | H43: 0 | X43: -- | Y43: 42.7707 | AM43: 24.6446 | AN43: -- | AO43: -- | AP43: -- | AQ43: 63 | AR43: -- | AS43: -- | AT43: 61.1 | AU43: -- | AV43: -- | AW43: 56.3 | AX43: 69.5 | AY43: 53.9 | AZ43: 66.8 | BA43: 50.7 | BB43: -- | BC43: -- | BM43: -- | BN43: -- | BT43: 27.2024 | BX43: 1429 | BY43: 1098 | BZ43: -- | CA43: -- | CB43: 7.949577845 | CC43: 12.63957785 | CD43: -- | CE43: -- | CF43: -- | CG43: -- | CH43: -- | CI43: -- | CJ43: -- | CK43: 444.9 | CL43: 44.8 | CM43: 1052 | CN43: 2236.2 | CO43: 170.4 | CP43: 60.8831 | CQ43: 184243 | CR43: -- | CS43: -- | CT43: -- | CZ43: 29.98 | DA43: 31.1 | DG43: -- | DH43: -- | DI43: 59 | DJ43: -- | DK43: 6.7 | DL43: 15080 | DM43: -13 | DP43: 54388 | DQ43: 90 | DT43: 0 | DU43: -- | DV43: -- | DW43: -- | DX43: -- | DY43: -- | DZ43: -- | EA43: -- | EB43: -- | EC43: -- | EQ43: 31.5 | ER43: -- | ES43: 32.9 | EY43: 4.5 | EZ43: 1.88 | FA43: 4.45 | FB43: 5.12 | FC43: 67 | FD43: -- | FE43: 2.28 | FF43: 3.06 | FG43: -- | FH43: 3.9 | FI43: 3.98 | FJ43: -- | FP43: -- | FQ43: -- | FR43: -- | FS43: -- | FT43: -- | FU43: -- | FV43: -- | FW43: -- | FX43: -- | GD43: 2.97 | GE43: -- | GF43: -- | GG43: -- | GH43: -- | GI43: -- | GJ43: -- | GK43: -- | GL43: --
A44: 1961-10-01 | E44: 0 | F44: 0 | G44: 0 | H44: 0 | X44: -- | Y44: 42.9778 | AM44: 25.1174 | AN44: -- | AO44: -- | AP44: -- | AQ44: 62.2 | AR44: -- | AS44: -- | AT44: 58.2 | AU44: -- | AV44: -- | AW44: 56.7 | AX44: 68.3 | AY44: 55.5 | AZ44: 66.3 | BA44: 52.4 | BB44: -- | BC44: -- | BM44: -- | BN44: -- | BT44: 27.3099 | BX44: 1415 | BY44: 1123 | BZ44: -- | CA44: -- | CB44: 7.273109244 | CC44: 11.82310924 | CD44: -- | CE44: -- | CF44: -- | CG44: -- | CH44: -- | CI44: -- | CJ44: -- | CK44: 449.1 | CL44: 46.7 | CM44: 993 | CN44: 2259.2 | CO44: 171.5 | CP44: 61.1582 | CQ44: 184524 | CR44: -- | CS44: -- | CT44: -- | CZ44: 29.98 | DA44: 31.1 | DG44: -- | DH44: -- | DI44: 59.1 | DJ44: -- | DK44: 6.5 | DL44: 15143 | DM44: 63 | DP44: 54522 | DQ44: 134 | DT44: 0 | DU44: -- | DV44: -- | DW44: -- | DX44: -- | DY44: -- | DZ44: -- | EA44: -- | EB44: -- | EC44: -- | EQ44: 31.5 | ER44: -- | ES44: 32.9 | EY44: 4.5 | EZ44: 2.26 | FA44: 4.42 | FB44: 5.13 | FC44: 71 | FD44: -- | FE44: 2.3 | FF44: 3.05 | FG44: -- | FH44: 3.8 | FI44: 3.92 | FJ44: -- | FP44: -- | FQ44: -- | FR44: -- | FS44: -- | FT44: -- | FU44: -- | FV44: -- | FW44: -- | FX44: -- | GD44: 2.97 | GE44: -- | GF44: -- | GG44: -- | GH44: -- | GI44: -- | GJ44: -- | GK44: -- | GL44: --
A45: 1961-11-01 | E45: 0 | F45: 0 | G45: 0 | H45: 0 | X45: -- | Y45: 43.1337 | AM45: 25.5068 | AN45: -- | AO45: -- | AP45: -- | AQ45: 59 | AR45: -- | AS45: -- | AT45: 59 | AU45: -- | AV45: -- | AW45: 54.6 | AX45: 65.1 | AY45: 51.9 | AZ45: 58.3 | BA45: 51.1 | BB45: -- | BC45: -- | BM45: -- | BN45: -- | BT45: 27.4494 | BX45: 1385 | BY45: 1152 | BZ45: -- | CA45: -- | CB45: 6.771591672 | CC45: 11.04159167 | CD45: -- | CE45: -- | CF45: -- | CG45: -- | CH45: -- | CI45: -- | CJ45: -- | CK45: 453.3 | CL45: 47.1 | CM45: 1018 | CN45: 2280.7 | CO45: 173.7 | CP45: 61.7483 | CQ45: 184783 | CR45: -- | CS45: -- | CT45: -- | CZ45: 29.98 | DA45: 31.2 | DG45: -- | DH45: -- | DI45: 59.1 | DJ45: -- | DK45: 6.1 | DL45: 15259 | DM45: 116 | DP45: 54743 | DQ45: 221 | DT45: 0 | DU45: -- | DV45: -- | DW45: -- | DX45: -- | DY45: -- | DZ45: -- | EA45: -- | EB45: -- | EC45: -- | EQ45: 31.5 | ER45: -- | ES45: 32.9 | EY45: 4.5 | EZ45: 2.61 | FA45: 4.39 | FB45: 5.11 | FC45: 72 | FD45: -- | FE45: 2.48 | FF45: 3.07 | FG45: -- | FH45: 3.82 | FI45: 3.94 | FJ45: -- | FP45: -- | FQ45: -- | FR45: -- | FS45: -- | FT45: -- | FU45: -- | FV45: -- | FW45: -- | FX45: -- | GD45: 2.97 | GE45: -- | GF45: -- | GG45: -- | GH45: -- | GI45: -- | GJ45: -- | GK45: -- | GL45: --
A46: 1961-12-01 | E46: 0 | F46: 0 | G46: 0 | H46: 0 | X46: -- | Y46: 43.7997 | AM46: 25.7293 | AN46: -- | AO46: -- | AP46: -- | AQ46: 64.2 | AR46: -- | AS46: -- | AT46: 58.6 | AU46: -- | AV46: -- | AW46: 56.1 | AX46: 73.4 | AY46: 56.3 | AZ46: 66.1 | BA46: 55.8 | BB46: -- | BC46: -- | BM46: -- | BN46: -- | BT46: 27.6119 | BX46: 1365 | BY46: 1161 | BZ46: -- | CA46: -- | CB46: 6.6709158 | CC46: 10.8709158 | CD46: -- | CE46: -- | CF46: -- | CG46: -- | CH46: -- | CI46: -- | CJ46: -- | CK46: 456 | CL46: 47 | CM46: 1005 | CN46: 2293.8 | CO46: 175.5 | CP46: 62.2485 | CQ46: 185016 | CR46: -- | CS46: -- | CT46: -- | CZ46: 30.01 | DA46: 31.2 | DG46: -- | DH46: -- | DI46: 58.8 | DJ46: -- | DK46: 6 | DL46: 15309 | DM46: 50 | DP46: 54871 | DQ46: 128 | DT46: 0 | DU46: -- | DV46: -- | DW46: -- | DX46: -- | DY46: -- | DZ46: -- | EA46: -- | EB46: -- | EC46: -- | EQ46: 31.6 | ER46: -- | ES46: 32.9 | EY46: 4.5 | EZ46: 2.33 | FA46: 4.42 | FB46: 5.1 | FC46: 68 | FD46: -- | FE46: 2.6 | FF46: 3.18 | FG46: -- | FH46: 3.91 | FI46: 4.06 | FJ46: -- | FP46: -- | FQ46: -- | FR46: -- | FS46: -- | FT46: -- | FU46: -- | FV46: -- | FW46: -- | FX46: -- | GD46: 2.97 | GE46: -- | GF46: -- | GG46: -- | GH46: -- | GI46: -- | GJ46: -- | GK46: -- | GL46: --
A47: 1962-01-01 | E47: 0 | F47: 0 | G47: 0 | H47: 0 | X47: -- | Y47: 43.9853 | AM47: 25.5068 | AN47: -- | AO47: -- | AP47: -- | AQ47: 60.9 | AR47: -- | AS47: -- | AT47: 60.3 | AU47: -- | AV47: -- | AW47: 59 | AX47: 59.4 | AY47: 57.1 | AZ47: 66.4 | BA47: 57.1 | BB47: -- | BC47: -- | BM47: -- | BN47: -- | BT47: 27.8617 | BX47: 1361 | BY47: 1122 | BZ47: -- | CA47: -- | CB47: 6.470241287 | CC47: 10.53024129 | CD47: -- | CE47: -- | CF47: -- | CG47: -- | CH47: -- | CI47: -- | CJ47: -- | CK47: 456.3 | CL47: 45.8 | CM47: 974 | CN47: 2287.2 | CO47: 176.6 | CP47: 62.2828 | CQ47: 185242 | CR47: -- | CS47: -- | CT47: -- | CZ47: 30.04 | DA47: 31.2 | DG47: -- | DH47: -- | DI47: 58.8 | DJ47: -- | DK47: 5.8 | DL47: 15322 | DM47: 13 | DP47: 54891 | DQ47: 20 | DT47: 0 | DU47: -- | DV47: -- | DW47: -- | DX47: -- | DY47: -- | DZ47: -- | EA47: -- | EB47: -- | EC47: -- | EQ47: 31.7 | ER47: -- | ES47: 33 | EY47: 4.5 | EZ47: 2.15 | FA47: 4.42 | FB47: 5.08 | FC47: 66 | FD47: -- | FE47: 2.72 | FF47: 3.28 | FG47: -- | FH47: 3.94 | FI47: 4.08 | FJ47: -- | FP47: -- | FQ47: -- | FR47: -- | FS47: -- | FT47: -- | FU47: -- | FV47: -- | FW47: -- | FX47: -- | GD47: 2.97 | GE47: -- | GF47: -- | GG47: -- | GH47: -- | GI47: -- | GJ47: -- | GK47: -- | GL47: --
A48: 1962-02-01 | E48: 0 | F48: 0 | G48: 0 | H48: 0 | X48: -- | Y48: 43.8688 | AM48: 25.924 | AN48: -- | AO48: -- | AP48: -- | AQ48: 61.1 | AR48: -- | AS48: -- | AT48: 60.5 | AU48: -- | AV48: -- | AW48: 58.6 | AX48: 61.8 | AY48: 54.7 | AZ48: 64.7 | BA48: 56.2 | BB48: -- | BC48: -- | BM48: -- | BN48: -- | BT48: 28.0461 | BX48: 1278 | BY48: 1194 | BZ48: -- | CA48: -- | CB48: 6.404825737 | CC48: 10.25482574 | CD48: -- | CE48: -- | CF48: -- | CG48: -- | CH48: -- | CI48: -- | CJ48: -- | CK48: 459.6 | CL48: 48.1 | CM48: 946 | CN48: 2298.4 | CO48: 178 | CP48: 62.6404 | CQ48: 185452 | CR48: -- | CS48: -- | CT48: -- | CZ48: 30.11 | DA48: 31.2 | DG48: -- | DH48: -- | DI48: 59 | DJ48: -- | DK48: 5.5 | DL48: 15411 | DM48: 89 | DP48: 55187 | DQ48: 296 | DT48: 0 | DU48: -- | DV48: -- | DW48: -- | DX48: -- | DY48: -- | DZ48: -- | EA48: -- | EB48: -- | EC48: -- | EQ48: 31.7 | ER48: -- | ES48: 33 | EY48: 4.5 | EZ48: 2.37 | FA48: 4.42 | FB48: 5.07 | FC48: 65 | FD48: -- | FE48: 2.73 | FF48: 3.28 | FG48: -- | FH48: 3.89 | FI48: 4.04 | FJ48: -- | FP48: -- | FQ48: -- | FR48: -- | FS48: -- | FT48: -- | FU48: -- | FV48: -- | FW48: -- | FX48: -- | GD48: 2.97 | GE48: -- | GF48: -- | GG48: -- | GH48: -- | GI48: -- | GJ48: -- | GK48: -- | GL48: --
A49: 1962-03-01 | E49: 0 | F49: 0 | G49: 0 | H49: 0 | X49: -- | Y49: 44.1012 | AM49: 26.0631 | AN49: -- | AO49: -- | AP49: -- | AQ49: 60.6 | AR49: -- | AS49: -- | AT49: 57.6 | AU49: -- | AV49: -- | AW49: 57.5 | AX49: 60.1 | AY49: 56.8 | AZ49: 66.9 | BA49: 57 | BB49: -- | BC49: -- | BM49: -- | BN49: -- | BT49: 28.3085 | BX49: 1443 | BY49: 1134 | BZ49: -- | CA49: -- | CB49: 6.705898123 | CC49: 10.62589812 | CD49: -- | CE49: -- | CF49: -- | CG49: -- | CH49: -- | CI49: -- | CJ49: -- | CK49: 463.3 | CL49: 47.8 | CM49: 979 | CN49: 2313.2 | CO49: 179.7 | CP49: 63.1286 | CQ49: 185650 | CR49: -- | CS49: -- | CT49: -- | CZ49: 30.17 | DA49: 31.3 | DG49: -- | DH49: -- | DI49: 58.9 | DJ49: -- | DK49: 5.6 | DL49: 15451 | DM49: 40 | DP49: 55276 | DQ49: 89 | DT49: 0 | DU49: -- | DV49: -- | DW49: -- | DX49: -- | DY49: -- | DZ49: -- | EA49: -- | EB49: -- | EC49: -- | EQ49: 31.7 | ER49: -- | ES49: 33 | EY49: 4.5 | EZ49: 2.85 | FA49: 4.39 | FB49: 5.04 | FC49: 65 | FD49: -- | FE49: 2.72 | FF49: 3.06 | FG49: -- | FH49: 3.68 | FI49: 3.93 | FJ49: -- | FP49: -- | FQ49: -- | FR49: -- | FS49: -- | FT49: -- | FU49: -- | FV49: -- | FW49: -- | FX49: -- | GD49: 2.97 | GE49: -- | GF49: -- | GG49: -- | GH49: -- | GI49: -- | GJ49: -- | GK49: -- | GL49: --
A50: 1962-04-01 | E50: 0 | F50: 0 | G50: 0 | H50: 0 | X50: -- | Y50: 44.5398 | AM50: 26.1188 | AN50: -- | AO50: -- | AP50: -- | AQ50: 55.1 | AR50: -- | AS50: -- | AT50: 55.6 | AU50: -- | AV50: -- | AW50: 53.5 | AX50: 57.3 | AY50: 53.6 | AZ50: 57.4 | BA50: 47.4 | BB50: -- | BC50: -- | BM50: -- | BN50: -- | BT50: 28.4962 | BX50: 1524 | BY50: 1235 | BZ50: -- | CA50: -- | CB50: 6.9418316 | CC50: 10.8618316 | CD50: -- | CE50: -- | CF50: -- | CG50: -- | CH50: -- | CI50: -- | CJ50: -- | CK50: 466.1 | CL50: 48.2 | CM50: 1027 | CN50: 2322.7 | CO50: 181 | CP50: 63.8669 | CQ50: 185874 | CR50: -- | CS50: -- | CT50: -- | CZ50: 30.21 | DA50: 31.3 | DG50: -- | DH50: -- | DI50: 58.7 | DJ50: -- | DK50: 5.6 | DL50: 15524 | DM50: 73 | DP50: 55602 | DQ50: 326 | DT50: 0 | DU50: -- | DV50: -- | DW50: -- | DX50: -- | DY50: -- | DZ50: -- | EA50: -- | EB50: -- | EC50: -- | EQ50: 31.6 | ER50: -- | ES50: 33 | EY50: 4.5 | EZ50: 2.78 | FA50: 4.33 | FB50: 5.02 | FC50: 69 | FD50: -- | FE50: 2.73 | FF50: 2.99 | FG50: -- | FH50: 3.6 | FI50: 3.84 | FJ50: -- | FP50: -- | FQ50: -- | FR50: -- | FS50: -- | FT50: -- | FU50: -- | FV50: -- | FW50: -- | FX50: -- | GD50: 2.97 | GE50: -- | GF50: -- | GG50: -- | GH50: -- | GI50: -- | GJ50: -- | GK50: -- | GL50: --
A51: 1962-05-01 | E51: 0 | F51: 0 | G51: 0 | H51: 0 | X51: -- | Y51: 44.8413 | AM51: 26.0909 | AN51: -- | AO51: -- | AP51: -- | AQ51: 52.2 | AR51: -- | AS51: -- | AT51: 52.3 | AU51: -- | AV51: -- | AW51: 50.3 | AX51: 53.6 | AY51: 52 | AZ51: 55.3 | BA51: 45.2 | BB51: -- | BC51: -- | BM51: -- | BN51: -- | BT51: 28.6966 | BX51: 1483 | BY51: 1142 | BZ51: -- | CA51: -- | CB51: 6.840482574 | CC51: 10.69048257 | CD51: -- | CE51: -- | CF51: -- | CG51: -- | CH51: -- | CI51: -- | CJ51: -- | CK51: 466.9 | CL51: 45.5 | CM51: 1032 | CN51: 2323.2 | CO51: 182.4 | CP51: 64.601 | CQ51: 186087 | CR51: -- | CS51: -- | CT51: -- | CZ51: 30.24 | DA51: 31.4 | DG51: -- | DH51: -- | DI51: 58.9 | DJ51: -- | DK51: 5.5 | DL51: 15513 | DM51: -11 | DP51: 55627 | DQ51: 25 | DT51: 0 | DU51: -- | DV51: -- | DW51: -- | DX51: -- | DY51: -- | DZ51: -- | EA51: -- | EB51: -- | EC51: -- | EQ51: 31.5 | ER51: -- | ES51: 33 | EY51: 4.5 | EZ51: 2.36 | FA51: 4.28 | FB51: 5 | FC51: 72 | FD51: -- | FE51: 2.69 | FF51: 3.03 | FG51: -- | FH51: 3.66 | FI51: 3.87 | FJ51: -- | FP51: -- | FQ51: -- | FR51: -- | FS51: -- | FT51: -- | FU51: -- | FV51: -- | FW51: -- | FX51: -- | GD51: 2.97 | GE51: -- | GF51: -- | GG51: -- | GH51: -- | GI51: -- | GJ51: -- | GK51: -- | GL51: --
A52: 1962-06-01 | E52: 0 | F52: 0 | G52: 0 | H52: 0 | X52: -- | Y52: 45.5419 | AM52: 26.0353 | AN52: -- | AO52: -- | AP52: -- | AQ52: 50.8 | AR52: -- | AS52: -- | AT52: 51.6 | AU52: -- | AV52: -- | AW52: 46.4 | AX52: 52.5 | AY52: 51.7 | AZ52: 54.8 | BA52: 43.3 | BB52: -- | BC52: -- | BM52: -- | BN52: -- | BT52: 29.0264 | BX52: 1404 | BY52: 1154 | BZ52: -- | CA52: -- | CB52: 6.739946381 | CC52: 10.58994638 | CD52: -- | CE52: -- | CF52: -- | CG52: -- | CH52: -- | CI52: -- | CJ52: -- | CK52: 468.2 | CL52: 47.7 | CM52: 951 | CN52: 2325.7 | CO52: 184.1 | CP52: 65.1374 | CQ52: 186314 | CR52: -- | CS52: -- | CT52: -- | CZ52: 30.21 | DA52: 31.4 | DG52: -- | DH52: -- | DI52: 58.8 | DJ52: -- | DK52: 5.5 | DL52: 15518 | DM52: 5 | DP52: 55644 | DQ52: 17 | DT52: 0 | DU52: -- | DV52: -- | DW52: -- | DX52: -- | DY52: -- | DZ52: -- | EA52: -- | EB52: -- | EC52: -- | EQ52: 31.5 | ER52: -- | ES52: 33 | EY52: 4.5 | EZ52: 2.68 | FA52: 4.28 | FB52: 5.02 | FC52: 74 | FD52: -- | FE52: 2.73 | FF52: 3.03 | FG52: -- | FH52: 3.64 | FI52: 3.91 | FJ52: -- | FP52: -- | FQ52: -- | FR52: -- | FS52: -- | FT52: -- | FU52: -- | FV52: -- | FW52: -- | FX52: -- | GD52: 2.97 | GE52: -- | GF52: -- | GG52: -- | GH52: -- | GI52: -- | GJ52: -- | GK52: -- | GL52: --
A53: 1962-07-01 | E53: 0 | F53: 0 | G53: 0 | H53: 0 | X53: -- | Y53: 45.7268 | AM53: 26.2856 | AN53: -- | AO53: -- | AP53: -- | AQ53: 51 | AR53: -- | AS53: -- | AT53: 51.2 | AU53: -- | AV53: -- | AW53: 43.8 | AX53: 53.2 | AY53: 51.6 | AZ53: 54.7 | BA53: 45.1 | BB53: -- | BC53: -- | BM53: -- | BN53: -- | BT53: 29.2979 | BX53: 1450 | BY53: 1189 | BZ53: -- | CA53: -- | CB53: 6.402673797 | CC53: 10.1826738 | CD53: -- | CE53: -- | CF53: -- | CG53: -- | CH53: -- | CI53: -- | CJ53: -- | CK53: 470 | CL53: 48 | CM53: 983 | CN53: 2334.7 | CO53: 185.5 | CP53: 65.5122 | CQ53: 186538 | CR53: -- | CS53: -- | CT53: -- | CZ53: 30.22 | DA53: 31.4 | DG53: -- | DH53: -- | DI53: 58.5 | DJ53: -- | DK53: 5.4 | DL53: 15522 | DM53: 4 | DP53: 55746 | DQ53: 102 | DT53: 0 | DU53: -- | DV53: -- | DW53: -- | DX53: -- | DY53: -- | DZ53: -- | EA53: -- | EB53: -- | EC53: -- | EQ53: 31.6 | ER53: -- | ES53: 33 | EY53: 4.5 | EZ53: 2.71 | FA53: 4.34 | FB53: 5.05 | FC53: 71 | FD53: -- | FE53: 2.92 | FF53: 3.29 | FG53: -- | FH53: 3.8 | FI53: 4.01 | FJ53: -- | FP53: -- | FQ53: -- | FR53: -- | FS53: -- | FT53: -- | FU53: -- | FV53: -- | FW53: -- | FX53: -- | GD53: 2.97 | GE53: -- | GF53: -- | GG53: -- | GH53: -- | GI53: -- | GJ53: -- | GK53: -- | GL53: --
A54: 1962-08-01 | E54: 0 | F54: 0 | G54: 0 | H54: 0 | X54: -- | Y54: 45.9234 | AM54: 26.3135 | AN54: -- | AO54: -- | AP54: -- | AQ54: 49.5 | AR54: -- | AS54: -- | AT54: 47 | AU54: -- | AV54: -- | AW54: 45.2 | AX54: 52.9 | AY54: 47.7 | AZ54: 52.5 | BA54: 43.7 | BB54: -- | BC54: -- | BM54: -- | BN54: -- | BT54: 29.534 | BX54: 1517 | BY54: 1200 | BZ54: -- | CA54: -- | CB54: 6.835604542 | CC54: 10.82560454 | CD54: -- | CE54: -- | CF54: -- | CG54: -- | CH54: -- | CI54: -- | CJ54: -- | CK54: 471.3 | CL54: 47.3 | CM54: 1053 | CN54: 2336.4 | CO54: 187 | CP54: 66.0551 | CQ54: 186790 | CR54: -- | CS54: -- | CT54: -- | CZ54: 30.28 | DA54: 31.5 | DG54: -- | DH54: -- | DI54: 59 | DJ54: -- | DK54: 5.7 | DL54: 15517 | DM54: -5 | DP54: 55838 | DQ54: 92 | DT54: 0 | DU54: -- | DV54: -- | DW54: -- | DX54: -- | DY54: -- | DZ54: -- | EA54: -- | EB54: -- | EC54: -- | EQ54: 31.6 | ER54: -- | ES54: 33 | EY54: 4.5 | EZ54: 2.93 | FA54: 4.35 | FB54: 5.06 | FC54: 71 | FD54: -- | FE54: 2.82 | FF54: 3.2 | FG54: -- | FH54: 3.71 | FI54: 3.98 | FJ54: -- | FP54: -- | FQ54: -- | FR54: -- | FS54: -- | FT54: -- | FU54: -- | FV54: -- | FW54: -- | FX54: -- | GD54: 2.97 | GE54: -- | GF54: -- | GG54: -- | GH54: -- | GI54: -- | GJ54: -- | GK54: -- | GL54: --
A55: 1962-09-01 | E55: 0 | F55: 0 | G55: 0 | H55: 0 | X55: -- | Y55: 46.3736 | AM55: 26.4804 | AN55: -- | AO55: -- | AP55: -- | AQ55: 50 | AR55: -- | AS55: -- | AT55: 49.7 | AU55: -- | AV55: -- | AW55: 42.5 | AX55: 53 | AY55: 45.4 | AZ55: 52.4 | BA55: 45.1 | BB55: -- | BC55: -- | BM55: -- | BN55: -- | BT55: 29.697 | BX55: 1324 | BY55: 1223 | BZ55: -- | CA55: -- | CB55: 7.067645097 | CC55: 10.9876451 | CD55: -- | CE55: -- | CF55: -- | CG55: -- | CH55: -- | CI55: -- | CJ55: -- | CK55: 473.8 | CL55: 43.5 | CM55: 866 | CN55: 2337 | CO55: 188.8 | CP55: 66.4383 | CQ55: 187058 | CR55: -- | CS55: -- | CT55: -- | CZ55: 30.42 | DA55: 31.5 | DG55: -- | DH55: -- | DI55: 59 | DJ55: -- | DK55: 5.6 | DL55: 15568 | DM55: 51 | DP55: 55977 | DQ55: 139 | DT55: 0 | DU55: -- | DV55: -- | DW55: -- | DX55: -- | DY55: -- | DZ55: -- | EA55: -- | EB55: -- | EC55: -- | EQ55: 31.9 | ER55: -- | ES55: 33 | EY55: 4.5 | EZ55: 2.9 | FA55: 4.32 | FB55: 5.03 | FC55: 71 | FD55: -- | FE55: 2.78 | FF55: 3.06 | FG55: -- | FH55: 3.7 | FI55: 3.98 | FJ55: -- | FP55: -- | FQ55: -- | FR55: -- | FS55: -- | FT55: -- | FU55: -- | FV55: -- | FW55: -- | FX55: -- | GD55: 2.97 | GE55: -- | GF55: -- | GG55: -- | GH55: -- | GI55: -- | GJ55: -- | GK55: -- | GL55: --
A56: 1962-10-01 | E56: 0 | F56: 0 | G56: 0 | H56: 0 | X56: -- | Y56: 46.8487 | AM56: 26.5082 | AN56: -- | AO56: -- | AP56: -- | AQ56: 51.2 | AR56: -- | AS56: -- | AT56: 49.9 | AU56: -- | AV56: -- | AW56: 46.2 | AX56: 53.6 | AY56: 43.9 | AZ56: 54 | BA56: 46.7 | BB56: -- | BC56: -- | BM56: -- | BN56: -- | BT56: 29.9067 | BX56: 1533 | BY56: 1181 | BZ56: -- | CA56: -- | CB56: 6.734222815 | CC56: 10.51422282 | CD56: -- | CE56: -- | CF56: -- | CG56: -- | CH56: -- | CI56: -- | CJ56: -- | CK56: 475.6 | CL56: 47.1 | CM56: 990 | CN56: 2347.3 | CO56: 190.3 | CP56: 67.0289 | CQ56: 187323 | CR56: -- | CS56: -- | CT56: -- | CZ56: 30.38 | DA56: 31.5 | DG56: -- | DH56: -- | DI56: 58.7 | DJ56: -- | DK56: 5.4 | DL56: 15569 | DM56: 1 | DP56: 56041 | DQ56: 64 | DT56: 0 | DU56: -- | DV56: -- | DW56: -- | DX56: -- | DY56: -- | DZ56: -- | EA56: -- | EB56: -- | EC56: -- | EQ56: 31.7 | ER56: -- | ES56: 33 | EY56: 4.5 | EZ56: 2.9 | FA56: 4.28 | FB56: 4.99 | FC56: 71 | FD56: -- | FE56: 2.74 | FF56: 2.98 | FG56: -- | FH56: 3.64 | FI56: 3.93 | FJ56: -- | FP56: -- | FQ56: -- | FR56: -- | FS56: -- | FT56: -- | FU56: -- | FV56: -- | FW56: -- | FX56: -- | GD56: 2.97 | GE56: -- | GF56: -- | GG56: -- | GH56: -- | GI56: -- | GJ56: -- | GK56: -- | GL56: --
A57: 1962-11-01 | E57: 0 | F57: 0 | G57: 0 | H57: 0 | X57: -- | Y57: 47.1998 | AM57: 26.6194 | AN57: -- | AO57: -- | AP57: -- | AQ57: 53.8 | AR57: -- | AS57: -- | AT57: 48.7 | AU57: -- | AV57: -- | AW57: 51.5 | AX57: 57.8 | AY57: 47.1 | AZ57: 56.9 | BA57: 48.7 | BB57: -- | BC57: -- | BM57: -- | BN57: -- | BT57: 30.1116 | BX57: 1622 | BY57: 1236 | BZ57: -- | CA57: -- | CB57: 7.034222815 | CC57: 11.02422282 | CD57: -- | CE57: -- | CF57: -- | CG57: -- | CH57: -- | CI57: -- | CJ57: -- | CK57: 478.1 | CL57: 43.8 | CM57: 1080 | CN57: 2356.1 | CO57: 192.7 | CP57: 67.6421 | CQ57: 187574 | CR57: -- | CS57: -- | CT57: -- | CZ57: 30.38 | DA57: 31.5 | DG57: -- | DH57: -- | DI57: 58.5 | DJ57: -- | DK57: 5.7 | DL57: 15530 | DM57: -39 | DP57: 56056 | DQ57: 15 | DT57: 0 | DU57: -- | DV57: -- | DW57: -- | DX57: -- | DY57: -- | DZ57: -- | EA57: -- | EB57: -- | EC57: -- | EQ57: 31.7 | ER57: -- | ES57: 33 | EY57: 4.5 | EZ57: 2.94 | FA57: 4.25 | FB57: 4.96 | FC57: 71 | FD57: -- | FE57: 2.83 | FF57: 3 | FG57: -- | FH57: 3.6 | FI57: 3.92 | FJ57: -- | FP57: -- | FQ57: -- | FR57: -- | FS57: -- | FT57: -- | FU57: -- | FV57: -- | FW57: -- | FX57: -- | GD57: 2.97 | GE57: -- | GF57: -- | GG57: -- | GH57: -- | GI57: -- | GJ57: -- | GK57: -- | GL57: --
A58: 1962-12-01 | E58: 0 | F58: 0 | G58: 0 | H58: 0 | X58: -- | Y58: 47.4376 | AM58: 26.6194 | AN58: -- | AO58: -- | AP58: -- | AQ58: 57.2 | AR58: -- | AS58: -- | AT58: 54.6 | AU58: -- | AV58: -- | AW58: 50.1 | AX58: 59.7 | AY58: 47.3 | AZ58: 63.3 | BA58: 50.1 | BB58: -- | BC58: -- | BM58: -- | BN58: -- | BT58: 30.2333 | BX58: 1564 | BY58: 1236 | BZ58: -- | CA58: -- | CB58: 6.732922359 | CC58: 10.58292236 | CD58: -- | CE58: -- | CF58: -- | CG58: -- | CH58: -- | CI58: -- | CJ58: -- | CK58: 480.1 | CL58: 43.5 | CM58: 998 | CN58: 2366.6 | CO58: 194.8 | CP58: 68.1267 | CQ58: 187796 | CR58: -- | CS58: -- | CT58: -- | CZ58: 30.38 | DA58: 31.6 | DG58: -- | DH58: -- | DI58: 58.4 | DJ58: -- | DK58: 5.5 | DL58: 15520 | DM58: -10 | DP58: 56028 | DQ58: -28 | DT58: 0 | DU58: -- | DV58: -- | DW58: -- | DX58: -- | DY58: -- | DZ58: -- | EA58: -- | EB58: -- | EC58: -- | EQ58: 31.6 | ER58: -- | ES58: 33 | EY58: 4.5 | EZ58: 2.93 | FA58: 4.24 | FB58: 4.92 | FC58: 68 | FD58: -- | FE58: 2.87 | FF58: 3.01 | FG58: -- | FH58: 3.56 | FI58: 3.86 | FJ58: -- | FP58: -- | FQ58: -- | FR58: -- | FS58: -- | FT58: -- | FU58: -- | FV58: -- | FW58: -- | FX58: -- | GD58: 2.97 | GE58: -- | GF58: -- | GG58: -- | GH58: -- | GI58: -- | GJ58: -- | GK58: -- | GL58: --
A59: 1963-01-01 | E59: 0 | F59: 0 | G59: 0 | H59: 0 | X59: -- | Y59: 47.6623 | AM59: 26.8141 | AN59: -- | AO59: -- | AP59: -- | AQ59: 55.2 | AR59: -- | AS59: -- | AT59: 52.5 | AU59: -- | AV59: -- | AW59: 47.4 | AX59: 60.9 | AY59: 48.5 | AZ59: 56.5 | BA59: 50.4 | BB59: -- | BC59: -- | BM59: -- | BN59: -- | BT59: 30.5456 | BX59: 1244 | BY59: 1248 | BZ59: -- | CA59: -- | CB59: 7.031557923 | CC59: 11.02155792 | CD59: -- | CE59: -- | CF59: -- | CG59: -- | CH59: -- | CI59: -- | CJ59: 591 | CK59: 484.2 | CL59: 46.7 | CM59: 810 | CN59: 2383.3 | CO59: 196.3 | CP59: 68.6565 | CQ59: 188013 | CR59: -- | CS59: -- | CT59: -- | CZ59: 30.44 | DA59: 31.5 | DG59: -- | DH59: -- | DI59: 58.6 | DJ59: -- | DK59: 5.7 | DL59: 15545 | DM59: 25 | DP59: 56116 | DQ59: 88 | DT59: 0 | DU59: -- | DV59: -- | DW59: -- | DX59: -- | DY59: -- | DZ59: -- | EA59: -- | EB59: -- | EC59: -- | EQ59: 31.6 | ER59: -- | ES59: 33 | EY59: 4.5 | EZ59: 2.92 | FA59: 4.21 | FB59: 4.91 | FC59: 70 | FD59: -- | FE59: 2.91 | FF59: 3.04 | FG59: -- | FH59: 3.58 | FI59: 3.83 | FJ59: -- | FP59: -- | FQ59: -- | FR59: -- | FS59: -- | FT59: -- | FU59: -- | FV59: -- | FW59: -- | FX59: -- | GD59: 2.97 | GE59: -- | GF59: -- | GG59: -- | GH59: -- | GI59: -- | GJ59: -- | GK59: -- | GL59: --
A60: 1963-02-01 | E60: 0 | F60: 0 | G60: 0 | H60: 0 | X60: -- | Y60: 47.8294 | AM60: 27.1201 | AN60: -- | AO60: -- | AP60: -- | AQ60: 55.1 | AR60: -- | AS60: -- | AT60: 50.2 | AU60: -- | AV60: -- | AW60: 48.3 | AX60: 60.4 | AY60: 51.7 | AZ60: 57.7 | BA60: 51 | BB60: -- | BC60: -- | BM60: -- | BN60: -- | BT60: 30.9054 | BX60: 1456 | BY60: 1212 | BZ60: -- | CA60: -- | CB60: 7.128827632 | CC60: 11.25882763 | CD60: -- | CE60: -- | CF60: -- | CG60: -- | CH60: -- | CI60: -- | CJ60: 464 | CK60: 482 | CL60: 45.5 | CM60: 977 | CN60: 2368.9 | CO60: 198.1 | CP60: 69.3768 | CQ60: 188213 | CR60: -- | CS60: -- | CT60: -- | CZ60: 30.48 | DA60: 31.6 | DG60: -- | DH60: -- | DI60: 58.6 | DJ60: -- | DK60: 5.9 | DL60: 15542 | DM60: -3 | DP60: 56230 | DQ60: 114 | DT60: 0 | DU60: -- | DV60: -- | DW60: -- | DX60: -- | DY60: -- | DZ60: -- | EA60: -- | EB60: -- | EC60: -- | EQ60: 31.5 | ER60: -- | ES60: 33 | EY60: 4.5 | EZ60: 3 | FA60: 4.19 | FB60: 4.89 | FC60: 70 | FD60: -- | FE60: 2.92 | FF60: 3.01 | FG60: -- | FH60: 3.66 | FI60: 3.92 | FJ60: -- | FP60: -- | FQ60: -- | FR60: -- | FS60: -- | FT60: -- | FU60: -- | FV60: -- | FW60: -- | FX60: -- | GD60: 2.97 | GE60: -- | GF60: -- | GG60: -- | GH60: -- | GI60: -- | GJ60: -- | GK60: -- | GL60: --
A61: 1963-03-01 | E61: 0 | F61: 0 | G61: 0 | H61: 0 | X61: -- | Y61: 47.9739 | AM61: 27.287 | AN61: -- | AO61: -- | AP61: -- | AQ61: 54.7 | AR61: -- | AS61: -- | AT61: 52.4 | AU61: -- | AV61: -- | AW61: 46.8 | AX61: 57.5 | AY61: 47.5 | AZ61: 56.3 | BA61: 54.9 | BB61: -- | BC61: -- | BM61: -- | BN61: -- | BT61: 31.2414 | BX61: 1534 | BY61: 1258 | BZ61: -- | CA61: -- | CB61: 6.826947299 | CC61: 10.8169473 | CD61: -- | CE61: -- | CF61: -- | CG61: -- | CH61: -- | CI61: -- | CJ61: 461 | CK61: 483.7 | CL61: 45.1 | CM61: 962 | CN61: 2378.3 | CO61: 200.1 | CP61: 70.0734 | CQ61: 188387 | CR61: -- | CS61: -- | CT61: -- | CZ61: 30.51 | DA61: 31.7 | DG61: -- | DH61: -- | DI61: 58.6 | DJ61: -- | DK61: 5.7 | DL61: 15564 | DM61: 22 | DP61: 56322 | DQ61: 92 | DT61: 0 | DU61: -- | DV61: -- | DW61: -- | DX61: -- | DY61: -- | DZ61: -- | EA61: -- | EB61: -- | EC61: -- | EQ61: 31.5 | ER61: -- | ES61: 33 | EY61: 4.5 | EZ61: 2.98 | FA61: 4.19 | FB61: 4.88 | FC61: 69 | FD61: -- | FE61: 2.89 | FF61: 3.03 | FG61: -- | FH61: 3.68 | FI61: 3.93 | FJ61: -- | FP61: -- | FQ61: -- | FR61: -- | FS61: -- | FT61: -- | FU61: -- | FV61: -- | FW61: -- | FX61: -- | GD61: 2.97 | GE61: -- | GF61: -- | GG61: -- | GH61: -- | GI61: -- | GJ61: -- | GK61: -- | GL61: --
A62: 1963-04-01 | E62: 0 | F62: 0 | G62: 0 | H62: 0 | X62: -- | Y62: 48.3917 | AM62: 27.5374 | AN62: -- | AO62: -- | AP62: -- | AQ62: 57.6 | AR62: -- | AS62: -- | AT62: 52.7 | AU62: -- | AV62: -- | AW62: 48.6 | AX62: 60.6 | AY62: 55 | AZ62: 61 | BA62: 58.2 | BB62: -- | BC62: -- | BM62: -- | BN62: -- | BT62: 31.5371 | BX62: 1689 | BY62: 1288 | BZ62: -- | CA62: -- | CB62: 6.593743793 | CC62: 10.58374379 | CD62: -- | CE62: -- | CF62: -- | CG62: -- | CH62: -- | CI62: -- | CJ62: 605 | CK62: 485.1 | CL62: 45.6 | CM62: 1096 | CN62: 2389.1 | CO62: 201.6 | CP62: 70.8016 | CQ62: 188580 | CR62: -- | CS62: -- | CT62: -- | CZ62: 30.48 | DA62: 31.7 | DG62: -- | DH62: -- | DI62: 58.8 | DJ62: -- | DK62: 5.7 | DL62: 15602 | DM62: 38 | DP62: 56580 | DQ62: 258 | DT62: 0 | DU62: -- | DV62: -- | DW62: -- | DX62: -- | DY62: -- | DZ62: -- | EA62: -- | EB62: -- | EC62: -- | EQ62: 31.4 | ER62: -- | ES62: 33 | EY62: 4.5 | EZ62: 2.9 | FA62: 4.21 | FB62: 4.87 | FC62: 66 | FD62: -- | FE62: 2.9 | FF62: 3.11 | FG62: -- | FH62: 3.74 | FI62: 3.97 | FJ62: -- | FP62: -- | FQ62: -- | FR62: -- | FS62: -- | FT62: -- | FU62: -- | FV62: -- | FW62: -- | FX62: -- | GD62: 2.97 | GE62: -- | GF62: -- | GG62: -- | GH62: -- | GI62: -- | GJ62: -- | GK62: -- | GL62: --
A63: 1963-05-01 | E63: 0 | F63: 0 | G63: 0 | H63: 0 | X63: -- | Y63: 48.649 | AM63: 27.8711 | AN63: -- | AO63: -- | AP63: -- | AQ63: 59.8 | AR63: -- | AS63: -- | AT63: 53.5 | AU63: -- | AV63: -- | AW63: 54.2 | AX63: 66.9 | AY63: 67.1 | AZ63: 60.4 | BA63: 56.4 | BB63: -- | BC63: -- | BM63: -- | BN63: -- | BT63: 31.8349 | BX63: 1641 | BY63: 1350 | BZ63: -- | CA63: -- | CB63: 6.792857143 | CC63: 10.92285714 | CD63: -- | CE63: -- | CF63: -- | CG63: -- | CH63: -- | CI63: -- | CJ63: 586 | CK63: 487.8 | CL63: 46.8 | CM63: 1071 | CN63: 2397.1 | CO63: 203.3 | CP63: 71.3351 | CQ63: 188790 | CR63: -- | CS63: -- | CT63: -- | CZ63: 30.51 | DA63: 31.7 | DG63: -- | DH63: -- | DI63: 58.8 | DJ63: -- | DK63: 5.9 | DL63: 15641 | DM63: 39 | DP63: 56616 | DQ63: 36 | DT63: 0 | DU63: -- | DV63: -- | DW63: -- | DX63: -- | DY63: -- | DZ63: -- | EA63: -- | EB63: -- | EC63: -- | EQ63: 31.5 | ER63: -- | ES63: 33 | EY63: 4.5 | EZ63: 3 | FA63: 4.22 | FB63: 4.85 | FC63: 63 | FD63: -- | FE63: 2.93 | FF63: 3.12 | FG63: -- | FH63: 3.72 | FI63: 3.93 | FJ63: -- | FP63: -- | FQ63: -- | FR63: -- | FS63: -- | FT63: -- | FU63: -- | FV63: -- | FW63: -- | FX63: -- | GD63: 2.97 | GE63: -- | GF63: -- | GG63: -- | GH63: -- | GI63: -- | GJ63: -- | GK63: -- | GL63: --
A64: 1963-06-01 | E64: 0 | F64: 0 | G64: 0 | H64: 0 | X64: -- | Y64: 49.2469 | AM64: 27.9546 | AN64: -- | AO64: -- | AP64: -- | AQ64: 58.2 | AR64: -- | AS64: -- | AT64: 52.6 | AU64: -- | AV64: -- | AW64: 55 | AX64: 61.9 | AY64: 58.7 | AZ64: 60.6 | BA64: 56.3 | BB64: -- | BC64: -- | BM64: -- | BN64: -- | BT64: 32.1157 | BX64: 1588 | BY64: 1345 | BZ64: -- | CA64: -- | CB64: 6.924064879 | CC64: 10.84406488 | CD64: -- | CE64: -- | CF64: -- | CG64: -- | CH64: -- | CI64: -- | CJ64: 526 | CK64: 491.4 | CL64: 45.6 | CM64: 1007 | CN64: 2410.8 | CO64: 205.2 | CP64: 71.8756 | CQ64: 189018 | CR64: -- | CS64: -- | CT64: -- | CZ64: 30.61 | DA64: 31.8 | DG64: -- | DH64: -- | DI64: 58.5 | DJ64: -- | DK64: 5.6 | DL64: 15624 | DM64: -17 | DP64: 56658 | DQ64: 42 | DT64: 0 | DU64: -- | DV64: -- | DW64: -- | DX64: -- | DY64: -- | DZ64: -- | EA64: -- | EB64: -- | EC64: -- | EQ64: 31.6 | ER64: -- | ES64: 33 | EY64: 4.5 | EZ64: 2.99 | FA64: 4.23 | FB64: 4.84 | FC64: 61 | FD64: -- | FE64: 2.99 | FF64: 3.2 | FG64: -- | FH64: 3.81 | FI64: 3.99 | FJ64: -- | FP64: -- | FQ64: -- | FR64: -- | FS64: -- | FT64: -- | FU64: -- | FV64: -- | FW64: -- | FX64: -- | GD64: 2.97 | GE64: -- | GF64: -- | GG64: -- | GH64: -- | GI64: -- | GJ64: -- | GK64: -- | GL64: --
A65: 1963-07-01 | E65: 0 | F65: 0 | G65: 0 | H65: 0 | X65: -- | Y65: 49.4664 | AM65: 27.8433 | AN65: -- | AO65: -- | AP65: -- | AQ65: 55.5 | AR65: -- | AS65: -- | AT65: 52 | AU65: -- | AV65: -- | AW65: 54 | AX65: 60.1 | AY65: 61 | AZ65: 60.4 | BA65: 43.6 | BB65: -- | BC65: -- | BM65: -- | BN65: -- | BT65: 32.4699 | BX65: 1614 | BY65: 1321 | BZ65: -- | CA65: -- | CB65: 7.155261416 | CC65: 11.07526142 | CD65: -- | CE65: -- | CF65: -- | CG65: -- | CH65: -- | CI65: -- | CJ65: 665 | CK65: 492.5 | CL65: 43.9 | CM65: 1031 | CN65: 2412.8 | CO65: 206.5 | CP65: 72.7165 | CQ65: 189242 | CR65: -- | CS65: -- | CT65: -- | CZ65: 30.69 | DA65: 31.8 | DG65: -- | DH65: -- | DI65: 58.7 | DJ65: -- | DK65: 5.6 | DL65: 15646 | DM65: 22 | DP65: 56794 | DQ65: 136 | DT65: 0 | DU65: -- | DV65: -- | DW65: -- | DX65: -- | DY65: -- | DZ65: -- | EA65: -- | EB65: -- | EC65: -- | EQ65: 31.7 | ER65: -- | ES65: 33 | EY65: 4.5 | EZ65: 3.02 | FA65: 4.26 | FB65: 4.84 | FC65: 58 | FD65: -- | FE65: 3.18 | FF65: 3.48 | FG65: -- | FH65: 3.89 | FI65: 4.02 | FJ65: -- | FP65: -- | FQ65: -- | FR65: -- | FS65: -- | FT65: -- | FU65: -- | FV65: -- | FW65: -- | FX65: -- | GD65: 2.97 | GE65: -- | GF65: -- | GG65: -- | GH65: -- | GI65: -- | GJ65: -- | GK65: -- | GL65: --
A66: 1963-08-01 | E66: 0 | F66: 0 | G66: 0 | H66: 0 | X66: -- | Y66: 49.4768 | AM66: 27.899 | AN66: -- | AO66: -- | AP66: -- | AQ66: 55.1 | AR66: -- | AS66: -- | AT66: 51.1 | AU66: -- | AV66: -- | AW66: 48.1 | AX66: 62 | AY66: 59.8 | AZ66: 56.8 | BA66: 48.5 | BB66: -- | BC66: -- | BM66: -- | BN66: -- | BT66: 32.1991 | BX66: 1639 | BY66: 1310 | BZ66: -- | CA66: -- | CB66: 6.952179657 | CC66: 10.73217966 | CD66: -- | CE66: -- | CF66: -- | CG66: -- | CH66: -- | CI66: -- | CJ66: 570 | CK66: 495 | CL66: 44.4 | CM66: 1056 | CN66: 2423.1 | CO66: 207.9 | CP66: 73.5762 | CQ66: 189496 | CR66: -- | CS66: -- | CT66: -- | CZ66: 30.75 | DA66: 31.9 | DG66: -- | DH66: -- | DI66: 58.5 | DJ66: -- | DK66: 5.4 | DL66: 15644 | DM66: -2 | DP66: 56910 | DQ66: 116 | DT66: 0 | DU66: -- | DV66: -- | DW66: -- | DX66: -- | DY66: -- | DZ66: -- | EA66: -- | EB66: -- | EC66: -- | EQ66: 31.6 | ER66: -- | ES66: 33 | EY66: 4.5 | EZ66: 3.49 | FA66: 4.29 | FB66: 4.83 | FC66: 54 | FD66: -- | FE66: 3.32 | FF66: 3.53 | FG66: -- | FH66: 3.89 | FI66: 4 | FJ66: -- | FP66: -- | FQ66: -- | FR66: -- | FS66: -- | FT66: -- | FU66: -- | FV66: -- | FW66: -- | FX66: -- | GD66: 2.97 | GE66: -- | GF66: -- | GG66: -- | GH66: -- | GI66: -- | GJ66: -- | GK66: -- | GL66: --
A67: 1963-09-01 | E67: 0 | F67: 0 | G67: 0 | H67: 0 | X67: -- | Y67: 49.8225 | AM67: 28.1771 | AN67: -- | AO67: -- | AP67: -- | AQ67: 56.9 | AR67: -- | AS67: -- | AT67: 54.8 | AU67: -- | AV67: -- | AW67: 47.9 | AX67: 59.8 | AY67: 57.8 | AZ67: 63.2 | BA67: 49.7 | BB67: -- | BC67: -- | BM67: -- | BN67: -- | BT67: 32.7884 | BX67: 1763 | BY67: 1413 | BZ67: -- | CA67: -- | CB67: 6.486193294 | CC67: 10.33619329 | CD67: -- | CE67: -- | CF67: -- | CG67: -- | CH67: -- | CI67: -- | CJ67: 590 | CK67: 498.2 | CL67: 48.2 | CM67: 1106 | CN67: 2440.5 | CO67: 209.5 | CP67: 74.1698 | CQ67: 189761 | CR67: -- | CS67: -- | CT67: -- | CZ67: 30.72 | DA67: 31.9 | DG67: -- | DH67: -- | DI67: 58.7 | DJ67: -- | DK67: 5.5 | DL67: 15674 | DM67: 30 | DP67: 57077 | DQ67: 167 | DT67: 0 | DU67: -- | DV67: -- | DW67: -- | DX67: -- | DY67: -- | DZ67: -- | EA67: -- | EB67: -- | EC67: -- | EQ67: 31.6 | ER67: -- | ES67: 33.1 | EY67: 4.5 | EZ67: 3.48 | FA67: 4.31 | FB67: 4.84 | FC67: 53 | FD67: -- | FE67: 3.38 | FF67: 3.57 | FG67: -- | FH67: 3.96 | FI67: 4.08 | FJ67: -- | FP67: -- | FQ67: -- | FR67: -- | FS67: -- | FT67: -- | FU67: -- | FV67: -- | FW67: -- | FX67: -- | GD67: 2.97 | GE67: -- | GF67: -- | GG67: -- | GH67: -- | GI67: -- | GJ67: -- | GK67: -- | GL67: --
A68: 1963-10-01 | E68: 0 | F68: 0 | G68: 0 | H68: 0 | X68: -- | Y68: 50.4111 | AM68: 28.3718 | AN68: -- | AO68: -- | AP68: -- | AQ68: 57.7 | AR68: -- | AS68: -- | AT68: 54.5 | AU68: -- | AV68: -- | AW68: 46.4 | AX68: 64 | AY68: 76.9 | AZ68: 63.3 | BA68: 47.4 | BB68: -- | BC68: -- | BM68: -- | BN68: -- | BT68: 33.7147 | BX68: 1779 | BY68: 1414 | BZ68: -- | CA68: -- | CB68: 6.717906517 | CC68: 10.56790652 | CD68: -- | CE68: -- | CF68: -- | CG68: -- | CH68: -- | CI68: -- | CJ68: 567 | CK68: 502.1 | CL68: 51.2 | CM68: 1088 | CN68: 2455.6 | CO68: 210.3 | CP68: 75.113 | CQ68: 190028 | CR68: -- | CS68: -- | CT68: -- | CZ68: 30.75 | DA68: 32 | DG68: -- | DH68: -- | DI68: 58.8 | DJ68: -- | DK68: 5.5 | DL68: 15714 | DM68: 40 | DP68: 57284 | DQ68: 207 | DT68: 0 | DU68: -- | DV68: -- | DW68: -- | DX68: -- | DY68: -- | DZ68: -- | EA68: -- | EB68: -- | EC68: -- | EQ68: 31.6 | ER68: -- | ES68: 33.1 | EY68: 4.5 | EZ68: 3.5 | FA68: 4.32 | FB68: 4.83 | FC68: 51 | FD68: -- | FE68: 3.45 | FF68: 3.64 | FG68: -- | FH68: 3.97 | FI68: 4.11 | FJ68: -- | FP68: -- | FQ68: -- | FR68: -- | FS68: -- | FT68: -- | FU68: -- | FV68: -- | FW68: -- | FX68: -- | GD68: 2.97 | GE68: -- | GF68: -- | GG68: -- | GH68: -- | GI68: -- | GJ68: -- | GK68: -- | GL68: --
A69: 1963-11-01 | E69: 0 | F69: 0 | G69: 0 | H69: 0 | X69: -- | Y69: 51.2382 | AM69: 28.5109 | AN69: -- | AO69: -- | AP69: -- | AQ69: 57.5 | AR69: -- | AS69: -- | AT69: 53.5 | AU69: -- | AV69: -- | AW69: 43.7 | AX69: 63.7 | AY69: 66.2 | AZ69: 64.1 | BA69: 48.7 | BB69: -- | BC69: -- | BM69: -- | BN69: -- | BT69: 34.0328 | BX69: 1622 | BY69: 1357 | BZ69: -- | CA69: -- | CB69: 7.016655695 | CC69: 11.00665569 | CD69: -- | CE69: -- | CF69: -- | CG69: -- | CH69: -- | CI69: -- | CJ69: 579 | CK69: 503.7 | CL69: 49.1 | CM69: 1032 | CN69: 2460.1 | CO69: 212.6 | CP69: 75.6069 | CQ69: 190265 | CR69: -- | CS69: -- | CT69: -- | CZ69: 30.78 | DA69: 32 | DG69: -- | DH69: -- | DI69: 58.8 | DJ69: -- | DK69: 5.7 | DL69: 15675 | DM69: -39 | DP69: 57255 | DQ69: -29 | DT69: 0 | DU69: -- | DV69: -- | DW69: -- | DX69: -- | DY69: -- | DZ69: -- | EA69: -- | EB69: -- | EC69: -- | EQ69: 31.7 | ER69: -- | ES69: 33.2 | EY69: 4.5 | EZ69: 3.48 | FA69: 4.33 | FB69: 4.84 | FC69: 51 | FD69: -- | FE69: 3.52 | FF69: 3.74 | FG69: -- | FH69: 4.01 | FI69: 4.12 | FJ69: -- | FP69: -- | FQ69: -- | FR69: -- | FS69: -- | FT69: -- | FU69: -- | FV69: -- | FW69: -- | FX69: -- | GD69: 2.97 | GE69: -- | GF69: -- | GG69: -- | GH69: -- | GI69: -- | GJ69: -- | GK69: -- | GL69: --
A70: 1963-12-01 | E70: 0 | F70: 0 | G70: 0 | H70: 0 | X70: -- | Y70: 52.1741 | AM70: 28.4553 | AN70: -- | AO70: -- | AP70: -- | AQ70: 54 | AR70: -- | AS70: -- | AT70: 48.4 | AU70: -- | AV70: -- | AW70: 44.2 | AX70: 58.6 | AY70: 64.4 | AZ70: 60.7 | BA70: 47.6 | BB70: -- | BC70: -- | BM70: -- | BN70: -- | BT70: 34.1852 | BX70: 1491 | BY70: 1423 | BZ70: -- | CA70: -- | CB70: 7.145819618 | CC70: 10.99581962 | CD70: -- | CE70: -- | CF70: -- | CG70: -- | CH70: -- | CI70: -- | CJ70: 514 | CK70: 508.4 | CL70: 48 | CM70: 852 | CN70: 2479.4 | CO70: 214.4 | CP70: 76.5815 | CQ70: 190472 | CR70: -- | CS70: -- | CT70: -- | CZ70: 30.88 | DA70: 32.1 | DG70: -- | DH70: -- | DI70: 58.5 | DJ70: -- | DK70: 5.5 | DL70: 15712 | DM70: 37 | DP70: 57360 | DQ70: 105 | DT70: 0 | DU70: -- | DV70: -- | DW70: -- | DX70: -- | DY70: -- | DZ70: -- | EA70: -- | EB70: -- | EC70: -- | EQ70: 31.6 | ER70: -- | ES70: 33.2 | EY70: 4.5 | EZ70: 3.38 | FA70: 4.35 | FB70: 4.85 | FC70: 50 | FD70: -- | FE70: 3.52 | FF70: 3.81 | FG70: -- | FH70: 4.04 | FI70: 4.13 | FJ70: -- | FP70: -- | FQ70: -- | FR70: -- | FS70: -- | FT70: -- | FU70: -- | FV70: -- | FW70: -- | FX70: -- | GD70: 2.97 | GE70: -- | GF70: -- | GG70: -- | GH70: -- | GI70: -- | GJ70: -- | GK70: -- | GL70: --
A71: 1964-01-01 | E71: 0 | F71: 0 | G71: 0 | H71: 0 | X71: -- | Y71: 52.4186 | AM71: 28.7056 | AN71: -- | AO71: -- | AP71: -- | AQ71: 57.1 | AR71: -- | AS71: -- | AT71: 51.4 | AU71: -- | AV71: -- | AW71: 42.9 | AX71: 61.3 | AY71: 60 | AZ71: 63.3 | BA71: 55.3 | BB71: -- | BC71: -- | BM71: -- | BN71: -- | BT71: 34.6292 | BX71: 1603 | BY71: 1296 | BZ71: -- | CA71: -- | CB71: 7.242575558 | CC71: 11.16257556 | CD71: -- | CE71: -- | CF71: -- | CG71: -- | CH71: -- | CI71: -- | CJ71: 549 | CK71: 511.6 | CL71: 48.6 | CM71: 1023 | CN71: 2489.2 | CO71: 215.6 | CP71: 77.4614 | CQ71: 190668 | CR71: -- | CS71: -- | CT71: -- | CZ71: 30.94 | DA71: 32.2 | DG71: 50.8 | DH71: 38.2 | DI71: 58.6 | DJ71: -- | DK71: 5.6 | DL71: 15715 | DM71: 3 | DP71: 57487 | DQ71: 127 | DT71: 0 | DU71: -- | DV71: -- | DW71: -- | DX71: -- | DY71: -- | DZ71: -- | EA71: -- | EB71: -- | EC71: -- | EQ71: 31.8 | ER71: -- | ES71: 33.2 | EY71: 4.5 | EZ71: 3.48 | FA71: 4.39 | FB71: 4.83 | FC71: 44 | FD71: -- | FE71: 3.52 | FF71: 3.79 | FG71: -- | FH71: 4.07 | FI71: 4.17 | FJ71: -- | FP71: -- | FQ71: -- | FR71: -- | FS71: -- | FT71: -- | FU71: -- | FV71: -- | FW71: -- | FX71: -- | GD71: 2.97 | GE71: -- | GF71: -- | GG71: -- | GH71: -- | GI71: -- | GJ71: -- | GK71: -- | GL71: --
A72: 1964-02-01 | E72: 0 | F72: 0 | G72: 0 | H72: 0 | X72: -- | Y72: 52.5482 | AM72: 28.9003 | AN72: -- | AO72: -- | AP72: -- | AQ72: 57.9 | AR72: -- | AS72: -- | AT72: 52.7 | AU72: -- | AV72: -- | AW72: 50.4 | AX72: 61.8 | AY72: 60.1 | AZ72: 64 | BA72: 51.9 | BB72: -- | BC72: -- | BM72: -- | BN72: -- | BT72: 35.0578 | BX72: 1820 | BY72: 1442 | BZ72: -- | CA72: -- | CB72: 6.810761155 | CC72: 10.59076115 | CD72: -- | CE72: -- | CF72: -- | CG72: -- | CH72: -- | CI72: -- | CJ72: 609 | CK72: 514.3 | CL72: 47.1 | CM72: 1162 | CN72: 2496.5 | CO72: 217.2 | CP72: 78.3362 | CQ72: 190858 | CR72: -- | CS72: -- | CT72: -- | CZ72: 30.91 | DA72: 32.2 | DG72: 51.5 | DH72: 38.5 | DI72: 58.8 | DJ72: -- | DK72: 5.4 | DL72: 15742 | DM72: 27 | DP72: 57751 | DQ72: 264 | DT72: 0 | DU72: -- | DV72: -- | DW72: -- | DX72: -- | DY72: -- | DZ72: -- | EA72: -- | EB72: -- | EC72: -- | EQ72: 31.6 | ER72: -- | ES72: 33.2 | EY72: 4.5 | EZ72: 3.48 | FA72: 4.36 | FB72: 4.83 | FC72: 47 | FD72: -- | FE72: 3.53 | FF72: 3.78 | FG72: -- | FH72: 4.03 | FI72: 4.15 | FJ72: -- | FP72: -- | FQ72: -- | FR72: -- | FS72: -- | FT72: -- | FU72: -- | FV72: -- | FW72: -- | FX72: -- | GD72: 2.97 | GE72: -- | GF72: -- | GG72: -- | GH72: -- | GI72: -- | GJ72: -- | GK72: -- | GL72: --
A73: 1964-03-01 | E73: 0 | F73: 0 | G73: 0 | H73: 0 | X73: -- | Y73: 52.7139 | AM73: 28.9003 | AN73: -- | AO73: -- | AP73: -- | AQ73: 60.2 | AR73: -- | AS73: -- | AT73: 55.2 | AU73: -- | AV73: -- | AW73: 54.6 | AX73: 61.7 | AY73: 60.6 | AZ73: 64.4 | BA73: 60.3 | BB73: -- | BC73: -- | BM73: -- | BN73: -- | BT73: 35.5116 | BX73: 1517 | BY73: 1313 | BZ73: -- | CA73: -- | CB73: 6.809373976 | CC73: 10.58937398 | CD73: -- | CE73: -- | CF73: -- | CG73: -- | CH73: -- | CI73: -- | CJ73: 562 | CK73: 517 | CL73: 56.3 | CM73: 931 | CN73: 2554.6 | CO73: 218.9 | CP73: 79.2404 | CQ73: 191047 | CR73: -- | CS73: -- | CT73: -- | CZ73: 30.94 | DA73: 32.2 | DG73: 51.5 | DH73: 38.5 | DI73: 58.7 | DJ73: -- | DK73: 5.4 | DL73: 15770 | DM73: 28 | DP73: 57898 | DQ73: 147 | DT73: 0 | DU73: -- | DV73: -- | DW73: -- | DX73: -- | DY73: -- | DZ73: -- | EA73: -- | EB73: -- | EC73: -- | EQ73: 31.6 | ER73: -- | ES73: 33.3 | EY73: 4.5 | EZ73: 3.43 | FA73: 4.38 | FB73: 4.83 | FC73: 45 | FD73: -- | FE73: 3.54 | FF73: 3.91 | FG73: -- | FH73: 4.14 | FI73: 4.22 | FJ73: -- | FP73: -- | FQ73: -- | FR73: -- | FS73: -- | FT73: -- | FU73: -- | FV73: -- | FW73: -- | FX73: -- | GD73: 2.97 | GE73: -- | GF73: -- | GG73: -- | GH73: -- | GI73: -- | GJ73: -- | GK73: -- | GL73: --
A74: 1964-04-01 | E74: 0 | F74: 0 | G74: 0 | H74: 0 | X74: -- | Y74: 53.229 | AM74: 29.3732 | AN74: -- | AO74: -- | AP74: -- | AQ74: 59.2 | AR74: -- | AS74: -- | AT74: 55.2 | AU74: -- | AV74: -- | AW74: 53.1 | AX74: 63.6 | AY74: 65.4 | AZ74: 60.6 | BA74: 57.7 | BB74: -- | BC74: -- | BM74: -- | BN74: -- | BT74: 35.9241 | BX74: 1448 | BY74: 1264 | BZ74: -- | CA74: -- | CB74: 6.841994751 | CC74: 10.55199475 | CD74: -- | CE74: -- | CF74: -- | CG74: -- | CH74: -- | CI74: -- | CJ74: 559 | CK74: 520.6 | CL74: 58.1 | CM74: 901 | CN74: 2568.7 | CO74: 220.3 | CP74: 79.9082 | CQ74: 191245 | CR74: -- | CS74: -- | CT74: -- | CZ74: 30.95 | DA74: 32.2 | DG74: 51.7 | DH74: 38.6 | DI74: 59.1 | DJ74: -- | DK74: 5.3 | DL74: 15785 | DM74: 15 | DP74: 57922 | DQ74: 24 | DT74: 0 | DU74: -- | DV74: -- | DW74: -- | DX74: -- | DY74: -- | DZ74: -- | EA74: -- | EB74: -- | EC74: -- | EQ74: 31.6 | ER74: -- | ES74: 33.3 | EY74: 4.5 | EZ74: 3.47 | FA74: 4.4 | FB74: 4.85 | FC74: 45 | FD74: -- | FE74: 3.47 | FF74: 3.91 | FG74: -- | FH74: 4.15 | FI74: 4.23 | FJ74: -- | FP74: -- | FQ74: -- | FR74: -- | FS74: -- | FT74: -- | FU74: -- | FV74: -- | FW74: -- | FX74: -- | GD74: 2.97 | GE74: -- | GF74: -- | GG74: -- | GH74: -- | GI74: -- | GJ74: -- | GK74: -- | GL74: --
A75: 1964-05-01 | E75: 0 | F75: 0 | G75: 0 | H75: 0 | X75: -- | Y75: 53.7445 | AM75: 29.5401 | AN75: -- | AO75: -- | AP75: -- | AQ75: 58.7 | AR75: -- | AS75: -- | AT75: 56 | AU75: -- | AV75: -- | AW75: 50.3 | AX75: 59.9 | AY75: 60.3 | AZ75: 61 | BA75: 61.4 | BB75: -- | BC75: -- | BM75: -- | BN75: -- | BT75: 36.3619 | BX75: 1467 | BY75: 1299 | BZ75: -- | CA75: -- | CB75: 6.640478532 | CC75: 10.21047853 | CD75: -- | CE75: -- | CF75: -- | CG75: -- | CH75: -- | CI75: -- | CJ75: 523 | CK75: 523.9 | CL75: 55 | CM75: 947 | CN75: 2582.5 | CO75: 222.1 | CP75: 80.8345 | CQ75: 191447 | CR75: -- | CS75: -- | CT75: -- | CZ75: 30.98 | DA75: 32.2 | DG75: 51.9 | DH75: 38.6 | DI75: 59.1 | DJ75: -- | DK75: 5.1 | DL75: 15812 | DM75: 27 | DP75: 58089 | DQ75: 167 | DT75: 0 | DU75: -- | DV75: -- | DW75: -- | DX75: -- | DY75: -- | DZ75: -- | EA75: -- | EB75: -- | EC75: -- | EQ75: 31.5 | ER75: -- | ES75: 33.5 | EY75: 4.5 | EZ75: 3.5 | FA75: 4.41 | FB75: 4.85 | FC75: 44 | FD75: -- | FE75: 3.48 | FF75: 3.84 | FG75: -- | FH75: 4.05 | FI75: 4.2 | FJ75: -- | FP75: -- | FQ75: -- | FR75: -- | FS75: -- | FT75: -- | FU75: -- | FV75: -- | FW75: -- | FX75: -- | GD75: 2.97 | GE75: -- | GF75: -- | GG75: -- | GH75: -- | GI75: -- | GJ75: -- | GK75: -- | GL75: --
A76: 1964-06-01 | E76: 0 | F76: 0 | G76: 0 | H76: 0 | X76: -- | Y76: 54.2937 | AM76: 29.6235 | AN76: -- | AO76: -- | AP76: -- | AQ76: 60.1 | AR76: -- | AS76: -- | AT76: 55.7 | AU76: -- | AV76: -- | AW76: 53.5 | AX76: 64.7 | AY76: 58.9 | AZ76: 62.1 | BA76: 57.6 | BB76: -- | BC76: -- | BM76: -- | BN76: -- | BT76: 36.7495 | BX76: 1550 | BY76: 1280 | BZ76: -- | CA76: -- | CB76: 6.506762496 | CC76: 10.1467625 | CD76: -- | CE76: -- | CF76: -- | CG76: -- | CH76: -- | CI76: -- | CJ76: 580 | CK76: 526.6 | CL76: 54.3 | CM76: 981 | CN76: 2591.7 | CO76: 224.1 | CP76: 81.4282 | CQ76: 191666 | CR76: -- | CS76: -- | CT76: -- | CZ76: 31.01 | DA76: 32.3 | DG76: 52 | DH76: 38.6 | DI76: 58.7 | DJ76: -- | DK76: 5.2 | DL76: 15839 | DM76: =+DL76-DL75 -> 27 | DP76: 58221 | DQ76: 132 | DT76: 0 | DU76: -- | DV76: -- | DW76: -- | DX76: -- | DY76: -- | DZ76: -- | EA76: -- | EB76: -- | EC76: -- | EQ76: 31.5 | ER76: -- | ES76: 33.4 | EY76: 4.5 | EZ76: 3.5 | FA76: 4.41 | FB76: 4.85 | FC76: 44 | FD76: -- | FE76: 3.48 | FF76: 3.83 | FG76: -- | FH76: 4.02 | FI76: 4.17 | FJ76: -- | FP76: -- | FQ76: -- | FR76: -- | FS76: -- | FT76: -- | FU76: -- | FV76: -- | FW76: -- | FX76: -- | GD76: 2.97 | GE76: -- | GF76: -- | GG76: -- | GH76: -- | GI76: -- | GJ76: -- | GK76: -- | GL76: --
A77: 1964-07-01 | E77: 0 | F77: 0 | G77: 0 | H77: 0 | X77: -- | Y77: 54.7159 | AM77: 29.8182 | AN77: -- | AO77: -- | AP77: -- | AQ77: 62.9 | AR77: -- | AS77: -- | AT77: 56.3 | AU77: -- | AV77: -- | AW77: 55.5 | AX77: 69.9 | AY77: 60.9 | AZ77: 63.7 | BA77: 61.8 | BB77: -- | BC77: -- | BM77: -- | BN77: -- | BT77: 37.3749 | BX77: 1562 | BY77: 1304 | BZ77: -- | CA77: -- | CB77: 5.975268817 | CC77: 9.405268817 | CD77: -- | CE77: -- | CF77: -- | CG77: -- | CH77: -- | CI77: -- | CJ77: 575 | CK77: 529.6 | CL77: 52.9 | CM77: 969 | CN77: 2600.6 | CO77: 225.5 | CP77: 82.2945 | CQ77: 191889 | CR77: -- | CS77: -- | CT77: -- | CZ77: 31.02 | DA77: 32.3 | DG77: 52.1 | DH77: 38.5 | DI77: 58.6 | DJ77: -- | DK77: 4.9 | DL77: 15887 | DM77: 48 | DP77: 58413 | DQ77: =+DP77-DP76 -> 192 | DT77: 0 | DU77: -- | DV77: -- | DW77: -- | DX77: -- | DY77: -- | DZ77: -- | EA77: -- | EB77: -- | EC77: -- | EQ77: 31.6 | ER77: -- | ES77: 33.5 | EY77: 4.5 | EZ77: 3.42 | FA77: 4.4 | FB77: 4.83 | FC77: =+(FB77-FA77)*100 -> 43 | FD77: -- | FE77: 3.46 | FF77: 3.72 | FG77: -- | FH77: 4.03 | FI77: 4.19 | FJ77: -- | FP77: -- | FQ77: -- | FR77: -- | FS77: -- | FT77: -- | FU77: -- | FV77: -- | FW77: -- | FX77: -- | GD77: 2.92 | GE77: -- | GF77: -- | GG77: -- | GH77: -- | GI77: -- | GJ77: -- | GK77: -- | GL77: --
A78: 1964-08-01 | E78: 0 | F78: 0 | G78: 0 | H78: 0 | X78: -- | Y78: 55.1046 | AM78: 30.0129 | AN78: -- | AO78: -- | AP78: -- | AQ78: 63.3 | AR78: -- | AS78: -- | AT78: 58 | AU78: -- | AV78: -- | AW78: 53.5 | AX78: 68 | AY78: 61.7 | AZ78: 63.9 | BA78: 66.2 | BB78: -- | BC78: -- | BM78: -- | BN78: -- | BT78: 37.9725 | BX78: 1569 | BY78: 1306 | BZ78: -- | CA78: -- | CB78: 5.975609756 | CC78: 9.475609756 | CD78: -- | CE78: -- | CF78: -- | CG78: -- | CH78: -- | CI78: -- | CJ78: 582 | CK78: 533.7 | CL78: 53.2 | CM78: 990 | CN78: 2616.1 | CO78: 227.4 | CP78: 82.9731 | CQ78: 192131 | CR78: -- | CS78: -- | CT78: -- | CZ78: 31.05 | DA78: 32.3 | DG78: 52.3 | DH78: 38.5 | DI78: 58.6 | DJ78: -- | DK78: 5 | DL78: 15948 | DM78: 61 | DP78: 58619 | DQ78: 206 | DT78: 0 | DU78: -- | DV78: -- | DW78: -- | DX78: -- | DY78: -- | DZ78: -- | EA78: -- | EB78: -- | EC78: -- | EQ78: 31.6 | ER78: -- | ES78: 33.5 | EY78: 4.5 | EZ78: 3.5 | FA78: 4.41 | FB78: 4.82 | FC78: 41 | FD78: -- | FE78: 3.5 | FF78: 3.74 | FG78: -- | FH78: 4.05 | FI78: 4.19 | FJ78: -- | FP78: -- | FQ78: -- | FR78: -- | FS78: -- | FT78: -- | FU78: -- | FV78: -- | FW78: -- | FX78: -- | GD78: 2.92 | GE78: -- | GF78: -- | GG78: -- | GH78: -- | GI78: -- | GJ78: -- | GK78: -- | GL78: --
A79: 1964-09-01 | E79: 0 | F79: 0 | G79: 0 | H79: 0 | X79: -- | Y79: 55.7749 | AM79: 30.1242 | AN79: -- | AO79: -- | AP79: -- | AQ79: 63.3 | AR79: -- | AS79: -- | AT79: 56.8 | AU79: -- | AV79: -- | AW79: 59 | AX79: 63.3 | AY79: 64.8 | AZ79: 64.9 | BA79: 71.9 | BB79: -- | BC79: -- | BM79: -- | BN79: -- | BT79: 38.3619 | BX79: 1455 | BY79: 1265 | BZ79: -- | CA79: -- | CB79: 6.271875 | CC79: 9.841875 | CD79: -- | CE79: -- | CF79: -- | CG79: -- | CH79: -- | CI79: -- | CJ79: 590 | CK79: 536.7 | CL79: 56.8 | CM79: 957 | CN79: 2626.2 | CO79: 229.4 | CP79: 83.922 | CQ79: 192376 | CR79: -- | CS79: -- | CT79: -- | CZ79: 31.08 | DA79: 32.3 | DG79: 52.6 | DH79: 38.5 | DI79: 58.7 | DJ79: -- | DK79: 5.1 | DL79: 16073 | DM79: 125 | DP79: 58903 | DQ79: 284 | DT79: 0 | DU79: -- | DV79: -- | DW79: -- | DX79: -- | DY79: -- | DZ79: -- | EA79: -- | EB79: -- | EC79: -- | EQ79: 31.7 | ER79: -- | ES79: 33.5 | EY79: 4.5 | EZ79: 3.45 | FA79: 4.42 | FB79: 4.82 | FC79: 40 | FD79: -- | FE79: 3.53 | FF79: 3.84 | FG79: -- | FH79: 4.08 | FI79: 4.2 | FJ79: -- | FP79: -- | FQ79: -- | FR79: -- | FS79: -- | FT79: -- | FU79: -- | FV79: -- | FW79: -- | FX79: -- | GD79: 2.92 | GE79: -- | GF79: -- | GG79: -- | GH79: -- | GI79: -- | GJ79: -- | GK79: -- | GL79: --
A80: 1964-10-01 | E80: 0 | F80: 0 | G80: 0 | H80: 0 | X80: -- | Y80: 56.2908 | AM80: 29.707 | AN80: -- | AO80: -- | AP80: -- | AQ80: 60.7 | AR80: -- | AS80: -- | AT80: 55 | AU80: -- | AV80: -- | AW80: 59.1 | AX80: 58.9 | AY80: 68.8 | AZ80: 61.8 | BA80: 71.2 | BB80: -- | BC80: -- | BM80: -- | BN80: -- | BT80: 38.816 | BX80: 1524 | BY80: 1230 | BZ80: -- | CA80: -- | CB80: 6.303252033 | CC80: 9.873252033 | CD80: -- | CE80: -- | CF80: -- | CG80: -- | CH80: -- | CI80: -- | CJ80: 583 | CK80: 537.4 | CL80: 54 | CM80: 996 | CN80: 2625.6 | CO80: 230.8 | CP80: 84.5302 | CQ80: 192631 | CR80: -- | CS80: -- | CT80: -- | CZ80: 31.12 | DA80: 32.4 | DG80: 52.4 | DH80: 38.5 | DI80: 58.6 | DJ80: -- | DK80: 5.1 | DL80: 15821 | DM80: -252 | DP80: 58794 | DQ80: -109 | DT80: 0 | DU80: -- | DV80: -- | DW80: -- | DX80: -- | DY80: -- | DZ80: -- | EA80: -- | EB80: -- | EC80: -- | EQ80: 31.7 | ER80: -- | ES80: 33.5 | EY80: 4.5 | EZ80: 3.36 | FA80: 4.42 | FB80: 4.81 | FC80: 39 | FD80: -- | FE80: 3.57 | FF80: 3.86 | FG80: -- | FH80: 4.07 | FI80: 4.19 | FJ80: -- | FP80: -- | FQ80: -- | FR80: -- | FS80: -- | FT80: -- | FU80: -- | FV80: -- | FW80: -- | FX80: -- | GD80: 2.92 | GE80: -- | GF80: -- | GG80: -- | GH80: -- | GI80: -- | GJ80: -- | GK80: -- | GL80: --
A81: 1964-11-01 | E81: 0 | F81: 0 | G81: 0 | H81: 0 | X81: -- | Y81: 56.8628 | AM81: 30.6249 | AN81: -- | AO81: -- | AP81: -- | AQ81: 61.8 | AR81: -- | AS81: -- | AT81: 57.3 | AU81: -- | AV81: -- | AW81: 61 | AX81: 60.7 | AY81: 68.5 | AZ81: 62.1 | BA81: 70.3 | BB81: -- | BC81: -- | BM81: -- | BN81: -- | BT81: 39.1144 | BX81: 1486 | BY81: 1254 | BZ81: -- | CA81: -- | CB81: 6.197011046 | CC81: 9.557011046 | CD81: -- | CE81: -- | CF81: -- | CG81: -- | CH81: -- | CI81: -- | CJ81: 548 | CK81: 541.3 | CL81: 60.5 | CM81: 930 | CN81: 2640.4 | CO81: 233.2 | CP81: 84.944 | CQ81: 192847 | CR81: -- | CS81: -- | CT81: -- | CZ81: 31.21 | DA81: 32.5 | DG81: 52.9 | DH81: 38.6 | DI81: 58.5 | DJ81: -- | DK81: 4.8 | DL81: 16096 | DM81: 275 | DP81: 59217 | DQ81: 423 | DT81: 0 | DU81: -- | DV81: -- | DW81: -- | DX81: -- | DY81: -- | DZ81: -- | EA81: -- | EB81: -- | EC81: -- | EQ81: 31.7 | ER81: -- | ES81: 33.5 | EY81: 4.5 | EZ81: 3.52 | FA81: 4.43 | FB81: 4.81 | FC81: 38 | FD81: -- | FE81: 3.64 | FF81: 3.91 | FG81: -- | FH81: 4.04 | FI81: 4.15 | FJ81: -- | FP81: -- | FQ81: -- | FR81: -- | FS81: -- | FT81: -- | FU81: -- | FV81: -- | FW81: -- | FX81: -- | GD81: 2.92 | GE81: -- | GF81: -- | GG81: -- | GH81: -- | GI81: -- | GJ81: -- | GK81: -- | GL81: --
A82: 1964-12-01 | E82: 0 | F82: 0 | G82: 0 | H82: 0 | X82: -- | Y82: 58.3481 | AM82: 30.9865 | AN82: -- | AO82: -- | AP82: -- | AQ82: 62.4 | AR82: -- | AS82: -- | AT82: 55.2 | AU82: -- | AV82: -- | AW82: 59.5 | AX82: 64.4 | AY82: 69.6 | AZ82: 63.5 | BA82: 67.8 | BB82: -- | BC82: -- | BM82: -- | BN82: -- | BT82: 39.5067 | BX82: 1484 | BY82: 1164 | BZ82: -- | CA82: -- | CB82: 6.198186528 | CC82: 9.698186528 | CD82: -- | CE82: -- | CF82: -- | CG82: -- | CH82: -- | CI82: -- | CJ82: 540 | CK82: 547.5 | CL82: 61.2 | CM82: 963 | CN82: 2665.8 | CO82: 235.2 | CP82: 85.9596 | CQ82: 193039 | CR82: -- | CS82: -- | CT82: -- | CZ82: 31.25 | DA82: 32.5 | DG82: 53.3 | DH82: 38.7 | DI82: 58.6 | DJ82: -- | DK82: 5 | DL82: 16176 | DM82: 80 | DP82: 59421 | DQ82: 204 | DT82: 0 | DU82: -- | DV82: -- | DW82: -- | DX82: -- | DY82: -- | DZ82: -- | EA82: -- | EB82: -- | EC82: -- | EQ82: 31.7 | ER82: -- | ES82: 33.5 | EY82: 4.5 | EZ82: 3.85 | FA82: 4.44 | FB82: 4.81 | FC82: 37 | FD82: -- | FE82: 3.84 | FF82: 4.02 | FG82: -- | FH82: 4.09 | FI82: 4.18 | FJ82: -- | FP82: -- | FQ82: -- | FR82: -- | FS82: -- | FT82: -- | FU82: -- | FV82: -- | FW82: -- | FX82: -- | GD82: 2.92 | GE82: -- | GF82: -- | GG82: -- | GH82: -- | GI82: -- | GJ82: -- | GK82: -- | GL82: --
A83: 1965-01-01 | E83: 0 | F83: 0 | G83: 0 | H83: 0 | X83: -- | Y83: 59.241 | AM83: 31.3203 | AN83: -- | AO83: -- | AP83: -- | AQ83: 61 | AR83: -- | AS83: -- | AT83: 56.7 | AU83: -- | AV83: -- | AW83: 61.4 | AX83: 62.3 | AY83: 70.7 | AZ83: 58.2 | BA83: 68.5 | BB83: -- | BC83: -- | BM83: -- | BN83: -- | BT83: 39.9919 | BX83: 1361 | BY83: 1264 | BZ83: -- | CA83: -- | CB83: 5.998901099 | CC83: 9.428901099 | CD83: -- | CE83: -- | CF83: -- | CG83: -- | CH83: -- | CI83: -- | CJ83: 533 | CK83: 551.8 | CL83: 59.6 | CM83: 902 | CN83: 2672.3 | CO83: 236.9 | CP83: 87.1826 | CQ83: 193223 | CR83: -- | CS83: -- | CT83: -- | CZ83: 31.28 | DA83: 32.6 | DG83: 53.4 | DH83: 38.7 | DI83: 58.6 | DJ83: -- | DK83: 4.9 | DL83: 16245 | DM83: 69 | DP83: 59583 | DQ83: 162 | DT83: 0 | DU83: -- | DV83: -- | DW83: -- | DX83: -- | DY83: -- | DZ83: -- | EA83: -- | EB83: -- | EC83: -- | EQ83: 31.8 | ER83: -- | ES83: 33.6 | EY83: 4.5 | EZ83: 3.9 | FA83: 4.43 | FB83: 4.8 | FC83: 37 | FD83: -- | FE83: 3.81 | FF83: 3.94 | FG83: -- | FH83: 4.1 | FI83: 4.19 | FJ83: -- | FP83: -- | FQ83: -- | FR83: -- | FS83: -- | FT83: -- | FU83: -- | FV83: -- | FW83: -- | FX83: -- | GD83: 2.92 | GE83: -- | GF83: -- | GG83: -- | GH83: -- | GI83: -- | GJ83: -- | GK83: -- | GL83: --
A84: 1965-02-01 | E84: 0 | F84: 0 | G84: 0 | H84: 0 | X84: -- | Y84: 60.0693 | AM84: 31.515 | AN84: -- | AO84: -- | AP84: -- | AQ84: 62.1 | AR84: -- | AS84: -- | AT84: 58.3 | AU84: -- | AV84: -- | AW84: 63.2 | AX84: 63.2 | AY84: 64.8 | AZ84: 59.8 | BA84: 68.1 | BB84: -- | BC84: -- | BM84: -- | BN84: -- | BT84: 40.2656 | BX84: 1433 | BY84: 1185 | BZ84: -- | CA84: -- | CB84: 6.297023617 | CC84: 9.867023617 | CD84: -- | CE84: -- | CF84: -- | CG84: -- | CH84: -- | CI84: -- | CJ84: 559 | CK84: 552.2 | CL84: 52.8 | CM84: 853 | CN84: 2672.4 | CO84: 238.8 | CP84: 88.152 | CQ84: 193393 | CR84: -- | CS84: -- | CT84: -- | CZ84: 31.28 | DA84: 32.6 | DG84: 53.6 | DH84: 38.7 | DI84: 58.7 | DJ84: -- | DK84: 5.1 | DL84: 16291 | DM84: 46 | DP84: 59800 | DQ84: 217 | DT84: 0 | DU84: -- | DV84: -- | DW84: -- | DX84: -- | DY84: -- | DZ84: -- | EA84: -- | EB84: -- | EC84: -- | EQ84: 31.9 | ER84: -- | ES84: 33.7 | EY84: 4.5 | EZ84: 3.98 | FA84: 4.41 | FB84: 4.78 | FC84: 37 | FD84: -- | FE84: 3.93 | FF84: 4.03 | FG84: -- | FH84: 4.15 | FI84: 4.21 | FJ84: -- | FP84: -- | FQ84: -- | FR84: -- | FS84: -- | FT84: -- | FU84: -- | FV84: -- | FW84: -- | FX84: -- | GD84: 2.92 | GE84: -- | GF84: -- | GG84: -- | GH84: -- | GI84: -- | GJ84: -- | GK84: -- | GL84: --
A85: 1965-03-01 | E85: 0 | F85: 0 | G85: 0 | H85: 0 | X85: -- | Y85: 61.1489 | AM85: 31.9322 | AN85: -- | AO85: -- | AP85: -- | AQ85: 64.9 | AR85: -- | AS85: -- | AT85: 61.2 | AU85: -- | AV85: -- | AW85: 57.8 | AX85: 68.7 | AY85: 64.5 | AZ85: 65.7 | BA85: 65.9 | BB85: -- | BC85: -- | BM85: -- | BN85: -- | BT85: 40.6841 | BX85: 1423 | BY85: 1211 | BZ85: -- | CA85: -- | CB85: 5.895862961 | CC85: 9.185862961 | CD85: -- | CE85: -- | CF85: -- | CG85: -- | CH85: -- | CI85: -- | CJ85: 556 | CK85: 555.4 | CL85: 52.9 | CM85: 929 | CN85: 2680.6 | CO85: 240.7 | CP85: 88.9161 | CQ85: 193540 | CR85: -- | CS85: -- | CT85: -- | CZ85: 31.31 | DA85: 32.6 | DG85: 53.7 | DH85: 38.7 | DI85: 58.7 | DJ85: -- | DK85: 4.7 | DL85: 16353 | DM85: 62 | DP85: 60003 | DQ85: 203 | DT85: 0 | DU85: -- | DV85: -- | DW85: -- | DX85: -- | DY85: -- | DZ85: -- | EA85: -- | EB85: -- | EC85: -- | EQ85: 31.9 | ER85: -- | ES85: 33.7 | EY85: 4.5 | EZ85: 4.04 | FA85: 4.42 | FB85: 4.78 | FC85: 36 | FD85: -- | FE85: 3.93 | FF85: 4.06 | FG85: -- | FH85: 4.15 | FI85: 4.21 | FJ85: -- | FP85: -- | FQ85: -- | FR85: -- | FS85: -- | FT85: -- | FU85: -- | FV85: -- | FW85: -- | FX85: -- | GD85: 2.92 | GE85: -- | GF85: -- | GG85: -- | GH85: -- | GI85: -- | GJ85: -- | GK85: -- | GL85: --
A86: 1965-04-01 | E86: 0 | F86: 0 | G86: 0 | H86: 0 | X86: -- | Y86: 62.1331 | AM86: 32.0713 | AN86: -- | AO86: -- | AP86: -- | AQ86: 62 | AR86: -- | AS86: -- | AT86: 59.2 | AU86: -- | AV86: -- | AW86: 61.9 | AX86: 59.8 | AY86: 68.7 | AZ86: 62.6 | BA86: 69.4 | BB86: -- | BC86: -- | BM86: -- | BN86: -- | BT86: 41.2328 | BX86: 1438 | BY86: 1162 | BZ86: -- | CA86: -- | CB86: 6.189337641 | CC86: 9.549337641 | CD86: -- | CE86: -- | CF86: -- | CG86: -- | CH86: -- | CI86: -- | CJ86: 555 | CK86: 558.9 | CL86: 50.5 | CM86: 950 | CN86: 2685 | CO86: 242.1 | CP86: 90.0474 | CQ86: 193709 | CR86: -- | CS86: -- | CT86: -- | CZ86: 31.38 | DA86: 32.7 | DG86: 54 | DH86: 38.7 | DI86: 58.8 | DJ86: -- | DK86: 4.8 | DL86: 16418 | DM86: 65 | DP86: 60259 | DQ86: 256 | DT86: 0 | DU86: -- | DV86: -- | DW86: -- | DX86: -- | DY86: -- | DZ86: -- | EA86: -- | EB86: -- | EC86: -- | EQ86: 32 | ER86: -- | ES86: 33.8 | EY86: 4.5 | EZ86: 4.09 | FA86: 4.43 | FB86: 4.8 | FC86: 37 | FD86: -- | FE86: 3.93 | FF86: 4.04 | FG86: -- | FH86: 4.15 | FI86: 4.2 | FJ86: -- | FP86: -- | FQ86: -- | FR86: -- | FS86: -- | FT86: -- | FU86: -- | FV86: -- | FW86: -- | FX86: -- | GD86: 2.92 | GE86: -- | GF86: -- | GG86: -- | GH86: -- | GI86: -- | GJ86: -- | GK86: -- | GL86: --
A87: 1965-05-01 | E87: 0 | F87: 0 | G87: 0 | H87: 0 | X87: -- | Y87: 62.925 | AM87: 32.3216 | AN87: -- | AO87: -- | AP87: -- | AQ87: 61.3 | AR87: -- | AS87: -- | AT87: 56.4 | AU87: -- | AV87: -- | AW87: 60.6 | AX87: 60.2 | AY87: 70 | AZ87: 62.4 | BA87: 68.9 | BB87: -- | BC87: -- | BM87: -- | BN87: -- | BT87: 41.7653 | BX87: 1478 | BY87: 1207 | BZ87: -- | CA87: -- | CB87: 6.21394448 | CC87: 9.43394448 | CD87: -- | CE87: -- | CF87: -- | CG87: -- | CH87: -- | CI87: -- | CJ87: 544 | CK87: 563.1 | CL87: 56.3 | CM87: 949 | CN87: 2713.8 | CO87: 243.7 | CP87: 90.8859 | CQ87: 193888 | CR87: -- | CS87: -- | CT87: -- | CZ87: 31.48 | DA87: 32.7 | DG87: 54.4 | DH87: 38.8 | DI87: 59 | DJ87: -- | DK87: 4.6 | DL87: 16477 | DM87: 59 | DP87: 60492 | DQ87: 233 | DT87: 0 | DU87: -- | DV87: -- | DW87: -- | DX87: -- | DY87: -- | DZ87: -- | EA87: -- | EB87: -- | EC87: -- | EQ87: 32.1 | ER87: -- | ES87: 33.8 | EY87: 4.5 | EZ87: 4.1 | FA87: 4.44 | FB87: 4.81 | FC87: 37 | FD87: -- | FE87: 3.89 | FF87: 4.03 | FG87: -- | FH87: 4.15 | FI87: 4.21 | FJ87: -- | FP87: -- | FQ87: -- | FR87: -- | FS87: -- | FT87: -- | FU87: -- | FV87: -- | FW87: -- | FX87: -- | GD87: 2.92 | GE87: -- | GF87: -- | GG87: -- | GH87: -- | GI87: -- | GJ87: -- | GK87: -- | GL87: --
A88: 1965-06-01 | E88: 0 | F88: 0 | G88: 0 | H88: 0 | X88: -- | Y88: 64.1511 | AM88: 32.572 | AN88: -- | AO88: -- | AP88: -- | AQ88: 58.7 | AR88: -- | AS88: -- | AT88: 55.4 | AU88: -- | AV88: -- | AW88: 55.8 | AX88: 57.4 | AY88: 73.2 | AZ88: 57.5 | BA88: 69.3 | BB88: -- | BC88: -- | BM88: -- | BN88: -- | BT88: 42.2325 | BX88: 1488 | BY88: 1241 | BZ88: -- | CA88: -- | CB88: 6.534859723 | CC88: 9.754859723 | CD88: -- | CE88: -- | CF88: -- | CG88: -- | CH88: -- | CI88: -- | CJ88: 614 | CK88: 566.2 | CL88: 60.7 | CM88: 947 | CN88: 2717.2 | CO88: 245.7 | CP88: 91.8301 | CQ88: 194087 | CR88: -- | CS88: -- | CT88: -- | CZ88: 31.61 | DA88: 32.7 | DG88: 54.2 | DH88: 38.6 | DI88: 58.8 | DJ88: -- | DK88: 4.6 | DL88: 16554 | DM88: 77 | DP88: 60690 | DQ88: 198 | DT88: 0 | DU88: -- | DV88: -- | DW88: -- | DX88: -- | DY88: -- | DZ88: -- | EA88: -- | EB88: -- | EC88: -- | EQ88: 32.4 | ER88: -- | ES88: 33.8 | EY88: 4.5 | EZ88: 4.04 | FA88: 4.46 | FB88: 4.85 | FC88: 39 | FD88: -- | FE88: 3.8 | FF88: 3.99 | FG88: -- | FH88: 4.15 | FI88: 4.21 | FJ88: -- | FP88: -- | FQ88: -- | FR88: -- | FS88: -- | FT88: -- | FU88: -- | FV88: -- | FW88: -- | FX88: -- | GD88: 2.92 | GE88: -- | GF88: -- | GG88: -- | GH88: -- | GI88: -- | GJ88: -- | GK88: -- | GL88: --
A89: 1965-07-01 | E89: 0 | F89: 0 | G89: 0 | H89: 0 | X89: -- | Y89: 64.8904 | AM89: 32.8779 | AN89: -- | AO89: -- | AP89: -- | AQ89: 58.1 | AR89: -- | AS89: -- | AT89: 56.2 | AU89: -- | AV89: -- | AW89: 53.8 | AX89: 56.6 | AY89: 71.8 | AZ89: 59 | BA89: 65.1 | BB89: -- | BC89: -- | BM89: -- | BN89: -- | BT89: 42.8655 | BX89: 1529 | BY89: 1237 | BZ89: -- | CA89: -- | CB89: 6.205286912 | CC89: 9.285286912 | CD89: -- | CE89: -- | CF89: -- | CG89: -- | CH89: -- | CI89: -- | CJ89: 554 | CK89: 570.4 | CL89: 60.4 | CM89: 1033 | CN89: 2745.2 | CO89: 247.1 | CP89: 92.6946 | CQ89: 194303 | CR89: -- | CS89: -- | CT89: -- | CZ89: 31.58 | DA89: 32.7 | DG89: 54.5 | DH89: 38.6 | DI89: 59.1 | DJ89: -- | DK89: 4.4 | DL89: 16669 | DM89: 115 | DP89: 60963 | DQ89: 273 | DT89: 0 | DU89: -- | DV89: -- | DW89: -- | DX89: -- | DY89: -- | DZ89: -- | EA89: -- | EB89: -- | EC89: -- | EQ89: 32.4 | ER89: -- | ES89: 33.8 | EY89: 4.5 | EZ89: 4.09 | FA89: 4.48 | FB89: 4.88 | FC89: 40 | FD89: -- | FE89: 3.84 | FF89: 3.98 | FG89: -- | FH89: 4.15 | FI89: 4.2 | FJ89: -- | FP89: -- | FQ89: -- | FR89: -- | FS89: -- | FT89: -- | FU89: -- | FV89: -- | FW89: -- | FX89: -- | GD89: 2.92 | GE89: -- | GF89: -- | GG89: -- | GH89: -- | GI89: -- | GJ89: -- | GK89: -- | GL89: --
A90: 1965-08-01 | E90: 0 | F90: 0 | G90: 0 | H90: 0 | X90: -- | Y90: 65.4792 | AM90: 33.017 | AN90: -- | AO90: -- | AP90: -- | AQ90: 58.1 | AR90: -- | AS90: -- | AT90: 58 | AU90: -- | AV90: -- | AW90: 57.2 | AX90: 56 | AY90: 70.5 | AZ90: 56.6 | BA90: 65.4 | BB90: -- | BC90: -- | BM90: -- | BN90: -- | BT90: 43.4745 | BX90: 1432 | BY90: 1249 | BZ90: -- | CA90: -- | CB90: 6.010305958 | CC90: 9.090305958 | CD90: -- | CE90: -- | CF90: -- | CG90: -- | CH90: -- | CI90: -- | CJ90: 615 | CK90: 572.9 | CL90: 59.6 | CM90: 958 | CN90: 2758.8 | CO90: 248.8 | CP90: 93.2871 | CQ90: 194528 | CR90: -- | CS90: -- | CT90: -- | CZ90: 31.55 | DA90: 32.7 | DG90: 54.6 | DH90: 38.5 | DI90: 58.9 | DJ90: -- | DK90: 4.4 | DL90: 16732 | DM90: 63 | DP90: 61228 | DQ90: 265 | DT90: 0 | DU90: -- | DV90: -- | DW90: -- | DX90: -- | DY90: -- | DZ90: -- | EA90: -- | EB90: -- | EC90: -- | EQ90: 32.4 | ER90: -- | ES90: 33.8 | EY90: 4.5 | EZ90: 4.12 | FA90: 4.49 | FB90: 4.88 | FC90: 39 | FD90: -- | FE90: 3.84 | FF90: 4.07 | FG90: -- | FH90: 4.2 | FI90: 4.25 | FJ90: -- | FP90: -- | FQ90: -- | FR90: -- | FS90: -- | FT90: -- | FU90: -- | FV90: -- | FW90: -- | FX90: -- | GD90: 2.92 | GE90: -- | GF90: -- | GG90: -- | GH90: -- | GI90: -- | GJ90: -- | GK90: -- | GL90: --
A91: 1965-09-01 | E91: 0 | F91: 0 | G91: 0 | H91: 0 | X91: -- | Y91: 66.3883 | AM91: 33.1005 | AN91: -- | AO91: -- | AP91: -- | AQ91: 61 | AR91: -- | AS91: -- | AT91: 56.2 | AU91: -- | AV91: -- | AW91: 55.7 | AX91: 63.6 | AY91: 66.3 | AZ91: 63.8 | BA91: 61.2 | BB91: -- | BC91: -- | BM91: -- | BN91: -- | BT91: 43.8852 | BX91: 1482 | BY91: 1227 | BZ91: -- | CA91: -- | CB91: 6.037451737 | CC91: 9.047451737 | CD91: -- | CE91: -- | CF91: -- | CG91: -- | CH91: -- | CI91: -- | CJ91: 587 | CK91: 587.9 | CL91: 66.3 | CM91: 962 | CN91: 2834.5 | CO91: 250.8 | CP91: 94.1265 | CQ91: 194761 | CR91: -- | CS91: -- | CT91: -- | CZ91: 31.62 | DA91: 32.8 | DG91: 54.9 | DH91: 38.6 | DI91: 58.7 | DJ91: -- | DK91: 4.3 | DL91: 16802 | DM91: 70 | DP91: 61490 | DQ91: 262 | DT91: 0 | DU91: -- | DV91: -- | DW91: -- | DX91: -- | DY91: -- | DZ91: -- | EA91: -- | EB91: -- | EC91: -- | EQ91: 32.4 | ER91: -- | ES91: 33.9 | EY91: 4.5 | EZ91: 4.01 | FA91: 4.52 | FB91: 4.91 | FC91: 39 | FD91: -- | FE91: 3.92 | FF91: 4.2 | FG91: -- | FH91: 4.25 | FI91: 4.29 | FJ91: -- | FP91: -- | FQ91: -- | FR91: -- | FS91: -- | FT91: -- | FU91: -- | FV91: -- | FW91: -- | FX91: -- | GD91: 2.92 | GE91: -- | GF91: -- | GG91: -- | GH91: -- | GI91: -- | GJ91: -- | GK91: -- | GL91: --
A92: 1965-10-01 | E92: 0 | F92: 0 | G92: 0 | H92: 0 | X92: -- | Y92: 67.05 | AM92: 33.4343 | AN92: -- | AO92: -- | AP92: -- | AQ92: 58.6 | AR92: -- | AS92: -- | AT92: 56.9 | AU92: -- | AV92: -- | AW92: 46.5 | AX92: 62 | AY92: 68.6 | AZ92: 60.5 | BA92: 59.1 | BB92: -- | BC92: -- | BM92: -- | BN92: -- | BT92: 44.3817 | BX92: 1452 | BY92: 1279 | BZ92: -- | CA92: -- | CB92: 5.903084833 | CC92: 8.843084833 | CD92: -- | CE92: -- | CF92: -- | CG92: -- | CH92: -- | CI92: -- | CJ92: 555 | CK92: 585 | CL92: 56.9 | CM92: 954 | CN92: 2817.8 | CO92: 252.3 | CP92: 94.8045 | CQ92: 194997 | CR92: -- | CS92: -- | CT92: -- | CZ92: 31.65 | DA92: 32.8 | DG92: 55 | DH92: 38.5 | DI92: 58.9 | DJ92: -- | DK92: 4.2 | DL92: 16864 | DM92: 62 | DP92: 61718 | DQ92: 228 | DT92: 0 | DU92: -- | DV92: -- | DW92: -- | DX92: -- | DY92: -- | DZ92: -- | EA92: -- | EB92: -- | EC92: -- | EQ92: 32.5 | ER92: -- | ES92: 33.9 | EY92: 4.5 | EZ92: 4.08 | FA92: 4.56 | FB92: 4.93 | FC92: 37 | FD92: -- | FE92: 4.03 | FF92: 4.3 | FG92: -- | FH92: 4.34 | FI92: 4.35 | FJ92: -- | FP92: -- | FQ92: -- | FR92: -- | FS92: -- | FT92: -- | FU92: -- | FV92: -- | FW92: -- | FX92: -- | GD92: 2.92 | GE92: -- | GF92: -- | GG92: -- | GH92: -- | GI92: -- | GJ92: -- | GK92: -- | GL92: --
A93: 1965-11-01 | E93: 0 | F93: 0 | G93: 0 | H93: 0 | X93: -- | Y93: 67.754 | AM93: 33.5733 | AN93: -- | AO93: -- | AP93: -- | AQ93: 59.4 | AR93: -- | AS93: -- | AT93: 54.7 | AU93: -- | AV93: -- | AW93: 48.7 | AX93: 61.9 | AY93: 70.6 | AZ93: 60.9 | BA93: 65.1 | BB93: -- | BC93: -- | BM93: -- | BN93: -- | BT93: 44.7965 | BX93: 1460 | BY93: 1306 | BZ93: -- | CA93: -- | CB93: 5.830214675 | CC93: 8.700214675 | CD93: -- | CE93: -- | CF93: -- | CG93: -- | CH93: -- | CI93: -- | CJ93: 616 | CK93: 590.5 | CL93: 61 | CM93: 992 | CN93: 2838.6 | CO93: 254.8 | CP93: 95.4053 | CQ93: 195195 | CR93: -- | CS93: -- | CT93: -- | CZ93: 31.75 | DA93: 32.9 | DG93: 55.4 | DH93: 38.6 | DI93: 58.8 | DJ93: -- | DK93: 4.1 | DL93: 16962 | DM93: 98 | DP93: 61997 | DQ93: 279 | DT93: 0 | DU93: -- | DV93: -- | DW93: -- | DX93: -- | DY93: -- | DZ93: -- | EA93: -- | EB93: -- | EC93: -- | EQ93: 32.6 | ER93: -- | ES93: 34 | EY93: 4.5 | EZ93: 4.1 | FA93: 4.6 | FB93: 4.95 | FC93: 35 | FD93: -- | FE93: 4.09 | FF93: 4.37 | FG93: -- | FH93: 4.46 | FI93: 4.45 | FJ93: -- | FP93: -- | FQ93: -- | FR93: -- | FS93: -- | FT93: -- | FU93: -- | FV93: -- | FW93: -- | FX93: -- | GD93: 2.92 | GE93: -- | GF93: -- | GG93: -- | GH93: -- | GI93: -- | GJ93: -- | GK93: -- | GL93: --
A94: 1965-12-01 | E94: 0 | F94: 0 | G94: 0 | H94: 0 | X94: -- | Y94: 69.1577 | AM94: 33.9905 | AN94: -- | AO94: -- | AP94: -- | AQ94: 62.8 | AR94: -- | AS94: -- | AT94: 60.2 | AU94: -- | AV94: -- | AW94: 47.4 | AX94: 62.9 | AY94: 67 | AZ94: 64.4 | BA94: 73.5 | BB94: -- | BC94: -- | BM94: -- | BN94: -- | BT94: 45.0223 | BX94: 1656 | BY94: 1315 | BZ94: -- | CA94: -- | CB94: 5.92 | CC94: 8.72 | CD94: -- | CE94: -- | CF94: -- | CG94: -- | CH94: -- | CI94: -- | CJ94: 609 | CK94: 595.8 | CL94: 62.4 | CM94: 1093 | CN94: 2850 | CO94: 256.9 | CP94: 95.9547 | CQ94: 195372 | CR94: -- | CS94: -- | CT94: -- | CZ94: 31.85 | DA94: 33 | DG94: 55.6 | DH94: 38.6 | DI94: 59 | DJ94: -- | DK94: 4 | DL94: 17051 | DM94: 89 | DP94: 62321 | DQ94: 324 | DT94: 0 | DU94: -- | DV94: -- | DW94: -- | DX94: -- | DY94: -- | DZ94: -- | EA94: -- | EB94: -- | EC94: -- | EQ94: 32.8 | ER94: -- | ES94: 34 | EY94: 4.92 | EZ94: 4.32 | FA94: 4.68 | FB94: 5.02 | FC94: 34 | FD94: -- | FE94: 4.38 | FF94: 4.72 | FG94: -- | FH94: 4.72 | FI94: 4.62 | FJ94: -- | FP94: -- | FQ94: -- | FR94: -- | FS94: -- | FT94: -- | FU94: -- | FV94: -- | FW94: -- | FX94: -- | GD94: 2.92 | GE94: -- | GF94: -- | GG94: -- | GH94: -- | GI94: -- | GJ94: -- | GK94: -- | GL94: --
A95: 1966-01-01 | E95: 0 | F95: 0 | G95: 0 | H95: 0 | X95: -- | Y95: 69.9831 | AM95: 34.3243 | AN95: -- | AO95: -- | AP95: -- | AQ95: 65.8 | AR95: -- | AS95: -- | AT95: 62.6 | AU95: -- | AV95: -- | AW95: 49.7 | AX95: 66.5 | AY95: 75.9 | AZ95: 68.4 | BA95: 74.9 | BB95: -- | BC95: -- | BM95: -- | BN95: -- | BT95: 45.4362 | BX95: 1370 | BY95: 1325 | BZ95: -- | CA95: -- | CB95: 5.918158568 | CC95: 8.718158568 | CD95: -- | CE95: -- | CF95: -- | CG95: -- | CH95: -- | CI95: -- | CJ95: 599 | CK95: 598.3 | CL95: 60.3 | CM95: 848 | CN95: 2854.1 | CO95: 257.6 | CP95: 97.0307 | CQ95: 195539 | CR95: -- | CS95: -- | CT95: -- | CZ95: 31.88 | DA95: 33 | DG95: 55.8 | DH95: 38.6 | DI95: 59 | DJ95: -- | DK95: 4 | DL95: 17143 | DM95: 92 | DP95: 62528 | DQ95: 207 | DT95: 0 | DU95: -- | DV95: -- | DW95: -- | DX95: -- | DY95: -- | DZ95: -- | EA95: -- | EB95: -- | EC95: -- | EQ95: 32.9 | ER95: -- | ES95: 34 | EY95: 5 | EZ95: 4.42 | FA95: 4.74 | FB95: 5.06 | FC95: 32 | FD95: -- | FE95: 4.59 | FF95: 4.88 | FG95: -- | FH95: 4.86 | FI95: 4.61 | FJ95: -- | FP95: -- | FQ95: -- | FR95: -- | FS95: -- | FT95: -- | FU95: -- | FV95: -- | FW95: -- | FX95: -- | GD95: 2.92 | GE95: -- | GF95: -- | GG95: -- | GH95: -- | GI95: -- | GJ95: -- | GK95: -- | GL95: --
A96: 1966-02-01 | E96: 0 | F96: 0 | G96: 0 | H96: 0 | X96: -- | Y96: 70.683 | AM96: 34.5469 | AN96: -- | AO96: -- | AP96: -- | AQ96: 65.5 | AR96: -- | AS96: -- | AT96: 61.2 | AU96: -- | AV96: -- | AW96: 48.7 | AX96: 66.1 | AY96: 80.9 | AZ96: 66.1 | BA96: 80.1 | BB96: -- | BC96: -- | BM96: -- | BN96: -- | BT96: 45.766 | BX96: 1378 | BY96: 1159 | BZ96: -- | CA96: -- | CB96: 6.357544757 | CC96: 9.017544757 | CD96: -- | CE96: -- | CF96: -- | CG96: -- | CH96: -- | CI96: -- | CJ96: 541 | CK96: 603.4 | CL96: 59.3 | CM96: 910 | CN96: 2863.9 | CO96: 258.3 | CP96: 97.7584 | CQ96: 195688 | CR96: -- | CS96: -- | CT96: -- | CZ96: 32.08 | DA96: 33.1 | DG96: 56.2 | DH96: 38.7 | DI96: 58.8 | DJ96: -- | DK96: 3.8 | DL96: 17288 | DM96: 145 | DP96: 62796 | DQ96: 268 | DT96: 0 | DU96: -- | DV96: -- | DW96: -- | DX96: -- | DY96: -- | DZ96: -- | EA96: -- | EB96: -- | EC96: -- | EQ96: 33.2 | ER96: -- | ES96: 34.2 | EY96: 5 | EZ96: 4.6 | FA96: 4.78 | FB96: 5.12 | FC96: 34 | FD96: -- | FE96: 4.65 | FF96: 4.94 | FG96: -- | FH96: 4.98 | FI96: 4.83 | FJ96: -- | FP96: -- | FQ96: -- | FR96: -- | FS96: -- | FT96: -- | FU96: -- | FV96: -- | FW96: -- | FX96: -- | GD96: 2.92 | GE96: -- | GF96: -- | GG96: -- | GH96: -- | GI96: -- | GJ96: -- | GK96: -- | GL96: --
A97: 1966-03-01 | E97: 0 | F97: 0 | G97: 0 | H97: 0 | X97: -- | Y97: 71.521 | AM97: 35.0197 | AN97: -- | AO97: -- | AP97: -- | AQ97: 65.7 | AR97: -- | AS97: -- | AT97: 61.5 | AU97: -- | AV97: -- | AW97: 52.3 | AX97: 64.3 | AY97: 85.7 | AZ97: 63.8 | BA97: 86.4 | BB97: -- | BC97: -- | BM97: -- | BN97: -- | BT97: 46.2038 | BX97: 1394 | BY97: 1234 | BZ97: -- | CA97: -- | CB97: 6.578664963 | CC97: 9.238664963 | CD97: -- | CE97: -- | CF97: -- | CG97: -- | CH97: -- | CI97: -- | CJ97: 557 | CK97: 607.7 | CL97: 57.4 | CM97: 950 | CN97: 2872.7 | CO97: 258.1 | CP97: 98.4464 | CQ97: 195831 | CR97: -- | CS97: -- | CT97: -- | CZ97: 32.18 | DA97: 33.1 | DG97: 56.5 | DH97: 38.7 | DI97: 58.8 | DJ97: -- | DK97: 3.8 | DL97: 17400 | DM97: 112 | DP97: 63192 | DQ97: 396 | DT97: 0 | DU97: -- | DV97: -- | DW97: -- | DX97: -- | DY97: -- | DZ97: -- | EA97: -- | EB97: -- | EC97: -- | EQ97: 33.2 | ER97: -- | ES97: 34.2 | EY97: 5.35 | EZ97: 4.65 | FA97: 4.92 | FB97: 5.32 | FC97: 40 | FD97: -- | FE97: 4.59 | FF97: 4.97 | FG97: -- | FH97: 4.92 | FI97: 4.87 | FJ97: -- | FP97: -- | FQ97: -- | FR97: -- | FS97: -- | FT97: -- | FU97: -- | FV97: -- | FW97: -- | FX97: -- | GD97: 2.92 | GE97: -- | GF97: -- | GG97: -- | GH97: -- | GI97: -- | GJ97: -- | GK97: -- | GL97: --
A98: 1966-04-01 | E98: 0 | F98: 0 | G98: 0 | H98: 0 | X98: -- | Y98: 72.3728 | AM98: 35.0754 | AN98: -- | AO98: -- | AP98: -- | AQ98: 64.2 | AR98: -- | AS98: -- | AT98: 59.9 | AU98: -- | AV98: -- | AW98: 53 | AX98: 64.3 | AY98: 83.9 | AZ98: 63.1 | BA98: 79.3 | BB98: -- | BC98: -- | BM98: -- | BN98: -- | BT98: 46.5219 | BX98: 1352 | BY98: 1145 | BZ98: -- | CA98: -- | CB98: 6.668068834 | CC98: 9.328068834 | CD98: -- | CE98: -- | CF98: -- | CG98: -- | CH98: -- | CI98: -- | CJ98: 545 | CK98: 609.7 | CL98: 55.5 | CM98: 879 | CN98: 2864 | CO98: 256 | CP98: 98.8051 | CQ98: 195999 | CR98: -- | CS98: -- | CT98: -- | CZ98: 32.28 | DA98: 33.3 | DG98: 56.7 | DH98: 38.7 | DI98: 59 | DJ98: -- | DK98: 3.8 | DL98: 17517 | DM98: 117 | DP98: 63436 | DQ98: 244 | DT98: 0 | DU98: -- | DV98: -- | DW98: -- | DX98: -- | DY98: -- | DZ98: -- | EA98: -- | EB98: -- | EC98: -- | EQ98: 33.2 | ER98: -- | ES98: 34.3 | EY98: 5.5 | EZ98: 4.67 | FA98: 4.96 | FB98: 5.41 | FC98: 45 | FD98: -- | FE98: 4.62 | FF98: 4.9 | FG98: -- | FH98: 4.83 | FI98: 4.75 | FJ98: -- | FP98: -- | FQ98: -- | FR98: -- | FS98: -- | FT98: -- | FU98: -- | FV98: -- | FW98: -- | FX98: -- | GD98: 2.92 | GE98: -- | GF98: -- | GG98: -- | GH98: -- | GI98: -- | GJ98: -- | GK98: -- | GL98: --
A99: 1966-05-01 | E99: 0 | F99: 0 | G99: 0 | H99: 0 | X99: -- | Y99: 73.3273 | AM99: 35.4092 | AN99: -- | AO99: -- | AP99: -- | AQ99: 57.7 | AR99: -- | AS99: -- | AT99: 57 | AU99: -- | AV99: -- | AW99: 53.8 | AX99: 52.7 | AY99: 83.3 | AZ99: 55.5 | BA99: 74.6 | BB99: -- | BC99: -- | BM99: -- | BN99: -- | BT99: 46.7555 | BX99: 1265 | BY99: 1078 | BZ99: -- | CA99: -- | CB99: 6.663659466 | CC99: 9.393659466 | CD99: -- | CE99: -- | CF99: -- | CG99: -- | CH99: -- | CI99: -- | CJ99: 499 | CK99: 612.4 | CL99: 60.8 | CM99: 822 | CN99: 2868.4 | CO99: 255.1 | CP99: 99.3054 | CQ99: 196178 | CR99: -- | CS99: -- | CT99: -- | CZ99: 32.35 | DA99: 33.4 | DG99: 56.6 | DH99: 38.5 | DI99: 59 | DJ99: -- | DK99: 3.9 | DL99: 17625 | DM99: 108 | DP99: 63711 | DQ99: 275 | DT99: 0 | DU99: -- | DV99: -- | DW99: -- | DX99: -- | DY99: -- | DZ99: -- | EA99: -- | EB99: -- | EC99: -- | EQ99: 33.2 | ER99: -- | ES99: 34.5 | EY99: 5.5 | EZ99: 4.9 | FA99: 4.98 | FB99: 5.48 | FC99: 50 | FD99: -- | FE99: 4.64 | FF99: 4.93 | FG99: -- | FH99: 4.89 | FI99: 4.78 | FJ99: -- | FP99: -- | FQ99: -- | FR99: -- | FS99: -- | FT99: -- | FU99: -- | FV99: -- | FW99: -- | FX99: -- | GD99: 2.92 | GE99: -- | GF99: -- | GG99: -- | GH99: -- | GI99: -- | GJ99: -- | GK99: -- | GL99: --
A100: 1966-06-01 | E100: 0 | F100: 0 | G100: 0 | H100: 0 | X100: -- | Y100: 75.3919 | AM100: 35.576 | AN100: -- | AO100: -- | AP100: -- | AQ100: 59 | AR100: -- | AS100: -- | AT100: 58.8 | AU100: -- | AV100: -- | AW100: 53.3 | AX100: 55.9 | AY100: 81.5 | AZ100: 57.6 | BA100: 71.6 | BB100: -- | BC100: -- | BM100: -- | BN100: -- | BT100: 47.1738 | BX100: 1194 | BY100: 956 | BZ100: -- | CA100: -- | CB100: 6.235937994 | CC100: 8.895937994 | CD100: -- | CE100: -- | CF100: -- | CG100: -- | CH100: -- | CI100: -- | CJ100: 434 | CK100: 617 | CL100: 62 | CM100: 783 | CN100: 2880.6 | CO100: 254.7 | CP100: 99.7887 | CQ100: 196372 | CR100: -- | CS100: -- | CT100: -- | CZ100: 32.38 | DA100: 33.5 | DG100: 56.9 | DH100: 38.5 | DI100: 59.1 | DJ100: -- | DK100: 3.8 | DL100: 17733 | DM100: 108 | DP100: 64110 | DQ100: 399 | DT100: 0 | DU100: -- | DV100: -- | DW100: -- | DX100: -- | DY100: -- | DZ100: -- | EA100: -- | EB100: -- | EC100: -- | EQ100: 33.3 | ER100: -- | ES100: 34.6 | EY100: 5.52 | EZ100: 5.17 | FA100: 5.07 | FB100: 5.58 | FC100: 51 | FD100: -- | FE100: 4.5 | FF100: 4.97 | FG100: -- | FH100: 4.97 | FI100: 4.81 | FJ100: -- | FP100: -- | FQ100: -- | FR100: -- | FS100: -- | FT100: -- | FU100: -- | FV100: -- | FW100: -- | FX100: -- | GD100: 2.92 | GE100: -- | GF100: -- | GG100: -- | GH100: -- | GI100: -- | GJ100: -- | GK100: -- | GL100: --
A101: 1966-07-01 | E101: 0 | F101: 0 | G101: 0 | H101: 0 | X101: -- | Y101: 76.7826 | AM101: 35.7707 | AN101: -- | AO101: -- | AP101: -- | AQ101: 60.3 | AR101: -- | AS101: -- | AT101: 58.9 | AU101: -- | AV101: -- | AW101: 57.9 | AX101: 56.3 | AY101: 79.7 | AZ101: 59.3 | BA101: 73.1 | BB101: -- | BC101: -- | BM101: -- | BN101: -- | BT101: 47.3985 | BX101: 1086 | BY101: 932 | BZ101: -- | CA101: -- | CB101: 6.55490817 | CC101: 9.21490817 | CD101: -- | CE101: -- | CF101: -- | CG101: -- | CH101: -- | CI101: -- | CJ101: 435 | CK101: 620.8 | CL101: 60 | CM101: 739 | CN101: 2891 | CO101: 254.3 | CP101: 100.0614 | CQ101: 196560 | CR101: -- | CS101: -- | CT101: -- | CZ101: 32.45 | DA101: 33.6 | DG101: 56.9 | DH101: 38.4 | DI101: 59.1 | DJ101: -- | DK101: 3.8 | DL101: 17760 | DM101: 27 | DP101: 64301 | DQ101: 191 | DT101: 0 | DU101: -- | DV101: -- | DW101: -- | DX101: -- | DY101: -- | DZ101: -- | EA101: -- | EB101: -- | EC101: -- | EQ101: 33.5 | ER101: -- | ES101: 34.7 | EY101: 5.75 | EZ101: 5.3 | FA101: 5.16 | FB101: 5.68 | FC101: 52 | FD101: -- | FE101: 4.8 | FF101: 5.17 | FG101: -- | FH101: 5.17 | FI101: 5.02 | FJ101: -- | FP101: -- | FQ101: -- | FR101: -- | FS101: -- | FT101: -- | FU101: -- | FV101: -- | FW101: -- | FX101: -- | GD101: 2.92 | GE101: -- | GF101: -- | GG101: -- | GH101: -- | GI101: -- | GJ101: -- | GK101: -- | GL101: --
A102: 1966-08-01 | E102: 0 | F102: 0 | G102: 0 | H102: 0 | X102: -- | Y102: 76.9939 | AM102: 35.7986 | AN102: -- | AO102: -- | AP102: -- | AQ102: 58.5 | AR102: -- | AS102: -- | AT102: 56.4 | AU102: -- | AV102: -- | AW102: 57 | AX102: 53.3 | AY102: 79.5 | AZ102: 57.7 | BA102: 74.3 | BB102: -- | BC102: -- | BM102: -- | BN102: -- | BT102: 47.5609 | BX102: 1119 | BY102: 877 | BZ102: -- | CA102: -- | CB102: 7.286529319 | CC102: 9.946529319 | CD102: -- | CE102: -- | CF102: -- | CG102: -- | CH102: -- | CI102: -- | CJ102: 377 | CK102: 626.2 | CL102: 62.2 | CM102: 746 | CN102: 2905.4 | CO102: 253.2 | CP102: 100.5867 | CQ102: 196762 | CR102: -- | CS102: -- | CT102: -- | CZ102: 32.65 | DA102: 33.7 | DG102: 57.1 | DH102: 38.4 | DI102: 59.3 | DJ102: -- | DK102: 3.8 | DL102: 17882 | DM102: 122 | DP102: 64507 | DQ102: 206 | DT102: 0 | DU102: -- | DV102: -- | DW102: -- | DX102: -- | DY102: -- | DZ102: -- | EA102: -- | EB102: -- | EC102: -- | EQ102: 33.6 | ER102: -- | ES102: 34.8 | EY102: 5.88 | EZ102: 5.53 | FA102: 5.31 | FB102: 5.83 | FC102: 52 | FD102: -- | FE102: 4.96 | FF102: 5.54 | FG102: -- | FH102: 5.5 | FI102: 5.22 | FJ102: -- | FP102: -- | FQ102: -- | FR102: -- | FS102: -- | FT102: -- | FU102: -- | FV102: -- | FW102: -- | FX102: -- | GD102: 2.92 | GE102: -- | GF102: -- | GG102: -- | GH102: -- | GI102: -- | GJ102: -- | GK102: -- | GL102: --
A103: 1966-09-01 | E103: 0 | F103: 0 | G103: 0 | H103: 0 | X103: -- | Y103: 77.4883 | AM103: 36.1323 | AN103: -- | AO103: -- | AP103: -- | AQ103: 58.7 | AR103: -- | AS103: -- | AT103: 56.5 | AU103: -- | AV103: -- | AW103: 54.8 | AX103: 55.2 | AY103: 73.7 | AZ103: 57.9 | BA103: 72.4 | BB103: -- | BC103: -- | BM103: -- | BN103: -- | BT103: 47.5988 | BX103: 1046 | BY103: 774 | BZ103: -- | CA103: -- | CB103: 7.27368754 | CC103: 9.86368754 | CD103: -- | CE103: -- | CF103: -- | CG103: -- | CH103: -- | CI103: -- | CJ103: 358 | CK103: 631.7 | CL103: 61 | CM103: 699 | CN103: 2921.2 | CO103: 253.1 | CP103: 100.6725 | CQ103: 196984 | CR103: -- | CS103: -- | CT103: -- | CZ103: 32.75 | DA103: 33.8 | DG103: 57 | DH103: 38.3 | DI103: 59.3 | DJ103: -- | DK103: 3.7 | DL103: 17886 | DM103: 4 | DP103: 64644 | DQ103: 137 | DT103: 0 | DU103: -- | DV103: -- | DW103: -- | DX103: -- | DY103: -- | DZ103: -- | EA103: -- | EB103: -- | EC103: -- | EQ103: 33.6 | ER103: -- | ES103: 34.9 | EY103: 6 | EZ103: 5.4 | FA103: 5.49 | FB103: 6.09 | FC103: 60 | FD103: -- | FE103: 5.37 | FF103: 5.82 | FG103: -- | FH103: 5.5 | FI103: 5.18 | FJ103: -- | FP103: -- | FQ103: -- | FR103: -- | FS103: -- | FT103: -- | FU103: -- | FV103: -- | FW103: -- | FX103: -- | GD103: 2.97 | GE103: -- | GF103: -- | GG103: -- | GH103: -- | GI103: -- | GJ103: -- | GK103: -- | GL103: --
A104: 1966-10-01 | E104: 0 | F104: 0 | G104: 0 | H104: 0 | X104: -- | Y104: 78.0104 | AM104: 36.3827 | AN104: -- | AO104: -- | AP104: -- | AQ104: 57.2 | AR104: -- | AS104: -- | AT104: 56.9 | AU104: -- | AV104: -- | AW104: 58.2 | AX104: 51.6 | AY104: 70.3 | AZ104: 57 | BA104: 68.7 | BB104: -- | BC104: -- | BM104: -- | BN104: -- | BT104: 47.5898 | BX104: 843 | BY104: 739 | BZ104: -- | CA104: -- | CB104: 7.491469194 | CC104: 10.08146919 | CD104: -- | CE104: -- | CF104: -- | CG104: -- | CH104: -- | CI104: -- | CJ104: 387 | CK104: 636.3 | CL104: 65.4 | CM104: 597 | CN104: 2932.3 | CO104: 252.2 | CP104: 100.9531 | CQ104: 197207 | CR104: -- | CS104: -- | CT104: -- | CZ104: 32.85 | DA104: 34 | DG104: 57.3 | DH104: 38.4 | DI104: 59.3 | DJ104: -- | DK104: 3.7 | DL104: 17956 | DM104: 70 | DP104: 64854 | DQ104: 210 | DT104: 0 | DU104: -- | DV104: -- | DW104: -- | DX104: -- | DY104: -- | DZ104: -- | EA104: -- | EB104: -- | EC104: -- | EQ104: 33.4 | ER104: -- | ES104: 35 | EY104: 6 | EZ104: 5.53 | FA104: 5.41 | FB104: 6.1 | FC104: 69 | FD104: -- | FE104: 5.35 | FF104: 5.58 | FG104: -- | FH104: 5.27 | FI104: 5.01 | FJ104: -- | FP104: -- | FQ104: -- | FR104: -- | FS104: -- | FT104: -- | FU104: -- | FV104: -- | FW104: -- | FX104: -- | GD104: 2.97 | GE104: -- | GF104: -- | GG104: -- | GH104: -- | GI104: -- | GJ104: -- | GK104: -- | GL104: --
A105: 1966-11-01 | E105: 0 | F105: 0 | G105: 0 | H105: 0 | X105: -- | Y105: 78.3726 | AM105: 36.1323 | AN105: -- | AO105: -- | AP105: -- | AQ105: 53.7 | AR105: -- | AS105: -- | AT105: 55.6 | AU105: -- | AV105: -- | AW105: 55.6 | AX105: 46.8 | AY105: 71.9 | AZ105: 54.2 | BA105: 62.6 | BB105: -- | BC105: -- | BM105: -- | BN105: -- | BT105: 47.6853 | BX105: 961 | BY105: 736 | BZ105: -- | CA105: -- | CB105: 7.159055118 | CC105: 9.679055118 | CD105: -- | CE105: -- | CF105: -- | CG105: -- | CH105: -- | CI105: -- | CJ105: 382 | CK105: 641.1 | CL105: 66.9 | CM105: 679 | CN105: 2945 | CO105: 252.6 | CP105: 101.4374 | CQ105: 197398 | CR105: -- | CS105: -- | CT105: -- | CZ105: 32.88 | DA105: 34 | DG105: 57.2 | DH105: 38.3 | DI105: 59.6 | DJ105: -- | DK105: 3.6 | DL105: 17981 | DM105: 25 | DP105: 65019 | DQ105: 165 | DT105: 0 | DU105: -- | DV105: -- | DW105: -- | DX105: -- | DY105: -- | DZ105: -- | EA105: -- | EB105: -- | EC105: -- | EQ105: 33.3 | ER105: -- | ES105: 35.2 | EY105: 6 | EZ105: 5.76 | FA105: 5.35 | FB105: 6.13 | FC105: 78 | FD105: -- | FE105: 5.32 | FF105: 5.54 | FG105: -- | FH105: 5.36 | FI105: 5.16 | FJ105: -- | FP105: -- | FQ105: -- | FR105: -- | FS105: -- | FT105: -- | FU105: -- | FV105: -- | FW105: -- | FX105: -- | GD105: 2.97 | GE105: -- | GF105: -- | GG105: -- | GH105: -- | GI105: -- | GJ105: -- | GK105: -- | GL105: --
A106: 1966-12-01 | E106: 0 | F106: 0 | G106: 0 | H106: 0 | X106: -- | Y106: 78.976 | AM106: 36.2158 | AN106: -- | AO106: -- | AP106: -- | AQ106: 52.4 | AR106: -- | AS106: -- | AT106: 50.7 | AU106: -- | AV106: -- | AW106: 53.7 | AX106: 48.8 | AY106: 67.6 | AZ106: 54.1 | BA106: 57.9 | BB106: -- | BC106: -- | BM106: -- | BN106: -- | BT106: 47.7621 | BX106: 990 | BY106: 743 | BZ106: -- | CA106: -- | CB106: 7.159497645 | CC106: 9.819497645 | CD106: -- | CE106: -- | CF106: -- | CG106: -- | CH106: -- | CI106: -- | CJ106: 369 | CK106: 642.1 | CL106: 65.5 | CM106: 666 | CN106: 2941.7 | CO106: 253.1 | CP106: 101.7882 | CQ106: 197572 | CR106: -- | CS106: -- | CT106: -- | CZ106: 32.92 | DA106: 34.1 | DG106: 57.2 | DH106: 38.2 | DI106: 59.5 | DJ106: -- | DK106: 3.8 | DL106: 17998 | DM106: 17 | DP106: 65200 | DQ106: 181 | DT106: 0 | DU106: -- | DV106: -- | DW106: -- | DX106: -- | DY106: -- | DZ106: -- | EA106: -- | EB106: -- | EC106: -- | EQ106: 33.3 | ER106: -- | ES106: 35.3 | EY106: 6 | EZ106: 5.4 | FA106: 5.39 | FB106: 6.18 | FC106: 79 | FD106: -- | FE106: 4.96 | FF106: 5.2 | FG106: -- | FH106: 5 | FI106: 4.84 | FJ106: -- | FP106: -- | FQ106: -- | FR106: -- | FS106: -- | FT106: -- | FU106: -- | FV106: -- | FW106: -- | FX106: -- | GD106: 2.97 | GE106: -- | GF106: -- | GG106: -- | GH106: -- | GI106: -- | GJ106: -- | GK106: -- | GL106: --
A107: 1967-01-01 | E107: 0 | F107: 0 | G107: 0 | H107: 0 | X107: 89.4 | Y107: 79.274 | AM107: 36.3866 | AN107: -- | AO107: -- | AP107: -- | AQ107: 49.1 | AR107: -- | AS107: -- | AT107: 48.3 | AU107: -- | AV107: -- | AW107: 48.2 | AX107: 46.2 | AY107: 72.9 | AZ107: 54.1 | BA107: 48.2 | BB107: -- | BC107: -- | BM107: -- | BN107: -- | BT107: 47.923 | BX107: 1067 | BY107: 995 | BZ107: -- | CA107: -- | CB107: 7.099498118 | CC107: 9.829498118 | CD107: -- | CE107: -- | CF107: -- | CG107: -- | CH107: -- | CI107: -- | CJ107: 416 | CK107: 648.3 | CL107: 69.1 | CM107: 768 | CN107: 2972.8 | CO107: 252.7 | CP107: 102.1986 | CQ107: 197736 | CR107: -- | CS107: -- | CT107: -- | CZ107: 32.9 | DA107: 34.2 | DG107: 57.5 | DH107: 38.3 | DI107: 59.5 | DJ107: -- | DK107: 3.9 | DL107: 18033 | DM107: 35 | DP107: 65407 | DQ107: 207 | DT107: 209000 | DU107: -- | DV107: -- | DW107: -- | DX107: -- | DY107: -- | DZ107: -- | EA107: -- | EB107: -- | EC107: -- | EQ107: 33.4 | ER107: -- | ES107: 35.4 | EY107: 5.96 | EZ107: 4.94 | FA107: 5.2 | FB107: 5.97 | FC107: 77 | FD107: -- | FE107: 4.72 | FF107: 4.75 | FG107: -- | FH107: 4.7 | FI107: 4.58 | FJ107: -- | FP107: -- | FQ107: -- | FR107: -- | FS107: -- | FT107: -- | FU107: -- | FV107: -- | FW107: -- | FX107: -- | GD107: 2.97 | GE107: -- | GF107: -- | GG107: -- | GH107: -- | GI107: -- | GJ107: -- | GK107: -- | GL107: --
A108: 1967-02-01 | E108: 0 | F108: 0 | G108: 0 | H108: 0 | X108: 88 | Y108: 79.558 | AM108: 35.9739 | AN108: -- | AO108: -- | AP108: -- | AQ108: 47.6 | AR108: -- | AS108: -- | AT108: 47.6 | AU108: -- | AV108: -- | AW108: 45.3 | AX108: 45.1 | AY108: 61.8 | AZ108: 50.4 | BA108: 49.9 | BB108: -- | BC108: -- | BM108: -- | BN108: -- | BT108: 47.9998 | BX108: 1123 | BY108: 907 | BZ108: -- | CA108: -- | CB108: 6.667830424 | CC108: 9.327830424 | CD108: -- | CE108: -- | CF108: -- | CG108: -- | CH108: -- | CI108: -- | CJ108: 408 | CK108: 649.7 | CL108: 71.9 | CM108: 724 | CN108: 2977.7 | CO108: 252.9 | CP108: 102.3626 | CQ108: 197892 | CR108: -- | CS108: -- | CT108: -- | CZ108: 33 | DA108: 34.2 | DG108: 56.8 | DH108: 37.9 | DI108: 59.3 | DJ108: -- | DK108: 3.8 | DL108: 17978 | DM108: -55 | DP108: 65428 | DQ108: 21 | DT108: 229000 | DU108: -- | DV108: -- | DW108: -- | DX108: -- | DY108: -- | DZ108: -- | EA108: -- | EB108: -- | EC108: -- | EQ108: 33.4 | ER108: -- | ES108: 35.5 | EY108: 5.75 | EZ108: 5 | FA108: 5.03 | FB108: 5.82 | FC108: 79 | FD108: -- | FE108: 4.56 | FF108: 4.71 | FG108: -- | FH108: 4.74 | FI108: 4.63 | FJ108: -- | FP108: -- | FQ108: -- | FR108: -- | FS108: -- | FT108: -- | FU108: -- | FV108: -- | FW108: -- | FX108: -- | GD108: 3 | GE108: -- | GF108: -- | GG108: -- | GH108: -- | GI108: -- | GJ108: -- | GK108: -- | GL108: --
A109: 1967-03-01 | E109: 0 | F109: 0 | G109: 0 | H109: 0 | X109: 87.1 | Y109: 80.1231 | AM109: 35.7712 | AN109: -- | AO109: -- | AP109: -- | AQ109: 45.3 | AR109: -- | AS109: -- | AT109: 46.3 | AU109: -- | AV109: -- | AW109: 45.6 | AX109: 45.3 | AY109: 54 | AZ109: 48.7 | BA109: 38 | BB109: -- | BC109: -- | BM109: -- | BN109: -- | BT109: 48.1734 | BX109: 1056 | BY109: 955 | BZ109: -- | CA109: -- | CB109: 6.348166563 | CC109: 9.008166563 | CD109: -- | CE109: -- | CF109: -- | CG109: -- | CH109: -- | CI109: -- | CJ109: 439 | CK109: 654 | CL109: 73.7 | CM109: 757 | CN109: 3000.1 | CO109: 253.9 | CP109: 102.7322 | CQ109: 198037 | CR109: -- | CS109: -- | CT109: -- | CZ109: 33 | DA109: 34.3 | DG109: 56.8 | DH109: 37.9 | DI109: 59.1 | DJ109: -- | DK109: 3.8 | DL109: 17940 | DM109: -38 | DP109: 65530 | DQ109: 102 | DT109: 260400 | DU109: -- | DV109: -- | DW109: -- | DX109: -- | DY109: -- | DZ109: -- | EA109: -- | EB109: -- | EC109: -- | EQ109: 33.3 | ER109: -- | ES109: 35.5 | EY109: 5.71 | EZ109: 4.53 | FA109: 5.13 | FB109: 5.85 | FC109: 72 | FD109: -- | FE109: 4.26 | FF109: 4.35 | FG109: -- | FH109: 4.54 | FI109: 4.54 | FJ109: -- | FP109: -- | FQ109: -- | FR109: -- | FS109: -- | FT109: -- | FU109: -- | FV109: -- | FW109: -- | FX109: -- | GD109: 3 | GE109: -- | GF109: -- | GG109: -- | GH109: -- | GI109: -- | GJ109: -- | GK109: -- | GL109: --
A110: 1967-04-01 | E110: 0 | F110: 0 | G110: 0 | H110: 0 | X110: 87.5 | Y110: 81.185 | AM110: 36.1085 | AN110: -- | AO110: -- | AP110: -- | AQ110: 42.8 | AR110: -- | AS110: -- | AT110: 41.8 | AU110: -- | AV110: -- | AW110: 39.4 | AX110: 46.4 | AY110: 56.3 | AZ110: 44.3 | BA110: 36.9 | BB110: -- | BC110: -- | BM110: -- | BN110: -- | BT110: 48.3754 | BX110: 1091 | BY110: 1035 | BZ110: -- | CA110: -- | CB110: 6.340272615 | CC110: 9.000272615 | CD110: -- | CE110: -- | CF110: -- | CG110: -- | CH110: -- | CI110: -- | CJ110: 479 | CK110: 654.5 | CL110: 68.5 | CM110: 755 | CN110: 2999.1 | CO110: 255.1 | CP110: 102.8859 | CQ110: 198206 | CR110: -- | CS110: -- | CT110: -- | CZ110: 33.1 | DA110: 34.4 | DG110: 56.5 | DH110: 37.8 | DI110: 59.4 | DJ110: -- | DK110: 3.8 | DL110: 17878 | DM110: -62 | DP110: 65467 | DQ110: -63 | DT110: 264000 | DU110: -- | DV110: -- | DW110: -- | DX110: -- | DY110: -- | DZ110: -- | EA110: -- | EB110: -- | EC110: -- | EQ110: 33.1 | ER110: -- | ES110: 35.6 | EY110: 5.5 | EZ110: 4.05 | FA110: 5.11 | FB110: 5.83 | FC110: 72 | FD110: -- | FE110: 3.84 | FF110: 4.11 | FG110: -- | FH110: 4.51 | FI110: 4.59 | FJ110: -- | FP110: -- | FQ110: -- | FR110: -- | FS110: -- | FT110: -- | FU110: -- | FV110: -- | FW110: -- | FX110: -- | GD110: 3 | GE110: -- | GF110: -- | GG110: -- | GH110: -- | GI110: -- | GJ110: -- | GK110: -- | GL110: --
A111: 1967-05-01 | E111: 0 | F111: 0 | G111: 0 | H111: 0 | X111: 86.4 | Y111: 81.6022 | AM111: 35.7935 | AN111: -- | AO111: -- | AP111: -- | AQ111: 44.5 | AR111: -- | AS111: -- | AT111: 45.5 | AU111: -- | AV111: -- | AW111: 39.7 | AX111: 47.6 | AY111: 56.1 | AZ111: 48 | BA111: 34.4 | BB111: -- | BC111: -- | BM111: -- | BN111: -- | BT111: 48.6466 | BX111: 1304 | BY111: 1076 | BZ111: -- | CA111: -- | CB111: 6.118392581 | CC111: 8.778392581 | CD111: -- | CE111: -- | CF111: -- | CG111: -- | CH111: -- | CI111: -- | CJ111: 503 | CK111: 656.9 | CL111: 69.8 | CM111: 852 | CN111: 3005.1 | CO111: 256.7 | CP111: 103.1514 | CQ111: 198363 | CR111: -- | CS111: -- | CT111: -- | CZ111: 33.1 | DA111: 34.5 | DG111: 56.6 | DH111: 37.8 | DI111: 59.3 | DJ111: -- | DK111: 3.8 | DL111: 17832 | DM111: -46 | DP111: 65619 | DQ111: 152 | DT111: 238200 | DU111: -- | DV111: -- | DW111: -- | DX111: -- | DY111: -- | DZ111: -- | EA111: -- | EB111: -- | EC111: -- | EQ111: 33.3 | ER111: -- | ES111: 35.7 | EY111: 5.5 | EZ111: 3.94 | FA111: 5.24 | FB111: 5.96 | FC111: 72 | FD111: -- | FE111: 3.6 | FF111: 4.15 | FG111: -- | FH111: 4.75 | FI111: 4.85 | FJ111: -- | FP111: -- | FQ111: -- | FR111: -- | FS111: -- | FT111: -- | FU111: -- | FV111: -- | FW111: -- | FX111: -- | GD111: 3 | GE111: -- | GF111: -- | GG111: -- | GH111: -- | GI111: -- | GJ111: -- | GK111: -- | GL111: --
A112: 1967-06-01 | E112: 0 | F112: 0 | G112: 0 | H112: 0 | X112: 86 | Y112: 82.6929 | AM112: 35.789 | AN112: -- | AO112: -- | AP112: -- | AQ112: 46.8 | AR112: -- | AS112: -- | AT112: 45.8 | AU112: -- | AV112: -- | AW112: 39.6 | AX112: 51.8 | AY112: 58.4 | AZ112: 50.7 | BA112: 36.5 | BB112: -- | BC112: -- | BM112: -- | BN112: -- | BT112: 48.9846 | BX112: 1248 | BY112: 1169 | BZ112: -- | CA112: -- | CB112: 6.741260037 | CC112: 9.471260037 | CD112: -- | CE112: -- | CF112: -- | CG112: -- | CH112: -- | CI112: -- | CJ112: 499 | CK112: 661.6 | CL112: 69.2 | CM112: 859 | CN112: 3016.1 | CO112: 258.3 | CP112: 103.741 | CQ112: 198537 | CR112: -- | CS112: -- | CT112: -- | CZ112: 33.3 | DA112: 34.6 | DG112: 56.7 | DH112: 37.8 | DI112: 59.6 | DJ112: -- | DK112: 3.9 | DL112: 17812 | DM112: -20 | DP112: 65750 | DQ112: 131 | DT112: 222250 | DU112: -- | DV112: -- | DW112: -- | DX112: -- | DY112: -- | DZ112: -- | EA112: -- | EB112: -- | EC112: -- | EQ112: 33.5 | ER112: -- | ES112: 35.7 | EY112: 5.5 | EZ112: 3.98 | FA112: 5.44 | FB112: 6.15 | FC112: 71 | FD112: -- | FE112: 3.54 | FF112: 4.48 | FG112: -- | FH112: 5.01 | FI112: 5.02 | FJ112: -- | FP112: -- | FQ112: -- | FR112: -- | FS112: -- | FT112: -- | FU112: -- | FV112: -- | FW112: -- | FX112: -- | GD112: 3 | GE112: -- | GF112: -- | GG112: -- | GH112: -- | GI112: -- | GJ112: -- | GK112: -- | GL112: --
A113: 1967-07-01 | E113: 0 | F113: 0 | G113: 0 | H113: 0 | X113: 85.4 | Y113: 83.7351 | AM113: 35.7075 | AN113: -- | AO113: -- | AP113: -- | AQ113: 49.5 | AR113: -- | AS113: -- | AT113: 50.2 | AU113: -- | AV113: -- | AW113: 38.1 | AX113: 53.7 | AY113: 63.9 | AZ113: 53.4 | BA113: 40.9 | BB113: -- | BC113: -- | BM113: -- | BN113: -- | BT113: 49.3687 | BX113: 1364 | BY113: 1177 | BZ113: -- | CA113: -- | CB113: 6.727580894 | CC113: 9.387580894 | CD113: -- | CE113: -- | CF113: -- | CG113: -- | CH113: -- | CI113: -- | CJ113: 515 | CK113: 667.5 | CL113: 74.2 | CM113: 875 | CN113: 3029.2 | CO113: 259.5 | CP113: 104.0943 | CQ113: 198712 | CR113: -- | CS113: -- | CT113: -- | CZ113: 33.4 | DA113: 34.7 | DG113: 56.8 | DH113: 37.8 | DI113: 59.6 | DJ113: -- | DK113: 3.8 | DL113: 17784 | DM113: -28 | DP113: 65887 | DQ113: 137 | DT113: 230200 | DU113: -- | DV113: -- | DW113: -- | DX113: -- | DY113: -- | DZ113: -- | EA113: -- | EB113: -- | EC113: -- | EQ113: 33.5 | ER113: -- | ES113: 35.8 | EY113: 5.5 | EZ113: 3.79 | FA113: 5.58 | FB113: 6.26 | FC113: 68 | FD113: -- | FE113: 4.21 | FF113: 5.01 | FG113: -- | FH113: 5.23 | FI113: 5.16 | FJ113: -- | FP113: -- | FQ113: -- | FR113: -- | FS113: -- | FT113: -- | FU113: -- | FV113: -- | FW113: -- | FX113: -- | GD113: 3 | GE113: -- | GF113: -- | GG113: -- | GH113: -- | GI113: -- | GJ113: -- | GK113: -- | GL113: --
A114: 1967-08-01 | E114: 0 | F114: 0 | G114: 0 | H114: 0 | X114: 86.6 | Y114: 83.5123 | AM114: 36.3916 | AN114: -- | AO114: -- | AP114: -- | AQ114: 52.2 | AR114: -- | AS114: -- | AT114: 52.9 | AU114: -- | AV114: -- | AW114: 41.7 | AX114: 55.4 | AY114: 67.5 | AZ114: 56.4 | BA114: 44.8 | BB114: -- | BC114: -- | BM114: -- | BN114: -- | BT114: 49.7733 | BX114: 1407 | BY114: 1229 | BZ114: -- | CA114: -- | CB114: 6.403369066 | CC114: 9.063369066 | CD114: -- | CE114: -- | CF114: -- | CG114: -- | CH114: -- | CI114: -- | CJ114: 504 | CK114: 672.4 | CL114: 74.8 | CM114: 903 | CN114: 3038.8 | CO114: 260.8 | CP114: 104.6775 | CQ114: 198911 | CR114: -- | CS114: -- | CT114: -- | CZ114: 33.5 | DA114: 34.9 | DG114: 57 | DH114: 37.8 | DI114: 59.7 | DJ114: -- | DK114: 3.8 | DL114: 17905 | DM114: 121 | DP114: 66142 | DQ114: 255 | DT114: 212000 | DU114: -- | DV114: -- | DW114: -- | DX114: -- | DY114: -- | DZ114: -- | EA114: -- | EB114: -- | EC114: -- | EQ114: 33.4 | ER114: -- | ES114: 35.9 | EY114: 5.5 | EZ114: 3.9 | FA114: 5.62 | FB114: 6.33 | FC114: 71 | FD114: -- | FE114: 4.27 | FF114: 5.13 | FG114: -- | FH114: 5.31 | FI114: 5.28 | FJ114: -- | FP114: -- | FQ114: -- | FR114: -- | FS114: -- | FT114: -- | FU114: -- | FV114: -- | FW114: -- | FX114: -- | GD114: 3.07 | GE114: -- | GF114: -- | GG114: -- | GH114: -- | GI114: -- | GJ114: -- | GK114: -- | GL114: --
A115: 1967-09-01 | E115: 0 | F115: 0 | G115: 0 | H115: 0 | X115: 86.1 | Y115: 83.7365 | AM115: 36.3326 | AN115: -- | AO115: -- | AP115: -- | AQ115: 54.9 | AR115: -- | AS115: -- | AT115: 51.6 | AU115: -- | AV115: -- | AW115: 46.8 | AX115: 62 | AY115: 75.2 | AZ115: 57.4 | BA115: 46.5 | BB115: -- | BC115: -- | BM115: -- | BN115: -- | BT115: 50.1811 | BX115: 1421 | BY115: 1279 | BZ115: -- | CA115: -- | CB115: 6.395419847 | CC115: 9.055419847 | CD115: -- | CE115: -- | CF115: -- | CG115: -- | CH115: -- | CI115: -- | CJ115: 531 | CK115: 674.8 | CL115: 70.5 | CM115: 912 | CN115: 3037.4 | CO115: 262 | CP115: 105.1723 | CQ115: 199113 | CR115: -- | CS115: -- | CT115: -- | CZ115: 33.6 | DA115: 35 | DG115: 57 | DH115: 37.8 | DI115: 59.7 | DJ115: -- | DK115: 3.8 | DL115: 17794 | DM115: -111 | DP115: 66164 | DQ115: 22 | DT115: 216000 | DU115: -- | DV115: -- | DW115: -- | DX115: -- | DY115: -- | DZ115: -- | EA115: -- | EB115: -- | EC115: -- | EQ115: 33.4 | ER115: -- | ES115: 35.9 | EY115: 5.5 | EZ115: 3.99 | FA115: 5.65 | FB115: 6.4 | FC115: 75 | FD115: -- | FE115: 4.42 | FF115: 5.24 | FG115: -- | FH115: 5.4 | FI115: 5.3 | FJ115: -- | FP115: -- | FQ115: -- | FR115: -- | FS115: -- | FT115: -- | FU115: -- | FV115: -- | FW115: -- | FX115: -- | GD115: 3.07 | GE115: -- | GF115: -- | GG115: -- | GH115: -- | GI115: -- | GJ115: -- | GK115: -- | GL115: --
A116: 1967-10-01 | E116: 0 | F116: 0 | G116: 0 | H116: 0 | X116: 86.4 | Y116: 84.1043 | AM116: 36.6285 | AN116: -- | AO116: -- | AP116: -- | AQ116: 54.1 | AR116: -- | AS116: -- | AT116: 52.4 | AU116: -- | AV116: -- | AW116: 48 | AX116: 55.8 | AY116: 78.7 | AZ116: 57.7 | BA116: 51.1 | BB116: -- | BC116: -- | BM116: -- | BN116: -- | BT116: 50.5313 | BX116: 1491 | BY116: 1280 | BZ116: -- | CA116: -- | CB116: 6.587519026 | CC116: 9.387519026 | CD116: -- | CE116: -- | CF116: -- | CG116: -- | CH116: -- | CI116: -- | CJ116: 566 | CK116: 676.5 | CL116: 75.5 | CM116: 910 | CN116: 3036.8 | CO116: 262.6 | CP116: 105.4407 | CQ116: 199311 | CR116: -- | CS116: -- | CT116: -- | CZ116: 33.7 | DA116: 35.1 | DG116: 57 | DH116: 37.8 | DI116: 59.9 | DJ116: -- | DK116: 4 | DL116: 17800 | DM116: 6 | DP116: 66225 | DQ116: 61 | DT116: 217800 | DU116: -- | DV116: -- | DW116: -- | DX116: -- | DY116: -- | DZ116: -- | EA116: -- | EB116: -- | EC116: -- | EQ116: 33.4 | ER116: -- | ES116: 36.1 | EY116: 5.5 | EZ116: 3.88 | FA116: 5.82 | FB116: 6.52 | FC116: 70 | FD116: -- | FE116: 4.56 | FF116: 5.37 | FG116: -- | FH116: 5.57 | FI116: 5.48 | FJ116: -- | FP116: -- | FQ116: -- | FR116: -- | FS116: -- | FT116: -- | FU116: -- | FV116: -- | FW116: -- | FX116: -- | GD116: 3.07 | GE116: -- | GF116: -- | GG116: -- | GH116: -- | GI116: -- | GJ116: -- | GK116: -- | GL116: --
A117: 1967-11-01 | E117: 0 | F117: 0 | G117: 0 | H117: 0 | X117: 87.3 | Y117: 84.5959 | AM117: 37.1523 | AN117: -- | AO117: -- | AP117: -- | AQ117: 54.2 | AR117: -- | AS117: -- | AT117: 51.5 | AU117: -- | AV117: -- | AW117: 44.4 | AX117: 57 | AY117: 83.8 | AZ117: 58.6 | BA117: 51.4 | BB117: -- | BC117: -- | BM117: -- | BN117: -- | BT117: 50.9189 | BX117: 1538 | BY117: 1297 | BZ117: -- | CA117: -- | CB117: 7.002189781 | CC117: 9.732189781 | CD117: -- | CE117: -- | CF117: -- | CG117: -- | CH117: -- | CI117: -- | CJ117: 500 | CK117: 682.8 | CL117: 75.6 | CM117: 942 | CN117: 3054.2 | CO117: 263.4 | CP117: 106.2966 | CQ117: 199498 | CR117: -- | CS117: -- | CT117: -- | CZ117: 33.9 | DA117: 35.2 | DG117: 57.7 | DH117: 37.9 | DI117: 59.8 | DJ117: -- | DK117: 3.9 | DL117: 17985 | DM117: 185 | DP117: 66703 | DQ117: 478 | DT117: 199750 | DU117: 4.7 | DV117: -- | DW117: -- | DX117: -- | DY117: -- | DZ117: -- | EA117: -- | EB117: -- | EC117: -- | EQ117: 33.4 | ER117: -- | ES117: 36.2 | EY117: 5.68 | EZ117: 4.13 | FA117: 6.07 | FB117: 6.72 | FC117: 65 | FD117: -- | FE117: 4.73 | FF117: 5.61 | FG117: -- | FH117: 5.78 | FI117: 5.75 | FJ117: -- | FP117: -- | FQ117: -- | FR117: -- | FS117: -- | FT117: -- | FU117: -- | FV117: -- | FW117: -- | FX117: -- | GD117: 3.07 | GE117: -- | GF117: -- | GG117: -- | GH117: -- | GI117: -- | GJ117: -- | GK117: -- | GL117: --
A118: 1967-12-01 | E118: 0 | F118: 0 | G118: 0 | H118: 0 | X118: 87.8 | Y118: 86.1397 | AM118: 37.5525 | AN118: -- | AO118: -- | AP118: -- | AQ118: 55.6 | AR118: -- | AS118: -- | AT118: 51.5 | AU118: -- | AV118: -- | AW118: 53.8 | AX118: 59.4 | AY118: 79.6 | AZ118: 58.7 | BA118: 49.9 | BB118: -- | BC118: -- | BM118: -- | BN118: -- | BT118: 51.1914 | BX118: 1308 | BY118: 1315 | BZ118: -- | CA118: -- | CB118: 7.080680437 | CC118: 9.740680437 | CD118: -- | CE118: -- | CF118: -- | CG118: -- | CH118: -- | CI118: -- | CJ118: 502 | CK118: 689.9 | CL118: 74 | CM118: 819 | CN118: 3080.3 | CO118: 263.7 | CP118: 106.8426 | CQ118: 199657 | CR118: -- | CS118: -- | CT118: -- | CZ118: 34 | DA118: 35.4 | DG118: 57.5 | DH118: 37.7 | DI118: 59.9 | DJ118: -- | DK118: 3.8 | DL118: 18025 | DM118: 40 | DP118: 66900 | DQ118: 197 | DT118: 215000 | DU118: 4.8 | DV118: -- | DW118: -- | DX118: -- | DY118: -- | DZ118: -- | EA118: -- | EB118: -- | EC118: -- | EQ118: 33.7 | ER118: -- | ES118: 36.4 | EY118: 6 | EZ118: 4.51 | FA118: 6.19 | FB118: 6.93 | FC118: 74 | FD118: -- | FE118: 4.97 | FF118: 5.71 | FG118: -- | FH118: 5.75 | FI118: 5.7 | FJ118: -- | FP118: -- | FQ118: -- | FR118: -- | FS118: -- | FT118: -- | FU118: -- | FV118: -- | FW118: -- | FX118: -- | GD118: 3.07 | GE118: -- | GF118: -- | GG118: -- | GH118: -- | GI118: -- | GJ118: -- | GK118: -- | GL118: --
A119: 1968-01-01 | E119: 0 | F119: 0 | G119: 0 | H119: 0 | X119: 87.4 | Y119: 86.5509 | AM119: 37.512 | AN119: -- | AO119: -- | AP119: -- | AQ119: 56.6 | AR119: -- | AS119: -- | AT119: 53.2 | AU119: -- | AV119: -- | AW119: 54.8 | AX119: 60.1 | AY119: 78 | AZ119: 59.3 | BA119: 50.6 | BB119: -- | BC119: -- | BM119: -- | BN119: -- | BT119: 51.615 | BX119: 1380 | BY119: 1179 | BZ119: -- | CA119: -- | CB119: 7.347416413 | CC119: 9.937416413 | CD119: -- | CE119: -- | CF119: -- | CG119: -- | CH119: -- | CI119: -- | CJ119: 494 | CK119: 694.5 | CL119: 71.9 | CM119: 839 | CN119: 3085.1 | CO119: 263.2 | CP119: 106.7724 | CQ119: 199808 | CR119: 1.3168 | CS119: -- | CT119: -- | CZ119: 34.1 | DA119: 35.5 | DG119: 57.2 | DH119: 37.6 | DI119: 59.2 | DJ119: -- | DK119: 3.7 | DL119: 18040 | DM119: 15 | DP119: 66805 | DQ119: -95 | DT119: 215750 | DU119: 5.1 | DV119: -- | DW119: -- | DX119: -- | DY119: -- | DZ119: -- | EA119: -- | EB119: -- | EC119: -- | EQ119: 33.8 | ER119: -- | ES119: 36.5 | EY119: 6 | EZ119: 4.6 | FA119: 6.17 | FB119: 6.84 | FC119: 67 | FD119: -- | FE119: 5 | FF119: 5.43 | FG119: -- | FH119: 5.54 | FI119: 5.53 | FJ119: -- | FP119: -- | FQ119: -- | FR119: -- | FS119: -- | FT119: -- | FU119: -- | FV119: -- | FW119: -- | FX119: -- | GD119: 3.07 | GE119: -- | GF119: -- | GG119: -- | GH119: -- | GI119: -- | GJ119: -- | GK119: -- | GL119: --
A120: 1968-02-01 | E120: 0 | F120: 0 | G120: 0 | H120: 0 | X120: 87.3 | Y120: 86.5981 | AM120: 37.6465 | AN120: -- | AO120: -- | AP120: -- | AQ120: 55 | AR120: -- | AS120: -- | AT120: 50.3 | AU120: -- | AV120: -- | AW120: 53.7 | AX120: 56.6 | AY120: 76.3 | AZ120: 58.1 | BA120: 53.9 | BB120: -- | BC120: -- | BM120: -- | BN120: -- | BT120: 52.0255 | BX120: 1520 | BY120: 1342 | BZ120: -- | CA120: -- | CB120: 7.436363636 | CC120: 10.09636364 | CD120: -- | CE120: -- | CF120: -- | CG120: -- | CH120: -- | CI120: -- | CJ120: 543 | CK120: 702.6 | CL120: 76 | CM120: 993 | CN120: 3107 | CO120: 263.5 | CP120: 107.9284 | CQ120: 199920 | CR120: 1.3588 | CS120: -- | CT120: -- | CZ120: 34.2 | DA120: 35.7 | DG120: 57.9 | DH120: 37.8 | DI120: 59.6 | DJ120: -- | DK120: 3.8 | DL120: 18054 | DM120: 14 | DP120: 67215 | DQ120: 410 | DT120: 210750 | DU120: 4.5 | DV120: -- | DW120: -- | DX120: -- | DY120: -- | DZ120: -- | EA120: -- | EB120: -- | EC120: -- | EQ120: 34 | ER120: -- | ES120: 36.6 | EY120: 6 | EZ120: 4.71 | FA120: 6.1 | FB120: 6.8 | FC120: 70 | FD120: -- | FE120: 4.98 | FF120: 5.41 | FG120: -- | FH120: 5.59 | FI120: 5.56 | FJ120: -- | FP120: -- | FQ120: -- | FR120: -- | FS120: -- | FT120: -- | FU120: -- | FV120: -- | FW120: -- | FX120: -- | GD120: 3.07 | GE120: -- | GF120: -- | GG120: -- | GH120: -- | GI120: -- | GJ120: -- | GK120: -- | GL120: --
A121: 1968-03-01 | E121: 0 | F121: 0 | G121: 0 | H121: 0 | X121: 87.3 | Y121: 87.114 | AM121: 37.764 | AN121: -- | AO121: -- | AP121: -- | AQ121: 53.8 | AR121: -- | AS121: -- | AT121: 50.1 | AU121: -- | AV121: -- | AW121: 50.7 | AX121: 55.7 | AY121: 76.1 | AZ121: 55.8 | BA121: 54 | BB121: -- | BC121: -- | BM121: -- | BN121: -- | BT121: 52.465 | BX121: 1466 | BY121: 1370 | BZ121: -- | CA121: -- | CB121: 7.639393939 | CC121: 10.22939394 | CD121: -- | CE121: -- | CF121: -- | CG121: -- | CH121: -- | CI121: -- | CJ121: 490 | CK121: 710.8 | CL121: 73.1 | CM121: 912 | CN121: 3136.1 | CO121: 264.3 | CP121: 108.6891 | CQ121: 200056 | CR121: 1.4128 | CS121: -- | CT121: -- | CZ121: 34.3 | DA121: 35.8 | DG121: 57.8 | DH121: 37.7 | DI121: 59.6 | DJ121: -- | DK121: 3.7 | DL121: 18067 | DM121: 13 | DP121: 67295 | DQ121: 80 | DT121: 195200 | DU121: 4.1 | DV121: -- | DW121: -- | DX121: -- | DY121: -- | DZ121: -- | EA121: -- | EB121: -- | EC121: -- | EQ121: 34.1 | ER121: -- | ES121: 36.6 | EY121: 6 | EZ121: 5.05 | FA121: 6.11 | FB121: 6.85 | FC121: 74 | FD121: -- | FE121: 5.17 | FF121: 5.58 | FG121: -- | FH121: 5.76 | FI121: 5.74 | FJ121: -- | FP121: -- | FQ121: -- | FR121: -- | FS121: -- | FT121: -- | FU121: -- | FV121: -- | FW121: -- | FX121: -- | GD121: 3.07 | GE121: -- | GF121: -- | GG121: -- | GH121: -- | GI121: -- | GJ121: -- | GK121: -- | GL121: --
A122: 1968-04-01 | E122: 0 | F122: 0 | G122: 0 | H122: 0 | X122: 87.1 | Y122: 88.421 | AM122: 37.8186 | AN122: -- | AO122: -- | AP122: -- | AQ122: 58 | AR122: -- | AS122: -- | AT122: 53.5 | AU122: -- | AV122: -- | AW122: 54.9 | AX122: 64.5 | AY122: 71.5 | AZ122: 60.1 | BA122: 49 | BB122: -- | BC122: -- | BM122: -- | BN122: -- | BT122: 52.8549 | BX122: 1554 | BY122: 1286 | BZ122: -- | CA122: -- | CB122: 7.427492447 | CC122: 9.877492447 | CD122: -- | CE122: -- | CF122: -- | CG122: -- | CH122: -- | CI122: -- | CJ122: 501 | CK122: 716.7 | CL122: 77.8 | CM122: 925 | CN122: 3149 | CO122: 264.3 | CP122: 109.5976 | CQ122: 200208 | CR122: 1.4777 | CS122: -- | CT122: -- | CZ122: 34.4 | DA122: 35.9 | DG122: 57.9 | DH122: 37.6 | DI122: 59.5 | DJ122: -- | DK122: 3.5 | DL122: 18131 | DM122: 64 | DP122: 67555 | DQ122: 260 | DT122: 199000 | DU122: 4.6 | DV122: -- | DW122: -- | DX122: -- | DY122: -- | DZ122: -- | EA122: -- | EB122: -- | EC122: -- | EQ122: 34.1 | ER122: -- | ES122: 36.8 | EY122: 6.2 | EZ122: 5.76 | FA122: 6.21 | FB122: 6.97 | FC122: 76 | FD122: -- | FE122: 5.38 | FF122: 5.71 | FG122: -- | FH122: 5.69 | FI122: 5.64 | FJ122: -- | FP122: -- | FQ122: -- | FR122: -- | FS122: -- | FT122: -- | FU122: -- | FV122: -- | FW122: -- | FX122: -- | GD122: 3.07 | GE122: -- | GF122: -- | GG122: -- | GH122: -- | GI122: -- | GJ122: -- | GK122: -- | GL122: --
A123: 1968-05-01 | E123: 0 | F123: 0 | G123: 0 | H123: 0 | X123: 87.7 | Y123: 88.9726 | AM123: 38.2429 | AN123: -- | AO123: -- | AP123: -- | AQ123: 55.3 | AR123: -- | AS123: -- | AT123: 53.1 | AU123: -- | AV123: -- | AW123: 54 | AX123: 56.2 | AY123: 69.2 | AZ123: 60 | BA123: 49.4 | BB123: -- | BC123: -- | BM123: -- | BN123: -- | BT123: 53.2923 | BX123: 1408 | BY123: 1297 | BZ123: -- | CA123: -- | CB123: 7.729607251 | CC123: 10.17960725 | CD123: -- | CE123: -- | CF123: -- | CG123: -- | CH123: -- | CI123: -- | CJ123: 441 | CK123: 722.9 | CL123: 76.6 | CM123: 850 | CN123: 3160.9 | CO123: 264.5 | CP123: 110.377 | CQ123: 200361 | CR123: 1.5384 | CS123: -- | CT123: -- | CZ123: 34.5 | DA123: 36 | DG123: 58.1 | DH123: 37.7 | DI123: 59.9 | DJ123: -- | DK123: 3.5 | DL123: 18190 | DM123: 59 | DP123: 67653 | DQ123: 98 | DT123: 199000 | DU123: 4.4 | DV123: -- | DW123: -- | DX123: -- | DY123: -- | DZ123: -- | EA123: -- | EB123: -- | EC123: -- | EQ123: 34.2 | ER123: -- | ES123: 37 | EY123: 6.5 | EZ123: 6.11 | FA123: 6.27 | FB123: 7.03 | FC123: 76 | FD123: -- | FE123: 5.66 | FF123: 6.14 | FG123: -- | FH123: 6.04 | FI123: 5.87 | FJ123: -- | FP123: -- | FQ123: -- | FR123: -- | FS123: -- | FT123: -- | FU123: -- | FV123: -- | FW123: -- | FX123: -- | GD123: 3.07 | GE123: -- | GF123: -- | GG123: -- | GH123: -- | GI123: -- | GJ123: -- | GK123: -- | GL123: --
A124: 1968-06-01 | E124: 0 | F124: 0 | G124: 0 | H124: 0 | X124: 87.7 | Y124: 89.9295 | AM124: 38.3833 | AN124: -- | AO124: -- | AP124: -- | AQ124: 53.5 | AR124: -- | AS124: -- | AT124: 52.6 | AU124: -- | AV124: -- | AW124: 55 | AX124: 54.3 | AY124: 70.4 | AZ124: 54.9 | BA124: 49.9 | BB124: -- | BC124: -- | BM124: -- | BN124: -- | BT124: 53.8707 | BX124: 1405 | BY124: 1300 | BZ124: -- | CA124: -- | CB124: 7.904204204 | CC124: 10.4942042 | CD124: -- | CE124: -- | CF124: -- | CG124: -- | CH124: -- | CI124: -- | CJ124: 441 | CK124: 728.3 | CL124: 74.7 | CM124: 799 | CN124: 3174 | CO124: 264.9 | CP124: 111.0679 | CQ124: 200536 | CR124: 1.6145 | CS124: -- | CT124: -- | CZ124: 34.7 | DA124: 36.2 | DG124: 58.4 | DH124: 37.8 | DI124: 60 | DJ124: -- | DK124: 3.7 | DL124: 18228 | DM124: 38 | DP124: 67904 | DQ124: 251 | DT124: 192250 | DU124: 4.4 | DV124: -- | DW124: -- | DX124: -- | DY124: -- | DZ124: -- | EA124: -- | EB124: -- | EC124: -- | EQ124: 34.2 | ER124: -- | ES124: 37 | EY124: 6.5 | EZ124: 6.07 | FA124: 6.28 | FB124: 7.07 | FC124: 79 | FD124: -- | FE124: 5.52 | FF124: 5.98 | FG124: -- | FH124: 5.85 | FI124: 5.72 | FJ124: -- | FP124: -- | FQ124: -- | FR124: -- | FS124: -- | FT124: -- | FU124: -- | FV124: -- | FW124: -- | FX124: -- | GD124: 3.07 | GE124: -- | GF124: -- | GG124: -- | GH124: -- | GI124: -- | GJ124: -- | GK124: -- | GL124: --
A125: 1968-07-01 | E125: 0 | F125: 0 | G125: 0 | H125: 0 | X125: 87.2 | Y125: 91.0358 | AM125: 38.3245 | AN125: -- | AO125: -- | AP125: -- | AQ125: 54.1 | AR125: -- | AS125: -- | AT125: 48.2 | AU125: -- | AV125: -- | AW125: 55.8 | AX125: 54.5 | AY125: 67.1 | AZ125: 56.5 | BA125: 55.9 | BB125: -- | BC125: -- | BM125: -- | BN125: -- | BT125: 54.3549 | BX125: 1512 | BY125: 1344 | BZ125: -- | CA125: -- | CB125: 8.191017964 | CC125: 10.78101796 | CD125: -- | CE125: -- | CF125: -- | CG125: -- | CH125: -- | CI125: -- | CJ125: 493 | CK125: 735 | CL125: 68.2 | CM125: 923 | CN125: 3167.7 | CO125: 264.6 | CP125: 112.1237 | CQ125: 200706 | CR125: 1.6857 | CS125: -- | CT125: -- | CZ125: 34.9 | DA125: 36.4 | DG125: 58.5 | DH125: 37.7 | DI125: 59.8 | DJ125: -- | DK125: 3.7 | DL125: 18265 | DM125: 37 | DP125: 68125 | DQ125: 221 | DT125: 198200 | DU125: 4.5 | DV125: -- | DW125: -- | DX125: -- | DY125: -- | DZ125: -- | EA125: -- | EB125: -- | EC125: -- | EQ125: 34.3 | ER125: -- | ES125: 37.1 | EY125: 6.5 | EZ125: 6.02 | FA125: 6.24 | FB125: 6.98 | FC125: 74 | FD125: -- | FE125: 5.31 | FF125: 5.65 | FG125: -- | FH125: 5.6 | FI125: 5.5 | FJ125: -- | FP125: -- | FQ125: -- | FR125: -- | FS125: -- | FT125: -- | FU125: -- | FV125: -- | FW125: -- | FX125: -- | GD125: 3.07 | GE125: -- | GF125: -- | GG125: -- | GH125: -- | GI125: -- | GJ125: -- | GK125: -- | GL125: --
... 156 more rows

Sheet Quarterly
A7: Title: | B7: Nominal Gross Domestic Product | C7: Real Gross Domestic Product | D7: Real Final Sales of Domestic Product | E7: Real Personal Consumption Expenditures | F7: Real PCE: Durable Goods | G7: Real PCE: Nondurable Goods | H7: Real PCE: Services | I7: Real Private Nonres. Fixed Investment | J7: Real Nonres. Invest.: Equip. & Software | K7: Real Private Residential Fixed Investment | L7: Real Change in Private Inventories | M7: Real Imports of Goods & Services | N7: Real Exports of Goods & Services | O7: Net Exports of Goods & Services | P7: Real Gov't Cons. & Invest. | Q7: Federal Government Surplus or Deficit [-], NIPA | W7: Capacity Utilization: Mfg (NAICS) | X7: Capacity Utilization: Total Industry | Y7: Com'l & Industrial Loans, Commercial Banks | Z7: Commercial Net Loan Charge-offs | AA7: Corporate Profits After Tax | AB7: Corporate Profits Less Financial After Tax | AC7: Bank Willingness to Make Consumer Loans | AD7: Demand for Com'l & Ind'l Loans by Small Firms - Net | AE7: Nonperf'g Loans - Total | AF7: Commercial Net Loan Charge-offs | AG7: Total Loan Charge-offs | AH7: E-Commerce Sales | AI7: E-Commerce Sales as % of Total Retail Sales | AJ7: ECI: Benefits: Private Industry Workers | AK7: ECI: Compensation: Private Industry Workers | AL7: ECI: Wages & Salaries: Private Industry Workers | AM7: Industrial Production Index | AN7: Industrial Production Index - Mfg. | AO7: Inventories: Total Business | AP7: Inventory to Sales Ratio: Total Business | AQ7: ISM INDEX: PMI Manufacturing Composite Index | AR7: ISM INDEX Backlogs | AS7: ISM INDEX Customer Inventories | AT7: ISM INDEX Employment | AU7: ISM INDEX Exports | AV7: ISM INDEX Imports | AW7: ISM INDEX Inventories | AX7: ISM INDEX New Orders | AY7: ISM INDEX Prices | AZ7: ISM INDEX Production | BA7: ISM INDEX Supplier deliveries | BB7: ISM Non Mfg: Business Activity Index | BC7: Mfgs' New Orders: Nondefense Excluding Aircraft | BD7: Mfg.: Output Per Hour of All Persons | BE7: Mfg.: Unit Labor Cost | BF7: Nonfarm: Comp. Per Hour | BG7: Nonfarm: Output Per Hour of All Persons | BH7: Nonfarm: Real Comp. Per Hour | BI7: Nonfarm: Unit Labor Cost | BJ7: Nonfinancial Corporate Business: Profits After Tax | BK7: Nonperf'g Total Loans | BL7: PMI Manufacturing Composit Index | BM7: Retail and Food Services Sales | BN7: Retail Sales: Total (Excl'g Food Svcs.) | BT7: Consumer Loans at All Commercial Banks | BU7: Debt Service Payments as a % DPI | BV7: Household Financial Obligations as a percent of DPI | BW7: Household Credit Market Debt Outstanding | BX7: Housing Starts: Total: New Privately Owned | BY7: New Private Housing Units Authorized by Building Permits - Thousands | BZ7: S&P Case-Shiller 20-City Home Price Index | CA7: Autos & Light Trucks | CB7: Misery Index | CC7: Misery Index - Adjusted | CD7: New Home Inventories - Thousands | CE7: New Homes Sold - Thousands | CF7: New Home IN/RS | CG7: Used Home Inventories - Thousands | CH7: Used Homes Sold - Thousands | CI7: Used Home IN/RS | CJ7: New Homes Sales - Single Family - Thousands | CK7: Personal Income | CL7: Personal Saving | CM7: Privately Owned Housing Starts: 1-Unit Structures | CN7: Real Disposable Personal Income | CO7: Savings Deposits - Total | CP7: Total Consumer Credit Outstanding | CQ7: Total Population: Incl'd Armed Forces Overseas - Thousands | CR7: Total Revolving Credit Outstanding | CS7: University of Michigan: Consumer Sentiment | CT7: Conference Board Consumer Confidence | CZ7: CPI Index - All Urban: All Items | DA7: CPI Index All Urban: Less Food & Energy | DG7: Aggregate Weekly Hours Index: Total Private Industries | DH7: Average Weekly Hours: Production & Nonsuper. | DI7: Civilian Participation Rate | DJ7: Total Unemployment Rate Plus (U6 Rate) | DK7: Civilian Unemployment Rate | DL7: Nonfarm Payrolls: Mfg. | DM7: Nonfarm Payrolls: Mfg. - Monthly Change | DN7: Nonfarm Payrolls: Mfg - Quarterly Change | DO7: Nonfarm Payrolls: Mfg - Annual Change | DP7: Total Nonfarm Payrolls: All Employees | DQ7: Nonfarm Payrolls: All Employees - Monthly Change | DR7: Nonfarm Payrolls: All Employees - Quarterly Change | DS7: Nonfarm Payrolls: All Employees - Annual Change | DT7: Initial Unemployment Claims (Monthly Average) | DU7: Median Duration of Unemployment | DV7: Trucking Employment - Truck Transportation - SA | DW7: Trucking Employment - Truck Transportation - NSA | DX7: Trucking Employment - General Freight - NSA | DY7: Trucking Employment - General Freight, local - NSA | DZ7: Trucking Employment - General Freight, long - NSA | EA7: Trucking Employment - General Freight, long TL - NSA | EB7: Trucking Employment - General Freight, long LTL - NSA | EC7: Trucking Employment - Specialized Freight - NSA | EI7: Freight Composite Index Class 8 | EJ7: Freight Composite Index Dry Van | EK7: Freight Composite Index Reefer Van | EQ7: Producer Price Index: All Commodities | ER7: PPI: Finished Goods Less Food & Energy | ES7: PPI Finished Goods: Capital Equipment | EY7: Bank Prime Loan Rate | EZ7: Effective Federal Funds Rate | FA7: Moody's Seasoned Aaa Corporate Bond Yield | FB7: Moody's Seasoned Baa Corporate Bond Yield | FC7: Yield Spread: Moody's Seasoned Corporate Bond Yield | FD7: Mortgage Rate, 30-Year Conventional | FE7: Treasury Bill: Secondary Market Rate, 3-Month | FF7: Treasury Constant Maturity Rate, 1-Year | FG7: Treasury Constant Maturity Rate, 2-Year | FH7: Treasury Constant Maturity Rate, 5-Year | FI7: Treasury Constant Maturity Rate, 10-Year | FJ7: Treasury Yield, 10-Year Minus 1-Year | FP7: Canada/U.S. Foreign Exchange Rate | FQ7: China/U.S. Foreign Exchange Rate | FR7: Mexico/U.S. Foreign Exchange Rate | FS7: U.S./Euro Foreign Exchange Rate | FT7: Trade Weighted Exchange Index: Broad | FU7: Trade Weighted Exchange Index: Major Currencies | FV7: U.S. Imports from Canada, Customs Basis | FW7: U.S. Imports from China, Mainland, Customs Basis | FX7: U.S. Imports from Mexico, Customs Basis | GD7: Spot Oil Price: West Texas Intermediate | GE7: Europe Brent Spot Price FOB | GF7: EIA Retail Gasoline Prices : All Grades | GG7: EIA Retail On-Highway Diesel Fuel Prices | GH7: U.S. Exports of Distillate Fuel Oil | GI7: U.S. Exports of Distillate Fuel Oil, 0 to 15 ppm Sulfur | GJ7: Natural Gas Futures Contract 1 | GK7: U.S. Product Supplied of Distillate Fuel Oil | GL7: U.S. Refiner Net Production of Distillate Fuel Oil, 0 to 15 ppm Sulfur
A8: ID | B8: GDP001Q | C8: GDP004Q | D8: GDP007Q | E8: GDP010Q | F8: GDP014Q | G8: GDP018Q | H8: GDP022Q | I8: GDP026Q | J8: GDP029Q | K8: GDP032Q | L8: GDP035Q | M8: GDP036Q | N8: GDP039Q | O8: GDP042Q | P8: GDP043Q | Q8: GDP046Q | W8: BUS001Q | X8: BUS002Q | Y8: BUS003Q | Z8: BUS004Q | AA8: BUS005Q | AB8: BUS006Q | AC8: BUS007Q | AD8: BUS008Q | AE8: BUS009Q | AF8: BUS010Q | AG8: BUS011Q | AH8: BUS012Q | AI8: BUS013Q | AJ8: BUS014Q | AK8: BUS015Q | AL8: BUS016Q | AM8: BUS019Q | AN8: BUS020M | AO8: BUS021Q | AP8: BUS022Q | AQ8: BUS023Q | AR8: BUS024Q | AS8: BUS025Q | AT8: BUS026Q | AU8: BUS027Q | AV8: BUS028Q | AW8: BUS029Q | AX8: BUS030Q | AY8: BUS031Q | AZ8: BUS032Q | BA8: BUS033Q | BB8: BUS034Q | BC8: BUS035Q | BD8: BUS036Q | BE8: BUS037Q | BF8: BUS038Q | BG8: BUS039Q | BH8: BUS040Q | BI8: BUS041Q | BJ8: BUS042Q | BK8: BUS043Q | BL8: BUS044Q | BM8: BUS045Q | BN8: BUS046Q | BT8: CON001Q | BU8: CON002Q | BV8: CON003Q | BW8: CON004Q | BX8: CON005Q | BY8: CON006Q | BZ8: CON007Q | CA8: CON008Q | CB8: CON009Q | CC8: CON010Q | CD8: CON011Q | CE8: CON012Q | CF8: CON035M | CG8: CON033Q | CH8: CON034Q | CI8: COM036M | CJ8: CON013Q | CK8: CON014Q | CL8: CON018Q | CM8: CON022Q | CN8: CON023Q | CO8: CON027Q | CP8: CON028Q | CQ8: CON029Q | CR8: CON030Q | CS8: CON031Q | CT8: CON032Q | CZ8: CPI001Q | DA8: CPI005Q | DG8: EMP001Q | DH8: EMP002Q | DI8: EMP003Q | DJ8: EMP004Q | DK8: EMP005Q | DL8: EMP006Q | DM8: EMP007Q | DN8: EMP009Q | DO8: EMP011Q | DP8: EMP013Q | DQ8: EMP014Q | DR8: EMP016Q | DS8: EMP018Q | DT8: EMP020Q | DU8: EMP021Q | DV8: EMP022Q | DW8: EMP023Q | DX8: EMP024Q | DY8: EMP025Q | DZ8: EMP026Q | EA8: EMP027Q | EB8: EMP028Q | EC8: EMP029Q | EI8: FRE001Q | EJ8: FRE004Q | EK8: FRE007Q | EQ8: PPI001Q | ER8: PPI004Q | ES8: PPI007Q | EY8: RAT001Q | EZ8: RAT002Q | FA8: RAT003Q | FB8: RAT004Q | FD8: RAT005Q | FE8: RAT006Q | FF8: RAT007Q | FG8: RAT008Q | FH8: RAT009Q | FI8: RAT010Q | FJ8: RAT011Q | FP8: TRA001Q | FQ8: TRA002Q | FR8: TRA003Q | FS8: TRA004Q | FT8: TRA005Q | FU8: TRA006Q | FV8: TRA007Q | FW8: TRA008Q | FX8: TRA009Q | GD8: ENE001Q | GE8: ENE002Q | GF8: ENE003Q | GG8: ENE004Q | GH8: ENE005Q | GI8: ENE006Q | GJ8: ENE007Q | GK8: ENE008Q | GL8: ENE009Q
A9: Frequency: | B9: Quarterly | C9: Quarterly | D9: Quarterly | E9: Monthly | F9: Monthly | G9: Monthly | H9: Monthly | I9: Quarterly | J9: Quarterly | K9: Quarterly | L9: Quarterly | M9: Quarterly | N9: Quarterly | O9: Quarterly | P9: Quarterly | Q9: Quarterly | W9: Quarterly | X9: Monthly | Y9: Monthly | Z9: Quarterly, End of Period | AA9: Quarterly | AB9: Quarterly | AC9: Quarterly, End of Period | AD9: Quarterly, End of Period | AE9: Quarterly, End of Period | AF9: Quarterly, End of Period | AG9: Quarterly, End of Period | AH9: Quarterly | AI9: Quarterly | AJ9: Quarterly | AK9: Quarterly | AL9: Quarterly | AM9: Monthly | AN9: Monthly | AO9: Monthly, End of Period | AP9: Monthly | AQ9: Monthly | AR9: Monthly | AS9: Monthly | AT9: Monthly | AU9: Monthly | AV9: Monthly | AW9: Monthly | AX9: Monthly | AY9: Monthly | AZ9: Monthly | BA9: Monthly | BB9: Monthly | BC9: Monthly | BD9: Quarterly | BE9: Quarterly | BF9: Quarterly | BG9: Quarterly | BH9: Quarterly | BI9: Quarterly | BJ9: Quarterly | BK9: Quarterly | BL9: Monthly | BM9: Monthly | BN9: Monthly | BT9: Monthly | BU9: Quarterly | BV9: Quarterly | BW9: Quarterly, End of Period | BX9: Monthly | BY9: Monthly | BZ9: Monthly | CA9: Monthly | CB9: Monthly | CC9: Monthly | CD9: Monthly | CE9: Monthly | CF9: Monthly | CG9: Monthly | CH9: Monthly | CI9: Monthly | CJ9: Monthly | CK9: Monthly | CL9: Monthly | CM9: Monthly | CN9: Monthly | CO9: Monthly | CP9: Monthly, End of Period | CQ9: Monthly | CR9: Monthly, End of Period | CS9: Monthly | CT9: Monthly | CZ9: Monthly | DA9: Monthly | DG9: Monthly | DH9: Monthly | DI9: Monthly | DJ9: Monthly | DK9: Monthly | DL9: Monthly | DP9: Monthly | DT9: Weekly, End of Period | DU9: Monthly | DV9: Monthly | DW9: Monthly | DX9: Monthly | DY9: Monthly | DZ9: Monthly | EA9: Monthly | EB9: Monthly | EC9: Monthly | EI9: Quarterly | EJ9: Quarterly | EK9: Quarterly | EQ9: Monthly | ER9: Monthly | ES9: Monthly | EY9: Monthly | EZ9: Monthly | FA9: Monthly | FB9: Monthly | FD9: Monthly | FE9: Monthly | FF9: Monthly | FG9: Monthly | FH9: Monthly | FI9: Monthly | FP9: Monthly | FQ9: Monthly | FR9: Monthly | FS9: Monthly | FT9: Monthly | FU9: Monthly | FV9: Monthly | FW9: Monthly | FX9: Monthly | GD9: Monthly | GE9: Monthly | GF9: Monthly | GG9: Monthly | GH9: Monthly | GI9: Monthly | GJ9: Monthly | GK9: Monthly | GL9: Monthly
A10: Units: | B10: Billions of Dollars | C10: Billions of Chained 2009 Dollars | D10: Billions of Chained 2009 Dollars | E10: Billions of Chained 2009 Dollars | F10: Billions of Chained 2009 Dollars | G10: Billions of Chained 2009 Dollars | H10: Billions of Chained 2009 Dollars | I10: Billions of Chained 2009 Dollars | J10: Billions of Chained 2009 Dollars | K10: Billions of Chained 2009 Dollars | L10: Billions of Chained 2009 Dollars | M10: Billions of Chained 2009 Dollars | N10: Billions of Chained 2009 Dollars | O10: Billions of Chained 2009 Dollars | P10: Billions of Chained 2009 Dollars | Q10: Billions of Dollars | W10: Percent of Capacity | X10: Percent of Capacity | Y10: Billions of Dollars | Z10: Ratio | AA10: Billions of Dollars | AB10: Billions of Dollars | AC10: Percent | AD10: Percent | AE10: Ratio | AF10: Ratio | AG10: Ratio | AH10: Millions of Dollars | AI10: XXXXXXXX | AJ10: Index: December 2005=100 | AK10: Index: December 2005=100 | AL10: Index: December 2005=100 | AM10: Index 2012=100 | AN10: Index 2012=100 | AO10: Millions of Dollars | AP10: Ratio | AQ10: Index | AR10: Index | AS10: Index | AT10: Index | AU10: Index | AV10: Index | AW10: Index | AX10: Index | AY10: Index | AZ10: Index | BA10: Index | BB10: Index | BC10: Millions of Dollars | BD10: Index, 2009=100 | BE10: Index, 2009=100 | BF10: Index, 2009=100 | BG10: Index, 2009=100 | BH10: Index, 2009=100 | BI10: Index, 2009=100 | BJ10: Billions of Dollars | BK10: Ratio | BL10: XXXXXXXX | BM10: Millions of Dollars | BN10: Millions of Dollars | BT10: Billions of Dollars | BU10: Percent | BV10: Percent | BW10: Billions of Dollars | BX10: Thousands of Units | BY10: Thousands of Units | BZ10: Billions of Dollars | CA10: Millions of Units | CB10: Percent | CC10: Percent | CD10: Thousands, SAAR | CE10: Thousands, SAAR | CG10: Thousands | CH10: Thousands | CJ10: Thousands | CK10: Billions of Dollars | CL10: Billions of Dollars | CM10: Thousands of Units | CN10: Billions of Chained 2009 Dollars | CO10: Billions of Dollars | CP10: Billions of Dollars | CQ10: Thousands | CR10: Billions of Dollars | CS10: Index 1st Quarter 1966=100 | CT10: Index | CZ10: Index 1982-84=100 | DA10: Index 1982-84=100 | DG10: Index 2002=100 | DH10: Hours | DI10: Percent | DJ10: Percent | DK10: Percent | DL10: Thousands | DM10: Thousands | DN10: XXXXXXXX | DO10: XXXXXXXX | DP10: Thousands | DQ10: Thousands | DR10: XXXXXXXX | DS10: XXXXXXXX | DT10: Number | DU10: Weeks | DV10: Thousands | DW10: Thousands | DX10: Thousands | DY10: Thousands | DZ10: Thousands | EA10: Thousands | EB10: Thousands | EC10: Thousands | EI10: Index | EJ10: Index | EK10: Index | EQ10: Index 1982=100 | ER10: Index 1982=100 | ES10: Index 1982=100 | EY10: Percent | EZ10: Percent | FA10: Percent | FB10: Percent | FC10: Yield Spread (in BPS) | FD10: Percent | FE10: Percent | FF10: Percent | FG10: Percent | FH10: Percent | FI10: Percent | FJ10: Yield Spread (in BPS) | FP10: Canadian Dollars to One U.S. Dollar | FQ10: Chinese Yuan to One U.S. Dollar | FR10: Mexican New Pesos to One U.S. Dollar | FS10: U.S. Dollars to One Euro | FT10: Index January 1997=100 | FU10: Index March 1973=100 | FV10: Millions of Dollars | FW10: Millions of Dollars | FX10: Millions of Dollars | GD10: $ per Bbl. | GE10: $ per Bbl. | GF10: $ per Gallon | GG10: $ per Gallon | GH10: 000s Bbls/Day | GI10: 000s Bbls/Day | GJ10: $ per MmBTU | GK10: 000s Bbls/Day | GL10: 000s Bbls/Day
A11: 59'Q1 | B11: 511.063 | C11: 2976.629 | D11: 2980.647 | E11: 1809.5 | F11: 80.14375318 | G11: 634.3620172 | H11: 1094.99423 | I11: 174.957286 | J11: 92.08092141 | K11: 216.3 | L11: 11.544 | M11: 117.133 | N11: 86.577 | O11: -30.556 | P11: 989.449 | Q11: -4.544 | W11: -- | X11: -- | Y11: 35.18783333 | Z11: -- | AA11: 32.002 | AB11: 30.765 | AC11: -- | AD11: -- | AE11: -- | AF11: -- | AG11: -- | AH11: -- | AI11: -- | AJ11: -- | AK11: -- | AL11: -- | AM11: 23.13323333 | AN11: -- | AO11: -- | AP11: -- | AQ11: 66.13333333 | AR11: -- | AS11: -- | AT11: 61.86666667 | AU11: -- | AV11: -- | AW11: 53.13333333 | AX11: 69.9 | AY11: 64.86666667 | AZ11: 70.73333333 | BA11: 65.13333333 | BB11: -- | BC11: -- | BD11: -- | BE11: -- | BF11: 7.582 | BG11: 34.4 | BH11: 51.2 | BI11: 22.041 | BJ11: 25.209 | BK11: -- | BM11: -- | BN11: -- | BT11: 20.96583333 | BU11: -- | BV11: -- | BW11: 126.07 | BX11: 1648 | BY11: -- | BZ11: -- | CA11: -- | CB11: 0 | CC11: 0 | CD11: -- | CE11: -- | CF11: -- | CG11: -- | CH11: -- | CI11: -- | CJ11: -- | CK11: 394.3666667 | CL11: 37.83333333 | CM11: 1302.333333 | CN11: 2065.033333 | CO11: 136.7333333 | CP11: 49.4942 | CQ11: 176679 | CR11: -- | CS11: -- | CT11: -- | CZ11: 28.99333333 | DA11: 29.93333333 | DG11: -- | DH11: -- | DI11: 59.2 | DJ11: -- | DK11: 5.833333333 | DL11: 15124 | DN11: -- | DP11: 52727.66667 | DT11: -- | DU11: -- | DV11: -- | DW11: -- | DX11: -- | DY11: -- | DZ11: -- | EA11: -- | EB11: -- | EC11: -- | EI11: 0 | EJ11: 0 | EK11: 0 | EQ11: 31.7 | ER11: -- | ES11: 32.5 | EY11: 4 | EZ11: 2.57 | FA11: 4.13 | FB11: 4.87 | FC11: =+(FB11-FA11)*100 -> 74 | FD11: -- | FE11: 2.773333333 | FF11: 3.503333333 | FG11: -- | FH11: 3.986666667 | FI11: 3.99 | FJ11: =+FI11-FF11 -> 0.4866666667 | FP11: -- | FQ11: -- | FR11: -- | FS11: -- | FT11: -- | FU11: -- | FV11: -- | FW11: -- | FX11: -- | GD11: 2.99 | GE11: -- | GF11: -- | GG11: -- | GH11: -- | GI11: -- | GJ11: -- | GK11: -- | GL11: --
A12: 59'Q2 | B12: 524.241 | C12: 3049.011 | D12: 3029.939 | E12: 1837.4 | F12: 83.16244664 | G12: 639.6041392 | H12: 1114.633414 | I12: 180.004602 | J12: 96.65495865 | K12: 223.9 | L12: 29.23 | M12: 122.797 | N12: 89.454 | O12: -33.343 | P12: 1001.749 | Q12: -1.836 | W12: -- | X12: -- | Y12: 36.33496667 | Z12: -- | AA12: 34.674 | AB12: 33.343 | AC12: -- | AD12: -- | AE12: -- | AF12: -- | AG12: -- | AH12: -- | AI12: -- | AJ12: -- | AK12: -- | AL12: -- | AM12: 24.25513333 | AN12: -- | AO12: -- | AP12: -- | AQ12: 66.5 | AR12: -- | AS12: -- | AT12: 63.53333333 | AU12: -- | AV12: -- | AW12: 64.26666667 | AX12: 67 | AY12: 66.06666667 | AZ12: 70.76666667 | BA12: 63.83333333 | BB12: -- | BC12: -- | BD12: -- | BE12: -- | BF12: 7.644 | BG12: 34.808 | BH12: 51.532 | BI12: 21.962 | BJ12: 27.682 | BK12: -- | BM12: -- | BN12: -- | BT12: 21.73133333 | BU12: -- | BV12: -- | BW12: 131.87 | BX12: 1530.333333 | BY12: -- | BZ12: -- | CA12: -- | CB12: 0 | CC12: 0 | CD12: -- | CE12: -- | CF12: -- | CG12: -- | CH12: -- | CI12: -- | CJ12: -- | CK12: 402.6666667 | CL12: 38.7 | CM12: 1232.666667 | CN12: 2098.066667 | CO12: 139.5333333 | CP12: 51.04866667 | CQ12: 177367.3333 | CR12: -- | CS12: 95.3 | CT12: -- | CZ12: 29.04333333 | DA12: 30.1 | DG12: -- | DH12: -- | DI12: 59.26666667 | DJ12: -- | DK12: 5.1 | DL12: 15475.33333 | DN12: =+DL12-DL11 -> 351.3333333 | DP12: 53516 | DR12: =+DP12-DP11 -> 788.3333333 | DT12: -- | DU12: -- | DV12: -- | DW12: -- | DX12: -- | DY12: -- | DZ12: -- | EA12: -- | EB12: -- | EC12: -- | EI12: 0 | EJ12: 0 | EK12: 0 | EQ12: 31.76666667 | ER12: -- | ES12: 32.76666667 | EY12: 4.243333333 | EZ12: 3.083333333 | FA12: 4.353333333 | FB12: 4.953333333 | FC12: =+(FB12-FA12)*100 -> 60 | FD12: -- | FE12: 3 | FF12: 3.916666667 | FG12: -- | FH12: 4.323333333 | FI12: 4.256666667 | FJ12: 0.34 | FP12: -- | FQ12: -- | FR12: -- | FS12: -- | FT12: -- | FU12: -- | FV12: -- | FW12: -- | FX12: -- | GD12: 2.97 | GE12: -- | GF12: -- | GG12: -- | GH12: -- | GI12: -- | GJ12: -- | GK12: -- | GL12: --
A13: 59'Q3 | B13: 525.196 | C13: 3043.139 | D13: 3063.273 | E13: 1856.5 | F13: 84.76900553 | G13: 642.0620636 | H13: 1129.668931 | I13: 184.8395713 | J13: 101.1744088 | K13: 219.7 | L13: 3.46 | M13: 123.95 | N13: 92.289 | O13: -31.661 | P13: 1010.329 | Q13: -4.232 | W13: -- | X13: -- | Y13: 38.00466667 | Z13: -- | AA13: 31.433 | AB13: 31.074 | AC13: -- | AD13: -- | AE13: -- | AF13: -- | AG13: -- | AH13: -- | AI13: -- | AJ13: -- | AK13: -- | AL13: -- | AM13: 23.26303333 | AN13: -- | AO13: -- | AP13: -- | AQ13: 54.96666667 | AR13: -- | AS13: -- | AT13: 53.53333333 | AU13: -- | AV13: -- | AW13: 51.73333333 | AX13: 53.13333333 | AY13: 61.03333333 | AZ13: 57.7 | BA13: 58 | BB13: -- | BC13: -- | BD13: -- | BE13: -- | BF13: 7.69 | BG13: 34.738 | BH13: 51.57 | BI13: 22.136 | BJ13: 23.928 | BK13: -- | BM13: -- | BN13: -- | BT13: 22.81593333 | BU13: -- | BV13: -- | BW13: 137.18 | BX13: 1505.666667 | BY13: -- | BZ13: -- | CA13: -- | CB13: 0 | CC13: 0 | CD13: -- | CE13: -- | CF13: -- | CG13: -- | CH13: -- | CI13: -- | CJ13: -- | CK13: 405.0333333 | CL13: 34.9 | CM13: 1241.333333 | CN13: 2095.2 | CO13: 142.3333333 | CP13: 53.0264 | CQ13: 178102.3333 | CR13: -- | CS13: 94.5 | CT13: -- | CZ13: 29.19333333 | DA13: 30.23333333 | DG13: -- | DH13: -- | DI13: 59.3 | DJ13: -- | DK13: 5.266666667 | DL13: 15359.66667 | DN13: =+DL13-DL12 -> -115.6666667 | DP13: 53522 | DR13: =+DP13-DP12 -> 6 | DT13: -- | DU13: -- | DV13: -- | DW13: -- | DX13: -- | DY13: -- | DZ13: -- | EA13: -- | EB13: -- | EC13: -- | EI13: 0 | EJ13: 0 | EK13: 0 | EQ13: 31.66666667 | ER13: -- | ES13: 32.83333333 | EY13: 4.666666667 | EZ13: 3.576666667 | FA13: 4.473333333 | FB13: 5.116666667 | FC13: =+(FB13-FA13)*100 -> 64.33333333 | FD13: -- | FE13: 3.54 | FF13: 4.603333333 | FG13: -- | FH13: 4.683333333 | FI13: 4.503333333 | FJ13: -0.1 | FP13: -- | FQ13: -- | FR13: -- | FS13: -- | FT13: -- | FU13: -- | FV13: -- | FW13: -- | FX13: -- | GD13: 2.97 | GE13: -- | GF13: -- | GG13: -- | GH13: -- | GI13: -- | GJ13: -- | GK13: -- | GL13: --
A14: 59'Q4 | B14: 529.322 | C14: 3055.104 | D14: 3053.76 | E14: 1858.6 | F14: 80.72702615 | G14: 646.0425961 | H14: 1131.830378 | I14: 184.3332063 | J14: 100.5979284 | K14: 213.3 | L14: 17.127 | M14: 120.801 | N14: 89.818 | O14: -30.983 | P14: 1002.144 | Q14: -4.921 | W14: -- | X14: -- | Y14: 38.80076667 | Z14: -- | AA14: 30.8 | AB14: 31.967 | AC14: -- | AD14: -- | AE14: -- | AF14: -- | AG14: -- | AH14: -- | AI14: -- | AJ14: -- | AK14: -- | AL14: -- | AM14: 23.3743 | AN14: -- | AO14: -- | AP14: -- | AQ14: 52.83333333 | AR14: -- | AS14: -- | AT14: 50.3 | AU14: -- | AV14: -- | AW14: 43.86666667 | AX14: 54.63333333 | AY14: 63.93333333 | AZ14: 54.66666667 | BA14: 55.6 | BB14: -- | BC14: -- | BD14: -- | BE14: -- | BF14: 7.764 | BG14: 34.678 | BH14: 51.754 | BI14: 22.388 | BJ14: 22.968 | BK14: -- | BM14: -- | BN14: -- | BT14: 23.79216667 | BU14: -- | BV14: -- | BW14: 141.56 | BX14: 1457.333333 | BY14: -- | BZ14: -- | CA14: -- | CB14: 0 | CC14: 0 | CD14: -- | CE14: -- | CF14: -- | CG14: -- | CH14: -- | CI14: -- | CJ14: -- | CK14: 410.6666667 | CL14: 37.13333333 | CM14: 1205.333333 | CN14: 2110.1 | CO14: 145.1 | CP14: 55.05716667 | CQ14: 178910.3333 | CR14: -- | CS14: 93.8 | CT14: -- | CZ14: 29.37 | DA14: 30.43333333 | DG14: -- | DH14: -- | DI14: 59.33333333 | DJ14: -- | DK14: 5.6 | DL14: 15343.66667 | DN14: -16 | DP14: 53723 | DR14: 201 | DT14: -- | DU14: -- | DV14: -- | DW14: -- | DX14: -- | DY14: -- | DZ14: -- | EA14: -- | EB14: -- | EC14: -- | EI14: 0 | EJ14: 0 | EK14: 0 | EQ14: 31.53333333 | ER14: -- | ES14: 32.73333333 | EY14: 5 | EZ14: 3.99 | FA14: 4.57 | FB14: 5.273333333 | FC14: 70.33333333 | FD14: -- | FE14: 4.23 | FF14: 4.916666667 | FG14: -- | FH14: 4.826666667 | FI14: 4.583333333 | FJ14: -0.3333333333 | FP14: -- | FQ14: -- | FR14: -- | FS14: -- | FT14: -- | FU14: -- | FV14: -- | FW14: -- | FX14: -- | GD14: 2.97 | GE14: -- | GF14: -- | GG14: -- | GH14: -- | GI14: -- | GJ14: -- | GK14: -- | GL14: --
A15: 60'Q1 | B15: 543.347 | C15: 3123.162 | D15: 3087.744 | E15: 1876.4 | F15: 83.31593953 | G15: 647.6522103 | H15: 1145.43185 | I15: 190.7362738 | J15: 106.7117701 | K15: 219.4 | L15: 42.751 | M15: 125.38 | N15: 101.064 | O15: -24.316 | P15: 985.207 | Q15: 4.725 | W15: -- | X15: -- | Y15: 39.81143333 | Z15: -- | AA15: 33.674 | AB15: 33.506 | AC15: -- | AD15: -- | AE15: -- | AF15: -- | AG15: -- | AH15: -- | AI15: -- | AJ15: -- | AK15: -- | AL15: -- | AM15: 24.7836 | AN15: -- | AO15: -- | AP15: -- | AQ15: 53.86666667 | AR15: -- | AS15: -- | AT15: 55.33333333 | AU15: -- | AV15: -- | AW15: 51.86666667 | AX15: 56.7 | AY15: 60.66666667 | AZ15: 60.96666667 | BA15: 35.56666667 | BB15: -- | BC15: -- | BD15: -- | BE15: -- | BF15: 7.93 | BG15: 35.483 | BH15: 52.817 | BI15: 22.35 | BJ15: 25.833 | BK15: -- | BM15: -- | BN15: -- | BT15: 24.45143333 | BU15: -- | BV15: -- | BW15: 146.01 | BX15: 1357.333333 | BY15: 1045 | BZ15: -- | CA15: -- | CB15: 6.524519021 | CC15: 10.11785235 | CD15: -- | CE15: -- | CF15: -- | CG15: -- | CH15: -- | CI15: -- | CJ15: -- | CK15: 417.1 | CL15: 38.33333333 | CM15: 1107.666667 | CN15: 2135.3 | CO15: 147.2666667 | CP15: 56.41436667 | CQ15: 179590.3333 | CR15: -- | CS15: 100 | CT15: -- | CZ15: 29.39666667 | DA15: 30.56666667 | DG15: -- | DH15: -- | DI15: 58.9 | DJ15: -- | DK15: 5.133333333 | DL15: 15719.66667 | DN15: 376 | DP15: 54415 | DR15: 692 | DT15: -- | DU15: -- | DV15: -- | DW15: -- | DX15: -- | DY15: -- | DZ15: -- | EA15: -- | EB15: -- | EC15: -- | EI15: 21.3404427 | EJ15: 22.43515446 | EK15: 22.03030306 | EQ15: 31.66666667 | ER15: -- | ES15: 32.86666667 | EY15: 5 | EZ15: 3.933333333 | FA15: 4.553333333 | FB15: 5.31 | FC15: 75.66666667 | FD15: -- | FE15: 3.873333333 | FF15: 4.57 | FG15: -- | FH15: 4.64 | FI15: 4.486666667 | FJ15: -0.08333333333 | FP15: -- | FQ15: -- | FR15: -- | FS15: -- | FT15: -- | FU15: -- | FV15: -- | FW15: -- | FX15: -- | GD15: 2.97 | GE15: -- | GF15: -- | GG15: -- | GH15: -- | GI15: -- | GJ15: -- | GK15: -- | GL15: --
A16: 60'Q2 | B16: 542.697 | C16: 3111.31 | D16: 3118.577 | E16: 1900.1 | F16: 85.20901848 | G16: 654.721462 | H16: 1160.16952 | I16: 193.5294487 | J16: 110.0132813 | K16: 201.4 | L16: 12.215 | M16: 126.322 | N16: 107.484 | O16: -18.838 | P16: 995.833 | Q16: 1.306 | W16: -- | X16: -- | Y16: 40.9214 | Z16: -- | AA16: 31.364 | AB16: 31.732 | AC16: -- | AD16: -- | AE16: -- | AF16: -- | AG16: -- | AH16: -- | AI16: -- | AJ16: -- | AK16: -- | AL16: -- | AM16: 24.24586667 | AN16: -- | AO16: -- | AP16: -- | AQ16: 44.1 | AR16: -- | AS16: -- | AT16: 41.4 | AU16: -- | AV16: -- | AW16: 43.96666667 | AX16: 49 | AY16: 56.66666667 | AZ16: 47.76666667 | BA16: 32 | BB16: -- | BC16: -- | BD16: -- | BE16: -- | BF16: 7.981 | BG16: 35.003 | BH16: 52.839 | BI16: 22.802 | BJ16: 23.395 | BK16: -- | BM16: -- | BN16: -- | BT16: 24.97433333 | BU16: -- | BV16: -- | BW16: 149.75 | BX16: 1269 | BY16: 1008.666667 | BZ16: -- | CA16: -- | CB16: 7.058352943 | CC16: 10.72168628 | CD16: -- | CE16: -- | CF16: -- | CG16: -- | CH16: -- | CI16: -- | CJ16: -- | CK16: 422.1333333 | CL16: 36.53333333 | CM16: 1020.333333 | CN16: 2148.633333 | CO16: 149.6333333 | CP16: 58.0165 | CQ16: 180224.3333 | CR16: -- | CS16: 93.3 | CT16: -- | CZ16: 29.57333333 | DA16: 30.63333333 | DG16: -- | DH16: -- | DI16: 59.56666667 | DJ16: -- | DK16: 5.233333333 | DL16: 15565 | DN16: -154.6666667 | DP16: 54544 | DR16: 129 | DT16: -- | DU16: -- | DV16: -- | DW16: -- | DX16: -- | DY16: -- | DZ16: -- | EA16: -- | EB16: -- | EC16: -- | EI16: 20.90475312 | EJ16: 22.35742744 | EK16: 22.10034142 | EQ16: 31.73333333 | ER16: -- | ES16: 32.76666667 | EY16: 5 | EZ16: 3.696666667 | FA16: 4.453333333 | FB16: 5.246666667 | FC16: 79.33333333 | FD16: -- | FE16: 2.993333333 | FF16: 3.87 | FG16: -- | FH16: 4.3 | FI16: 4.26 | FJ16: 0.39 | FP16: -- | FQ16: -- | FR16: -- | FS16: -- | FT16: -- | FU16: -- | FV16: -- | FW16: -- | FX16: -- | GD16: 2.97 | GE16: -- | GF16: -- | GG16: -- | GH16: -- | GI16: -- | GJ16: -- | GK16: -- | GL16: --
A17: 60'Q3 | B17: 546.012 | C17: 3119.057 | D17: 3117.178 | E17: 1892.5 | F17: 84.53364977 | G17: 650.8931903 | H17: 1157.07316 | I17: 190.1319026 | J17: 107.0101343 | K17: 195.3 | L17: 17.275 | M17: 122.605 | N17: 104.769 | O17: -17.836 | P17: 1020.016 | Q17: -0.378 | W17: -- | X17: -- | Y17: 41.37376667 | Z17: -- | AA17: 30.131 | AB17: 31.783 | AC17: -- | AD17: -- | AE17: -- | AF17: -- | AG17: -- | AH17: -- | AI17: -- | AJ17: -- | AK17: -- | AL17: -- | AM17: 23.84716667 | AN17: -- | AO17: -- | AP17: -- | AQ17: 45.56666667 | AR17: -- | AS17: -- | AT17: 41.96666667 | AU17: -- | AV17: -- | AW17: 40.6 | AX17: 50.6 | AY17: 49.63333333 | AZ17: 49.5 | BA17: 37.03333333 | BB17: -- | BC17: -- | BD17: -- | BE17: -- | BF17: 8.03 | BG17: 35.104 | BH17: 53.128 | BI17: 22.874 | BJ17: 22.301 | BK17: -- | BM17: -- | BN17: -- | BT17: 25.60363333 | BU17: -- | BV17: -- | BW17: 152.97 | BX17: 1212.666667 | BY17: 992.3333333 | BZ17: -- | CA17: -- | CB17: 6.892197996 | CC17: 10.76553133 | CD17: -- | CE17: -- | CF17: -- | CG17: -- | CH17: -- | CI17: -- | CJ17: -- | CK17: 424.7333333 | CL17: 38.5 | CM17: 967.6666667 | CN17: 2152.466667 | CO17: 152.8666667 | CP17: 59.01953333 | CQ17: 180951.3333 | CR17: -- | CS17: 97.2 | CT17: -- | CZ17: 29.59 | DA17: 30.6 | DG17: -- | DH17: -- | DI17: 59.56666667 | DJ17: -- | DK17: 5.533333333 | DL17: 15367.66667 | DN17: -197.3333333 | DP17: 54267.66667 | DR17: -276.3333333 | DT17: -- | DU17: -- | DV17: -- | DW17: -- | DX17: -- | DY17: -- | DZ17: -- | EA17: -- | EB17: -- | EC17: -- | EI17: 20.84496534 | EJ17: 22.31696447 | EK17: 22.08139078 | EQ17: 31.63333333 | ER17: -- | ES17: 32.76666667 | EY17: 4.783333333 | EZ17: 2.936666667 | FA17: 4.313333333 | FB17: 5.103333333 | FC17: 79 | FD17: -- | FE17: 2.36 | FF17: 3.073333333 | FG17: -- | FH17: 3.673333333 | FI17: 3.833333333 | FJ17: 0.76 | FP17: -- | FQ17: -- | FR17: -- | FS17: -- | FT17: -- | FU17: -- | FV17: -- | FW17: -- | FX17: -- | GD17: 2.97 | GE17: -- | GF17: -- | GG17: -- | GH17: -- | GI17: -- | GJ17: -- | GK17: -- | GL17: --
A18: 60'Q4 | B18: 541.063 | C18: 3081.3 | D18: 3132.916 | E18: 1895 | F18: 82.41544792 | G18: 651.3499727 | H18: 1161.234579 | I18: 189.690875 | J18: 107.1300296 | K18: 195 | L18: -20.108 | M18: 116.822 | N18: 106.94 | O18: -9.882 | P18: 1026.824 | Q18: -4.91 | W18: -- | X18: -- | Y18: 41.77083333 | Z18: -- | AA18: 29.114 | AB18: 30.57 | AC18: -- | AD18: -- | AE18: -- | AF18: -- | AG18: -- | AH18: -- | AI18: -- | AJ18: -- | AK18: -- | AL18: -- | AM18: 23.2723 | AN18: -- | AO18: -- | AP18: -- | AQ18: 44.86666667 | AR18: -- | AS18: -- | AT18: 42.46666667 | AU18: -- | AV18: -- | AW18: 40.23333333 | AX18: 48.6 | AY18: 46.16666667 | AZ18: 48.1 | BA18: 38.06666667 | BB18: -- | BC18: -- | BD18: -- | BE18: -- | BF18: 8.065 | BG18: 34.676 | BH18: 53.021 | BI18: 23.258 | BJ18: 21.037 | BK18: -- | BM18: -- | BN18: -- | BT18: 26.10813333 | BU18: -- | BV18: -- | BW18: 156.4 | BX18: 1185 | BY18: 967.3333333 | BZ18: -- | CA18: -- | CB18: 7.662673425 | CC18: 12.04934009 | CD18: -- | CE18: -- | CF18: -- | CG18: -- | CH18: -- | CI18: -- | CJ18: -- | CK18: 426.1666667 | CL18: 37.93333333 | CM18: 904 | CN18: 2151.566667 | CO18: 157.3333333 | CP18: 59.84276667 | CQ18: 181788.6667 | CR18: -- | CS18: 90.1 | CT18: -- | CZ18: 29.78 | DA18: 30.76666667 | DG18: -- | DH18: -- | DI18: 59.63333333 | DJ18: -- | DK18: 6.266666667 | DL18: 15096.66667 | DN18: -271 | DP18: 53950 | DR18: -317.6666667 | DT18: -- | DU18: -- | DV18: -- | DW18: -- | DX18: -- | DY18: -- | DZ18: -- | EA18: -- | EB18: -- | EC18: -- | EI18: 20.47426888 | EJ18: 22.11575411 | EK18: 21.93819985 | EQ18: 31.7 | ER18: -- | ES18: 32.8 | EY18: 4.5 | EZ18: 2.296666667 | FA18: 4.32 | FB18: 5.096666667 | FC18: 77.66666667 | FD18: -- | FE18: 2.306666667 | FF18: 2.993333333 | FG18: -- | FH18: 3.746666667 | FI18: 3.886666667 | FJ18: 0.8933333333 | FP18: -- | FQ18: -- | FR18: -- | FS18: -- | FT18: -- | FU18: -- | FV18: -- | FW18: -- | FX18: -- | GD18: 2.97 | GE18: -- | GF18: -- | GG18: -- | GH18: -- | GI18: -- | GJ18: -- | GK18: -- | GL18: --
A19: 61'Q1 | B19: 545.949 | C19: 3102.251 | D19: 3138.571 | E19: 1894.4 | F19: 77.8822913 | G19: 655.1999959 | H19: 1161.317713 | I19: 186.979372 | J19: 104.4185265 | K19: 195.8 | L19: -9.167 | M19: 116.254 | N19: 106.207 | O19: -10.047 | P19: 1041.989 | Q19: -4.675 | W19: -- | X19: -- | Y19: 42.01263333 | Z19: -- | AA19: 28.523 | AB19: 29.586 | AC19: -- | AD19: -- | AE19: -- | AF19: -- | AG19: -- | AH19: -- | AI19: -- | AJ19: -- | AK19: -- | AL19: -- | AM19: 22.91996667 | AN19: -- | AO19: -- | AP19: -- | AQ19: 45.53333333 | AR19: -- | AS19: -- | AT19: 38.7 | AU19: -- | AV19: -- | AW19: 38.66666667 | AX19: 50.36666667 | AY19: 49.86666667 | AZ19: 50.63333333 | BA19: 40.8 | BB19: -- | BC19: -- | BD19: -- | BE19: -- | BF19: 8.136 | BG19: 35.12 | BH19: 53.378 | BI19: 23.165 | BJ19: 20.145 | BK19: -- | BM19: -- | BN19: -- | BT19: 26.85833333 | BU19: -- | BV19: -- | BW19: 160.46 | BX19: 1240.333333 | BY19: 976.6666667 | BZ19: -- | CA19: -- | CB19: 8.308149279 | CC19: 13.06814928 | CD19: -- | CE19: -- | CF19: -- | CG19: -- | CH19: -- | CI19: -- | CJ19: -- | CK19: 430.6666667 | CL19: 41.73333333 | CM19: 934.3333333 | CN19: 2172.466667 | CO19: 161.8333333 | CP19: 60.47916667 | CQ19: 182516.3333 | CR19: -- | CS19: 91.6 | CT19: -- | CZ19: 29.84 | DA19: 30.83333333 | DG19: -- | DH19: -- | DI19: 59.63333333 | DJ19: -- | DK19: 6.8 | DL19: 14822 | DN19: -274.6666667 | DP19: 53633.66667 | DR19: -316.3333333 | DT19: -- | DU19: -- | DV19: -- | DW19: -- | DX19: -- | DY19: -- | DZ19: -- | EA19: -- | EB19: -- | EC19: -- | EI19: 20.58066937 | EJ19: 22.21290024 | EK19: 22.04476524 | EQ19: 31.8 | ER19: -- | ES19: 32.9 | EY19: 4.5 | EZ19: 2.003333333 | FA19: 4.27 | FB19: 5.063333333 | FC19: 79.33333333 | FD19: -- | FE19: 2.35 | FF19: 2.873333333 | FG19: -- | FH19: 3.643333333 | FI19: 3.786666667 | FJ19: 0.9133333333 | FP19: -- | FQ19: -- | FR19: -- | FS19: -- | FT19: -- | FU19: -- | FV19: -- | FW19: -- | FX19: -- | GD19: 2.97 | GE19: -- | GF19: -- | GG19: -- | GH19: -- | GI19: -- | GJ19: -- | GK19: -- | GL19: --
A20: 61'Q2 | B20: 557.43 | C20: 3159.918 | D20: 3172.703 | E20: 1922.7 | F20: 79.49908305 | G20: 663.9876195 | H20: 1179.213297 | I20: 191.1446327 | J20: 108.4260277 | K20: 196.5 | L20: 7.91 | M20: 117.671 | N20: 104.732 | O20: -12.939 | P20: 1044.388 | Q20: -6.383 | W20: -- | X20: -- | Y20: 42.26626667 | Z20: -- | AA20: 30.003 | AB20: 32.389 | AC20: -- | AD20: -- | AE20: -- | AF20: -- | AG20: -- | AH20: -- | AI20: -- | AJ20: -- | AK20: -- | AL20: -- | AM20: 23.82863333 | AN20: -- | AO20: -- | AP20: -- | AQ20: 58.2 | AR20: -- | AS20: -- | AT20: 54.86666667 | AU20: -- | AV20: -- | AW20: 42.43333333 | AX20: 65.5 | AY20: 52.26666667 | AZ20: 64.53333333 | BA20: 48.23333333 | BB20: -- | BC20: -- | BD20: -- | BE20: -- | BF20: 8.249 | BG20: 36.124 | BH20: 54.142 | BI20: 22.836 | BJ20: 22.001 | BK20: -- | BM20: -- | BN20: -- | BT20: 27.04686667 | BU20: -- | BV20: -- | BW20: 163.91 | BX20: 1258.666667 | BY20: 1033 | BZ20: -- | CA20: -- | CB20: 7.867955697 | CC20: 12.7679557 | CD20: -- | CE20: -- | CF20: -- | CG20: -- | CH20: -- | CI20: -- | CJ20: -- | CK20: 436.9 | CL20: 42.6 | CM20: 942.6666667 | CN20: 2205.533333 | CO20: 165.6 | CP20: 60.1968 | CQ20: 183220.3333 | CR20: -- | CS20: 92.5 | CT20: -- | CZ20: 29.83 | DA20: 30.93333333 | DG20: -- | DH20: -- | DI20: 59.46666667 | DJ20: -- | DK20: 7 | DL20: 14912.66667 | DN20: 90.66666667 | DP20: 53796 | DR20: 162.3333333 | DT20: -- | DU20: -- | DV20: -- | DW20: -- | DX20: -- | DY20: -- | DZ20: -- | EA20: -- | EB20: -- | EC20: -- | EI20: 20.94654198 | EJ20: 22.57624154 | EK20: 22.40501754 | EQ20: 31.46666667 | ER20: -- | ES20: 32.9 | EY20: 4.5 | EZ20: 1.733333333 | FA20: 4.283333333 | FB20: 5.016666667 | FC20: 73.33333333 | FD20: -- | FE20: 2.303333333 | FF20: 2.936666667 | FG20: -- | FH20: 3.616666667 | FI20: 3.79 | FJ20: 0.8533333333 | FP20: -- | FQ20: -- | FR20: -- | FS20: -- | FT20: -- | FU20: -- | FV20: -- | FW20: -- | FX20: -- | GD20: 2.97 | GE20: -- | GF20: -- | GG20: -- | GH20: -- | GI20: -- | GJ20: -- | GK20: -- | GL20: --
A21: 61'Q3 | B21: 568.228 | C21: 3212.606 | D21: 3199.68 | E21: 1932 | F21: 81.4433263 | G21: 664.487905 | H21: 1186.068769 | I21: 193.0230836 | J21: 110.2168344 | K21: 207.1 | L21: 26.249 | M21: 125.463 | N21: 104.163 | O21: -21.3 | P21: 1066.389 | Q21: -4.871 | W21: -- | X21: -- | Y21: 42.66956667 | Z21: -- | AA21: 31.641 | AB21: 33.851 | AC21: -- | AD21: -- | AE21: -- | AF21: -- | AG21: -- | AH21: -- | AI21: -- | AJ21: -- | AK21: -- | AL21: -- | AM21: 24.5889 | AN21: -- | AO21: -- | AP21: -- | AQ21: 60.63333333 | AR21: -- | AS21: -- | AT21: 57.83333333 | AU21: -- | AV21: -- | AW21: 52.03333333 | AX21: 65.63333333 | AY21: 52.33333333 | AZ21: 66.5 | BA21: 50.23333333 | BB21: -- | BC21: -- | BD21: -- | BE21: -- | BF21: 8.311 | BG21: 36.622 | BH21: 54.334 | BI21: 22.694 | BJ21: 23.499 | BK21: -- | BM21: -- | BN21: -- | BT21: 27.19656667 | BU21: -- | BV21: -- | BW21: 166.85 | BX21: 1358.666667 | BY21: 1113.333333 | BZ21: -- | CA21: -- | CB21: 7.972060418 | CC21: 12.70872708 | CD21: -- | CE21: -- | CF21: -- | CG21: -- | CH21: -- | CI21: -- | CJ21: -- | CK21: 444 | CL21: 46.23333333 | CM21: 1009.666667 | CN21: 2234.833333 | CO21: 169.1333333 | CP21: 60.63286667 | CQ21: 183964 | CR21: -- | CS21: 99.2 | CT21: -- | CZ21: 29.94666667 | DA21: 31.06666667 | DG21: -- | DH21: -- | DI21: 59.2 | DJ21: -- | DK21: 6.766666667 | DL21: 15067.33333 | DN21: 154.6666667 | DP21: 54269.66667 | DR21: 473.6666667 | DT21: -- | DU21: -- | DV21: -- | DW21: -- | DX21: -- | DY21: -- | DZ21: -- | EA21: -- | EB21: -- | EC21: -- | EI21: 21.51536798 | EJ21: 22.90752054 | EK21: 22.65494101 | EQ21: 31.5 | ER21: -- | ES21: 32.9 | EY21: 4.5 | EZ21: 1.683333333 | FA21: 4.436666667 | FB21: 5.106666667 | FC21: 67 | FD21: -- | FE21: 2.303333333 | FF21: 3.013333333 | FG21: -- | FH21: 3.9 | FI21: 3.98 | FJ21: 0.9666666667 | FP21: -- | FQ21: -- | FR21: -- | FS21: -- | FT21: -- | FU21: -- | FV21: -- | FW21: -- | FX21: -- | GD21: 2.97 | GE21: -- | GF21: -- | GG21: -- | GH21: -- | GI21: -- | GJ21: -- | GK21: -- | GL21: --
A22: 61'Q4 | B22: 581.624 | C22: 3277.717 | D22: 3271.917 | E22: 1970.8 | F22: 85.39320994 | G22: 673.5147956 | H22: 1211.891994 | I22: 198.8871174 | J22: 115.7828779 | K22: 214 | L22: 21.779 | M22: 128.446 | N22: 107.384 | O22: -21.062 | P22: 1089.696 | Q22: -2.891 | W22: -- | X22: -- | Y22: 43.30373333 | Z22: -- | AA22: 33.891 | AB22: 36.396 | AC22: -- | AD22: -- | AE22: -- | AF22: -- | AG22: -- | AH22: -- | AI22: -- | AJ22: -- | AK22: -- | AL22: -- | AM22: 25.45116667 | AN22: -- | AO22: -- | AP22: -- | AQ22: 61.8 | AR22: -- | AS22: -- | AT22: 58.6 | AU22: -- | AV22: -- | AW22: 55.8 | AX22: 68.93333333 | AY22: 54.56666667 | AZ22: 63.56666667 | BA22: 53.1 | BB22: -- | BC22: -- | BD22: -- | BE22: -- | BF22: 8.372 | BG22: 36.965 | BH22: 54.652 | BI22: 22.647 | BJ22: 25.721 | BK22: -- | BM22: -- | BN22: -- | BT22: 27.45706667 | BU22: -- | BV22: -- | BW22: 168.58 | BX22: 1388.333333 | BY22: 1145.333333 | BZ22: -- | CA22: -- | CB22: 6.905205572 | CC22: 11.24520557 | CD22: -- | CE22: -- | CF22: -- | CG22: -- | CH22: -- | CI22: -- | CJ22: -- | CK22: 452.8 | CL22: 46.93333333 | CM22: 1005.333333 | CN22: 2277.9 | CO22: 173.5666667 | CP22: 61.71833333 | CQ22: 184774.3333 | CR22: -- | CS22: 93 | CT22: -- | CZ22: 29.99 | DA22: 31.16666667 | DG22: -- | DH22: -- | DI22: 59 | DJ22: -- | DK22: 6.2 | DL22: 15237 | DN22: 169.6666667 | DP22: 54712 | DR22: 442.3333333 | DT22: -- | DU22: -- | DV22: -- | DW22: -- | DX22: -- | DY22: -- | DZ22: -- | EA22: -- | EB22: -- | EC22: -- | EI22: 22.01576884 | EJ22: 23.37380711 | EK22: 23.09146596 | EQ22: 31.53333333 | ER22: -- | ES22: 32.9 | EY22: 4.5 | EZ22: 2.4 | FA22: 4.41 | FB22: 5.113333333 | FC22: 70.33333333 | FD22: -- | FE22: 2.46 | FF22: 3.1 | FG22: -- | FH22: 3.843333333 | FI22: 3.973333333 | FJ22: 0.8733333333 | FP22: -- | FQ22: -- | FR22: -- | FS22: -- | FT22: -- | FU22: -- | FV22: -- | FW22: -- | FX22: -- | GD22: 2.97 | GE22: -- | GF22: -- | GG22: -- | GH22: -- | GI22: -- | GJ22: -- | GK22: -- | GL22: --
A23: 62'Q1 | B23: 595.176 | C23: 3336.753 | D23: 3312.668 | E23: 1991.7 | F23: 87.2351246 | G23: 679.1049423 | H23: 1225.359933 | I23: 202.8727002 | J23: 119.6457588 | K23: 217.9 | L23: 34.416 | M23: 132.357 | N23: 107.121 | O23: -25.236 | P23: 1110.693 | Q23: -5.371 | W23: -- | X23: -- | Y23: 43.9851 | Z23: -- | AA23: 34.436 | AB23: 38.648 | AC23: -- | AD23: -- | AE23: -- | AF23: -- | AG23: -- | AH23: -- | AI23: -- | AJ23: -- | AK23: -- | AL23: -- | AM23: 25.8313 | AN23: -- | AO23: -- | AP23: -- | AQ23: 60.86666667 | AR23: -- | AS23: -- | AT23: 59.46666667 | AU23: -- | AV23: -- | AW23: 58.36666667 | AX23: 60.43333333 | AY23: 56.2 | AZ23: 66 | BA23: 56.76666667 | BB23: -- | BC23: -- | BD23: -- | BE23: -- | BF23: 8.505 | BG23: 37.58 | BH23: 55.308 | BI23: 22.632 | BJ23: 26.074 | BK23: -- | BM23: -- | BN23: -- | BT23: 28.0721 | BU23: -- | BV23: -- | BW23: 170.79 | BX23: 1360.666667 | BY23: 1150 | BZ23: -- | CA23: -- | CB23: 6.526988382 | CC23: 10.47032172 | CD23: -- | CE23: -- | CF23: -- | CG23: -- | CH23: -- | CI23: -- | CJ23: -- | CK23: 459.7333333 | CL23: 47.23333333 | CM23: 966.3333333 | CN23: 2299.6 | CO23: 178.1 | CP23: 62.68393333 | CQ23: 185448 | CR23: -- | CS23: 99.9 | CT23: -- | CZ23: 30.10666667 | DA23: 31.23333333 | DG23: -- | DH23: -- | DI23: 58.9 | DJ23: -- | DK23: 5.633333333 | DL23: 15394.66667 | DN23: 157.6666667 | DP23: 55118 | DR23: 406 | DT23: -- | DU23: -- | DV23: -- | DW23: -- | DX23: -- | DY23: -- | DZ23: -- | EA23: -- | EB23: -- | EC23: -- | EI23: 22.4908168 | EJ23: 23.7572772 | EK23: 23.43578134 | EQ23: 31.7 | ER23: -- | ES23: 33 | EY23: 4.5 | EZ23: 2.456666667 | FA23: 4.41 | FB23: 5.063333333 | FC23: 65.33333333 | FD23: -- | FE23: 2.723333333 | FF23: 3.206666667 | FG23: -- | FH23: 3.836666667 | FI23: 4.016666667 | FJ23: 0.81 | FP23: -- | FQ23: -- | FR23: -- | FS23: -- | FT23: -- | FU23: -- | FV23: -- | FW23: -- | FX23: -- | GD23: 2.97 | GE23: -- | GF23: -- | GG23: -- | GH23: -- | GI23: -- | GJ23: -- | GK23: -- | GL23: --
A24: 62'Q2 | B24: 602.58 | C24: 3372.706 | D24: 3367.517 | E24: 2016.2 | F24: 89.57844935 | G24: 681.8238853 | H24: 1244.797665 | I24: 208.3610438 | J24: 124.8624053 | K24: 224.7 | L24: 21.618 | M24: 135.245 | N24: 117.4 | O24: -17.845 | P24: 1116 | Q24: -5.644 | W24: -- | X24: -- | Y24: 44.97433333 | Z24: -- | AA24: 34.366 | AB24: 38.86 | AC24: -- | AD24: -- | AE24: -- | AF24: -- | AG24: -- | AH24: -- | AI24: -- | AJ24: -- | AK24: -- | AL24: -- | AM24: 26.08166667 | AN24: -- | AO24: -- | AP24: -- | AQ24: 52.7 | AR24: -- | AS24: -- | AT24: 53.16666667 | AU24: -- | AV24: -- | AW24: 50.06666667 | AX24: 54.46666667 | AY24: 52.43333333 | AZ24: 55.83333333 | BA24: 45.3 | BB24: -- | BC24: -- | BD24: -- | BE24: -- | BF24: 8.562 | BG24: 37.517 | BH24: 55.469 | BI24: 22.821 | BJ24: 25.6 | BK24: -- | BM24: -- | BN24: -- | BT24: 28.73973333 | BU24: -- | BV24: -- | BW24: 172.68 | BX24: 1470.333333 | BY24: 1177 | BZ24: -- | CA24: -- | CB24: 6.840753518 | CC24: 10.71408685 | CD24: -- | CE24: -- | CF24: -- | CG24: -- | CH24: -- | CI24: -- | CJ24: -- | CK24: 467.0666667 | CL24: 47.13333333 | CM24: 1003.333333 | CN24: 2323.866667 | CO24: 182.5 | CP24: 64.5351 | CQ24: 186091.6667 | CR24: -- | CS24: 95.4 | CT24: -- | CZ24: 30.22 | DA24: 31.36666667 | DG24: -- | DH24: -- | DI24: 58.8 | DJ24: -- | DK24: 5.533333333 | DL24: 15518.33333 | DN24: 123.6666667 | DP24: 55624.33333 | DR24: 506.3333333 | DT24: -- | DU24: -- | DV24: -- | DW24: -- | DX24: -- | DY24: -- | DZ24: -- | EA24: -- | EB24: -- | EC24: -- | EI24: 22.80347196 | EJ24: 24.04407956 | EK24: 23.70218978 | EQ24: 31.53333333 | ER24: -- | ES24: 33 | EY24: 4.5 | EZ24: 2.606666667 | FA24: 4.296666667 | FB24: 5.013333333 | FC24: 71.66666667 | FD24: -- | FE24: 2.716666667 | FF24: 3.016666667 | FG24: -- | FH24: 3.633333333 | FI24: 3.873333333 | FJ24: 0.8566666667 | FP24: -- | FQ24: -- | FR24: -- | FS24: -- | FT24: -- | FU24: -- | FV24: -- | FW24: -- | FX24: -- | GD24: 2.97 | GE24: -- | GF24: -- | GG24: -- | GH24: -- | GI24: -- | GJ24: -- | GK24: -- | GL24: --
A25: 62'Q3 | B25: 609.575 | C25: 3404.833 | D25: 3394.792 | E25: 2032.5 | F25: 90.22311948 | G25: 687.1312619 | H25: 1255.145619 | I25: 210.9418721 | J25: 127.5308778 | K25: 224.5 | L25: 25.354 | M25: 136.961 | N25: 110.834 | O25: -26.127 | P25: 1141.704 | Q25: -4.864 | W25: -- | X25: -- | Y25: 46.00793333 | Z25: -- | AA25: 35.393 | AB25: 39.879 | AC25: -- | AD25: -- | AE25: -- | AF25: -- | AG25: -- | AH25: -- | AI25: -- | AJ25: -- | AK25: -- | AL25: -- | AM25: 26.35983333 | AN25: -- | AO25: -- | AP25: -- | AQ25: 50.16666667 | AR25: -- | AS25: -- | AT25: 49.3 | AU25: -- | AV25: -- | AW25: 43.83333333 | AX25: 53.03333333 | AY25: 48.23333333 | AZ25: 53.2 | BA25: 44.63333333 | BB25: -- | BC25: -- | BD25: -- | BE25: -- | BF25: 8.622 | BG25: 38.007 | BH25: 55.698 | BI25: 22.685 | BJ25: 26.496 | BK25: -- | BM25: -- | BN25: -- | BT25: 29.50963333 | BU25: -- | BV25: -- | BW25: 176 | BX25: 1430.333333 | BY25: 1204 | BZ25: -- | CA25: -- | CB25: 6.768641145 | CC25: 10.66530781 | CD25: -- | CE25: -- | CF25: -- | CG25: -- | CH25: -- | CI25: -- | CJ25: -- | CK25: 471.7 | CL25: 46.26666667 | CM25: 967.3333333 | CN25: 2336.033333 | CO25: 187.1 | CP25: 66.00186667 | CQ25: 186795.3333 | CR25: -- | CS25: 91.6 | CT25: -- | CZ25: 30.30666667 | DA25: 31.46666667 | DG25: -- | DH25: -- | DI25: 58.83333333 | DJ25: -- | DK25: 5.566666667 | DL25: 15535.66667 | DN25: 17.33333333 | DP25: 55853.66667 | DR25: 229.3333333 | DT25: -- | DU25: -- | DV25: -- | DW25: -- | DX25: -- | DY25: -- | DZ25: -- | EA25: -- | EB25: -- | EC25: -- | EI25: 23.00608766 | EJ25: 24.2658792 | EK25: 23.92541149 | EQ25: 31.7 | ER25: -- | ES25: 33 | EY25: 4.5 | EZ25: 2.846666667 | FA25: 4.336666667 | FB25: 5.046666667 | FC25: 71 | FD25: -- | FE25: 2.84 | FF25: 3.183333333 | FG25: -- | FH25: 3.736666667 | FI25: 3.99 | FJ25: 0.8066666667 | FP25: -- | FQ25: -- | FR25: -- | FS25: -- | FT25: -- | FU25: -- | FV25: -- | FW25: -- | FX25: -- | GD25: 2.97 | GE25: -- | GF25: -- | GG25: -- | GH25: -- | GI25: -- | GJ25: -- | GK25: -- | GL25: --
A26: 62'Q4 | B26: 613.132 | C26: 3418.046 | D26: 3422.737 | E26: 2061.3 | F26: 94.20370171 | G26: 690.9812851 | H26: 1276.115013 | I26: 210.157823 | J26: 126.4926605 | K26: 224.2 | L26: 15.053 | M26: 138.635 | N26: 108.444 | O26: -30.191 | P26: 1149.646 | Q26: -5.49 | W26: -- | X26: -- | Y26: 47.16203333 | Z26: -- | AA26: 36.242 | AB26: 42.406 | AC26: -- | AD26: -- | AE26: -- | AF26: -- | AG26: -- | AH26: -- | AI26: -- | AJ26: -- | AK26: -- | AL26: -- | AM26: 26.58233333 | AN26: -- | AO26: -- | AP26: -- | AQ26: 54.06666667 | AR26: -- | AS26: -- | AT26: 51.06666667 | AU26: -- | AV26: -- | AW26: 49.26666667 | AX26: 57.03333333 | AY26: 46.1 | AZ26: 58.06666667 | BA26: 48.5 | BB26: -- | BC26: -- | BD26: -- | BE26: -- | BF26: 8.701 | BG26: 38.329 | BH26: 56.075 | BI26: 22.702 | BJ26: 26.813 | BK26: -- | BM26: -- | BN26: -- | BT26: 30.08386667 | BU26: -- | BV26: -- | BW26: 180.37 | BX26: 1573 | BY26: 1217.666667 | BZ26: -- | CA26: -- | CB26: 6.83378933 | CC26: 10.70712266 | CD26: -- | CE26: -- | CF26: -- | CG26: -- | CH26: -- | CI26: -- | CJ26: -- | CK26: 477.9333333 | CL26: 44.8 | CM26: 1022.666667 | CN26: 2356.666667 | CO26: 192.6 | CP26: 67.59923333 | CQ26: 187564.3333 | CR26: -- | CS26: 95 | CT26: -- | CZ26: 30.38 | DA26: 31.53333333 | DG26: -- | DH26: -- | DI26: 58.53333333 | DJ26: -- | DK26: 5.533333333 | DL26: 15539.66667 | DN26: 4 | DP26: 56041.66667 | DR26: 188 | DT26: -- | DU26: -- | DV26: -- | DW26: -- | DX26: -- | DY26: -- | DZ26: -- | EA26: -- | EB26: -- | EC26: -- | EI26: 22.98349653 | EJ26: 24.4104032 | EK26: 24.11761544 | EQ26: 31.66666667 | ER26: -- | ES26: 33 | EY26: 4.5 | EZ26: 2.923333333 | FA26: 4.256666667 | FB26: 4.956666667 | FC26: 70 | FD26: -- | FE26: 2.813333333 | FF26: 2.996666667 | FG26: -- | FH26: 3.6 | FI26: 3.903333333 | FJ26: 0.9066666667 | FP26: -- | FQ26: -- | FR26: -- | FS26: -- | FT26: -- | FU26: -- | FV26: -- | FW26: -- | FX26: -- | GD26: 2.97 | GE26: -- | GF26: -- | GG26: -- | GH26: -- | GI26: -- | GJ26: -- | GK26: -- | GL26: --
A27: 63'Q1 | B27: 622.679 | C27: 3456.08 | D27: 3439.606 | E27: 2075.3 | F27: 96.0865478 | G27: 694.7660537 | H27: 1284.447398 | I27: 210.664188 | J27: 126.7448573 | K27: 232.3 | L27: 29.606 | M27: 135.426 | N27: 110.981 | O27: -24.445 | P27: 1134.115 | Q27: -3.426 | W27: -- | X27: -- | Y27: 47.82186667 | Z27: -- | AA27: 35.872 | AB27: 42.64 | AC27: -- | AD27: -- | AE27: -- | AF27: -- | AG27: -- | AH27: -- | AI27: -- | AJ27: -- | AK27: -- | AL27: -- | AM27: 27.07373333 | AN27: -- | AO27: -- | AP27: -- | AQ27: 55 | AR27: -- | AS27: -- | AT27: 51.7 | AU27: -- | AV27: -- | AW27: 47.5 | AX27: 59.6 | AY27: 49.23333333 | AZ27: 56.83333333 | BA27: 52.1 | BB27: -- | BC27: -- | BD27: -- | BE27: -- | BF27: 8.787 | BG27: 38.456 | BH27: 56.451 | BI27: 22.851 | BJ27: 26.951 | BK27: -- | BM27: -- | BN27: -- | BT27: 30.89746667 | BU27: -- | BV27: -- | BW27: 185.94 | BX27: 1411.333333 | BY27: 1239.333333 | BZ27: -- | CA27: -- | CB27: 6.995777618 | CC27: 11.03244428 | CD27: -- | CE27: -- | CF27: -- | CG27: -- | CH27: -- | CI27: -- | CJ27: 462.5 | CK27: 483.3 | CL27: 45.76666667 | CM27: 916.3333333 | CN27: 2376.833333 | CO27: 198.1666667 | CP27: 69.3689 | CQ27: 188204.3333 | CR27: -- | CS27: 98.4 | CT27: -- | CZ27: 30.47666667 | DA27: 31.6 | DG27: -- | DH27: -- | DI27: 58.6 | DJ27: -- | DK27: 5.766666667 | DL27: 15550.33333 | DN27: 10.66666667 | DP27: 56222.66667 | DR27: 181 | DT27: -- | DU27: -- | DV27: -- | DW27: -- | DX27: -- | DY27: -- | DZ27: -- | EA27: -- | EB27: -- | EC27: -- | EI27: 23.34952372 | EJ27: 24.68758546 | EK27: 24.32986502 | EQ27: 31.53333333 | ER27: -- | ES27: 33 | EY27: 4.5 | EZ27: 2.966666667 | FA27: 4.196666667 | FB27: 4.893333333 | FC27: 69.66666667 | FD27: -- | FE27: 2.906666667 | FF27: 3.026666667 | FG27: -- | FH27: 3.64 | FI27: 3.893333333 | FJ27: 0.8666666667 | FP27: -- | FQ27: -- | FR27: -- | FS27: -- | FT27: -- | FU27: -- | FV27: -- | FW27: -- | FX27: -- | GD27: 2.97 | GE27: -- | GF27: -- | GG27: -- | GH27: -- | GI27: -- | GJ27: -- | GK27: -- | GL27: --
A28: 63'Q2 | B28: 631.835 | C28: 3501.134 | D28: 3499.14 | E28: 2095.1 | F28: 98.14335249 | G28: 697.136972 | H28: 1299.819676 | I28: 217.2142647 | J28: 133.1371744 | K28: 249.1 | L28: 19.524 | M28: 138.614 | N28: 123.968 | O28: -14.646 | P28: 1135.077 | Q28: -1.071 | W28: -- | X28: -- | Y28: 48.76253333 | Z28: -- | AA28: 37.8 | AB28: 43.965 | AC28: -- | AD28: -- | AE28: -- | AF28: -- | AG28: -- | AH28: -- | AI28: -- | AJ28: -- | AK28: -- | AL28: -- | AM28: 27.7877 | AN28: -- | AO28: -- | AP28: -- | AQ28: 58.53333333 | AR28: -- | AS28: -- | AT28: 52.93333333 | AU28: -- | AV28: -- | AW28: 52.6 | AX28: 63.13333333 | AY28: 60.26666667 | AZ28: 60.66666667 | BA28: 56.96666667 | BB28: -- | BC28: -- | BD28: -- | BE28: -- | BF28: 8.832 | BG28: 38.845 | BH28: 56.631 | BI28: 22.736 | BJ28: 29.171 | BK28: -- | BM28: -- | BN28: -- | BT28: 31.82923333 | BU28: -- | BV28: -- | BW28: 191.13 | BX28: 1639.333333 | BY28: 1327.666667 | BZ28: -- | CA28: -- | CB28: 6.770221938 | CC28: 10.78355527 | CD28: -- | CE28: -- | CF28: -- | CG28: -- | CH28: -- | CI28: -- | CJ28: 572.3333333 | CK28: 488.1 | CL28: 46 | CM28: 1058 | CN28: 2399 | CO28: 203.3666667 | CP28: 71.33743333 | CQ28: 188796 | CR28: -- | CS28: 91.7 | CT28: -- | CZ28: 30.53333333 | DA28: 31.73333333 | DG28: -- | DH28: -- | DI28: 58.7 | DJ28: -- | DK28: 5.733333333 | DL28: 15622.33333 | DN28: 72 | DP28: 56618 | DR28: 395.3333333 | DT28: -- | DU28: -- | DV28: -- | DW28: -- | DX28: -- | DY28: -- | DZ28: -- | EA28: -- | EB28: -- | EC28: -- | EI28: 23.9191039 | EJ28: 25.05459231 | EK28: 24.60061247 | EQ28: 31.5 | ER28: -- | ES28: 33 | EY28: 4.5 | EZ28: 2.963333333 | FA28: 4.22 | FB28: 4.853333333 | FC28: 63.33333333 | FD28: -- | FE28: 2.94 | FF28: 3.143333333 | FG28: -- | FH28: 3.756666667 | FI28: 3.963333333 | FJ28: 0.82 | FP28: -- | FQ28: -- | FR28: -- | FS28: -- | FT28: -- | FU28: -- | FV28: -- | FW28: -- | FX28: -- | GD28: 2.97 | GE28: -- | GF28: -- | GG28: -- | GH28: -- | GI28: -- | GJ28: -- | GK28: -- | GL28: --
A29: 63'Q3 | B29: 644.96 | C29: 3569.479 | D29: 3563.796 | E29: 2123.7 | F29: 99.36106274 | G29: 703.5101742 | H29: 1320.828763 | I29: 223.1763046 | J29: 138.8801038 | K29: 253.7 | L29: 23.173 | M29: 142.133 | N29: 117.348 | O29: -24.785 | P29: 1185.424 | Q29: -1.637 | W29: -- | X29: -- | Y29: 49.58856667 | Z29: -- | AA29: 38.765 | AB29: 44.653 | AC29: -- | AD29: -- | AE29: -- | AF29: -- | AG29: -- | AH29: -- | AI29: -- | AJ29: -- | AK29: -- | AL29: -- | AM29: 27.97313333 | AN29: -- | AO29: -- | AP29: -- | AQ29: 55.83333333 | AR29: -- | AS29: -- | AT29: 52.63333333 | AU29: -- | AV29: -- | AW29: 50 | AX29: 60.63333333 | AY29: 59.53333333 | AZ29: 60.13333333 | BA29: 47.26666667 | BB29: -- | BC29: -- | BD29: -- | BE29: -- | BF29: 8.922 | BG29: 39.672 | BH29: 56.863 | BI29: 22.49 | BJ29: 30.108 | BK29: -- | BM29: -- | BN29: -- | BT29: 32.4858 | BU29: -- | BV29: -- | BW29: 197.12 | BX29: 1672 | BY29: 1348 | BZ29: -- | CA29: -- | CB29: 6.864544789 | CC29: 10.71454479 | CD29: -- | CE29: -- | CF29: -- | CG29: -- | CH29: -- | CI29: -- | CJ29: 608.3333333 | CK29: 495.2333333 | CL29: 45.5 | CM29: 1064.333333 | CN29: 2425.466667 | CO29: 207.9666667 | CP29: 73.4875 | CQ29: 189499.6667 | CR29: -- | CS29: 96.4 | CT29: -- | CZ29: 30.72 | DA29: 31.86666667 | DG29: -- | DH29: -- | DI29: 58.63333333 | DJ29: -- | DK29: 5.5 | DL29: 15654.66667 | DN29: 32.33333333 | DP29: 56927 | DR29: 309 | DT29: -- | DU29: -- | DV29: -- | DW29: -- | DX29: -- | DY29: -- | DZ29: -- | EA29: -- | EB29: -- | EC29: -- | EI29: 24.42543001 | EJ29: 25.49357969 | EK29: 25.01641223 | EQ29: 31.63333333 | ER29: -- | ES29: 33.03333333 | EY29: 4.5 | EZ29: 3.33 | FA29: 4.286666667 | FB29: 4.836666667 | FC29: 55 | FD29: -- | FE29: 3.293333333 | FF29: 3.526666667 | FG29: -- | FH29: 3.913333333 | FI29: 4.033333333 | FJ29: 0.5066666667 | FP29: -- | FQ29: -- | FR29: -- | FS29: -- | FT29: -- | FU29: -- | FV29: -- | FW29: -- | FX29: -- | GD29: 2.97 | GE29: -- | GF29: -- | GG29: -- | GH29: -- | GI29: -- | GJ29: -- | GK29: -- | GL29: --
A30: 63'Q4 | B30: 654.84 | C30: 3594.954 | D30: 3598.843 | E30: 2141.4 | F30: 100.9266902 | G30: 702.6183609 | H30: 1337.854949 | I30: 229.6773783 | J30: 145.3110621 | K30: 261.5 | L30: 16.928 | M30: 141.667 | N30: 123.237 | O30: -18.43 | P30: 1173.662 | Q30: -2.341 | W30: -- | X30: -- | Y30: 51.27446667 | Z30: -- | AA30: 39.744 | AB30: 45.29 | AC30: -- | AD30: -- | AE30: -- | AF30: -- | AG30: -- | AH30: -- | AI30: -- | AJ30: -- | AK30: -- | AL30: -- | AM30: 28.446 | AN30: -- | AO30: -- | AP30: -- | AQ30: 56.4 | AR30: -- | AS30: -- | AT30: 52.13333333 | AU30: -- | AV30: -- | AW30: 44.76666667 | AX30: 62.1 | AY30: 69.16666667 | AZ30: 62.7 | BA30: 47.9 | BB30: -- | BC30: -- | BD30: -- | BE30: -- | BF30: 9.025 | BG30: 39.672 | BH30: 57.363 | BI30: 22.75 | BJ30: 30.911 | BK30: -- | BM30: -- | BN30: -- | BT30: 33.97756667 | BU30: -- | BV30: -- | BW30: 202.32 | BX30: 1630.666667 | BY30: 1398 | BZ30: -- | CA30: -- | CB30: 6.960127277 | CC30: 10.85679394 | CD30: -- | CE30: -- | CF30: -- | CG30: -- | CH30: -- | CI30: -- | CJ30: 553.3333333 | CK30: 504.7333333 | CL30: 49.43333333 | CM30: 990.6666667 | CN30: 2465.033333 | CO30: 212.4333333 | CP30: 75.76713333 | CQ30: 190255 | CR30: -- | CS30: 94.4 | CT30: -- | CZ30: 30.80333333 | DA30: 32.03333333 | DG30: -- | DH30: -- | DI30: 58.7 | DJ30: -- | DK30: 5.566666667 | DL30: 15700.33333 | DN30: 45.66666667 | DP30: 57299.66667 | DR30: 372.6666667 | DT30: -- | DU30: -- | DV30: -- | DW30: -- | DX30: -- | DY30: -- | DZ30: -- | EA30: -- | EB30: -- | EC30: -- | EI30: 24.67270367 | EJ30: 25.68340965 | EK30: 25.18205218 | EQ30: 31.63333333 | ER30: -- | ES30: 33.16666667 | EY30: 4.5 | EZ30: 3.453333333 | FA30: 4.333333333 | FB30: 4.84 | FC30: 50.66666667 | FD30: -- | FE30: 3.496666667 | FF30: 3.73 | FG30: -- | FH30: 4.006666667 | FI30: 4.12 | FJ30: 0.39 | FP30: -- | FQ30: -- | FR30: -- | FS30: -- | FT30: -- | FU30: -- | FV30: -- | FW30: -- | FX30: -- | GD30: 2.97 | GE30: -- | GF30: -- | GG30: -- | GH30: -- | GI30: -- | GJ30: -- | GK30: -- | GL30: --
A31: 64'Q1 | B31: 671.149 | C31: 3672.708 | D31: 3674.695 | E31: 2183.6 | F31: 104.8561081 | G31: 714.6469646 | H31: 1364.096927 | I31: 234.4960133 | J31: 150.252399 | K31: 277.5 | L31: 18.068 | M31: 141.534 | N31: 130.79 | O31: -10.744 | P31: 1177.319 | Q31: -5.518 | W31: -- | X31: -- | Y31: 52.56023333 | Z31: -- | AA31: 42.901 | AB31: 49.149 | AC31: -- | AD31: -- | AE31: -- | AF31: -- | AG31: -- | AH31: -- | AI31: -- | AJ31: -- | AK31: -- | AL31: -- | AM31: 28.8354 | AN31: -- | AO31: -- | AP31: -- | AQ31: 58.4 | AR31: -- | AS31: -- | AT31: 53.1 | AU31: -- | AV31: -- | AW31: 49.3 | AX31: 61.6 | AY31: 60.23333333 | AZ31: 63.9 | BA31: 55.83333333 | BB31: -- | BC31: -- | BD31: -- | BE31: -- | BF31: 9.018 | BG31: 40.027 | BH31: 57.084 | BI31: 22.531 | BJ31: 33.867 | BK31: -- | BM31: -- | BN31: -- | BT31: 35.0662 | BU31: -- | BV31: -- | BW31: 206.93 | BX31: 1646.666667 | BY31: 1350.333333 | BZ31: -- | CA31: -- | CB31: 6.954236896 | CC31: 10.78090356 | CD31: -- | CE31: -- | CF31: -- | CG31: -- | CH31: -- | CI31: -- | CJ31: 573.3333333 | CK31: 514.3 | CL31: 50.66666667 | CM31: 1038.666667 | CN31: 2513.433333 | CO31: 217.2333333 | CP31: 78.346 | CQ31: 190857.6667 | CR31: -- | CS31: 99.5 | CT31: -- | CZ31: 30.93 | DA31: 32.2 | DG31: 51.26666667 | DH31: 38.4 | DI31: 58.7 | DJ31: -- | DK31: 5.466666667 | DL31: 15742.33333 | DN31: 42 | DP31: 57712 | DR31: 412.3333333 | DT31: -- | DU31: -- | DV31: -- | DW31: -- | DX31: -- | DY31: -- | DZ31: -- | EA31: -- | EB31: -- | EC31: -- | EI31: 25.38571516 | EJ31: 26.26970274 | EK31: 25.6785882 | EQ31: 31.66666667 | ER31: -- | ES31: 33.23333333 | EY31: 4.5 | EZ31: 3.463333333 | FA31: 4.376666667 | FB31: 4.83 | FC31: 45.33333333 | FD31: -- | FE31: 3.53 | FF31: 3.826666667 | FG31: -- | FH31: 4.08 | FI31: 4.18 | FJ31: 0.3533333333 | FP31: -- | FQ31: -- | FR31: -- | FS31: -- | FT31: -- | FU31: -- | FV31: -- | FW31: -- | FX31: -- | GD31: 2.97 | GE31: -- | GF31: -- | GG31: -- | GH31: -- | GI31: -- | GJ31: -- | GK31: -- | GL31: --
A32: 64'Q2 | B32: 680.757 | C32: 3716.382 | D32: 3719.825 | E32: 2222 | F32: 107.5985144 | G32: 728.2851824 | H32: 1386.116303 | I32: 239.9843568 | J32: 154.7678918 | K32: 263.6 | L32: 17.336 | M32: 144.72 | N32: 132.953 | O32: -11.767 | P32: 1187.944 | Q32: -10.155 | W32: -- | X32: -- | Y32: 53.75573333 | Z32: -- | AA32: 42.833 | AB32: 49.356 | AC32: -- | AD32: -- | AE32: -- | AF32: -- | AG32: -- | AH32: -- | AI32: -- | AJ32: -- | AK32: -- | AL32: -- | AM32: 29.51226667 | AN32: -- | AO32: -- | AP32: -- | AQ32: 59.33333333 | AR32: -- | AS32: -- | AT32: 55.63333333 | AU32: -- | AV32: -- | AW32: 52.3 | AX32: 62.73333333 | AY32: 61.53333333 | AZ32: 61.23333333 | BA32: 58.9 | BB32: -- | BC32: -- | BD32: -- | BE32: -- | BF32: 9.118 | BG32: 40.299 | BH32: 57.623 | BI32: 22.626 | BJ32: 33.943 | BK32: -- | BM32: -- | BN32: -- | BT32: 36.34516667 | BU32: -- | BV32: -- | BW32: 211.63 | BX32: 1488.333333 | BY32: 1281 | BZ32: -- | CA32: -- | CB32: 6.663078593 | CC32: 10.30307859 | CD32: -- | CE32: -- | CF32: -- | CG32: -- | CH32: -- | CI32: -- | CJ32: 554 | CK32: 523.7 | CL32: 55.8 | CM32: 943 | CN32: 2580.966667 | CO32: 222.1666667 | CP32: 80.72363333 | CQ32: 191452.6667 | CR32: -- | CS32: 98.5 | CT32: -- | CZ32: 30.98 | DA32: 32.23333333 | DG32: 51.86666667 | DH32: 38.6 | DI32: 58.96666667 | DJ32: -- | DK32: 5.2 | DL32: 15812 | DN32: 69.66666667 | DP32: 58077.33333 | DR32: 365.3333333 | DT32: -- | DU32: -- | DV32: -- | DW32: -- | DX32: -- | DY32: -- | DZ32: -- | EA32: -- | EB32: -- | EC32: -- | EI32: 25.41500887 | EJ32: 26.52816863 | EK32: 26.03480533 | EQ32: 31.53333333 | ER32: -- | ES32: 33.4 | EY32: 4.5 | EZ32: 3.49 | FA32: 4.406666667 | FB32: 4.85 | FC32: 44.33333333 | FD32: -- | FE32: 3.476666667 | FF32: 3.86 | FG32: -- | FH32: 4.073333333 | FI32: 4.2 | FJ32: 0.34 | FP32: -- | FQ32: -- | FR32: -- | FS32: -- | FT32: -- | FU32: -- | FV32: -- | FW32: -- | FX32: -- | GD32: 2.97 | GE32: -- | GF32: -- | GG32: -- | GH32: -- | GI32: -- | GJ32: -- | GK32: -- | GL32: --
A33: 64'Q3 | B33: 692.807 | C33: 3766.862 | D33: 3765.998 | E33: 2262.9 | F33: 111.1493165 | G33: 742.5106919 | H33: 1409.239992 | I33: 247.7268415 | J33: 162.3964391 | K33: 259.2 | L33: 20.773 | M33: 148.604 | N33: 131.936 | O33: -16.668 | P33: 1189.381 | Q33: -6.713 | W33: -- | X33: -- | Y33: 55.19846667 | Z33: -- | AA33: 43.908 | AB33: 49.856 | AC33: -- | AD33: -- | AE33: -- | AF33: -- | AG33: -- | AH33: -- | AI33: -- | AJ33: -- | AK33: -- | AL33: -- | AM33: 29.9851 | AN33: -- | AO33: -- | AP33: -- | AQ33: 63.16666667 | AR33: -- | AS33: -- | AT33: 57.03333333 | AU33: -- | AV33: -- | AW33: 56 | AX33: 67.06666667 | AY33: 62.46666667 | AZ33: 64.16666667 | BA33: 66.63333333 | BB33: -- | BC33: -- | BD33: -- | BE33: -- | BF33: 9.238 | BG33: 40.602 | BH33: 58.251 | BI33: 22.753 | BJ33: 34.934 | BK33: -- | BM33: -- | BN33: -- | BT33: 37.9031 | BU33: -- | BV33: -- | BW33: 216.12 | BX33: 1528.666667 | BY33: 1291.666667 | BZ33: -- | CA33: -- | CB33: 6.074251191 | CC33: 9.574251191 | CD33: -- | CE33: -- | CF33: -- | CG33: -- | CH33: -- | CI33: -- | CJ33: 582.3333333 | CK33: 533.3333333 | CL33: 54.3 | CM33: 972 | CN33: 2614.3 | CO33: 227.4333333 | CP33: 83.0632 | CQ33: 192132 | CR33: -- | CS33: 100.6 | CT33: -- | CZ33: 31.05 | DA33: 32.3 | DG33: 52.33333333 | DH33: 38.5 | DI33: 58.63333333 | DJ33: -- | DK33: 5 | DL33: 15969.33333 | DN33: 157.3333333 | DP33: 58645 | DR33: 567.6666667 | DT33: -- | DU33: -- | DV33: -- | DW33: -- | DX33: -- | DY33: -- | DZ33: -- | EA33: -- | EB33: -- | EC33: -- | EI33: 25.66403952 | EJ33: 26.88938169 | EK33: 26.43063592 | EQ33: 31.63333333 | ER33: -- | ES33: 33.5 | EY33: 4.5 | EZ33: 3.456666667 | FA33: 4.41 | FB33: 4.823333333 | FC33: 41.33333333 | FD33: -- | FE33: 3.496666667 | FF33: 3.766666667 | FG33: -- | FH33: 4.053333333 | FI33: 4.193333333 | FJ33: 0.4266666667 | FP33: -- | FQ33: -- | FR33: -- | FS33: -- | FT33: -- | FU33: -- | FV33: -- | FW33: -- | FX33: -- | GD33: 2.92 | GE33: -- | GF33: -- | GG33: -- | GH33: -- | GI33: -- | GJ33: -- | GK33: -- | GL33: --
A34: 64'Q4 | B34: 698.424 | C34: 3780.219 | D34: 3778.733 | E34: 2269.2 | F34: 107.7315416 | G34: 743.9245422 | H34: 1417.543916 | I34: 253.0028385 | J34: 166.3314796 | K34: 254.5 | L34: 19.867 | M34: 152.623 | N34: 135.866 | O34: -16.757 | P34: 1188.954 | Q34: -5.061 | W34: -- | X34: -- | Y34: 57.16723333 | Z34: -- | AA34: 43.522 | AB34: 49.851 | AC34: -- | AD34: -- | AE34: -- | AF34: -- | AG34: -- | AH34: -- | AI34: -- | AJ34: -- | AK34: -- | AL34: -- | AM34: 30.43946667 | AN34: -- | AO34: -- | AP34: -- | AQ34: 61.63333333 | AR34: -- | AS34: -- | AT34: 55.83333333 | AU34: -- | AV34: -- | AW34: 59.86666667 | AX34: 61.33333333 | AY34: 68.96666667 | AZ34: 62.46666667 | BA34: 69.76666667 | BB34: -- | BC34: -- | BD34: -- | BE34: -- | BF34: 9.306 | BG34: 40.239 | BH34: 58.411 | BI34: 23.128 | BJ34: 34.593 | BK34: -- | BM34: -- | BN34: -- | BT34: 39.1457 | BU34: -- | BV34: -- | BW34: 219.86 | BX34: 1498 | BY34: 1216 | BZ34: -- | CA34: -- | CB34: 6.232816536 | CC34: 9.709483202 | CD34: -- | CE34: -- | CF34: -- | CG34: -- | CH34: -- | CI34: -- | CJ34: 557 | CK34: 542.0666667 | CL34: 58.56666667 | CM34: 963 | CN34: 2643.933333 | CO34: 233.0666667 | CP34: 85.1446 | CQ34: 192839 | CR34: -- | CS34: 99.9 | CT34: -- | CZ34: 31.19333333 | DA34: 32.46666667 | DG34: 52.86666667 | DH34: 38.6 | DI34: 58.56666667 | DJ34: -- | DK34: 4.966666667 | DL34: 16031 | DN34: 61.66666667 | DP34: 59144 | DR34: 499 | DT34: -- | DU34: -- | DV34: -- | DW34: -- | DX34: -- | DY34: -- | DZ34: -- | EA34: -- | EB34: -- | EC34: -- | EI34: 25.65670909 | EJ34: 26.9405507 | EK34: 26.53993473 | EQ34: 31.7 | ER34: -- | ES34: 33.5 | EY34: 4.5 | EZ34: 3.576666667 | FA34: 4.43 | FB34: 4.81 | FC34: 38 | FD34: -- | FE34: 3.683333333 | FF34: 3.93 | FG34: -- | FH34: 4.066666667 | FI34: 4.173333333 | FJ34: 0.2433333333 | FP34: -- | FQ34: -- | FR34: -- | FS34: -- | FT34: -- | FU34: -- | FV34: -- | FW34: -- | FX34: -- | GD34: 2.92 | GE34: -- | GF34: -- | GG34: -- | GH34: -- | GI34: -- | GJ34: -- | GK34: -- | GL34: --
A35: 65'Q1 | B35: 719.248 | C35: 3873.452 | D35: 3839.928 | E35: 2319.8 | F35: 117.7597436 | G35: 751.037297 | H35: 1451.002959 | I35: 269.1085134 | J35: 182.279395 | K35: 255.3 | L35: 45.521 | M35: 147.129 | N35: 121.201 | O35: -25.928 | P35: 1187.655 | Q35: -0.907 | W35: -- | X35: -- | Y35: 60.15306667 | Z35: -- | AA35: 49.487 | AB35: 56.287 | AC35: -- | AD35: -- | AE35: -- | AF35: -- | AG35: -- | AH35: -- | AI35: -- | AJ35: -- | AK35: -- | AL35: -- | AM35: 31.58916667 | AN35: -- | AO35: -- | AP35: -- | AQ35: 62.66666667 | AR35: -- | AS35: -- | AT35: 58.73333333 | AU35: -- | AV35: -- | AW35: 60.8 | AX35: 64.73333333 | AY35: 66.66666667 | AZ35: 61.23333333 | BA35: 67.5 | BB35: -- | BC35: -- | BD35: -- | BE35: -- | BF35: 9.343 | BG35: 40.837 | BH35: 58.463 | BI35: 22.88 | BJ35: 39.703 | BK35: -- | BM35: -- | BN35: -- | BT35: 40.31386667 | BU35: -- | BV35: -- | BW35: 224.64 | BX35: 1405.666667 | BY35: 1220 | BZ35: -- | CA35: -- | CB35: 6.063929225 | CC35: 9.493929225 | CD35: -- | CE35: -- | CF35: -- | CG35: -- | CH35: -- | CI35: -- | CJ35: 549.3333333 | CK35: 553.1333333 | CL35: 55.1 | CM35: 894.6666667 | CN35: 2675.1 | CO35: 238.8 | CP35: 88.08356667 | CQ35: 193385.3333 | CR35: -- | CS35: 102 | CT35: -- | CZ35: 31.29 | DA35: 32.6 | DG35: 53.56666667 | DH35: 38.7 | DI35: 58.66666667 | DJ35: -- | DK35: 4.9 | DL35: 16296.33333 | DN35: 265.3333333 | DP35: 59795.33333 | DR35: 651.3333333 | DT35: -- | DU35: -- | DV35: -- | DW35: -- | DX35: -- | DY35: -- | DZ35: -- | EA35: -- | EB35: -- | EC35: -- | EI35: 26.34440244 | EJ35: 27.58718941 | EK35: 27.11485421 | EQ35: 31.86666667 | ER35: -- | ES35: 33.66666667 | EY35: 4.5 | EZ35: 3.973333333 | FA35: 4.42 | FB35: 4.786666667 | FC35: 36.66666667 | FD35: -- | FE35: 3.89 | FF35: 4.01 | FG35: -- | FH35: 4.133333333 | FI35: 4.203333333 | FJ35: 0.1933333333 | FP35: -- | FQ35: -- | FR35: -- | FS35: -- | FT35: -- | FU35: -- | FV35: -- | FW35: -- | FX35: -- | GD35: 2.92 | GE35: -- | GF35: -- | GG35: -- | GH35: -- | GI35: -- | GJ35: -- | GK35: -- | GL35: --
A36: 65'Q2 | B36: 732.369 | C36: 3926.406 | D36: 3909.168 | E36: 2345.5 | F36: 117.943935 | G36: 758.2153064 | H36: 1469.340759 | I36: 278.9907987 | J36: 191.530642 | K36: 257.2 | L36: 32.796 | M36: 164.492 | N36: 143.954 | O36: -20.538 | P36: 1202.022 | Q36: -1.996 | W36: -- | X36: -- | Y36: 63.06973333 | Z36: -- | AA36: 51.302 | AB36: 57.541 | AC36: -- | AD36: -- | AE36: -- | AF36: -- | AG36: -- | AH36: -- | AI36: -- | AJ36: -- | AK36: -- | AL36: -- | AM36: 32.32163333 | AN36: -- | AO36: -- | AP36: -- | AQ36: 60.66666667 | AR36: -- | AS36: -- | AT36: 57 | AU36: -- | AV36: -- | AW36: 59.43333333 | AX36: 59.13333333 | AY36: 70.63333333 | AZ36: 60.83333333 | BA36: 69.2 | BB36: -- | BC36: -- | BD36: -- | BE36: -- | BF36: 9.406 | BG36: 41.08 | BH36: 58.482 | BI36: 22.898 | BJ36: 41.253 | BK36: -- | BM36: -- | BN36: -- | BT36: 41.74353333 | BU36: -- | BV36: -- | BW36: 228.35 | BX36: 1468 | BY36: 1203.333333 | BZ36: -- | CA36: -- | CB36: 6.312713948 | CC36: 9.579380615 | CD36: -- | CE36: -- | CF36: -- | CG36: -- | CH36: -- | CI36: -- | CJ36: 571 | CK36: 562.7333333 | CL36: 55.83333333 | CM36: 948.6666667 | CN36: 2705.333333 | CO36: 243.8333333 | CP36: 90.92113333 | CQ36: 193894.6667 | CR36: -- | CS36: 105.4 | CT36: -- | CZ36: 31.49 | DA36: 32.7 | DG36: 54.2 | DH36: 38.7 | DI36: 58.86666667 | DJ36: -- | DK36: 4.666666667 | DL36: 16483 | DN36: 186.6666667 | DP36: 60480.33333 | DR36: 685 | DT36: -- | DU36: -- | DV36: -- | DW36: -- | DX36: -- | DY36: -- | DZ36: -- | EA36: -- | EB36: -- | EC36: -- | EI36: 26.78704867 | EJ36: 27.96569622 | EK36: 27.50290664 | EQ36: 32.16666667 | ER36: -- | ES36: 33.8 | EY36: 4.5 | EZ36: 4.076666667 | FA36: 4.443333333 | FB36: 4.82 | FC36: 37.66666667 | FD36: -- | FE36: 3.873333333 | FF36: 4.02 | FG36: -- | FH36: 4.15 | FI36: 4.206666667 | FJ36: 0.1866666667 | FP36: -- | FQ36: -- | FR36: -- | FS36: -- | FT36: -- | FU36: -- | FV36: -- | FW36: -- | FX36: -- | GD36: 2.92 | GE36: -- | GF36: -- | GG36: -- | GH36: -- | GI36: -- | GJ36: -- | GK36: -- | GL36: --
A37: 65'Q3 | B37: 750.184 | C37: 4006.152 | D37: 3982.98 | E37: 2385.9 | F37: 121.9756815 | G37: 769.5696121 | H37: 1494.354706 | I37: 289.1344337 | J37: 201.4551664 | K37: 258.3 | L37: 36.934 | M37: 165.167 | N37: 135.71 | O37: -29.457 | P37: 1241.732 | Q37: -9.38 | W37: -- | X37: -- | Y37: 65.58596667 | Z37: -- | AA37: 52.193 | AB37: 58.177 | AC37: -- | AD37: -- | AE37: -- | AF37: -- | AG37: -- | AH37: -- | AI37: -- | AJ37: -- | AK37: -- | AL37: -- | AM37: 32.99846667 | AN37: -- | AO37: -- | AP37: -- | AQ37: 59.06666667 | AR37: -- | AS37: -- | AT37: 56.8 | AU37: -- | AV37: -- | AW37: 55.56666667 | AX37: 58.73333333 | AY37: 69.53333333 | AZ37: 59.8 | BA37: 63.9 | BB37: -- | BC37: -- | BD37: -- | BE37: -- | BF37: 9.506 | BG37: 41.817 | BH37: 58.924 | BI37: 22.732 | BJ37: 42.211 | BK37: -- | BM37: -- | BN37: -- | BT37: 43.4084 | BU37: -- | BV37: -- | BW37: 232.68 | BX37: 1481 | BY37: 1237.666667 | BZ37: -- | CA37: -- | CB37: 6.084348202 | CC37: 9.141014869 | CD37: -- | CE37: -- | CF37: -- | CG37: -- | CH37: -- | CI37: -- | CJ37: 585.3333333 | CK37: 577.0666667 | CL37: 62.1 | CM37: 984.3333333 | CN37: 2779.5 | CO37: 248.9 | CP37: 93.3694 | CQ37: 194530.6667 | CR37: -- | CS37: 103.4 | CT37: -- | CZ37: 31.58333333 | DA37: 32.73333333 | DG37: 54.66666667 | DH37: 38.56666667 | DI37: 58.9 | DJ37: -- | DK37: 4.366666667 | DL37: 16734.33333 | DN37: 251.3333333 | DP37: 61227 | DR37: 746.6666667 | DT37: -- | DU37: -- | DV37: -- | DW37: -- | DX37: -- | DY37: -- | DZ37: -- | EA37: -- | EB37: -- | EC37: -- | EI37: 27.34642279 | EJ37: 28.49540065 | EK37: 28.00335472 | EQ37: 32.4 | ER37: -- | ES37: 33.83333333 | EY37: 4.5 | EZ37: 4.073333333 | FA37: 4.496666667 | FB37: 4.89 | FC37: 39.33333333 | FD37: -- | FE37: 3.866666667 | FF37: 4.083333333 | FG37: -- | FH37: 4.2 | FI37: 4.246666667 | FJ37: 0.1633333333 | FP37: -- | FQ37: -- | FR37: -- | FS37: -- | FT37: -- | FU37: -- | FV37: -- | FW37: -- | FX37: -- | GD37: 2.92 | GE37: -- | GF37: -- | GG37: -- | GH37: -- | GI37: -- | GJ37: -- | GK37: -- | GL37: --
A38: 65'Q4 | B38: 773.104 | C38: 4100.631 | D38: 4088.619 | E38: 2453 | F38: 127.1228097 | G38: 798.1293888 | H38: 1527.747801 | I38: 300.89517 | J38: 211.4893118 | K38: 252.8 | L38: 29.703 | M38: 173.226 | N38: 145.548 | O38: -27.678 | P38: 1265.368 | Q38: -9.593 | W38: -- | X38: -- | Y38: 67.98723333 | Z38: -- | AA38: 55.197 | AB38: 60.89 | AC38: -- | AD38: -- | AE38: -- | AF38: -- | AG38: -- | AH38: -- | AI38: -- | AJ38: -- | AK38: -- | AL38: -- | AM38: 33.66603333 | AN38: -- | AO38: -- | AP38: -- | AQ38: 60.26666667 | AR38: -- | AS38: -- | AT38: 57.26666667 | AU38: -- | AV38: -- | AW38: 47.53333333 | AX38: 62.26666667 | AY38: 68.73333333 | AZ38: 61.93333333 | BA38: 65.9 | BB38: -- | BC38: -- | BD38: -- | BE38: -- | BF38: 9.647 | BG38: 42.578 | BH38: 59.484 | BI38: 22.656 | BJ38: 44.685 | BK38: -- | BM38: -- | BN38: -- | BT38: 44.7335 | BU38: -- | BV38: -- | BW38: 237.9 | BX38: 1522.666667 | BY38: 1300 | BZ38: -- | CA38: -- | CB38: 5.884433169 | CC38: 8.754433169 | CD38: -- | CE38: -- | CF38: -- | CG38: -- | CH38: -- | CI38: -- | CJ38: 593.3333333 | CK38: 590.4333333 | CL38: 60.1 | CM38: 1013 | CN38: 2835.466667 | CO38: 254.6666667 | CP38: 95.38816667 | CQ38: 195188 | CR38: -- | CS38: 102.9 | CT38: -- | CZ38: 31.75 | DA38: 32.9 | DG38: 55.33333333 | DH38: 38.56666667 | DI38: 58.9 | DJ38: -- | DK38: 4.1 | DL38: 16959 | DN38: 224.6666667 | DP38: 62012 | DR38: 785 | DT38: -- | DU38: -- | DV38: -- | DW38: -- | DX38: -- | DY38: -- | DZ38: -- | EA38: -- | EB38: -- | EC38: -- | EI38: 27.90163145 | EJ38: 29.1866331 | EK38: 28.72126798 | EQ38: 32.63333333 | ER38: -- | ES38: 33.96666667 | EY38: 4.64 | EZ38: 4.166666667 | FA38: 4.613333333 | FB38: 4.966666667 | FC38: 35.33333333 | FD38: -- | FE38: 4.166666667 | FF38: 4.463333333 | FG38: -- | FH38: 4.506666667 | FI38: 4.473333333 | FJ38: 0.01 | FP38: -- | FQ38: -- | FR38: -- | FS38: -- | FT38: -- | FU38: -- | FV38: -- | FW38: -- | FX38: -- | GD38: 2.92 | GE38: -- | GF38: -- | GG38: -- | GH38: -- | GI38: -- | GJ38: -- | GK38: -- | GL38: --
A39: 66'Q1 | B39: 797.328 | C39: 4201.891 | D39: 4158.688 | E39: 2489.1 | F39: 133.1601966 | G39: 803.937051 | H39: 1552.002752 | I39: 313.5052927 | J39: 224.3097806 | K39: 258.8 | L39: 52.041 | M39: 177.69 | N39: 142.979 | O39: -34.711 | P39: 1289.017 | Q39: -4.066 | W39: -- | X39: -- | Y39: 70.72903333 | Z39: -- | AA39: 56.653 | AB39: 63.203 | AC39: -- | AD39: -- | AE39: -- | AF39: -- | AG39: -- | AH39: -- | AI39: -- | AJ39: -- | AK39: -- | AL39: -- | AM39: 34.6303 | AN39: -- | AO39: -- | AP39: -- | AQ39: 65.66666667 | AR39: -- | AS39: -- | AT39: 61.76666667 | AU39: -- | AV39: -- | AW39: 50.23333333 | AX39: 65.63333333 | AY39: 80.83333333 | AZ39: 66.1 | BA39: 80.46666667 | BB39: -- | BC39: -- | BD39: -- | BE39: -- | BF39: 9.813 | BG39: 43.173 | BH39: 59.95 | BI39: 22.73 | BJ39: 45.803 | BK39: -- | BM39: -- | BN39: -- | BT39: 45.802 | BU39: -- | BV39: -- | BW39: 243.42 | BX39: 1380.666667 | BY39: 1239.333333 | BZ39: -- | CA39: -- | CB39: 6.284789429 | CC39: 8.991456096 | CD39: -- | CE39: -- | CF39: -- | CG39: -- | CH39: -- | CI39: -- | CJ39: 565.6666667 | CK39: 603.1333333 | CL39: 59 | CM39: 902.6666667 | CN39: 2863.566667 | CO39: 258 | CP39: 97.74516667 | CQ39: 195686 | CR39: -- | CS39: 100 | CT39: -- | CZ39: 32.04666667 | DA39: 33.06666667 | DG39: 56.16666667 | DH39: 38.66666667 | DI39: 58.86666667 | DJ39: -- | DK39: 3.866666667 | DL39: 17277 | DN39: 318 | DP39: 62838.66667 | DR39: 826.6666667 | DT39: -- | DU39: -- | DV39: -- | DW39: -- | DX39: -- | DY39: -- | DZ39: -- | EA39: -- | EB39: -- | EC39: -- | EI39: 28.76550474 | EJ39: 29.85081218 | EK39: 29.29129523 | EQ39: 33.1 | ER39: -- | ES39: 34.13333333 | EY39: 5.116666667 | EZ39: 4.556666667 | FA39: 4.813333333 | FB39: 5.166666667 | FC39: 35.33333333 | FD39: -- | FE39: 4.61 | FF39: 4.93 | FG39: -- | FH39: 4.92 | FI39: 4.77 | FJ39: -0.16 | FP39: -- | FQ39: -- | FR39: -- | FS39: -- | FT39: -- | FU39: -- | FV39: -- | FW39: -- | FX39: -- | GD39: 2.92 | GE39: -- | GF39: -- | GG39: -- | GH39: -- | GI39: -- | GJ39: -- | GK39: -- | GL39: --
A40: 66'Q2 | B40: 807.153 | C40: 4219.097 | D40: 4180.548 | E40: 2495.4 | F40: 127.8493427 | G40: 811.5500912 | H40: 1556.000566 | I40: 318.6669492 | J40: 227.5169712 | K40: 238.1 | L40: 50.014 | M40: 182.109 | N40: 149.242 | O40: -32.867 | P40: 1313.365 | Q40: -5.623 | W40: -- | X40: -- | Y40: 73.69733333 | Z40: -- | AA40: 56.992 | AB40: 62.159 | AC40: -- | AD40: -- | AE40: -- | AF40: -- | AG40: -- | AH40: -- | AI40: -- | AJ40: -- | AK40: -- | AL40: -- | AM40: 35.35353333 | AN40: -- | AO40: -- | AP40: -- | AQ40: 60.3 | AR40: -- | AS40: -- | AT40: 58.56666667 | AU40: -- | AV40: -- | AW40: 53.36666667 | AX40: 57.63333333 | AY40: 82.9 | AZ40: 58.73333333 | BA40: 75.16666667 | BB40: -- | BC40: -- | BD40: -- | BE40: -- | BF40: 9.969 | BG40: 42.911 | BH40: 60.358 | BI40: 23.232 | BJ40: 46.203 | BK40: -- | BM40: -- | BN40: -- | BT40: 46.81706667 | BU40: -- | BV40: -- | BW40: 247.81 | BX40: 1270.333333 | BY40: 1059.666667 | BZ40: -- | CA40: -- | CB40: 6.522555431 | CC40: 9.205888765 | CD40: -- | CE40: -- | CF40: -- | CG40: -- | CH40: -- | CI40: -- | CJ40: 492.6666667 | CK40: 613.0333333 | CL40: 59.43333333 | CM40: 828 | CN40: 2871 | CO40: 255.2666667 | CP40: 99.29973333 | CQ40: 196183 | CR40: -- | CS40: 95.7 | CT40: -- | CZ40: 32.33666667 | DA40: 33.4 | DG40: 56.73333333 | DH40: 38.56666667 | DI40: 59.03333333 | DJ40: -- | DK40: 3.833333333 | DL40: 17625 | DN40: 348 | DP40: 63752.33333 | DR40: 913.6666667 | DT40: -- | DU40: -- | DV40: -- | DW40: -- | DX40: -- | DY40: -- | DZ40: -- | EA40: -- | EB40: -- | EC40: -- | EI40: 28.55507647 | EJ40: 29.84857998 | EK40: 29.42763108 | EQ40: 33.23333333 | ER40: -- | ES40: 34.46666667 | EY40: 5.506666667 | EZ40: 4.913333333 | FA40: 5.003333333 | FB40: 5.49 | FC40: 48.66666667 | FD40: -- | FE40: 4.586666667 | FF40: 4.933333333 | FG40: -- | FH40: 4.896666667 | FI40: 4.78 | FJ40: -0.1533333333 | FP40: -- | FQ40: -- | FR40: -- | FS40: -- | FT40: -- | FU40: -- | FV40: -- | FW40: -- | FX40: -- | GD40: 2.92 | GE40: -- | GF40: -- | GG40: -- | GH40: -- | GI40: -- | GJ40: -- | GK40: -- | GL40: --
A41: 66'Q3 | B41: 820.798 | C41: 4249.152 | D41: 4217.135 | E41: 2523.8 | F41: 132.044815 | G41: 817.3795049 | H41: 1574.37568 | I41: 322.8648787 | J41: 231.6009632 | K41: 230.3 | L41: 44.456 | M41: 192.323 | N41: 143.616 | O41: -48.707 | P41: 1349.101 | Q41: -7.82 | W41: -- | X41: -- | Y41: 77.08826667 | Z41: -- | AA41: 56.681 | AB41: 60.956 | AC41: -- | AD41: -- | AE41: -- | AF41: -- | AG41: -- | AH41: -- | AI41: -- | AJ41: -- | AK41: -- | AL41: -- | AM41: 35.90053333 | AN41: -- | AO41: -- | AP41: -- | AQ41: 59.16666667 | AR41: -- | AS41: -- | AT41: 57.26666667 | AU41: -- | AV41: -- | AW41: 56.56666667 | AX41: 54.93333333 | AY41: 77.63333333 | AZ41: 58.3 | BA41: 73.26666667 | BB41: -- | BC41: -- | BD41: -- | BE41: -- | BF41: 10.112 | BG41: 42.976 | BH41: 60.697 | BI41: 23.529 | BJ41: 45.751 | BK41: -- | BM41: -- | BN41: -- | BT41: 47.5194 | BU41: -- | BV41: -- | BW41: 254.28 | BX41: 1083.666667 | BY41: 861 | BZ41: -- | CA41: -- | CB41: 7.038375009 | CC41: 9.675041676 | CD41: -- | CE41: -- | CF41: -- | CG41: -- | CH41: -- | CI41: -- | CJ41: 390 | CK41: 626.2333333 | CL41: 61.06666667 | CM41: 728 | CN41: 2905.866667 | CO41: 253.5333333 | CP41: 100.4402 | CQ41: 196768.6667 | CR41: -- | CS41: 91.2 | CT41: -- | CZ41: 32.61666667 | DA41: 33.7 | DG41: 57 | DH41: 38.36666667 | DI41: 59.23333333 | DJ41: -- | DK41: 3.766666667 | DL41: 17842.66667 | DN41: 217.6666667 | DP41: 64484 | DR41: 731.6666667 | DT41: -- | DU41: -- | DV41: -- | DW41: -- | DX41: -- | DY41: -- | DZ41: -- | EA41: -- | EB41: -- | EC41: -- | EI41: 28.63527669 | EJ41: 30.05368781 | EK41: 29.69665909 | EQ41: 33.56666667 | ER41: -- | ES41: 34.8 | EY41: 5.876666667 | EZ41: 5.41 | FA41: 5.32 | FB41: 5.866666667 | FC41: 54.66666667 | FD41: -- | FE41: 5.043333333 | FF41: 5.51 | FG41: -- | FH41: 5.39 | FI41: 5.14 | FJ41: -0.37 | FP41: -- | FQ41: -- | FR41: -- | FS41: -- | FT41: -- | FU41: -- | FV41: -- | FW41: -- | FX41: -- | GD41: 2.936666667 | GE41: -- | GF41: -- | GG41: -- | GH41: -- | GI41: -- | GJ41: -- | GK41: -- | GL41: --
A42: 66'Q4 | B42: 834.864 | C42: 4285.582 | D42: 4231.252 | E42: 2534.2 | F42: 131.9936507 | G42: 815.1173444 | H42: 1587.089005 | I42: 322.8648787 | J42: 230.4352952 | K42: 206.1 | L42: 61.182 | M42: 194.489 | N42: 148.349 | O42: -46.14 | P42: 1372.382 | Q42: -10.313 | W42: -- | X42: -- | Y42: 78.453 | Z42: -- | AA42: 55.685 | AB42: 62.645 | AC42: -- | AD42: -- | AE42: -- | AF42: -- | AG42: -- | AH42: -- | AI42: -- | AJ42: -- | AK42: -- | AL42: -- | AM42: 36.2436 | AN42: -- | AO42: -- | AP42: -- | AQ42: 54.43333333 | AR42: -- | AS42: -- | AT42: 54.4 | AU42: -- | AV42: -- | AW42: 55.83333333 | AX42: 49.06666667 | AY42: 69.93333333 | AZ42: 55.1 | BA42: 63.06666667 | BB42: -- | BC42: -- | BD42: -- | BE42: -- | BF42: 10.249 | BG42: 43.27 | BH42: 61.02 | BI42: 23.686 | BJ42: 44.742 | BK42: -- | BM42: -- | BN42: -- | BT42: 47.67906667 | BU42: -- | BV42: -- | BW42: 259.75 | BX42: 931.3333333 | BY42: 739.3333333 | BZ42: -- | CA42: -- | CB42: 7.270007319 | CC42: 9.860007319 | CD42: -- | CE42: -- | CF42: -- | CG42: -- | CH42: -- | CI42: -- | CJ42: 379.3333333 | CK42: 639.8333333 | CL42: 65.93333333 | CM42: 647.3333333 | CN42: 2939.666667 | CO42: 252.6333333 | CP42: 101.3929 | CQ42: 197392.3333 | CR42: -- | CS42: 88.3 | CT42: -- | CZ42: 32.88333333 | DA42: 34.03333333 | DG42: 57.23333333 | DH42: 38.3 | DI42: 59.46666667 | DJ42: -- | DK42: 3.7 | DL42: 17978.33333 | DN42: 135.6666667 | DP42: 65024.33333 | DR42: 540.3333333 | DT42: -- | DU42: -- | DV42: -- | DW42: -- | DX42: -- | DY42: -- | DZ42: -- | EA42: -- | EB42: -- | EC42: -- | EI42: 28.44959968 | EJ42: 30.09525428 | EK42: 29.88841696 | EQ42: 33.33333333 | ER42: -- | ES42: 35.16666667 | EY42: 6 | EZ42: 5.563333333 | FA42: 5.383333333 | FB42: 6.136666667 | FC42: 75.33333333 | FD42: -- | FE42: 5.21 | FF42: 5.44 | FG42: -- | FH42: 5.21 | FI42: 5.003333333 | FJ42: -0.4366666667 | FP42: -- | FQ42: -- | FR42: -- | FS42: -- | FT42: -- | FU42: -- | FV42: -- | FW42: -- | FX42: -- | GD42: 2.97 | GE42: -- | GF42: -- | GG42: -- | GH42: -- | GI42: -- | GJ42: -- | GK42: -- | GL42: --
A43: 67'Q1 | B43: 846.046 | C43: 4324.926 | D43: 4276.666 | E43: 2549 | F43: 129.4968331 | G43: 824.2747442 | H43: 1595.228423 | I43: 317.6215504 | J43: 224.8150969 | K43: 199.7 | L43: 57.259 | M43: 197.525 | N43: 151.162 | O43: -46.363 | P43: 1429.849 | Q43: -19.263 | W43: -- | X43: -- | Y43: 79.6517 | Z43: -- | AA43: 53.303 | AB43: 60.845 | AC43: -- | AD43: -- | AE43: -- | AF43: -- | AG43: -- | AH43: -- | AI43: -- | AJ43: -- | AK43: -- | AL43: -- | AM43: 36.0439 | AN43: -- | AO43: -- | AP43: -- | AQ43: 47.33333333 | AR43: -- | AS43: -- | AT43: 47.4 | AU43: -- | AV43: -- | AW43: 46.36666667 | AX43: 45.53333333 | AY43: 62.9 | AZ43: 51.06666667 | BA43: 45.36666667 | BB43: -- | BC43: -- | BD43: -- | BE43: -- | BF43: 10.387 | BG43: 43.635 | BH43: 61.688 | BI43: 23.805 | BJ43: 42.681 | BK43: -- | BM43: -- | BN43: -- | BT43: 48.03206667 | BU43: -- | BV43: -- | BW43: 267.19 | BX43: 1082 | BY43: 952.3333333 | BZ43: -- | CA43: -- | CB43: 6.705165035 | CC43: 9.388498368 | CD43: -- | CE43: -- | CF43: -- | CG43: -- | CH43: -- | CI43: -- | CJ43: 421 | CK43: 650.6666667 | CL43: 71.56666667 | CM43: 749.6666667 | CN43: 2983.533333 | CO43: 253.1666667 | CP43: 102.4311333 | CQ43: 197888.3333 | CR43: -- | CS43: 94.1 | CT43: -- | CZ43: 32.96666667 | DA43: 34.23333333 | DG43: 57.03333333 | DH43: 38.03333333 | DI43: 59.3 | DJ43: -- | DK43: 3.833333333 | DL43: 17983.66667 | DN43: 5.333333333 | DP43: 65455 | DR43: 430.6666667 | DT43: -- | DU43: -- | DV43: -- | DW43: -- | DX43: -- | DY43: -- | DZ43: -- | EA43: -- | EB43: -- | EC43: -- | EI43: 28.51996705 | EJ43: 30.25495054 | EK43: 30.11697304 | EQ43: 33.36666667 | ER43: -- | ES43: 35.46666667 | EY43: 5.806666667 | EZ43: 4.823333333 | FA43: 5.12 | FB43: 5.88 | FC43: 76 | FD43: -- | FE43: 4.513333333 | FF43: 4.603333333 | FG43: -- | FH43: 4.66 | FI43: 4.583333333 | FJ43: -0.02 | FP43: -- | FQ43: -- | FR43: -- | FS43: -- | FT43: -- | FU43: -- | FV43: -- | FW43: -- | FX43: -- | GD43: 2.99 | GE43: -- | GF43: -- | GG43: -- | GH43: -- | GI43: -- | GJ43: -- | GK43: -- | GL43: --
A44: 67'Q2 | B44: 851.058 | C44: 4328.72 | D44: 4323.141 | E44: 2583.8 | F44: 135.0635085 | G44: 830.4086795 | H44: 1618.327812 | I44: 316.87017 | J44: 223.5553801 | K44: 222.2 | L44: 25.154 | M44: 195.956 | N44: 149.82 | O44: -46.136 | P44: 1424.221 | Q44: -20.471 | W44: -- | X44: -- | Y44: 81.8267 | Z44: -- | AA44: 53.414 | AB44: 59.965 | AC44: -- | AD44: -- | AE44: -- | AF44: -- | AG44: -- | AH44: -- | AI44: -- | AJ44: -- | AK44: -- | AL44: -- | AM44: 35.897 | AN44: -- | AO44: -- | AP44: -- | AQ44: 44.7 | AR44: -- | AS44: -- | AT44: 44.36666667 | AU44: -- | AV44: -- | AW44: 39.56666667 | AX44: 48.6 | AY44: 56.93333333 | AZ44: 47.66666667 | BA44: 35.93333333 | BB44: -- | BC44: -- | BD44: -- | BE44: -- | BF44: 10.556 | BG44: 43.814 | BH44: 62.312 | BI44: 24.093 | BJ44: 42.885 | BK44: -- | BM44: -- | BN44: -- | BT44: 48.66886667 | BU44: -- | BV44: -- | BW44: 273.47 | BX44: 1214.333333 | BY44: 1093.333333 | BZ44: -- | CA44: -- | CB44: 6.399975078 | CC44: 9.083308411 | CD44: -- | CE44: -- | CF44: -- | CG44: -- | CH44: -- | CI44: -- | CJ44: 493.6666667 | CK44: 657.6666667 | CL44: 69.16666667 | CM44: 822 | CN44: 3006.766667 | CO44: 256.7 | CP44: 103.2594333 | CQ44: 198368.6667 | CR44: -- | CS44: 95.9 | CT44: -- | CZ44: 33.16666667 | DA44: 34.5 | DG44: 56.6 | DH44: 37.8 | DI44: 59.43333333 | DJ44: -- | DK44: 3.833333333 | DL44: 17840.66667 | DN44: -143 | DP44: 65612 | DR44: 157 | DT44: -- | DU44: -- | DV44: -- | DW44: -- | DX44: -- | DY44: -- | DZ44: -- | EA44: -- | EB44: -- | EC44: -- | EI44: 28.75387833 | EJ44: 30.47545369 | EK44: 30.26919223 | EQ44: 33.3 | ER44: -- | ES44: 35.66666667 | EY44: 5.5 | EZ44: 3.99 | FA44: 5.263333333 | FB44: 5.98 | FC44: 71.66666667 | FD44: -- | FE44: 3.66 | FF44: 4.246666667 | FG44: -- | FH44: 4.756666667 | FI44: 4.82 | FJ44: 0.5733333333 | FP44: -- | FQ44: -- | FR44: -- | FS44: -- | FT44: -- | FU44: -- | FV44: -- | FW44: -- | FX44: -- | GD44: 3 | GE44: -- | GF44: -- | GG44: -- | GH44: -- | GI44: -- | GJ44: -- | GK44: -- | GL44: --
A45: 67'Q3 | B45: 866.614 | C45: 4366.088 | D45: 4348.166 | E45: 2596.9 | F45: 133.9788254 | G45: 829.625624 | H45: 1633.295551 | I45: 316.3148019 | J45: 222.3514448 | K45: 233.3 | L45: 33.895 | M45: 198.529 | N45: 146.197 | O45: -52.332 | P45: 1440.159 | Q45: -18.805 | W45: -- | X45: -- | Y45: 83.6613 | Z45: -- | AA45: 54.662 | AB45: 60.73 | AC45: -- | AD45: -- | AE45: -- | AF45: -- | AG45: -- | AH45: -- | AI45: -- | AJ45: -- | AK45: -- | AL45: -- | AM45: 36.1439 | AN45: -- | AO45: -- | AP45: -- | AQ45: 52.2 | AR45: -- | AS45: -- | AT45: 51.56666667 | AU45: -- | AV45: -- | AW45: 42.2 | AX45: 57.03333333 | AY45: 68.86666667 | AZ45: 55.73333333 | BA45: 44.06666667 | BB45: -- | BC45: -- | BD45: -- | BE45: -- | BF45: 10.699 | BG45: 43.993 | BH45: 62.529 | BI45: 24.32 | BJ45: 43.497 | BK45: -- | BM45: -- | BN45: -- | BT45: 49.77436667 | BU45: -- | BV45: -- | BW45: 281.47 | BX45: 1397.333333 | BY45: 1228.333333 | BZ45: -- | CA45: -- | CB45: 6.508789936 | CC45: 9.168789936 | CD45: -- | CE45: -- | CF45: -- | CG45: -- | CH45: -- | CI45: -- | CJ45: 516.6666667 | CK45: 671.5666667 | CL45: 73.16666667 | CM45: 896.6666667 | CN45: 3035.133333 | CO45: 260.7666667 | CP45: 104.6480333 | CQ45: 198912 | CR45: -- | CS45: 97 | CT45: -- | CZ45: 33.5 | DA45: 34.86666667 | DG45: 56.93333333 | DH45: 37.8 | DI45: 59.66666667 | DJ45: -- | DK45: 3.8 | DL45: 17827.66667 | DN45: -13 | DP45: 66064.33333 | DR45: 452.3333333 | DT45: -- | DV45: -- | DW45: -- | DX45: -- | DY45: -- | DZ45: -- | EA45: -- | EB45: -- | EC45: -- | EI45: 29.09033967 | EJ45: 30.72252295 | EK45: 30.49038587 | EQ45: 33.43333333 | ER45: -- | ES45: 35.86666667 | EY45: 5.5 | EZ45: 3.893333333 | FA45: 5.616666667 | FB45: 6.33 | FC45: 71.33333333 | FD45: -- | FE45: 4.3 | FF45: 5.126666667 | FG45: -- | FH45: 5.313333333 | FI45: 5.246666667 | FJ45: 0.12 | FP45: -- | FQ45: -- | FR45: -- | FS45: -- | FT45: -- | FU45: -- | FV45: -- | FW45: -- | FX45: -- | GD45: 3.046666667 | GE45: -- | GF45: -- | GG45: -- | GH45: -- | GI45: -- | GJ45: -- | GK45: -- | GL45: --
A46: 67'Q4 | B46: 883.201 | C46: 4401.233 | D46: 4388.277 | E46: 2612.7 | F46: 134.3165097 | G46: 833.388641 | H46: 1644.994849 | I46: 322.6852007 | J46: 227.4159449 | K46: 246.8 | L46: 32.975 | M46: 208.999 | N46: 150.365 | O46: -58.634 | P46: 1451.435 | Q46: -19.426 | W46: -- | X46: -- | Y46: 84.94663333 | Z46: -- | AA46: 57.439 | AB46: 62.326 | AC46: -- | AD46: -- | AE46: -- | AF46: -- | AG46: -- | AH46: -- | AI46: -- | AJ46: -- | AK46: -- | AL46: -- | AM46: 37.1111 | AN46: -- | AO46: -- | AP46: -- | AQ46: 54.63333333 | AR46: -- | AS46: -- | AT46: 51.8 | AU46: -- | AV46: -- | AW46: 48.73333333 | AX46: 57.4 | AY46: 80.7 | AZ46: 58.33333333 | BA46: 50.8 | BB46: -- | BC46: -- | BD46: -- | BE46: -- | BF46: 10.844 | BG46: 44.151 | BH46: 62.691 | BI46: 24.562 | BJ46: 46.158 | BK46: -- | BM46: -- | BN46: -- | BT46: 50.88053333 | BU46: -- | BV46: -- | BW46: 288.21 | BX46: 1445.666667 | BY46: 1297.333333 | BZ46: -- | CA46: -- | CB46: 6.890129748 | CC46: 9.620129748 | CD46: -- | CE46: -- | CF46: -- | CG46: -- | CH46: -- | CI46: -- | CJ46: 522.6666667 | CK46: 683.0666667 | CL46: 75.03333333 | CM46: 890.3333333 | CN46: 3057.1 | CO46: 263.2333333 | CP46: 106.1933 | CQ46: 199488.6667 | CR46: -- | CS46: 92.9 | CT46: -- | CZ46: 33.86666667 | DA46: 35.23333333 | DG46: 57.4 | DH46: 37.8 | DI46: 59.86666667 | DJ46: -- | DK46: 3.9 | DL46: 17936.66667 | DN46: 109 | DP46: 66609.33333 | DR46: 545 | DT46: -- | DU46: 4.75 | DV46: -- | DW46: -- | DX46: -- | DY46: -- | DZ46: -- | EA46: -- | EB46: -- | EC46: -- | EI46: 29.56784304 | EJ46: 31.0210425 | EK46: 30.72721038 | EQ46: 33.5 | ER46: -- | ES46: 36.23333333 | EY46: 5.726666667 | EZ46: 4.173333333 | FA46: 6.026666667 | FB46: 6.723333333 | FC46: 69.66666667 | FD46: -- | FE46: 4.753333333 | FF46: 5.563333333 | FG46: -- | FH46: 5.7 | FI46: 5.643333333 | FJ46: 0.08 | FP46: -- | FQ46: -- | FR46: -- | FS46: -- | FT46: -- | FU46: -- | FV46: -- | FW46: -- | FX46: -- | GD46: 3.07 | GE46: -- | GF46: -- | GG46: -- | GH46: -- | GI46: -- | GJ46: -- | GK46: -- | GL46: --
A47: 68'Q1 | B47: 911.135 | C47: 4490.609 | D47: 4478.997 | E47: 2674.8 | F47: 142.6665228 | G47: 849.7893049 | H47: 1682.344172 | I47: 332.1917959 | J47: 235.5728192 | K47: 248.4 | L47: 30.126 | M47: 221.313 | N47: 154.745 | O47: -66.568 | P47: 1477.236 | Q47: -16.945 | W47: -- | X47: -- | Y47: 86.75433333 | Z47: -- | AA47: 56.548 | AB47: 59.395 | AC47: -- | AD47: -- | AE47: -- | AF47: -- | AG47: -- | AH47: -- | AI47: -- | AJ47: -- | AK47: -- | AL47: -- | AM47: 37.64083333 | AN47: -- | AO47: -- | AP47: -- | AQ47: 55.13333333 | AR47: -- | AS47: -- | AT47: 51.2 | AU47: -- | AV47: -- | AW47: 53.06666667 | AX47: 57.46666667 | AY47: 76.8 | AZ47: 57.73333333 | BA47: 52.83333333 | BB47: -- | BC47: -- | BD47: -- | BE47: -- | BF47: 11.136 | BG47: 45.136 | BH47: 63.749 | BI47: 24.672 | BJ47: 44.642 | BK47: -- | BM47: -- | BN47: -- | BT47: 52.03516667 | BU47: -- | BV47: -- | BW47: 296.93 | BX47: 1455.333333 | BY47: 1297 | BZ47: -- | CA47: -- | CB47: 7.47439133 | CC47: 10.08772466 | CD47: -- | CE47: -- | CF47: -- | CG47: -- | CH47: -- | CI47: -- | CJ47: 509 | CK47: 702.6333333 | CL47: 73.66666667 | CM47: 914.6666667 | CN47: 3109.4 | CO47: 263.6666667 | CP47: 107.7966333 | CQ47: 199928 | CR47: 1.3628 | CS47: 97.2 | CT47: -- | CZ47: 34.2 | DA47: 35.66666667 | DG47: 57.63333333 | DH47: 37.7 | DI47: 59.46666667 | DJ47: -- | DK47: 3.733333333 | DL47: 18053.66667 | DN47: 117 | DP47: 67105 | DR47: 495.6666667 | DT47: -- | DU47: 4.566666667 | DV47: -- | DW47: -- | DX47: -- | DY47: -- | DZ47: -- | EA47: -- | EB47: -- | EC47: -- | EI47: 30.19717788 | EJ47: 31.69937119 | EK47: 31.40065042 | EQ47: 33.96666667 | ER47: -- | ES47: 36.56666667 | EY47: 6 | EZ47: 4.786666667 | FA47: 6.126666667 | FB47: 6.83 | FC47: 70.33333333 | FD47: -- | FE47: 5.05 | FF47: 5.473333333 | FG47: -- | FH47: 5.63 | FI47: 5.61 | FJ47: 0.1366666667 | FP47: -- | FQ47: -- | FR47: -- | FS47: -- | FT47: -- | FU47: -- | FV47: -- | FW47: -- | FX47: -- | GD47: 3.07 | GE47: -- | GF47: -- | GG47: -- | GH47: -- | GI47: -- | GJ47: -- | GK47: -- | GL47: --
A48: 68'Q2 | B48: 936.297 | C48: 4566.442 | D48: 4524.773 | E48: 2715.7 | F48: 145.705682 | G48: 860.2300458 | H48: 1709.764272 | I48: 328.1082069 | J48: 230.2709757 | K48: 254.8 | L48: 52.768 | M48: 224.688 | N48: 157.814 | O48: -66.874 | P48: 1485.012 | Q48: -18.619 | W48: -- | X48: -- | Y48: 89.1077 | Z48: -- | AA48: 58.094 | AB48: 62.617 | AC48: -- | AD48: -- | AE48: -- | AF48: -- | AG48: -- | AH48: -- | AI48: -- | AJ48: -- | AK48: -- | AL48: -- | AM48: 38.14826667 | AN48: -- | AO48: -- | AP48: -- | AQ48: 55.6 | AR48: -- | AS48: -- | AT48: 53.06666667 | AU48: -- | AV48: -- | AW48: 54.63333333 | AX48: 58.33333333 | AY48: 70.36666667 | AZ48: 58.33333333 | BA48: 49.43333333 | BB48: -- | BC48: -- | BD48: -- | BE48: -- | BF48: 11.317 | BG48: 45.568 | BH48: 64.16 | BI48: 24.835 | BJ48: 45.713 | BK48: -- | BM48: -- | BN48: -- | BT48: 53.3393 | BU48: -- | BV48: -- | BW48: 302.54 | BX48: 1455.666667 | BY48: 1294.333333 | BZ48: -- | CA48: -- | CB48: 7.687101301 | CC48: 10.18376797 | CD48: -- | CE48: -- | CF48: -- | CG48: -- | CH48: -- | CI48: -- | CJ48: 461 | CK48: 722.6333333 | CL48: 76.36666667 | CM48: 858 | CN48: 3161.3 | CO48: 264.5666667 | CP48: 110.3475 | CQ48: 200368.3333 | CR48: 1.543533333 | CS48: 92.4 | CT48: -- | CZ48: 34.53333333 | DA48: 36.03333333 | DG48: 58.13333333 | DH48: 37.7 | DI48: 59.8 | DJ48: -- | DK48: 3.566666667 | DL48: 18183 | DN48: 129.3333333 | DP48: 67704 | DR48: 599 | DT48: -- | DU48: 4.466666667 | DV48: -- | DW48: -- | DX48: -- | DY48: -- | DZ48: -- | EA48: -- | EB48: -- | EC48: -- | EI48: 30.67337396 | EJ48: 32.20760733 | EK48: 31.90635667 | EQ48: 34.16666667 | ER48: -- | ES48: 36.93333333 | EY48: 6.4 | EZ48: 5.98 | FA48: 6.253333333 | FB48: 7.023333333 | FC48: 77 | FD48: -- | FE48: 5.52 | FF48: 5.943333333 | FG48: -- | FH48: 5.86 | FI48: 5.743333333 | FJ48: -0.2 | FP48: -- | FQ48: -- | FR48: -- | FS48: -- | FT48: -- | FU48: -- | FV48: -- | FW48: -- | FX48: -- | GD48: 3.07 | GE48: -- | GF48: -- | GG48: -- | GH48: -- | GI48: -- | GJ48: -- | GK48: -- | GL48: --
A49: 68'Q3 | B49: 952.347 | C49: 4599.332 | D49: 4590.151 | E49: 2766.6 | F49: 152.2649448 | G49: 873.9335182 | H49: 1740.401537 | I49: 332.6164891 | J49: 233.9904601 | K49: 259.4 | L49: 28.805 | M49: 238.192 | N49: 167.125 | O49: -71.067 | P49: 1489.654 | Q49: -10.089 | W49: -- | X49: -- | Y49: 91.37303333 | Z49: -- | AA49: 58.476 | AB49: 62.978 | AC49: -- | AD49: -- | AE49: -- | AF49: -- | AG49: -- | AH49: -- | AI49: -- | AJ49: -- | AK49: -- | AL49: -- | AM49: 38.4443 | AN49: -- | AO49: -- | AP49: -- | AQ49: 52.86666667 | AR49: -- | AS49: -- | AT49: 48.26666667 | AU49: -- | AV49: -- | AW49: 50.8 | AX49: 54.56666667 | AY49: 71.26666667 | AZ49: 56.53333333 | BA49: 50.7 | BB49: -- | BC49: -- | BD49: -- | BE49: -- | BF49: 11.502 | BG49: 45.553 | BH49: 64.34 | BI49: 25.25 | BJ49: 45.846 | BK49: -- | BM49: -- | BN49: -- | BT49: 54.9857 | BU49: -- | BV49: -- | BW49: 309.55 | BX49: 1521 | BY49: 1388.333333 | BZ49: -- | CA49: -- | CB49: 8.010971873 | CC49: 10.48430521 | CD49: -- | CE49: -- | CF49: -- | CG49: -- | CH49: -- | CI49: -- | CJ49: 500.3333333 | CK49: 740.9666667 | CL49: 67.86666667 | CM49: 911.6666667 | CN49: 3168.933333 | CO49: 265.4666667 | CP49: 112.9076333 | CQ49: 200899.6667 | CR49: 1.764833333 | CS49: 92.4 | CT49: -- | CZ49: 35 | DA49: 36.53333333 | DG49: 58.63333333 | DH49: 37.7 | DI49: 59.63333333 | DJ49: -- | DK49: 3.533333333 | DL49: 18257 | DN49: 74 | DP49: 68313.33333 | DR49: 609.3333333 | DT49: -- | DU49: 4.433333333 | DV49: -- | DW49: -- | DX49: -- | DY49: -- | DZ49: -- | EA49: -- | EB49: -- | EC49: -- | EI49: 30.90864227 | EJ49: 32.57289509 | EK49: 32.302751 | EQ49: 34.3 | ER49: -- | ES49: 37.2 | EY49: 6.483333333 | EZ49: 5.943333333 | FA49: 6.076666667 | FB49: 6.863333333 | FC49: 78.66666667 | FD49: -- | FE49: 5.196666667 | FF49: 5.51 | FG49: -- | FH49: 5.526666667 | FI49: 5.46 | FJ49: -0.05 | FP49: -- | FQ49: -- | FR49: -- | FS49: -- | FT49: -- | FU49: -- | FV49: -- | FW49: -- | FX49: -- | GD49: 3.07 | GE49: -- | GF49: -- | GG49: -- | GH49: -- | GI49: -- | GJ49: -- | GK49: -- | GL49: --
A50: 68'Q4 | B50: 970.129 | C50: 4619.803 | D50: 4619.564 | E50: 2779.2 | F50: 151.3644531 | G50: 874.1292821 | H50: 1753.706265 | I50: 341.6820567 | J50: 240.566932 | K50: 262.7 | L50: 23.933 | M50: 236.185 | N50: 165.017 | O50: -71.168 | P50: 1490.99 | Q50: -9.296 | W50: -- | X50: -- | Y50: 94.49633333 | Z50: -- | AA50: 59.995 | AB50: 63.486 | AC50: -- | AD50: -- | AE50: -- | AF50: -- | AG50: -- | AH50: -- | AI50: -- | AJ50: -- | AK50: -- | AL50: -- | AM50: 39.0281 | AN50: -- | AO50: -- | AP50: -- | AQ50: 56.66666667 | AR50: -- | AS50: -- | AT50: 53.93333333 | AU50: -- | AV50: -- | AW50: 44.7 | AX50: 58.83333333 | AY50: 72.36666667 | AZ50: 60.5 | BA50: 57.53333333 | BB50: -- | BC50: -- | BD50: -- | BE50: -- | BF50: 11.731 | BG50: 45.474 | BH50: 64.818 | BI50: 25.797 | BJ50: 47.193 | BK50: -- | BM50: -- | BN50: -- | BT50: 57.09406667 | BU50: -- | BV50: -- | BW50: 317.13 | BX50: 1582.333333 | BY50: 1415.333333 | BZ50: -- | CA50: -- | CB50: 8.026145198 | CC50: 10.4061452 | CD50: -- | CE50: -- | CF50: -- | CG50: -- | CH50: -- | CI50: -- | CJ50: 494 | CK50: 756.7 | CL50: 70.36666667 | CM50: 917 | CN50: 3190.6 | CO50: 267.6666667 | CP50: 116.2745 | CQ50: 201459 | CR50: 1.997933333 | CS50: 91.7 | CT50: -- | CZ50: 35.43333333 | DA50: 37.06666667 | DG50: 59.06666667 | DH50: 37.56666667 | DI50: 59.6 | DJ50: -- | DK50: 3.4 | DL50: 18349.66667 | DN50: 92.66666667 | DP50: 68983.66667 | DR50: 670.3333333 | DT50: -- | DU50: 4.533333333 | DV50: -- | DW50: -- | DX50: -- | DY50: -- | DZ50: -- | EA50: -- | EB50: -- | EC50: -- | EI50: 31.08802322 | EJ50: 32.75165232 | EK50: 32.46983538 | EQ50: 34.5 | ER50: -- | ES50: 37.46666667 | EY50: 6.366666667 | EZ50: 5.916666667 | FA50: 6.243333333 | FB50: 7.026666667 | FC50: 78.33333333 | FD50: -- | FE50: 5.586666667 | FF50: 5.836666667 | FG50: -- | FH50: 5.776666667 | FI50: 5.77 | FJ50: -0.06666666667 | FP50: -- | FQ50: -- | FR50: -- | FS50: -- | FT50: -- | FU50: -- | FV50: -- | FW50: -- | FX50: -- | GD50: 3.07 | GE50: -- | GF50: -- | GG50: -- | GH50: -- | GI50: -- | GJ50: -- | GK50: -- | GL50: --
A51: 69'Q1 | B51: 995.419 | C51: 4691.637 | D51: 4667.178 | E51: 2810.3 | F51: 154.2194209 | G51: 883.8304706 | H51: 1772.250109 | I51: 350.4209371 | J51: 247.8684474 | K51: 272.2 | L51: 40.124 | M51: 213.907 | N51: 145.249 | O51: -68.658 | P51: 1494.713 | Q51: 2.239 | W51: -- | X51: -- | Y51: 98.22756667 | Z51: -- | AA51: 59.234 | AB51: 62.016 | AC51: -- | AD51: -- | AE51: -- | AF51: -- | AG51: -- | AH51: -- | AI51: -- | AJ51: -- | AK51: -- | AL51: -- | AM51: 39.78733333 | AN51: -- | AO51: -- | AP51: -- | AQ51: 56.33333333 | AR51: -- | AS51: -- | AT51: 53.93333333 | AU51: -- | AV51: -- | AW51: 46.03333333 | AX51: 57.2 | AY51: 78.7 | AZ51: 58.33333333 | BA51: 61.4 | BB51: -- | BC51: -- | BD51: -- | BE51: -- | BF51: 11.891 | BG51: 45.823 | BH51: 64.907 | BI51: 25.95 | BJ51: 45.749 | BK51: -- | BM51: -- | BN51: -- | BT51: 58.80373333 | BU51: -- | BV51: -- | BW51: 324.89 | BX51: 1678.333333 | BY51: 1464 | BZ51: -- | CA51: -- | CB51: 8.272752699 | CC51: 10.6527527 | CD51: -- | CE51: -- | CF51: -- | CG51: -- | CH51: -- | CI51: -- | CJ51: 492.6666667 | CK51: 771.3333333 | CL51: 65.53333333 | CM51: 893 | CN51: 3197.066667 | CO51: 268.6 | CP51: 119.3688333 | CQ51: 201888 | CR51: 2.2205 | CS51: 98.2 | CT51: -- | CZ51: 35.86666667 | DA51: 37.56666667 | DG51: 59.73333333 | DH51: 37.6 | DI51: 59.83333333 | DJ51: -- | DK51: 3.4 | DL51: 18497.33333 | DN51: 147.6666667 | DP51: 69681 | DR51: 697.3333333 | DT51: -- | DU51: 4.433333333 | DV51: -- | DW51: -- | DX51: -- | DY51: -- | DZ51: -- | EA51: -- | EB51: -- | EC51: -- | EI51: 31.67809978 | EJ51: 33.27661899 | EK51: 32.87354333 | EQ51: 35 | ER51: -- | ES51: 37.7 | EY51: 7.063333333 | EZ51: 6.566666667 | FA51: 6.7 | FB51: 7.376666667 | FC51: 67.66666667 | FD51: -- | FE51: 6.093333333 | FF51: 6.363333333 | FG51: -- | FH51: 6.333333333 | FI51: 6.176666667 | FJ51: -0.1866666667 | FP51: -- | FQ51: -- | FR51: -- | FS51: -- | FT51: -- | FU51: -- | FV51: -- | FW51: -- | FX51: -- | GD51: 3.13 | GE51: -- | GF51: -- | GG51: -- | GH51: -- | GI51: -- | GJ51: -- | GK51: -- | GL51: --
A52: 69'Q2 | B52: 1011.361 | C52: 4706.684 | D52: 4691.158 | E52: 2828.2 | F52: 153.7998736 | G52: 885.7881095 | H52: 1788.612017 | I52: 354.2431763 | J52: 249.9991534 | K52: 269.3 | L52: 33.53 | M52: 256.109 | N52: 177.816 | O52: -78.293 | P52: 1490.022 | Q52: -1.493 | W52: -- | X52: -- | Y52: 101.7524333 | Z52: -- | AA52: 57.375 | AB52: 59.904 | AC52: -- | AD52: -- | AE52: -- | AF52: -- | AG52: -- | AH52: -- | AI52: -- | AJ52: -- | AK52: -- | AL52: -- | AM52: 39.96096667 | AN52: -- | AO52: -- | AP52: -- | AQ52: 55.8 | AR52: -- | AS52: -- | AT52: 52.86666667 | AU52: -- | AV52: -- | AW52: 49.23333333 | AX52: 54.9 | AY52: 79.66666667 | AZ52: 56.1 | BA52: 65.26666667 | BB52: -- | BC52: -- | BD52: -- | BE52: -- | BF52: 12.083 | BG52: 45.455 | BH52: 64.932 | BI52: 26.583 | BJ52: 44.048 | BK52: -- | BM52: -- | BN52: -- | BT52: 60.43083333 | BU52: -- | BV52: -- | BW52: 330.04 | BX52: 1545 | BY52: 1372.666667 | BZ52: -- | CA52: -- | CB52: 8.935335505 | CC52: 11.33866884 | CD52: -- | CE52: -- | CF52: -- | CG52: -- | CH52: -- | CI52: -- | CJ52: 452.6666667 | CK52: 790.4333333 | CL52: 69.5 | CM52: 842 | CN52: 3232.233333 | CO52: 267.7 | CP52: 122.4897333 | CQ52: 202333 | CR52: 2.586766667 | CS52: 91.5 | CT52: -- | CZ52: 36.43333333 | DA52: 38.16666667 | DG52: 60.3 | DH52: 37.6 | DI52: 59.96666667 | DJ52: -- | DK52: 3.433333333 | DL52: 18594 | DN52: 96.66666667 | DP52: 70345.33333 | DR52: 664.3333333 | DT52: -- | DU52: 4.2 | DV52: -- | DW52: -- | DX52: -- | DY52: -- | DZ52: -- | EA52: -- | EB52: -- | EC52: -- | EI52: 31.78372146 | EJ52: 33.37481704 | EK52: 33.09546066 | EQ52: 35.5 | ER52: -- | ES52: 38 | EY52: 7.743333333 | EZ52: 8.326666667 | FA52: 6.886666667 | FB52: 7.586666667 | FC52: 70 | FD52: -- | FE52: 6.196666667 | FF52: 6.573333333 | FG52: -- | FH52: 6.53 | FI52: 6.353333333 | FJ52: -0.22 | FP52: -- | FQ52: -- | FR52: -- | FS52: -- | FT52: -- | FU52: -- | FV52: -- | FW52: -- | FX52: -- | GD52: 3.35 | GE52: -- | GF52: -- | GG52: -- | GH52: -- | GI52: -- | GJ52: -- | GK52: -- | GL52: --
A53: 69'Q3 | B53: 1032.016 | C53: 4736.143 | D53: 4715.353 | E53: 2842 | F53: 153.3598607 | G53: 889.0943441 | H53: 1799.545795 | I53: 362.2960138 | J53: 256.6146259 | K53: 267.2 | L53: 38.746 | M53: 252.791 | N53: 173.552 | O53: -79.239 | P53: 1493.466 | Q53: -8.63 | W53: -- | X53: -- | Y53: 103.3933333 | Z53: -- | AA53: 55.562 | AB53: 58.278 | AC53: -- | AD53: -- | AE53: -- | AF53: -- | AG53: -- | AH53: -- | AI53: -- | AJ53: -- | AK53: -- | AL53: -- | AM53: 40.44063333 | AN53: -- | AO53: -- | AP53: -- | AQ53: 54 | AR53: -- | AS53: -- | AT53: 51.5 | AU53: -- | AV53: -- | AW53: 49.86666667 | AX53: 50.56666667 | AY53: 82.83333333 | AZ53: 53.36666667 | BA53: 68.3 | BB53: -- | BC53: -- | BD53: -- | BE53: -- | BF53: 12.3 | BG53: 45.482 | BH53: 65.199 | BI53: 27.043 | BJ53: 42.001 | BK53: -- | BM53: -- | BN53: -- | BT53: 61.3686 | BU53: -- | BV53: -- | BW53: 337.15 | BX53: 1411 | BY53: 1286 | BZ53: -- | CA53: -- | CB53: 9.0902344 | CC53: 11.58690107 | CD53: -- | CE53: -- | CF53: -- | CG53: -- | CH53: -- | CI53: -- | CJ53: 418 | CK53: 812 | CL53: 81.86666667 | CM53: 787 | CN53: 3300.633333 | CO53: 265 | CP53: 124.6439333 | CQ53: 202881.3333 | CR53: 3.006633333 | CS53: 86.4 | CT53: -- | CZ53: 36.93333333 | DA53: 38.7 | DG53: 60.6 | DH53: 37.5 | DI53: 60.23333333 | DJ53: -- | DK53: 3.566666667 | DL53: 18676.33333 | DN53: 82.33333333 | DP53: 70884 | DR53: 538.6666667 | DT53: -- | DU53: 4.5 | DV53: -- | DW53: -- | DX53: -- | DY53: -- | DZ53: -- | EA53: -- | EB53: -- | EC53: -- | EI53: 31.92638681 | EJ53: 33.50126043 | EK53: 33.23573931 | EQ53: 35.76666667 | ER53: -- | ES53: 38.4 | EY53: 8.5 | EZ53: 8.983333333 | FA53: 7.063333333 | FB53: 7.916666667 | FC53: 85.33333333 | FD53: -- | FE53: 7.023333333 | FF53: 7.653333333 | FG53: -- | FH53: 7.203333333 | FI53: 6.856666667 | FJ53: -0.7966666667 | FP53: -- | FQ53: -- | FR53: -- | FS53: -- | FT53: -- | FU53: -- | FV53: -- | FW53: -- | FX53: -- | GD53: 3.35 | GE53: -- | GF53: -- | GG53: -- | GH53: -- | GI53: -- | GJ53: -- | GK53: -- | GL53: --
A54: 69'Q4 | B54: 1040.741 | C54: 4715.469 | D54: 4717.041 | E54: 2864.7 | F54: 152.7765877 | G54: 895.0542671 | H54: 1816.869145 | I54: 360.4012285 | J54: 252.7040238 | K54: 247.7 | L54: 20.985 | M54: 250.014 | N54: 179.527 | O54: -70.487 | P54: 1473.931 | Q54: -12.548 | W54: -- | X54: -- | Y54: 105.3735 | Z54: -- | AA54: 54.531 | AB54: 53.56 | AC54: -- | AD54: -- | AE54: -- | AF54: -- | AG54: -- | AH54: -- | AI54: -- | AJ54: -- | AK54: -- | AL54: -- | AM54: 40.18713333 | AN54: -- | AO54: -- | AP54: -- | AQ54: 53.26666667 | AR54: -- | AS54: -- | AT54: 50.43333333 | AU54: -- | AV54: -- | AW54: 53.76666667 | AX54: 50.16666667 | AY54: 83.1 | AZ54: 51.56666667 | BA54: 65.9 | BB54: -- | BC54: -- | BD54: -- | BE54: -- | BF54: 12.538 | BG54: 45.291 | BH54: 65.458 | BI54: 27.682 | BJ54: 40.511 | BK54: -- | BM54: -- | BN54: -- | BT54: 62.2476 | BU54: -- | BV54: -- | BW54: 345.86 | BX54: 1312.333333 | BY54: 1187.333333 | BZ54: -- | CA54: -- | CB54: 9.398934058 | CC54: 11.89560072 | CD54: -- | CE54: -- | CF54: -- | CG54: -- | CH54: -- | CI54: -- | CJ54: 431.3333333 | CK54: 827.2666667 | CL54: 83.23333333 | CM54: 739.6666667 | CN54: 3326.433333 | CO54: 263.5 | CP54: 126.5817 | CQ54: 203492.3333 | CR54: 3.465233333 | CS54: 79.7 | CT54: -- | CZ54: 37.5 | DA54: 39.23333333 | DG54: 60.7 | DH54: 37.46666667 | DI54: 60.26666667 | DJ54: -- | DK54: 3.566666667 | DL54: 18521.66667 | DN54: -154.6666667 | DP54: 71149 | DR54: 265 | DT54: -- | DU54: 4.633333333 | DV54: -- | DW54: -- | DX54: -- | DY54: -- | DZ54: -- | EA54: -- | EB54: -- | EC54: -- | EI54: 31.28568067 | EJ54: 33.28988377 | EK54: 33.22806156 | EQ54: 36.1 | ER54: -- | ES54: 38.96666667 | EY54: 8.5 | EZ54: 8.94 | FA54: 7.466666667 | FB54: 8.373333333 | FC54: 90.66666667 | FD54: -- | FE54: 7.353333333 | FF54: 7.9 | FG54: -- | FH54: 7.666666667 | FI54: 7.296666667 | FJ54: -0.6033333333 | FP54: -- | FQ54: -- | FR54: -- | FS54: -- | FT54: -- | FU54: -- | FV54: -- | FW54: -- | FX54: -- | GD54: 3.35 | GE54: -- | GF54: -- | GG54: -- | GH54: -- | GI54: -- | GJ54: -- | GK54: -- | GL54: --
A55: 70'Q1 | B55: 1053.528 | C55: 4707.112 | D55: 4728.132 | E55: 2882.4 | F55: 150.433263 | G55: 902.7325619 | H55: 1829.234175 | I55: 357.8694033 | J55: 249.0941748 | K55: 248.2 | L55: 3.82 | M55: 249.195 | N55: 180.929 | O55: -68.266 | P55: 1466.946 | Q55: -22.249 | W55: -- | X55: -- | Y55: 105.802 | Z55: -- | AA55: 51.931 | AB55: 50.195 | AC55: -- | AD55: -- | AE55: -- | AF55: -- | AG55: -- | AH55: -- | AI55: -- | AJ55: -- | AK55: -- | AL55: -- | AM55: 39.21353333 | AN55: -- | AO55: -- | AP55: -- | AQ55: 47.66666667 | AR55: -- | AS55: -- | AT55: 44.8 | AU55: -- | AV55: -- | AW55: 50.06666667 | AX55: 45.6 | AY55: 74.3 | AZ55: 47.1 | BA55: 54.96666667 | BB55: -- | BC55: -- | BD55: -- | BE55: -- | BF55: 12.764 | BG55: 45.411 | BH55: 65.59 | BI55: 28.108 | BJ55: 37.491 | BK55: -- | BM55: -- | BN55: -- | BT55: 63.01893333 | BU55: -- | BV55: -- | BW55: 352.72 | BX55: 1236.333333 | BY55: 1104 | BZ55: -- | CA55: -- | CB55: 10.39374294 | CC55: 13.31040961 | CD55: -- | CE55: -- | CF55: -- | CG55: -- | CH55: -- | CI55: -- | CJ55: 407.6666667 | CK55: 841.7666667 | CL55: 87.26666667 | CM55: 687.3333333 | CN55: 3359.033333 | CO55: 258.3666667 | CP55: 128.0914 | CQ55: 204004.3333 | CR55: 3.8013 | CS55: 78.1 | CT55: -- | CZ55: 38.1 | DA55: 39.83333333 | DG55: 60.36666667 | DH55: 37.26666667 | DI55: 60.46666667 | DJ55: -- | DK55: 4.166666667 | DL55: 18381.66667 | DN55: -140 | DP55: 71310.66667 | DR55: 161.6666667 | DT55: -- | DU55: 4.566666667 | DV55: -- | DW55: -- | DX55: -- | DY55: -- | DZ55: -- | EA55: -- | EB55: -- | EC55: -- | EI55: 31.08112808 | EJ55: 33.26991317 | EK55: 33.28316001 | EQ55: 36.63333333 | ER55: -- | ES55: 39.43333333 | EY55: 8.463333333 | EZ55: 8.573333333 | FA55: 7.893333333 | FB55: 8.756666667 | FC55: 86.33333333 | FD55: -- | FE55: 7.21 | FF55: 7.553333333 | FG55: -- | FH55: 7.733333333 | FI55: 7.366666667 | FJ55: -0.1866666667 | FP55: -- | FQ55: -- | FR55: -- | FS55: -- | FT55: -- | FU55: -- | FV55: -- | FW55: -- | FX55: -- | GD55: 3.35 | GE55: -- | GF55: -- | GG55: -- | GH55: -- | GI55: -- | GJ55: -- | GK55: -- | GL55: --
A56: 70'Q2 | B56: 1070.11 | C56: 4715.441 | D56: 4719.456 | E56: 2895.7 | F56: 152.172849 | G56: 902.1670218 | H56: 1841.360129 | I56: 355.5335905 | J56: 243.3577666 | K56: 231.6 | L56: 17.783 | M56: 254.12 | N56: 188.882 | O56: -65.238 | P56: 1450.151 | Q56: -32.608 | W56: -- | X56: -- | Y56: 106.1747333 | Z56: -- | AA56: 51.698 | AB56: 53.818 | AC56: -- | AD56: -- | AE56: -- | AF56: -- | AG56: -- | AH56: -- | AI56: -- | AJ56: -- | AK56: -- | AL56: -- | AM56: 38.9978 | AN56: -- | AO56: -- | AP56: -- | AQ56: 47.76666667 | AR56: -- | AS56: -- | AT56: 40.96666667 | AU56: -- | AV56: -- | AW56: 43.33333333 | AX56: 48.06666667 | AY56: 75.73333333 | AZ56: 46.8 | BA56: 60.66666667 | BB56: -- | BC56: -- | BD56: -- | BE56: -- | BF56: 12.967 | BG56: 46.103 | BH56: 65.715 | BI56: 28.127 | BJ56: 36.966 | BK56: -- | BM56: -- | BN56: -- | BT56: 63.38303333 | BU56: -- | BV56: -- | BW56: 357.37 | BX56: 1313 | BY56: 1291.333333 | BZ56: -- | CA56: -- | CB56: 10.80516369 | CC56: 14.14183036 | CD56: -- | CE56: -- | CF56: -- | CG56: -- | CH56: -- | CI56: -- | CJ56: 465.3333333 | CK56: 859.6333333 | CL56: 93.96666667 | CM56: 758.3333333 | CN56: 3398.666667 | CO56: 250.6333333 | CP56: 128.6980333 | CQ56: 204612.6667 | CR56: 4.1505 | CS56: 75.4 | CT56: -- | CZ56: 38.63333333 | DA56: 40.56666667 | DG56: 59.53333333 | DH56: 36.96666667 | DI56: 60.36666667 | DJ56: -- | DK56: 4.766666667 | DL56: 18055.33333 | DN56: -326.3333333 | DP56: 71166.66667 | DR56: -144 | DT56: -- | DU56: 4.566666667 | DV56: -- | DW56: -- | DX56: -- | DY56: -- | DZ56: -- | EA56: -- | EB56: -- | EC56: -- | EI56: 30.7970585 | EJ56: 33.20572172 | EK56: 33.35581123 | EQ56: 36.83333333 | ER56: -- | ES56: 39.8 | EY56: 8 | EZ56: 7.88 | FA56: 8.14 | FB56: 8.976666667 | FC56: 83.66666667 | FD56: -- | FE56: 6.676666667 | FF56: 7.453333333 | FG56: -- | FH56: 7.773333333 | FI56: 7.713333333 | FJ56: 0.26 | FP56: -- | FQ56: -- | FR56: -- | FS56: -- | FT56: -- | FU56: -- | FV56: -- | FW56: -- | FX56: -- | GD56: 3.35 | GE56: -- | GF56: -- | GG56: -- | GH56: -- | GI56: -- | GJ56: -- | GK56: -- | GL56: --
